Workbook

Sheet Warning
H12: Calcolatore del costo del ciclo di vita (LCC)
D17: Abilitare le funzioni Macro per usare il file
F20: Per favore clicca sul tasto "Opzioni" per abilitare il contenuto
D30: Lo strumento di calcolo Clean Fleets LCC è un facile strumento che consente di comparare il LCC/TCO di diversi veicoli e offerte di appalto. Lo strumenti è conforme alla direttiva CVD (2009/33/EC). Include anche l'opzione per utilizzare la metodologia di calcolo dei costi operativi di vita del prodotto proposta nella Direttiva. Questa metodologia monetizza gli impatti ambientali del consumo di carburanti e le emissioni di scarico del veicolo.
G33: I contenuti del documento sono sotto la responsabilità del solo progetto Clean Fleets e non possono essere considerati corrispondenti con il punto di vista dell'Unione Europea

Sheet LCC (hidden)
D2: VEICOLI - CALCOLATORE LCC
D3: completa riempiendo solo le celle bianche
B5: CONDIZIONI GENERALI
B6: i | C6: lunghezza contratto | D6: anno
B7: i | C7: sconto | D7: %
B8: i | C8: numero offerte | E8: 3
B10: COSTI DI ACQUISIZIONE
C11: Name del modello di veicolo | E11: prodotto 1 | G11: prodotto 2 | I11: prodotto 3 | K11: prodotto 4 | M11: prodotto 5 | O11: prodotto 6 | Q11: prodotto 7 | S11: prodotto 8 | U11: prodotto 9 | W11: prodotto 10
B13: i | C13: numero di veicoli
B14: i | C14: prezzo di acquisto | D14: €/unità | F14: €/unità | H14: €/unità | J14: €/unità | L14: €/unità | N14: €/unità | P14: €/unità | R14: €/unità | T14: €/unità | V14: €/unità
C15: (or) prezzo leasing | D15: €/unità/anno | F15: €/unità/anno | H15: €/unità/anno | J15: €/unità/anno | L15: €/unità/anno | N15: €/unità/anno | P15: €/unità/anno | R15: €/unità/anno | T15: €/unità/anno | V15: €/unità/anno
C16: COSTI DI ACQUISIZIONE / unità | E16: =IF(CELL("contents",E13)>0,-PV($E$7*0.01,$E$6,E15)+E14,0) -> 0 | G16: =IF(CELL("contents",G13)>0,-PV($E$7*0.01,$E$6,G15)+G14,0) -> 0 | I16: =IF(CELL("contents",I13)>0,-PV($E$7*0.01,$E$6,I15)+I14,0) -> 0 | K16: =IF(CELL("contents",K13)>0,-PV($E$7*0.01,$E$6,K15)+K14,0) -> 0 | M16: =IF(CELL("contents",M13)>0,-PV($E$7*0.01,$E$6,M15)+M14,0) -> 0 | O16: =IF(CELL("contents",O13)>0,-PV($E$7*0.01,$E$6,O15)+O14,0) -> 0 | Q16: =IF(CELL("contents",Q13)>0,-PV($E$7*0.01,$E$6,Q15)+Q14,0) -> 0 | S16: =IF(CELL("contents",S13)>0,-PV($E$7*0.01,$E$6,S15)+S14,0) -> 0 | U16: =IF(CELL("contents",U13)>0,-PV($E$7*0.01,$E$6,U15)+U14,0) -> 0 | W16: =IF(CELL("contents",W13)>0,-PV($E$7*0.01,$E$6,W15)+W14,0) -> 0
B18: COSTI OPERATIVI PER VEICOLO
B19: i | C19: uso annuale veicolo | D19: km | F19: km | H19: km | J19: km | L19: km | N19: km | P19: km | R19: km | T19: km | V19: km
B20: i | C20: tipo di carburante
B21: i | C21: consumo di carburante per veicolo | D21: =IF(CELL("contents",E20)>0,INDEX(calcoli!$E$26:$E$38,calcoli!D$4),"") ->  | F21: =IF(CELL("contents",G20)>0,INDEX(calcoli!$E$26:$E$38,calcoli!E$4),"") ->  | H21: =IF(CELL("contents",I20)>0,INDEX(calcoli!$E$26:$E$38,calcoli!F$4),"") ->  | J21: =IF(CELL("contents",K20)>0,INDEX(calcoli!$E$26:$E$38,calcoli!G$4),"") ->  | L21: =IF(CELL("contents",M20)>0,INDEX(calcoli!$E$26:$E$38,calcoli!H$4),"") ->  | N21: =IF(CELL("contents",O20)>0,INDEX(calcoli!$E$26:$E$38,calcoli!I$4),"") ->  | P21: =IF(CELL("contents",Q20)>0,INDEX(calcoli!$E$26:$E$38,calcoli!J$4),"") ->  | R21: =IF(CELL("contents",S20)>0,INDEX(calcoli!$E$26:$E$38,calcoli!K$4),"") ->  | T21: =IF(CELL("contents",U20)>0,INDEX(calcoli!$E$26:$E$38,calcoli!L$4),"") ->  | V21: =IF(CELL("contents",W20)>0,INDEX(calcoli!$E$26:$E$38,calcoli!M$4),"") -> 
C22: prezzo carburante | D22: =IF(CELL("contents",E20)>0,INDEX(calcoli!$F$26:$F$38,calcoli!D4),"") ->  | F22: =IF(CELL("contents",G20)>0,INDEX(calcoli!$F$26:$F$38,calcoli!E4),"") ->  | H22: =IF(CELL("contents",I20)>0,INDEX(calcoli!$F$26:$F$38,calcoli!F4),"") ->  | J22: =IF(CELL("contents",K20)>0,INDEX(calcoli!$F$26:$F$38,calcoli!G$4),"") ->  | L22: =IF(CELL("contents",M20)>0,INDEX(calcoli!$F$26:$F$38,calcoli!H$4),"") ->  | N22: =IF(CELL("contents",O20)>0,INDEX(calcoli!$F$26:$F$38,calcoli!I4),"") ->  | P22: =IF(CELL("contents",Q20)>0,INDEX(calcoli!$F$26:$F$38,calcoli!J4),"") ->  | R22: =IF(CELL("contents",S20)>0,INDEX(calcoli!$F$26:$F$38,calcoli!K4),"") ->  | T22: =IF(CELL("contents",U20)>0,INDEX(calcoli!$F$26:$F$38,calcoli!L4),"") ->  | V22: =IF(CELL("contents",W20)>0,INDEX(calcoli!$F$26:$F$38,calcoli!M4),"") -> 
B23: i | C23: secondo tipo di carburante?
C24: tipo di carburante
B25: i | C25: consumo di carburante per veicolo | D25: =IF(CELL("contents",E24)>0,INDEX(calcoli!$E$26:$E$38,calcoli!D$5),"") ->  | F25: =IF(CELL("contents",G24)>0,INDEX(calcoli!$E$26:$E$38,calcoli!E$5),"") ->  | H25: =IF(CELL("contents",I24)>0,INDEX(calcoli!$E$26:$E$38,calcoli!F$5),"") ->  | J25: =IF(CELL("contents",K24)>0,INDEX(calcoli!$E$26:$E$38,calcoli!G$5),"") ->  | L25: =IF(CELL("contents",M24)>0,INDEX(calcoli!$E$26:$E$38,calcoli!H$5),"") ->  | N25: =IF(CELL("contents",O24)>0,INDEX(calcoli!$E$26:$E$38,calcoli!I$5),"") ->  | P25: =IF(CELL("contents",Q24)>0,INDEX(calcoli!$E$26:$E$38,calcoli!J$5),"") ->  | R25: =IF(CELL("contents",S24)>0,INDEX(calcoli!$E$26:$E$38,calcoli!K$5),"") ->  | T25: =IF(CELL("contents",U24)>0,INDEX(calcoli!$E$26:$E$38,calcoli!L$5),"") ->  | V25: =IF(CELL("contents",W24)>0,INDEX(calcoli!$E$26:$E$38,calcoli!M$5),"") -> 
C26: prezzo carburante | D26: =IF(CELL("contents",E24)>0,INDEX(calcoli!$F$26:$F$38,calcoli!D5),"") ->  | F26: =IF(CELL("contents",G24)>0,INDEX(calcoli!$F$26:$F$38,calcoli!E5),"") ->  | H26: =IF(CELL("contents",I24)>0,INDEX(calcoli!$F$26:$F$38,calcoli!F5),"") ->  | J26: =IF(CELL("contents",K24)>0,INDEX(calcoli!$F$26:$F$38,calcoli!G5),"") ->  | L26: =IF(CELL("contents",M24)>0,INDEX(calcoli!$F$26:$F$38,calcoli!H5),"") ->  | N26: =IF(CELL("contents",O24)>0,INDEX(calcoli!$F$26:$F$38,calcoli!I5),"") ->  | P26: =IF(CELL("contents",Q24)>0,INDEX(calcoli!$F$26:$F$38,calcoli!J5),"") ->  | R26: =IF(CELL("contents",S24)>0,INDEX(calcoli!$F$26:$F$38,calcoli!K5),"") ->  | T26: =IF(CELL("contents",U24)>0,INDEX(calcoli!$F$26:$F$38,calcoli!L5),"") ->  | V26: =IF(CELL("contents",W24)>0,INDEX(calcoli!$F$26:$F$38,calcoli!M5),"") -> 
C27: sostituzione batteria | D27: €/unità | F27: €/unità | H27: €/unità | J27: €/unità | L27: €/unità | N27: €/unità | P27: €/unità | R27: €/unità | T27: €/unità | V27: €/unità
C28: tempo di vita atteso per la batteria | D28: anni | F28: anni | H28: anni | J28: anni | L28: anni | N28: anni | P28: anni | R28: anni | T28: anni | V28: anni
C29: (o) prezzo di leasing della batteria | D29: €/unità/anno | F29: €/unità/anno | H29: €/unità/anno | J29: €/unità/anno | L29: €/unità/anno | N29: €/unità/anno | P29: €/unità/anno | R29: €/unità/anno | T29: €/unità/anno | V29: €/unità/anno
C30: COSTI OPERATIVI / unità | E30: =IF(CELL("contents",E19)>0,IF($C$81="Use default OECD-FAO values",-PV($E$7*0.01,$E$6,calcoli!D9+calcoli!D10+LCC!E29),-PV($E$7*0.01,$E$6,(E21*(E19/100)*calcoli!D11)+(E$25*(E19/100)*calcoli!D12))+calcoli!D10+LCC!E29),0) -> 0 | G30: =IF(CELL("contents",G19)>0,IF($C$81="Use default OECD-FAO values",-PV($E$7*0.01,$E$6,calcoli!E9+calcoli!E10+LCC!G29),-PV($E$7*0.01,$E$6,(G21*(G19/100)*calcoli!E11)+(G$25*(G19/100)*calcoli!E12))+calcoli!E10+LCC!G29),0) -> 0 | I30: =IF(CELL("contents",I19)>0,IF($C$81="Use default OECD-FAO values",-PV($E$7*0.01,$E$6,calcoli!F9+calcoli!F10+LCC!I29),-PV($E$7*0.01,$E$6,(I21*(I19/100)*calcoli!F11)+(I$25*(I19/100)*calcoli!F12))+calcoli!F10+LCC!I29),0) -> 0 | K30: =IF(CELL("contents",K19)>0,IF($C$81="Use default OECD-FAO values",-PV($E$7*0.01,$E$6,calcoli!G9+calcoli!G10+LCC!K29),-PV($E$7*0.01,$E$6,(K21*(K19/100)*calcoli!G11)+(K$25*(K19/100)*calcoli!G12))+calcoli!G10+LCC!K29),0) -> 0 | M30: =IF(CELL("contents",M19)>0,IF($C$81="Use default OECD-FAO values",-PV($E$7*0.01,$E$6,calcoli!H9+calcoli!H10+LCC!M29),-PV($E$7*0.01,$E$6,(M21*(M19/100)*calcoli!H11)+(M$25*(M19/100)*calcoli!H12))+calcoli!H10+LCC!M29),0) -> 0 | O30: =IF(CELL("contents",O19)>0,IF($C$81="Use default OECD-FAO values",-PV($E$7*0.01,$E$6,calcoli!I9+calcoli!I10+LCC!O29),-PV($E$7*0.01,$E$6,(O21*(O19/100)*calcoli!I11)+(O$25*(O19/100)*calcoli!I12))+calcoli!I10+LCC!O29),0) -> 0 | Q30: =IF(CELL("contents",Q19)>0,IF($C$81="Use default OECD-FAO values",-PV($E$7*0.01,$E$6,calcoli!J9+calcoli!J10+LCC!Q29),-PV($E$7*0.01,$E$6,(Q21*(Q19/100)*calcoli!J11)+(Q$25*(Q19/100)*calcoli!J12))+calcoli!J10+LCC!Q29),0) -> 0 | S30: =IF(CELL("contents",S19)>0,IF($C$81="Use default OECD-FAO values",-PV($E$7*0.01,$E$6,calcoli!K9+calcoli!K10+LCC!S29),-PV($E$7*0.01,$E$6,(S21*(S19/100)*calcoli!K11)+(S$25*(S19/100)*calcoli!K12))+calcoli!K10+LCC!S29),0) -> 0 | U30: =IF(CELL("contents",U19)>0,IF($C$81="Use default OECD-FAO values",-PV($E$7*0.01,$E$6,calcoli!L9+calcoli!L10+LCC!U29),-PV($E$7*0.01,$E$6,(U21*(U19/100)*calcoli!L11)+(U$25*(U19/100)*calcoli!L12))+calcoli!L10+LCC!U29),0) -> 0 | W30: =IF(CELL("contents",W19)>0,IF($C$81="Use default OECD-FAO values",-PV($E$7*0.01,$E$6,calcoli!M9+calcoli!M10+LCC!W29),-PV($E$7*0.01,$E$6,(W21*(W19/100)*calcoli!M11)+(W$25*(W19/100)*calcoli!M12))+calcoli!M10+LCC!W29),0) -> 0
B32: COSTI DI MANUTENZIONE PER VEICOLO
B33: i | C33: costi stimati annuali manutenzione | D33: €/unità/anno | F33: €/unità/anno | H33: €/unità/anno | J33: €/unità/anno | L33: €/unità/anno | N33: €/unità/anno | P33: €/unità/anno | R33: €/unità/anno | T33: €/unità/anno | V33: €/unità/anno
B34: i | C34: (o) costo annuale del servizio | D34: €/unità/anno | F34: €/unità/anno | H34: €/unità/anno | J34: €/unità/anno | L34: €/unità/anno | N34: €/unità/anno | P34: €/unità/anno | R34: €/unità/anno | T34: €/unità/anno | V34: €/unità/anno
C35: COSTI DI MANUTENZIONE / unità | E35: =IF(CELL("contents",E33)>0,-PV($E$7*0.01,$E$6,(E34+E33)),IF(CELL("type",E34)="v",-PV($E$7*0.01,$E$6,(E34+E33)),0)) -> 0 | G35: =IF(CELL("contents",G33)>0,-PV($E$7*0.01,$E$6,(G34+G33)),IF(CELL("type",G34)="v",-PV($E$7*0.01,$E$6,(G34+G33)),0)) -> 0 | I35: =IF(CELL("contents",I33)>0,-PV($E$7*0.01,$E$6,(I34+I33)),IF(CELL("type",I34)="v",-PV($E$7*0.01,$E$6,(I34+I33)),0)) -> 0 | K35: =IF(CELL("contents",K33)>0,-PV($E$7*0.01,$E$6,(K34+K33)),IF(CELL("type",K34)="v",-PV($E$7*0.01,$E$6,(K34+K33)),0)) -> 0 | M35: =IF(CELL("contents",M33)>0,-PV($E$7*0.01,$E$6,(M34+M33)),IF(CELL("type",M34)="v",-PV($E$7*0.01,$E$6,(M34+M33)),0)) -> 0 | O35: =IF(CELL("contents",O33)>0,-PV($E$7*0.01,$E$6,(O34+O33)),IF(CELL("type",O34)="v",-PV($E$7*0.01,$E$6,(O34+O33)),0)) -> 0 | Q35: =IF(CELL("contents",Q33)>0,-PV($E$7*0.01,$E$6,(Q34+Q33)),IF(CELL("type",Q34)="v",-PV($E$7*0.01,$E$6,(Q34+Q33)),0)) -> 0 | S35: =IF(CELL("contents",S33)>0,-PV($E$7*0.01,$E$6,(S34+S33)),IF(CELL("type",S34)="v",-PV($E$7*0.01,$E$6,(S34+S33)),0)) -> 0 | U35: =IF(CELL("contents",U33)>0,-PV($E$7*0.01,$E$6,(U34+U33)),IF(CELL("type",U34)="v",-PV($E$7*0.01,$E$6,(U34+U33)),0)) -> 0 | W35: =IF(CELL("contents",W33)>0,-PV($E$7*0.01,$E$6,(W34+W33)),IF(CELL("type",W34)="v",-PV($E$7*0.01,$E$6,(W34+W33)),0)) -> 0
B37: TASSE E ALTRI COSTI/SUSSIDI PER I VEICOLI
B38: i | C38: tasse | D38: €/unità/anno | F38: €/unità/anno | H38: €/unità/anno | J38: €/unità/anno | L38: €/unità/anno | N38: €/unità/anno | P38: €/unità/anno | R38: €/unità/anno | T38: €/unità/anno | V38: €/unità/anno
C39: assicurazione | D39: €/unità/anno | F39: €/unità/anno | H39: €/unità/anno | J39: €/unità/anno | L39: €/unità/anno | N39: €/unità/anno | P39: €/unità/anno | R39: €/unità/anno | T39: €/unità/anno | V39: €/unità/anno
B40: i | C40: infrastrutture - investimenti | D40: € | F40: € | H40: € | J40: € | L40: € | N40: € | P40: € | R40: € | T40: € | V40: €
C41: (o) infrastrutture costi annuali | D41: €/anno | F41: €/anno | H41: €/anno | J41: €/anno | L41: €/anno | N41: €/anno | P41: €/anno | R41: €/anno | T41: €/anno | V41: €/anno
B42: i | C42: Altri costi e sussidi
C43: (costo annuale 1) | D43: €/anno | F43: €/anno | H43: €/anno | J43: €/anno | L43: €/anno | N43: €/anno | P43: €/anno | R43: €/anno | T43: €/anno | V43: €/anno
C44: (costo annuale 2) | D44: €/anno | F44: €/anno | H44: €/anno | J44: €/anno | L44: €/anno | N44: €/anno | P44: €/anno | R44: €/anno | T44: €/anno | V44: €/anno
C45: (costo iniziale 1) | D45: € | F45: € | H45: € | J45: € | L45: € | N45: € | P45: € | R45: € | T45: € | V45: €
C46: (costo iniziale 2) | D46: € | F46: € | H46: € | J46: € | L46: € | N46: € | P46: € | R46: € | T46: € | V46: €
C47: (sussidi annuali) | D47: € | F47: € | H47: € | J47: € | L47: € | N47: € | P47: € | R47: € | T47: € | V47: €
C48: (sussidi iniziali) | D48: € | F48: € | H48: € | J48: € | L48: € | N48: € | P48: € | R48: € | T48: € | V48: €
C49: TOTALE ALTRI COSTI E SUSSIDI/ unitàA' | E49: =-PV(E7*0.01,E6,(E38+E39+E41+E43+E44-E47))+E40+E45+E46-E48 -> 0 | G49: =-PV($E$7*0.01,$E$6,(G38+G39+G41+G43+G44-G47))+G40+G45+G46-G48 -> 0 | I49: =-PV($E$7*0.01,$E$6,(I38+I39+I41+I43+I44-I47))+I40+I45+I46-I48 -> 0 | K49: =-PV($E$7*0.01,$E$6,(K38+K39+K41+K43+K44-K47))+K40+K45+K46-K48 -> 0 | M49: =-PV($E$7*0.01,$E$6,(M38+M39+M41+M43+M44-M47))+M40+M45+M46-M48 -> 0 | O49: =-PV($E$7*0.01,$E$6,(O38+O39+O41+O43+O44-O47))+O40+O45+O46-O48 -> 0 | Q49: =-PV($E$7*0.01,$E$6,(Q38+Q39+Q41+Q43+Q44-Q47))+Q40+Q45+Q46-Q48 -> 0 | S49: =-PV($E$7*0.01,$E$6,(S38+S39+S41+S43+S44-S47))+S40+S45+S46-S48 -> 0 | U49: =-PV($E$7*0.01,$E$6,(U38+U39+U41+U43+U44-U47))+U40+U45+U46-U48 -> 0 | W49: =-PV($E$7*0.01,$E$6,(W38+W39+W41+W43+W44-W47))+W40+W45+W46-W48 -> 0
B51: EMISSIONI (OLC) PER VEICOLO - SEZIONE OPZIONALE
C52: vuoi applicare la metodologia OLC delle direttiva?
B53: i | C53: Emissioni CO2 | D53: g/km | F53: g/km | H53: g/km | J53: g/km | L53: g/km | N53: g/km | P53: g/km | R53: g/km | T53: g/km | V53: g/km
C54: costo di vita delle emissioni CO2 / unità | E54: =$D$77*E53*E19*$E$6 -> 0 | G54: =$D$77*G53*G19*$E$6 -> 0 | I54: =$D$77*I53*I19*$E$6 -> 0 | K54: =$D$77*K53*K19*$E$6 -> 0 | M54: =$D$77*M53*M19*$E$6 -> 0 | O54: =$D$77*O53*O19*$E$6 -> 0 | Q54: =$D$77*Q53*Q19*$E$6 -> 0 | S54: =$D$77*S53*S19*$E$6 -> 0 | U54: =$D$77*U53*U19*$E$6 -> 0 | W54: =$D$77*W53*W19*$E$6 -> 0
B55: i | C55: NOx (ossidi di azoto) | D55: g/km | F55: g/km | H55: g/km | J55: g/km | L55: g/km | N55: g/km | P55: g/km | R55: g/km | T55: g/km | V55: g/km
B56: i | C56: PM (Particolato) | D56: g/km | F56: g/km | H56: g/km | J56: g/km | L56: g/km | N56: g/km | P56: g/km | R56: g/km | T56: g/km | V56: g/km
B57: i | C57: NMHC (idrocarburi non metanici) | D57: g/km | F57: g/km | H57: g/km | J57: g/km | L57: g/km | N57: g/km | P57: g/km | R57: g/km | T57: g/km | V57: g/km
C58: costo di vita degli inquinanti / unità | E58: =((E55*$D$74)+(E56*$D$75)+(E57*$D$76))*E19*$E$6 -> 0 | G58: =((G55*$D$74)+(G56*$D$75)+(G57*$D$76))*G19*$E$6 -> 0 | I58: =((I55*$D$74)+(I56*$D$75)+(I57*$D$76))*I19*$E$6 -> 0 | K58: =((K55*$D$74)+(K56*$D$75)+(K57*$D$76))*K19*$E$6 -> 0 | M58: =((M55*$D$74)+(M56*$D$75)+(M57*$D$76))*M19*$E$6 -> 0 | O58: =((O55*$D$74)+(O56*$D$75)+(O57*$D$76))*O19*$E$6 -> 0 | Q58: =((Q55*$D$74)+(Q56*$D$75)+(Q57*$D$76))*Q19*$E$6 -> 0 | S58: =((S55*$D$74)+(S56*$D$75)+(S57*$D$76))*S19*$E$6 -> 0 | U58: =((U55*$D$74)+(U56*$D$75)+(U57*$D$76))*U19*$E$6 -> 0 | W58: =((W55*$D$74)+(W56*$D$75)+(W57*$D$76))*W19*$E$6 -> 0
B59: i | C59: carburante di riferimento (il più economico senza tasse)
B60: i | C60: Costo di riferimento del carburante (prima delle tasse) | D60: €/l | F60: €/l | H60: €/l | J60: €/l | L60: €/l | N60: €/l | P60: €/l | R60: €/l | T60: €/l | V60: €/l
C61: costo di vita del consumo di energia / unità | E61: =IF(CELL("contents",E60)>0,calcoli!D22,0) -> 0 | G61: =IF(CELL("contents",G60)>0,calcoli!E22,0) -> 0 | I61: =IF(CELL("contents",I60)>0,calcoli!F22,0) -> 0 | K61: =IF(CELL("contents",K60)>0,calcoli!G22,0) -> 0 | M61: =IF(CELL("contents",M60)>0,calcoli!H22,0) -> 0 | O61: =IF(CELL("contents",O60)>0,calcoli!I22,0) -> 0 | Q61: =IF(CELL("contents",Q60)>0,calcoli!J22,0) -> 0 | S61: =IF(CELL("contents",S60)>0,calcoli!K22,0) -> 0 | U61: =IF(CELL("contents",U60)>0,calcoli!L22,0) -> 0 | W61: =IF(CELL("contents",W60)>0,calcoli!M22,0) -> 0
C62: COSTO OPERATIVO DI VITA (OLC) / unità | E62: =SUM(E54,E58,E61) -> 0 | G62: =SUM(G54,G58,G61) -> 0 | I62: =SUM(I54,I58,I61) -> 0 | K62: =SUM(K54,K58,K61) -> 0 | M62: =SUM(M54,M58,M61) -> 0 | O62: =SUM(O54,O58,O61) -> 0 | Q62: =SUM(Q54,Q58,Q61) -> 0 | S62: =SUM(S54,S58,S61) -> 0 | U62: =SUM(U54,U58,U61) -> 0 | W62: 0
B64: END OF LIFE
B65: i | C65: valore residuale (fine del contratto) | D65: €/unità
E66: =SUM(E65) -> 0 | G66: =SUM(G65) -> 0 | I66: =SUM(I65) -> 0 | K66: =SUM(K65) -> 0 | M66: =SUM(M65) -> 0 | O66: =SUM(O65) -> 0 | Q66: =SUM(Q65) -> 0 | S66: =SUM(S65) -> 0 | U66: =SUM(U65) -> 0 | W66: =SUM(W65) -> 0
C68: LCC TOTALE per unità | E68: =E16+E30+E35+E49+E62-E66 -> 0 | G68: =G16+G30+G35+G49+G62-G66 -> 0 | I68: =I16+I30+I35+I49+I62-I66 -> 0 | K68: =K16+K30+K35+K49+K62-K66 -> 0 | M68: =M16+M30+M35+M49+M62-M66 -> 0 | O68: =O16+O30+O35+O49+O62-O66 -> 0 | Q68: =Q16+Q30+Q35+Q49+Q62-Q66 -> 0 | S68: =S16+S30+S35+S49+S62-S66 -> 0 | U68: =U16+U30+U35+U49+U62-U66 -> 0 | W68: =W16+W30+W35+W49+W62-W66 -> 0
C69: LCC TOTALE | E69: =E68*E13 -> 0 | G69: =G68*G13 -> 0 | I69: =I68*I13 -> 0 | K69: =K68*K13 -> 0 | M69: =M68*M13 -> 0 | O69: =O68*O13 -> 0 | Q69: =Q68*Q13 -> 0 | S69: =S68*S13 -> 0 | U69: =U68*U13 -> 0 | W69: =W68*W13 -> 0
B72: COSTO DELLE EMISSIONI | F72: > | G72: CLICCA QUI PER I DIAGRAMMI
C73: emissioni | D73: Costo per unità €/g
C74: NOx (range consentito 0,0044-0,0088) | D74: 0.0044
C75: PM (range consentito 0,087-0,174) | D75: 0.087
C76: NMHC (range consentito 0,001-0,002) | D76: 0.001
C77: CO2 (range consentito 0,00003 - 0,00008) | D77: 3e-05
B79: AUMENTO PREZZO CARBURANTE
C80: seleziona una delle opzioni sotto
B81: i | C81: scegli uno dei valori
C83: Annual carburante price changes %
C84: Diesel | D84: =D98 -> 
C85: benzina | D85: =D99 -> 
C86: Biogas/CBG
C87: Gas Naturale/CNG (Nm3/100km) | D87: =D101 -> 
C88: Gas naturale/CNG (kg/100km) | D88: =D101 -> 
C89: elettricità | D89: =D103 -> 
C90: biodiesel | D90: =D104 -> 
C91: LPG | D91: =D105 -> 
C92: etanolo | D92: =D106 -> 
C93: idrogeno gas
C94: idrogeno liquido - kg/100km
C95: idrogeno liquido - l/100km
C96: Carburante emulsionato
D97: inserisci le tue percentuali di incremento annuali nel box sotto
C98: Diesel | D98: =IF(CELL("contents",E6)>0,INDEX('prezzi combustibile'!$D$6:$N$6,LCC!$E$6)/LCC!$E$6,"") -> 
C99: benzina | D99: =IF(CELL("contents",E6)>0,INDEX('prezzi combustibile'!$D$9:$N$9,LCC!$E$6)/LCC!$E$6,"") -> 
C100: Biogas/CBG
C101: Natural Gas/CNG (Nm3/100km) | D101: =IF(CELL("contents",E6)>0,INDEX('prezzi combustibile'!$D$24:$N$24,LCC!$E$6)/LCC!$E$6,"") -> 
C102: Natural Gas/CNG (kg/100km) | D102: =IF(CELL("contents",E6)>0,INDEX('prezzi combustibile'!$D$24:$N$24,LCC!$E$6)/LCC!$E$6,"") -> 
C103: elettricità | D103: =IF(CELL("contents",E6)>0,INDEX('prezzi combustibile'!$D$18:$N$18,LCC!$E$6)/LCC!$E$6,"") -> 
C104: biodiesel | D104: =IF(CELL("contents",E6)>0,INDEX('prezzi combustibile'!$D$21:$N$21,LCC!$E$6)/LCC!$E$6,"") -> 
C105: LPG | D105: =IF(CELL("contents",E6)>0,INDEX('prezzi combustibile'!$D$12:$N$12,LCC!$E$6)/LCC!$E$6,"") -> 
C106: etanolo | D106: =IF(CELL("contents",E6)>0,INDEX('prezzi combustibile'!$D$15:$N$15,LCC!$E$6)/LCC!$E$6,"") -> 
C107: idrogeno gas
C108: idrogeno liquido - kg/100km
C109: idrogeno liquido - l/100km
C110: carburante emulsionato

Sheet Diagramma (hidden)
B3: DIAGRAMMA DEI RISULTATI LCC
AE10: OLC
AE12: costi carburante
AE14: totale altri costi
AE16: costi di manutenzione
AE18: costi di acquisizione *
AE23: *se esiste un valore residuale verrà sottratto dal costo di acquisizione
C27: > | D27: TORNA AL CALCOLATORE LCC

Sheet prezzi combustibile (hidden)
A1: fonti: | C1: OECD-FAO | X1: SINGLE FUEL TIME SERIES | AK1: Fuel 1 Time Series | AL1: SECOND FUEL TIME SERIES | AY1: Fuel 2 Time Series
C2: amministazione energia US | I2: 5 anni | N2: 10 anni
D3: 2014 | E3: 2015 | F3: 2016 | G3: 2017 | H3: 2018 | I3: 2019 | J3: 2020 | K3: 2021 | L3: 2022 | M3: 2023 | N3: 2024 | X3: DIESEL | Y3: 2014 | Z3: 2015 | AA3: 2016 | AB3: 2017 | AC3: 2018 | AD3: 2019 | AE3: 2020 | AF3: 2021 | AG3: 2022 | AH3: 2023 | AI3: 2024 | AJ3: Total fuel price for period | AL3: DIESEL | AM3: 2014 | AN3: 2015 | AO3: 2016 | AP3: 2017 | AQ3: 2018 | AR3: 2019 | AS3: 2020 | AT3: 2021 | AU3: 2022 | AV3: 2023 | AW3: 2024 | AX3: prezzo totale carburante per il periodo
A4: Diesel | B4: $/gallonee | C4: prezzo previsto | D4: 3.68333 | E4: 3.544132 | F4: 3.495223 | G4: 3.49714 | H4: 3.533868 | I4: 3.610616 | J4: 3.671875 | K4: 3.740702 | L4: 3.815766 | M4: 3.868004 | N4: 3.918083 | X4: prodotto 1 | Y4: =((LCC!$E$19*(LCC!$E$21/100))*LCC!$E$22) -> 0 | Z4: =((LCC!$E$19*(LCC!$E$21/100))*(LCC!$E$22*(1+$E$6))) -> 0 | AA4: =((LCC!$E$19*(LCC!$E$21/100))*(LCC!$E$22*(1+$F$6))) -> 0 | AB4: =((LCC!$E$19*(LCC!$E$21/100))*(LCC!$E$22*(1+$G$6))) -> 0 | AC4: =((LCC!$E$19*(LCC!$E$21/100))*(LCC!$E$22*(1+$H$6))) -> 0 | AD4: =((LCC!$E$19*(LCC!$E$21/100))*(LCC!$E$22*(1+$I$6))) -> 0 | AE4: =((LCC!$E$19*(LCC!$E$21/100))*(LCC!$E$22*(1+$J$6))) -> 0 | AF4: =((LCC!$E$19*(LCC!$E$21/100))*(LCC!$E$22*(1+$K$6))) -> 0 | AG4: =((LCC!$E$19*(LCC!$E$21/100))*(LCC!$E$22*(1+$L$6))) -> 0 | AH4: =((LCC!$E$19*(LCC!$E$21/100))*(LCC!$E$22*(1+$M$6))) -> 0 | AI4: =((LCC!$E$19*(LCC!$E$21/100))*(LCC!$E$22*(1+$N$6))) -> 0 | AJ4: =SUM(Y4:INDEX(Y4:AI4,LCC!$E$6)) -> 0 | AL4: prodotto 1 | AM4: =((LCC!$E$19*(LCC!$E$25/100))*LCC!$E$26) -> 0 | AN4: =((LCC!$E$19*(LCC!$E$25/100))*(LCC!$E$26*(1+$E$6))) -> 0 | AO4: =((LCC!$E$19*(LCC!$E$25/100))*(LCC!$E$26*(1+$F$6))) -> 0 | AP4: =((LCC!$E$19*(LCC!$E$25/100))*(LCC!$E$26*(1+$G$6))) -> 0 | AQ4: =((LCC!$E$19*(LCC!$E$25/100))*(LCC!$E$26*(1+$H$6))) -> 0 | AR4: =((LCC!$E$19*(LCC!$E$25/100))*(LCC!$E$26*(1+$I$6))) -> 0 | AS4: =((LCC!$E$19*(LCC!$E$25/100))*(LCC!$E$26*(1+$J$6))) -> 0 | AT4: =((LCC!$E$19*(LCC!$E$25/100))*(LCC!$E$26*(1+$K$6))) -> 0 | AU4: =((LCC!$E$19*(LCC!$E$25/100))*(LCC!$E$26*(1+$L$6))) -> 0 | AV4: =((LCC!$E$19*(LCC!$E$25/100))*(LCC!$E$26*(1+$M$6))) -> 0 | AW4: =((LCC!$E$19*(LCC!$E$25/100))*(LCC!$E$26*(1+$N$6))) -> 0 | AX4: =SUM(AM4:INDEX(AM4:AW4,LCC!$E$6)) -> 0
C5: % rispetto anni prec | E5: =(E4-D4)/D4 -> -0.03779134642 | F5: =(F4-E4)/E4 -> -0.01379999391 | G5: 0.0005484628592 | H5: 0.01050229616 | I5: 0.02171784571 | J5: 0.01696635699 | K5: 0.01874437447 | L5: 0.02006682168 | M5: 0.01369004284 | N5: 0.01294698765 | X5: prodotto 2 | Y5: =((LCC!$G$19*(LCC!$G$21/100))*LCC!$G$22) -> 0 | Z5: =((LCC!$G$19*(LCC!$G$21/100))*(LCC!$G$22*(1+$E$6))) -> 0 | AA5: =((LCC!$G$19*(LCC!$G$21/100))*(LCC!$G$22*(1+$F$6))) -> 0 | AB5: =((LCC!$G$19*(LCC!$G$21/100))*(LCC!$G$22*(1+G$6))) -> 0 | AC5: =((LCC!$G$19*(LCC!$G$21/100))*(LCC!$G$22*(1+H$6))) -> 0 | AD5: =((LCC!$G$19*(LCC!$G$21/100))*(LCC!$G$22*(1+I$6))) -> 0 | AE5: =((LCC!$G$19*(LCC!$G$21/100))*(LCC!$G$22*(1+J$6))) -> 0 | AF5: =((LCC!$G$19*(LCC!$G$21/100))*(LCC!$G$22*(1+K$6))) -> 0 | AG5: =((LCC!$G$19*(LCC!$G$21/100))*(LCC!$G$22*(1+L$6))) -> 0 | AH5: =((LCC!$G$19*(LCC!$G$21/100))*(LCC!$G$22*(1+M$6))) -> 0 | AI5: =((LCC!$G$19*(LCC!$G$21/100))*(LCC!$G$22*(1+N$6))) -> 0 | AJ5: =SUM(Y5:INDEX(Y5:AI5,LCC!$E$6)) -> 0 | AL5: prodotto 2 | AM5: =((LCC!$G$19*(LCC!$G$25/100))*LCC!$G$26) -> 0 | AN5: =((LCC!$G$19*(LCC!$G$25/100))*(LCC!$G$26*(1+$E$6))) -> 0 | AO5: =((LCC!$G$19*(LCC!$G$25/100))*(LCC!$G$26*(1+$F$6))) -> 0 | AP5: =((LCC!$G$19*(LCC!$G$25/100))*(LCC!$G$26*(1+$G$6))) -> 0 | AQ5: =((LCC!$G$19*(LCC!$G$25/100))*(LCC!$G$26*(1+$H$6))) -> 0 | AR5: =((LCC!$G$19*(LCC!$G$25/100))*(LCC!$G$26*(1+$I$6))) -> 0 | AS5: =((LCC!$G$19*(LCC!$G$25/100))*(LCC!$G$26*(1+$J$6))) -> 0 | AT5: =((LCC!$G$19*(LCC!$G$25/100))*(LCC!$G$26*(1+$K$6))) -> 0 | AU5: =((LCC!$G$19*(LCC!$G$25/100))*(LCC!$G$26*(1+$L$6))) -> 0 | AV5: =((LCC!$G$19*(LCC!$G$25/100))*(LCC!$G$26*(1+$M$6))) -> 0 | AW5: =((LCC!$G$19*(LCC!$G$25/100))*(LCC!$G$26*(1+$N$6))) -> 0 | AX5: =SUM(AM5:INDEX(AM5:AW5,LCC!$E$6)) -> 0
C6: % cumulativa | E6: =E5 -> -0.03779134642 | F6: =F5+E6 -> -0.05159134032 | G6: =G5+F6 -> -0.05104287746 | H6: -0.0405405813 | I6: -0.01882273559 | J6: -0.0018563786 | K6: 0.01688799587 | L6: 0.03695481755 | M6: 0.05064486039 | N6: 0.06359184803 | X6: prodotto 3 | Y6: =((LCC!$I$19*(LCC!$I$21/100))*LCC!$I$22) -> 0 | Z6: =((LCC!$I$19*(LCC!$I$21/100))*(LCC!$I$22*(1+$E$6))) -> 0 | AA6: =((LCC!$I$19*(LCC!$I$21/100))*(LCC!$I$22*(1+$F$6))) -> 0 | AB6: =((LCC!$I$19*(LCC!$I$21/100))*(LCC!$I$22*(1+G$6))) -> 0 | AC6: =((LCC!$I$19*(LCC!$I$21/100))*(LCC!$I$22*(1+H$6))) -> 0 | AD6: =((LCC!$I$19*(LCC!$I$21/100))*(LCC!$I$22*(1+I$6))) -> 0 | AE6: =((LCC!$I$19*(LCC!$I$21/100))*(LCC!$I$22*(1+J$6))) -> 0 | AF6: =((LCC!$I$19*(LCC!$I$21/100))*(LCC!$I$22*(1+K$6))) -> 0 | AG6: =((LCC!$I$19*(LCC!$I$21/100))*(LCC!$I$22*(1+L$6))) -> 0 | AH6: =((LCC!$I$19*(LCC!$I$21/100))*(LCC!$I$22*(1+M$6))) -> 0 | AI6: =((LCC!$I$19*(LCC!$I$21/100))*(LCC!$I$22*(1+N$6))) -> 0 | AJ6: =SUM(Y6:INDEX(Y6:AI6,LCC!$E$6)) -> 0 | AL6: prodotto 3 | AM6: =((LCC!$I$19*(LCC!$I$25/100))*LCC!$I$26) -> 0 | AN6: =((LCC!$I$19*(LCC!$I$25/100))*(LCC!$I$26*(1+$E$6))) -> 0 | AO6: =((LCC!$I$19*(LCC!$I$25/100))*(LCC!$I$26*(1+$F$6))) -> 0 | AP6: =((LCC!$I$19*(LCC!$I$25/100))*(LCC!$I$26*(1+$G$6))) -> 0 | AQ6: =((LCC!$I$19*(LCC!$I$25/100))*(LCC!$I$26*(1+$H$6))) -> 0 | AR6: =((LCC!$I$19*(LCC!$I$25/100))*(LCC!$I$26*(1+$I$6))) -> 0 | AS6: =((LCC!$I$19*(LCC!$I$25/100))*(LCC!$I$26*(1+$J$6))) -> 0 | AT6: =((LCC!$I$19*(LCC!$I$25/100))*(LCC!$I$26*(1+$K$6))) -> 0 | AU6: =((LCC!$I$19*(LCC!$I$25/100))*(LCC!$I$26*(1+$L$6))) -> 0 | AV6: =((LCC!$I$19*(LCC!$I$25/100))*(LCC!$I$26*(1+$M$6))) -> 0 | AW6: =((LCC!$I$19*(LCC!$I$25/100))*(LCC!$I$26*(1+$N$6))) -> 0 | AX6: =SUM(AM6:INDEX(AM6:AW6,LCC!$E$6)) -> 0
A7: benzina | B7: $/gallone | C7: prezzo previsto | D7: 3.380838 | E7: 3.1774 | F7: 3.071946 | G7: 3.027397 | H7: 3.020742 | I7: 3.034724 | J7: 3.077188 | K7: 3.120887 | L7: 3.169647 | M7: 3.220602 | N7: 3.261647 | X7: prodotto 4 | Y7: =((LCC!$K$19*(LCC!$K$21/100))*LCC!$K$22) -> 0 | Z7: =((LCC!$K$19*(LCC!$K$21/100))*(LCC!$K$22*(1+$E$6))) -> 0 | AA7: =((LCC!$K$19*(LCC!$K$21/100))*(LCC!$K$22*(1+$F$6))) -> 0 | AB7: =((LCC!$K$19*(LCC!$K$21/100))*(LCC!$K$22*(1+G$6))) -> 0 | AC7: =((LCC!$K$19*(LCC!$K$21/100))*(LCC!$K$22*(1+H$6))) -> 0 | AD7: =((LCC!$K$19*(LCC!$K$21/100))*(LCC!$K$22*(1+I$6))) -> 0 | AE7: =((LCC!$K$19*(LCC!$K$21/100))*(LCC!$K$22*(1+J$6))) -> 0 | AF7: =((LCC!$K$19*(LCC!$K$21/100))*(LCC!$K$22*(1+K$6))) -> 0 | AG7: =((LCC!$K$19*(LCC!$K$21/100))*(LCC!$K$22*(1+L$6))) -> 0 | AH7: =((LCC!$K$19*(LCC!$K$21/100))*(LCC!$K$22*(1+M$6))) -> 0 | AI7: =((LCC!$K$19*(LCC!$K$21/100))*(LCC!$K$22*(1+N$6))) -> 0 | AJ7: =SUM(Y7:INDEX(Y7:AI7,LCC!$E$6)) -> 0 | AL7: prodotto 4 | AM7: =((LCC!$K$19*(LCC!$K$25/100))*LCC!$K$26) -> 0 | AN7: =((LCC!$K$19*(LCC!$K$25/100))*(LCC!$K$26*(1+$E$6))) -> 0 | AO7: =((LCC!$K$19*(LCC!$K$25/100))*(LCC!$K$26*(1+$F$6))) -> 0 | AP7: =((LCC!$K$19*(LCC!$K$25/100))*(LCC!$K$26*(1+$G$6))) -> 0 | AQ7: =((LCC!$K$19*(LCC!$K$25/100))*(LCC!$K$26*(1+$H$6))) -> 0 | AR7: =((LCC!$K$19*(LCC!$K$25/100))*(LCC!$K$26*(1+$I$6))) -> 0 | AS7: =((LCC!$K$19*(LCC!$K$25/100))*(LCC!$K$26*(1+$J$6))) -> 0 | AT7: =((LCC!$K$19*(LCC!$K$25/100))*(LCC!$K$26*(1+$K$6))) -> 0 | AU7: =((LCC!$K$19*(LCC!$K$25/100))*(LCC!$K$26*(1+$L$6))) -> 0 | AV7: =((LCC!$K$19*(LCC!$K$25/100))*(LCC!$K$26*(1+$M$6))) -> 0 | AW7: =((LCC!$K$19*(LCC!$K$25/100))*(LCC!$K$26*(1+$N$6))) -> 0 | AX7: =SUM(AM7:INDEX(AM7:AW7,LCC!$E$6)) -> 0
C8: %rispetto anni prec | E8: =(E7-D7)/D7 -> -0.06017383856 | F8: =(F7-E7)/E7 -> -0.03318877069 | G8: -0.01450188252 | H8: -0.002198258108 | I8: 0.004628664083 | J8: 0.01399270576 | K8: 0.0142009523 | L8: 0.01562376337 | M8: 0.01607592265 | N8: 0.01274451174 | X8: prodotto 5 | Y8: =((LCC!$M$19*(LCC!$M$21/100))*LCC!$M$22) -> 0 | Z8: =((LCC!$M$19*(LCC!$M$21/100))*(LCC!$M$22*(1+$E$6))) -> 0 | AA8: =((LCC!$M$19*(LCC!$M$21/100))*(LCC!$M$22*(1+$F$6))) -> 0 | AB8: =((LCC!$M$19*(LCC!$M$21/100))*(LCC!$M$22*(1+G$6))) -> 0 | AC8: =((LCC!$M$19*(LCC!$M$21/100))*(LCC!$M$22*(1+H$6))) -> 0 | AD8: =((LCC!$M$19*(LCC!$M$21/100))*(LCC!$M$22*(1+I$6))) -> 0 | AE8: =((LCC!$M$19*(LCC!$M$21/100))*(LCC!$M$22*(1+J$6))) -> 0 | AF8: =((LCC!$M$19*(LCC!$M$21/100))*(LCC!$M$22*(1+K$6))) -> 0 | AG8: =((LCC!$M$19*(LCC!$M$21/100))*(LCC!$M$22*(1+L$6))) -> 0 | AH8: =((LCC!$M$19*(LCC!$M$21/100))*(LCC!$M$22*(1+M$6))) -> 0 | AI8: =((LCC!$M$19*(LCC!$M$21/100))*(LCC!$M$22*(1+N$6))) -> 0 | AJ8: =SUM(Y8:INDEX(Y8:AI8,LCC!$E$6)) -> 0 | AL8: prodotto 5 | AM8: =((LCC!$M$19*(LCC!$M$25/100))*LCC!$M$26) -> 0 | AN8: =((LCC!$M$19*(LCC!$M$25/100))*(LCC!$M$26*(1+$E$6))) -> 0 | AO8: =((LCC!$M$19*(LCC!$M$25/100))*(LCC!$M$26*(1+$F$6))) -> 0 | AP8: =((LCC!$M$19*(LCC!$M$25/100))*(LCC!$M$26*(1+$G$6))) -> 0 | AQ8: =((LCC!$M$19*(LCC!$M$25/100))*(LCC!$M$26*(1+$H$6))) -> 0 | AR8: =((LCC!$M$19*(LCC!$M$25/100))*(LCC!$M$26*(1+$I$6))) -> 0 | AS8: =((LCC!$M$19*(LCC!$M$25/100))*(LCC!$M$26*(1+$J$6))) -> 0 | AT8: =((LCC!$M$19*(LCC!$M$25/100))*(LCC!$M$26*(1+$K$6))) -> 0 | AU8: =((LCC!$M$19*(LCC!$M$25/100))*(LCC!$M$26*(1+$L$6))) -> 0 | AV8: =((LCC!$M$19*(LCC!$M$25/100))*(LCC!$M$26*(1+$M$6))) -> 0 | AW8: =((LCC!$M$19*(LCC!$M$25/100))*(LCC!$M$26*(1+$N$6))) -> 0 | AX8: =SUM(AM8:INDEX(AM8:AW8,LCC!$E$6)) -> 0
C9: %cumulativa | E9: =E8 -> -0.06017383856 | F9: =F8+E9 -> -0.09336260925 | G9: =G8+F9 -> -0.1078644918 | H9: -0.1100627499 | I9: -0.1054340858 | J9: -0.09144138003 | K9: -0.07724042773 | L9: -0.06161666436 | M9: -0.04554074171 | N9: -0.03279622997 | X9: prodotto 6 | Y9: =((LCC!$O$19*(LCC!$O$21/100))*LCC!$O$22) -> 0 | Z9: =((LCC!$O$19*(LCC!$O$21/100))*(LCC!$O$22*(1+$E$6))) -> 0 | AA9: =((LCC!$O$19*(LCC!$O$21/100))*(LCC!$O$22*(1+$F$6))) -> 0 | AB9: =((LCC!$O$19*(LCC!$O$21/100))*(LCC!$O$22*(1+G$6))) -> 0 | AC9: =((LCC!$O$19*(LCC!$O$21/100))*(LCC!$O$22*(1+H$6))) -> 0 | AD9: =((LCC!$O$19*(LCC!$O$21/100))*(LCC!$O$22*(1+I$6))) -> 0 | AE9: =((LCC!$O$19*(LCC!$O$21/100))*(LCC!$O$22*(1+J$6))) -> 0 | AF9: =((LCC!$O$19*(LCC!$O$21/100))*(LCC!$O$22*(1+K$6))) -> 0 | AG9: =((LCC!$O$19*(LCC!$O$21/100))*(LCC!$O$22*(1+L$6))) -> 0 | AH9: =((LCC!$O$19*(LCC!$O$21/100))*(LCC!$O$22*(1+M$6))) -> 0 | AI9: =((LCC!$O$19*(LCC!$O$21/100))*(LCC!$O$22*(1+N$6))) -> 0 | AJ9: =SUM(Y9:INDEX(Y9:AI9,LCC!$E$6)) -> 0 | AL9: prodotto 6 | AM9: =((LCC!$O$19*(LCC!$O$25/100))*LCC!$O$26) -> 0 | AN9: =((LCC!$O$19*(LCC!$O$25/100))*(LCC!$O$26*(1+$E$6))) -> 0 | AO9: =((LCC!$O$19*(LCC!$O$25/100))*(LCC!$O$26*(1+$F$6))) -> 0 | AP9: =((LCC!$O$19*(LCC!$O$25/100))*(LCC!$O$26*(1+$G$6))) -> 0 | AQ9: =((LCC!$O$19*(LCC!$O$25/100))*(LCC!$O$26*(1+$H$6))) -> 0 | AR9: =((LCC!$O$19*(LCC!$O$25/100))*(LCC!$O$26*(1+$I$6))) -> 0 | AS9: =((LCC!$O$19*(LCC!$O$25/100))*(LCC!$O$26*(1+$J$6))) -> 0 | AT9: =((LCC!$O$19*(LCC!$O$25/100))*(LCC!$O$26*(1+$K$6))) -> 0 | AU9: =((LCC!$O$19*(LCC!$O$25/100))*(LCC!$O$26*(1+$L$6))) -> 0 | AV9: =((LCC!$O$19*(LCC!$O$25/100))*(LCC!$O$26*(1+$M$6))) -> 0 | AW9: =((LCC!$O$19*(LCC!$O$25/100))*(LCC!$O$26*(1+$N$6))) -> 0 | AX9: =SUM(AM9:INDEX(AM9:AW9,LCC!$E$6)) -> 0
A10: LPG | B10: $/gallone | C10: prezzo previsto | D10: 2.189299 | E10: 2.142774 | F10: 2.145436 | G10: 2.194211 | H10: 2.231533 | I10: 2.254148 | J10: 2.269551 | K10: 2.294362 | L10: 2.313964 | M10: 2.328557 | N10: 2.346319 | X10: prodotto 7 | Y10: =((LCC!$Q$19*(LCC!$Q$21/100))*LCC!$Q$22) -> 0 | Z10: =((LCC!$Q$19*(LCC!$Q$21/100))*(LCC!$Q$22*(1+$E$6))) -> 0 | AA10: =((LCC!$Q$19*(LCC!$Q$21/100))*(LCC!$Q$22*(1+$F$6))) -> 0 | AB10: =((LCC!$Q$19*(LCC!$Q$21/100))*(LCC!$Q$22*(1+G$6))) -> 0 | AC10: =((LCC!$Q$19*(LCC!$Q$21/100))*(LCC!$Q$22*(1+H$6))) -> 0 | AD10: =((LCC!$Q$19*(LCC!$Q$21/100))*(LCC!$Q$22*(1+I$6))) -> 0 | AE10: =((LCC!$Q$19*(LCC!$Q$21/100))*(LCC!$Q$22*(1+J$6))) -> 0 | AF10: =((LCC!$Q$19*(LCC!$Q$21/100))*(LCC!$Q$22*(1+K$6))) -> 0 | AG10: =((LCC!$Q$19*(LCC!$Q$21/100))*(LCC!$Q$22*(1+L$6))) -> 0 | AH10: =((LCC!$Q$19*(LCC!$Q$21/100))*(LCC!$Q$22*(1+M$6))) -> 0 | AI10: =((LCC!$Q$19*(LCC!$Q$21/100))*(LCC!$Q$22*(1+N$6))) -> 0 | AJ10: =SUM(Y10:INDEX(Y10:AI10,LCC!$E$6)) -> 0 | AL10: prodotto 7 | AM10: =((LCC!$Q$19*(LCC!$Q$25/100))*LCC!$Q$26) -> 0 | AN10: =((LCC!$Q$19*(LCC!$Q$25/100))*(LCC!$Q$26*(1+$E$6))) -> 0 | AO10: =((LCC!$Q$19*(LCC!$Q$25/100))*(LCC!$Q$26*(1+$F$6))) -> 0 | AP10: =((LCC!$Q$19*(LCC!$Q$25/100))*(LCC!$Q$26*(1+$G$6))) -> 0 | AQ10: =((LCC!$Q$19*(LCC!$Q$25/100))*(LCC!$Q$26*(1+$H$6))) -> 0 | AR10: =((LCC!$Q$19*(LCC!$Q$25/100))*(LCC!$Q$26*(1+$I$6))) -> 0 | AS10: =((LCC!$Q$19*(LCC!$Q$25/100))*(LCC!$Q$26*(1+$J$6))) -> 0 | AT10: =((LCC!$Q$19*(LCC!$Q$25/100))*(LCC!$Q$26*(1+$K$6))) -> 0 | AU10: =((LCC!$Q$19*(LCC!$Q$25/100))*(LCC!$Q$26*(1+$L$6))) -> 0 | AV10: =((LCC!$Q$19*(LCC!$Q$25/100))*(LCC!$Q$26*(1+$M$6))) -> 0 | AW10: =((LCC!$Q$19*(LCC!$Q$25/100))*(LCC!$Q$26*(1+$N$6))) -> 0 | AX10: =SUM(AM10:INDEX(AM10:AW10,LCC!$E$6)) -> 0
C11: % rispetto anni prec | E11: =(E10-D10)/D10 -> -0.02125109453 | F11: =(F10-E10)/E10 -> 0.001242314868 | G11: 0.02273430669 | H11: 0.01700930312 | I11: 0.01013428885 | J11: 0.00683318043 | K11: 0.01093211829 | L11: 0.008543551541 | M11: 0.006306493964 | N11: 0.007627900026 | X11: prodotto 8 | Y11: =((LCC!$S$19*(LCC!$S$21/100))*LCC!$S$22) -> 0 | Z11: =((LCC!$S$19*(LCC!$S$21/100))*(LCC!$S$22*(1+$E$6))) -> 0 | AA11: =((LCC!$S$19*(LCC!$S$21/100))*(LCC!$S$22*(1+$F$6))) -> 0 | AB11: =((LCC!$S$19*(LCC!$S$21/100))*(LCC!$S$22*(1+G$6))) -> 0 | AC11: =((LCC!$S$19*(LCC!$S$21/100))*(LCC!$S$22*(1+H$6))) -> 0 | AD11: =((LCC!$S$19*(LCC!$S$21/100))*(LCC!$S$22*(1+I$6))) -> 0 | AE11: =((LCC!$S$19*(LCC!$S$21/100))*(LCC!$S$22*(1+J$6))) -> 0 | AF11: =((LCC!$S$19*(LCC!$S$21/100))*(LCC!$S$22*(1+K$6))) -> 0 | AG11: =((LCC!$S$19*(LCC!$S$21/100))*(LCC!$S$22*(1+L$6))) -> 0 | AH11: =((LCC!$S$19*(LCC!$S$21/100))*(LCC!$S$22*(1+M$6))) -> 0 | AI11: =((LCC!$S$19*(LCC!$S$21/100))*(LCC!$S$22*(1+N$6))) -> 0 | AJ11: =SUM(Y11:INDEX(Y11:AI11,LCC!$E$6)) -> 0 | AL11: prodotto 8 | AM11: =((LCC!$S$19*(LCC!$S$25/100))*LCC!$S$26) -> 0 | AN11: =((LCC!$S$19*(LCC!$S$25/100))*(LCC!$S$26*(1+$E$6))) -> 0 | AO11: =((LCC!$S$19*(LCC!$S$25/100))*(LCC!$S$26*(1+$F$6))) -> 0 | AP11: =((LCC!$S$19*(LCC!$S$25/100))*(LCC!$S$26*(1+$G$6))) -> 0 | AQ11: =((LCC!$S$19*(LCC!$S$25/100))*(LCC!$S$26*(1+$H$6))) -> 0 | AR11: =((LCC!$S$19*(LCC!$S$25/100))*(LCC!$S$26*(1+$I$6))) -> 0 | AS11: =((LCC!$S$19*(LCC!$S$25/100))*(LCC!$S$26*(1+$J$6))) -> 0 | AT11: =((LCC!$S$19*(LCC!$S$25/100))*(LCC!$S$26*(1+$K$6))) -> 0 | AU11: =((LCC!$S$19*(LCC!$S$25/100))*(LCC!$S$26*(1+$L$6))) -> 0 | AV11: =((LCC!$S$19*(LCC!$S$25/100))*(LCC!$S$26*(1+$M$6))) -> 0 | AW11: =((LCC!$S$19*(LCC!$S$25/100))*(LCC!$S$26*(1+$N$6))) -> 0 | AX11: =SUM(AM11:INDEX(AM11:AW11,LCC!$E$6)) -> 0
C12: % cumulativa | E12: =E11 -> -0.02125109453 | F12: =F11+E12 -> -0.02000877966 | G12: =G11+F12 -> 0.002725527026 | H12: 0.01973483014 | I12: 0.02986911899 | J12: 0.03670229942 | K12: 0.04763441771 | L12: 0.05617796925 | M12: 0.06248446322 | N12: 0.07011236324 | X12: prodotto 9 | Y12: =((LCC!$U$19*(LCC!$U$21/100))*LCC!$U$22) -> 0 | Z12: =((LCC!$U$19*(LCC!$U$21/100))*(LCC!$U$22*(1+$E$6))) -> 0 | AA12: =((LCC!$U$19*(LCC!$U$21/100))*(LCC!$U$22*(1+$F$6))) -> 0 | AB12: =((LCC!$U$19*(LCC!$U$21/100))*(LCC!$U$22*(1+G$6))) -> 0 | AC12: =((LCC!$U$19*(LCC!$U$21/100))*(LCC!$U$22*(1+H$6))) -> 0 | AD12: =((LCC!$U$19*(LCC!$U$21/100))*(LCC!$U$22*(1+I$6))) -> 0 | AE12: =((LCC!$U$19*(LCC!$U$21/100))*(LCC!$U$22*(1+J$6))) -> 0 | AF12: =((LCC!$U$19*(LCC!$U$21/100))*(LCC!$U$22*(1+K$6))) -> 0 | AG12: =((LCC!$U$19*(LCC!$U$21/100))*(LCC!$U$22*(1+L$6))) -> 0 | AH12: =((LCC!$U$19*(LCC!$U$21/100))*(LCC!$U$22*(1+M$6))) -> 0 | AI12: =((LCC!$U$19*(LCC!$U$21/100))*(LCC!$U$22*(1+N$6))) -> 0 | AJ12: =SUM(Y12:INDEX(Y12:AI12,LCC!$E$6)) -> 0 | AL12: prodotto 9 | AM12: =((LCC!$U$19*(LCC!$U$25/100))*LCC!$U$26) -> 0 | AN12: =((LCC!$U$19*(LCC!$U$25/100))*(LCC!$U$26*(1+$E$6))) -> 0 | AO12: =((LCC!$U$19*(LCC!$U$25/100))*(LCC!$U$26*(1+$F$6))) -> 0 | AP12: =((LCC!$U$19*(LCC!$U$25/100))*(LCC!$U$26*(1+$G$6))) -> 0 | AQ12: =((LCC!$U$19*(LCC!$U$25/100))*(LCC!$U$26*(1+$H$6))) -> 0 | AR12: =((LCC!$U$19*(LCC!$U$25/100))*(LCC!$U$26*(1+$I$6))) -> 0 | AS12: =((LCC!$U$19*(LCC!$U$25/100))*(LCC!$U$26*(1+$J$6))) -> 0 | AT12: =((LCC!$U$19*(LCC!$U$25/100))*(LCC!$U$26*(1+$K$6))) -> 0 | AU12: =((LCC!$U$19*(LCC!$U$25/100))*(LCC!$U$26*(1+$L$6))) -> 0 | AV12: =((LCC!$U$19*(LCC!$U$25/100))*(LCC!$U$26*(1+$M$6))) -> 0 | AW12: =((LCC!$U$19*(LCC!$U$25/100))*(LCC!$U$26*(1+$N$6))) -> 0 | AX12: =SUM(AM12:INDEX(AM12:AW12,LCC!$E$6)) -> 0
A13: etanolo | B13: $/gallone | C13: prezzo previsto | D13: 2.570742 | E13: 2.574596 | F13: 2.577285 | G13: 2.579537 | H13: 2.581203 | I13: 2.597471 | J13: 2.664484 | K13: 2.691967 | L13: 2.703933 | M13: 2.702737 | N13: 2.602026 | X13: prodotto 10 | Y13: =((LCC!$W$19*(LCC!$W$21/100))*LCC!$W$22) -> 0 | Z13: =((LCC!$W$19*(LCC!$W$21/100))*(LCC!$W$22*(1+$E$6))) -> 0 | AA13: =((LCC!$W$19*(LCC!$W$21/100))*(LCC!$W$22*(1+$F$6))) -> 0 | AB13: =((LCC!$W$19*(LCC!$W$21/100))*(LCC!$W$22*(1+G$6))) -> 0 | AC13: =((LCC!$W$19*(LCC!$W$21/100))*(LCC!$W$22*(1+H$6))) -> 0 | AD13: =((LCC!$W$19*(LCC!$W$21/100))*(LCC!$W$22*(1+I$6))) -> 0 | AE13: =((LCC!$W$19*(LCC!$W$21/100))*(LCC!$W$22*(1+J$6))) -> 0 | AF13: =((LCC!$W$19*(LCC!$W$21/100))*(LCC!$W$22*(1+K$6))) -> 0 | AG13: =((LCC!$W$19*(LCC!$W$21/100))*(LCC!$W$22*(1+L$6))) -> 0 | AH13: =((LCC!$W$19*(LCC!$W$21/100))*(LCC!$W$22*(1+M$6))) -> 0 | AI13: =((LCC!$W$19*(LCC!$W$21/100))*(LCC!$W$22*(1+N$6))) -> 0 | AJ13: =SUM(Y13:INDEX(Y13:AI13,LCC!$E$6)) -> 0 | AL13: prodotto 10 | AM13: =((LCC!$W$19*(LCC!$W$25/100))*LCC!$W$26) -> 0 | AN13: =((LCC!$W$19*(LCC!$W$25/100))*(LCC!$W$26*(1+$E$6))) -> 0 | AO13: =((LCC!$W$19*(LCC!$W$25/100))*(LCC!$W$26*(1+$F$6))) -> 0 | AP13: =((LCC!$W$19*(LCC!$W$25/100))*(LCC!$W$26*(1+$G$6))) -> 0 | AQ13: =((LCC!$W$19*(LCC!$W$25/100))*(LCC!$W$26*(1+$H$6))) -> 0 | AR13: =((LCC!$W$19*(LCC!$W$25/100))*(LCC!$W$26*(1+$I$6))) -> 0 | AS13: =((LCC!$W$19*(LCC!$W$25/100))*(LCC!$W$26*(1+$J$6))) -> 0 | AT13: =((LCC!$W$19*(LCC!$W$25/100))*(LCC!$W$26*(1+$K$6))) -> 0 | AU13: =((LCC!$W$19*(LCC!$W$25/100))*(LCC!$W$26*(1+$L$6))) -> 0 | AV13: =((LCC!$W$19*(LCC!$W$25/100))*(LCC!$W$26*(1+$M$6))) -> 0 | AW13: =((LCC!$W$19*(LCC!$W$25/100))*(LCC!$W$26*(1+$N$6))) -> 0 | AX13: =SUM(AM13:INDEX(AM13:AW13,LCC!$E$6)) -> 0
C14: % rispetto anni prec | E14: =(E13-D13)/D13 -> 0.001499178058 | F14: =(F13-E13)/E13 -> 0.00104443571 | G14: 0.0008737877262 | H14: 0.0006458523371 | I14: 0.006302487639 | J14: 0.02579932557 | K14: 0.01031456747 | L14: 0.004445076778 | M14: -0.0004423186521 | N14: -0.03726259714
C15: % cumulativa | E15: =E14 -> 0.001499178058 | F15: =F14+E15 -> 0.002543613768 | G15: =G14+F15 -> 0.003417401494 | H15: 0.004063253831 | I15: 0.01036574147 | J15: 0.03616506704 | K15: 0.04647963452 | L15: 0.0509247113 | M15: 0.05048239264 | N15: 0.01321979551 | X15: PETROL | Y15: 2014 | Z15: 2015 | AA15: 2016 | AB15: 2017 | AC15: 2018 | AD15: 2019 | AE15: 2020 | AF15: 2021 | AG15: 2022 | AH15: 2023 | AI15: 2024 | AJ15: Total fuel price for period | AL15: PETROL | AM15: 2014 | AN15: 2015 | AO15: 2016 | AP15: 2017 | AQ15: 2018 | AR15: 2019 | AS15: 2020 | AT15: 2021 | AU15: 2022 | AV15: 2023 | AW15: 2024 | AX15: prezzo totale carburante per il periodo
A16: elettricità | B16: $cents/kwh | C16: prezzo previsto | D16: 10.217 | E16: 10.143057 | F16: 10.121602 | G16: 10.095456 | H16: 10.162351 | I16: 10.245553 | J16: 10.188695 | K16: 10.146483 | L16: 10.065858 | M16: 10.040848 | N16: 10.164512 | X16: prodotto 1 | Y16: =((LCC!$E$19*(LCC!$E$21/100))*LCC!$E$22) -> 0 | Z16: =((LCC!$E$19*(LCC!$E$21/100))*(LCC!$E$22*(1+$E$9))) -> 0 | AA16: =((LCC!$E$19*(LCC!$E$21/100))*(LCC!$E$22*(1+$F$9))) -> 0 | AB16: =((LCC!$E$19*(LCC!$E$21/100))*(LCC!$E$22*(1+G$9))) -> 0 | AC16: =((LCC!$E$19*(LCC!$E$21/100))*(LCC!$E$22*(1+H$9))) -> 0 | AD16: =((LCC!$E$19*(LCC!$E$21/100))*(LCC!$E$22*(1+I$9))) -> 0 | AE16: =((LCC!$E$19*(LCC!$E$21/100))*(LCC!$E$22*(1+J$9))) -> 0 | AF16: =((LCC!$E$19*(LCC!$E$21/100))*(LCC!$E$22*(1+K$9))) -> 0 | AG16: =((LCC!$E$19*(LCC!$E$21/100))*(LCC!$E$22*(1+L$9))) -> 0 | AH16: =((LCC!$E$19*(LCC!$E$21/100))*(LCC!$E$22*(1+M$9))) -> 0 | AI16: =((LCC!$E$19*(LCC!$E$21/100))*(LCC!$E$22*(1+N$9))) -> 0 | AJ16: =SUM(Y16:INDEX(Y16:AI16,LCC!$E$6)) -> 0 | AL16: prodotto 1 | AM16: =((LCC!$E$19*(LCC!$E$25/100))*LCC!$E$26) -> 0 | AN16: =((LCC!$E$19*(LCC!$E$25/100))*(LCC!$E$26*(1+$E$9))) -> 0 | AO16: =((LCC!$E$19*(LCC!$E$25/100))*(LCC!$E$26*(1+$F$9))) -> 0 | AP16: =((LCC!$E$19*(LCC!$E$25/100))*(LCC!$E$26*(1+$G$9))) -> 0 | AQ16: =((LCC!$E$19*(LCC!$E$25/100))*(LCC!$E$26*(1+$H$9))) -> 0 | AR16: =((LCC!$E$19*(LCC!$E$25/100))*(LCC!$E$26*(1+$I$9))) -> 0 | AS16: =((LCC!$E$19*(LCC!$E$25/100))*(LCC!$E$26*(1+$J$9))) -> 0 | AT16: =((LCC!$E$19*(LCC!$E$25/100))*(LCC!$E$26*(1+$K$9))) -> 0 | AU16: =((LCC!$E$19*(LCC!$E$25/100))*(LCC!$E$26*(1+$L$9))) -> 0 | AV16: =((LCC!$E$19*(LCC!$E$25/100))*(LCC!$E$26*(1+$M$9))) -> 0 | AW16: =((LCC!$E$19*(LCC!$E$25/100))*(LCC!$E$26*(1+$N$9))) -> 0 | AX16: =SUM(AM16:INDEX(AM16:AW16,LCC!$E$6)) -> 0
C17: % rispetto anni prec | E17: =(E16-D16)/D16 -> -0.007237251639 | F17: =(F16-E16)/E16 -> -0.002115240011 | G17: -0.002583187918 | H17: 0.006626248482 | I17: 0.008187278711 | J17: -0.005549529635 | K17: -0.004143023223 | L17: -0.007946103098 | M17: -0.00248463668 | N17: 0.01231609123 | X17: prodotto 2 | Y17: =((LCC!$G$19*(LCC!$G$21/100))*LCC!$G$22) -> 0 | Z17: =((LCC!$G$19*(LCC!$G$21/100))*(LCC!$G$22*(1+$E$9))) -> 0 | AA17: =((LCC!$G$19*(LCC!$G$21/100))*(LCC!$G$22*(1+$F$9))) -> 0 | AB17: =((LCC!$G$19*(LCC!$G$21/100))*(LCC!$G$22*(1+G$9))) -> 0 | AC17: =((LCC!$G$19*(LCC!$G$21/100))*(LCC!$G$22*(1+H$9))) -> 0 | AD17: =((LCC!$G$19*(LCC!$G$21/100))*(LCC!$G$22*(1+I$9))) -> 0 | AE17: =((LCC!$G$19*(LCC!$G$21/100))*(LCC!$G$22*(1+J$9))) -> 0 | AF17: =((LCC!$G$19*(LCC!$G$21/100))*(LCC!$G$22*(1+K$9))) -> 0 | AG17: =((LCC!$G$19*(LCC!$G$21/100))*(LCC!$G$22*(1+L$9))) -> 0 | AH17: =((LCC!$G$19*(LCC!$G$21/100))*(LCC!$G$22*(1+M$9))) -> 0 | AI17: =((LCC!$G$19*(LCC!$G$21/100))*(LCC!$G$22*(1+N$9))) -> 0 | AJ17: =SUM(Y17:INDEX(Y17:AI17,LCC!$E$6)) -> 0 | AL17: prodotto 2 | AM17: =((LCC!$G$19*(LCC!$G$25/100))*LCC!$G$26) -> 0 | AN17: =((LCC!$G$19*(LCC!$G$25/100))*(LCC!$G$26*(1+$E$9))) -> 0 | AO17: =((LCC!$G$19*(LCC!$G$25/100))*(LCC!$G$26*(1+$F$9))) -> 0 | AP17: =((LCC!$G$19*(LCC!$G$25/100))*(LCC!$G$26*(1+$G$9))) -> 0 | AQ17: =((LCC!$G$19*(LCC!$G$25/100))*(LCC!$G$26*(1+$H$9))) -> 0 | AR17: =((LCC!$G$19*(LCC!$G$25/100))*(LCC!$G$26*(1+$I$9))) -> 0 | AS17: =((LCC!$G$19*(LCC!$G$25/100))*(LCC!$G$26*(1+$J$9))) -> 0 | AT17: =((LCC!$G$19*(LCC!$G$25/100))*(LCC!$G$26*(1+$K$9))) -> 0 | AU17: =((LCC!$G$19*(LCC!$G$25/100))*(LCC!$G$26*(1+$L$9))) -> 0 | AV17: =((LCC!$G$19*(LCC!$G$25/100))*(LCC!$G$26*(1+$M$9))) -> 0 | AW17: =((LCC!$G$19*(LCC!$G$25/100))*(LCC!$G$26*(1+$N$9))) -> 0 | AX17: =SUM(AM17:INDEX(AM17:AW17,LCC!$E$6)) -> 0
C18: % cumulativa | E18: =E17 -> -0.007237251639 | F18: =F17+E18 -> -0.00935249165 | G18: =G17+F18 -> -0.01193567957 | H18: -0.005309431086 | I18: 0.002877847625 | J18: -0.00267168201 | K18: -0.006814705233 | L18: -0.01476080833 | M18: -0.01724544501 | N18: -0.00492935378 | X18: prodotto 3 | Y18: =((LCC!$I$19*(LCC!$I$21/100))*LCC!$I$22) -> 0 | Z18: =((LCC!$I$19*(LCC!$I$21/100))*(LCC!$I$22*(1+$E$9))) -> 0 | AA18: =((LCC!$I$19*(LCC!$I$21/100))*(LCC!$I$22*(1+$F$9))) -> 0 | AB18: =((LCC!$I$19*(LCC!$I$21/100))*(LCC!$I$22*(1+G$9))) -> 0 | AC18: =((LCC!$I$19*(LCC!$I$21/100))*(LCC!$I$22*(1+H$9))) -> 0 | AD18: =((LCC!$I$19*(LCC!$I$21/100))*(LCC!$I$22*(1+I$9))) -> 0 | AE18: =((LCC!$I$19*(LCC!$I$21/100))*(LCC!$I$22*(1+J$9))) -> 0 | AF18: =((LCC!$I$19*(LCC!$I$21/100))*(LCC!$I$22*(1+K$9))) -> 0 | AG18: =((LCC!$I$19*(LCC!$I$21/100))*(LCC!$I$22*(1+L$9))) -> 0 | AH18: =((LCC!$I$19*(LCC!$I$21/100))*(LCC!$I$22*(1+M$9))) -> 0 | AI18: =((LCC!$I$19*(LCC!$I$21/100))*(LCC!$I$22*(1+N$9))) -> 0 | AJ18: =SUM(Y18:INDEX(Y18:AI18,LCC!$E$6)) -> 0 | AL18: prodotto 3 | AM18: =((LCC!$I$19*(LCC!$I$25/100))*LCC!$I$26) -> 0 | AN18: =((LCC!$I$19*(LCC!$I$25/100))*(LCC!$I$26*(1+$E$9))) -> 0 | AO18: =((LCC!$I$19*(LCC!$I$25/100))*(LCC!$I$26*(1+$F$9))) -> 0 | AP18: =((LCC!$I$19*(LCC!$I$25/100))*(LCC!$I$26*(1+$G$9))) -> 0 | AQ18: =((LCC!$I$19*(LCC!$I$25/100))*(LCC!$I$26*(1+$H$9))) -> 0 | AR18: =((LCC!$I$19*(LCC!$I$25/100))*(LCC!$I$26*(1+$I$9))) -> 0 | AS18: =((LCC!$I$19*(LCC!$I$25/100))*(LCC!$I$26*(1+$J$9))) -> 0 | AT18: =((LCC!$I$19*(LCC!$I$25/100))*(LCC!$I$26*(1+$K$9))) -> 0 | AU18: =((LCC!$I$19*(LCC!$I$25/100))*(LCC!$I$26*(1+$L$9))) -> 0 | AV18: =((LCC!$I$19*(LCC!$I$25/100))*(LCC!$I$26*(1+$M$9))) -> 0 | AW18: =((LCC!$I$19*(LCC!$I$25/100))*(LCC!$I$26*(1+$N$9))) -> 0 | AX18: =SUM(AM18:INDEX(AM18:AW18,LCC!$E$6)) -> 0
A19: Biodiesel | B19: $/100 litro | C19: prezzo previsto | D19: 156.2 | E19: 153.5 | F19: 148.8 | G19: 154.7 | H19: 159.8 | I19: 159.8 | J19: 164.3 | K19: 167 | L19: 173 | M19: 175 | N19: 177.6 | X19: prodotto 4 | Y19: =((LCC!$K$19*(LCC!$K$21/100))*LCC!$K$22) -> 0 | Z19: =((LCC!$K$19*(LCC!$K$21/100))*(LCC!$K$22*(1+$E$9))) -> 0 | AA19: =((LCC!$K$19*(LCC!$K$21/100))*(LCC!$K$22*(1+$F$9))) -> 0 | AB19: =((LCC!$K$19*(LCC!$K$21/100))*(LCC!$K$22*(1+G$9))) -> 0 | AC19: =((LCC!$K$19*(LCC!$K$21/100))*(LCC!$K$22*(1+H$9))) -> 0 | AD19: =((LCC!$K$19*(LCC!$K$21/100))*(LCC!$K$22*(1+I$9))) -> 0 | AE19: =((LCC!$K$19*(LCC!$K$21/100))*(LCC!$K$22*(1+J$9))) -> 0 | AF19: =((LCC!$K$19*(LCC!$K$21/100))*(LCC!$K$22*(1+K$9))) -> 0 | AG19: =((LCC!$K$19*(LCC!$K$21/100))*(LCC!$K$22*(1+L$9))) -> 0 | AH19: =((LCC!$K$19*(LCC!$K$21/100))*(LCC!$K$22*(1+M$9))) -> 0 | AI19: =((LCC!$K$19*(LCC!$K$21/100))*(LCC!$K$22*(1+N$9))) -> 0 | AJ19: =SUM(Y19:INDEX(Y19:AI19,LCC!$E$6)) -> 0 | AL19: prodotto 4 | AM19: =((LCC!$K$19*(LCC!$K$25/100))*LCC!$K$26) -> 0 | AN19: =((LCC!$K$19*(LCC!$K$25/100))*(LCC!$K$26*(1+$E$9))) -> 0 | AO19: =((LCC!$K$19*(LCC!$K$25/100))*(LCC!$K$26*(1+$F$9))) -> 0 | AP19: =((LCC!$K$19*(LCC!$K$25/100))*(LCC!$K$26*(1+$G$9))) -> 0 | AQ19: =((LCC!$K$19*(LCC!$K$25/100))*(LCC!$K$26*(1+$H$9))) -> 0 | AR19: =((LCC!$K$19*(LCC!$K$25/100))*(LCC!$K$26*(1+$I$9))) -> 0 | AS19: =((LCC!$K$19*(LCC!$K$25/100))*(LCC!$K$26*(1+$J$9))) -> 0 | AT19: =((LCC!$K$19*(LCC!$K$25/100))*(LCC!$K$26*(1+$K$9))) -> 0 | AU19: =((LCC!$K$19*(LCC!$K$25/100))*(LCC!$K$26*(1+$L$9))) -> 0 | AV19: =((LCC!$K$19*(LCC!$K$25/100))*(LCC!$K$26*(1+$M$9))) -> 0 | AW19: =((LCC!$K$19*(LCC!$K$25/100))*(LCC!$K$26*(1+$N$9))) -> 0 | AX19: =SUM(AM19:INDEX(AM19:AW19,LCC!$E$6)) -> 0
C20: % rispetto anni prec | E20: =(E19-D19)/D19 -> -0.01728553137 | F20: =(F19-E19)/E19 -> -0.03061889251 | G20: 0.03965053763 | H20: 0.03296703297 | I20: 0 | J20: 0.02816020025 | K20: 0.01643335362 | L20: 0.03592814371 | M20: 0.01156069364 | N20: 0.01485714286 | X20: prodotto 5 | Y20: =((LCC!$M$19*(LCC!$M$21/100))*LCC!$M$22) -> 0 | Z20: =((LCC!$M$19*(LCC!$M$21/100))*(LCC!$M$22*(1+$E$9))) -> 0 | AA20: =((LCC!$M$19*(LCC!$M$21/100))*(LCC!$M$22*(1+$F$9))) -> 0 | AB20: =((LCC!$M$19*(LCC!$M$21/100))*(LCC!$M$22*(1+G$9))) -> 0 | AC20: =((LCC!$M$19*(LCC!$M$21/100))*(LCC!$M$22*(1+H$9))) -> 0 | AD20: =((LCC!$M$19*(LCC!$M$21/100))*(LCC!$M$22*(1+I$9))) -> 0 | AE20: =((LCC!$M$19*(LCC!$M$21/100))*(LCC!$M$22*(1+J$9))) -> 0 | AF20: =((LCC!$M$19*(LCC!$M$21/100))*(LCC!$M$22*(1+K$9))) -> 0 | AG20: =((LCC!$M$19*(LCC!$M$21/100))*(LCC!$M$22*(1+L$9))) -> 0 | AH20: =((LCC!$M$19*(LCC!$M$21/100))*(LCC!$M$22*(1+M$9))) -> 0 | AI20: =((LCC!$M$19*(LCC!$M$21/100))*(LCC!$M$22*(1+N$9))) -> 0 | AJ20: =SUM(Y20:INDEX(Y20:AI20,LCC!$E$6)) -> 0 | AL20: prodotto 5 | AM20: =((LCC!$M$19*(LCC!$M$25/100))*LCC!$M$26) -> 0 | AN20: =((LCC!$M$19*(LCC!$M$25/100))*(LCC!$M$26*(1+$E$9))) -> 0 | AO20: =((LCC!$M$19*(LCC!$M$25/100))*(LCC!$M$26*(1+$F$9))) -> 0 | AP20: =((LCC!$M$19*(LCC!$M$25/100))*(LCC!$M$26*(1+$G$9))) -> 0 | AQ20: =((LCC!$M$19*(LCC!$M$25/100))*(LCC!$M$26*(1+$H$9))) -> 0 | AR20: =((LCC!$M$19*(LCC!$M$25/100))*(LCC!$M$26*(1+$I$9))) -> 0 | AS20: =((LCC!$M$19*(LCC!$M$25/100))*(LCC!$M$26*(1+$J$9))) -> 0 | AT20: =((LCC!$M$19*(LCC!$M$25/100))*(LCC!$M$26*(1+$K$9))) -> 0 | AU20: =((LCC!$M$19*(LCC!$M$25/100))*(LCC!$M$26*(1+$L$9))) -> 0 | AV20: =((LCC!$M$19*(LCC!$M$25/100))*(LCC!$M$26*(1+$M$9))) -> 0 | AW20: =((LCC!$M$19*(LCC!$M$25/100))*(LCC!$M$26*(1+$N$9))) -> 0 | AX20: =SUM(AM20:INDEX(AM20:AW20,LCC!$E$6)) -> 0
C21: % cumulativa | E21: =E20 -> -0.01728553137 | F21: =F20+E21 -> -0.04790442388 | G21: =G20+F21 -> -0.008253886244 | H21: 0.02471314672 | I21: 0.02471314672 | J21: 0.05287334697 | K21: 0.06930670059 | L21: 0.1052348443 | M21: 0.1167955379 | N21: 0.1316526808 | X21: prodotto 6 | Y21: =((LCC!$O$19*(LCC!$O$21/100))*LCC!$O$22) -> 0 | Z21: =((LCC!$O$19*(LCC!$O$21/100))*(LCC!$O$22*(1+$E$9))) -> 0 | AA21: =((LCC!$O$19*(LCC!$O$21/100))*(LCC!$O$22*(1+$F$9))) -> 0 | AB21: =((LCC!$O$19*(LCC!$O$21/100))*(LCC!$O$22*(1+G$9))) -> 0 | AC21: =((LCC!$O$19*(LCC!$O$21/100))*(LCC!$O$22*(1+H$9))) -> 0 | AD21: =((LCC!$O$19*(LCC!$O$21/100))*(LCC!$O$22*(1+I$9))) -> 0 | AE21: =((LCC!$O$19*(LCC!$O$21/100))*(LCC!$O$22*(1+J$9))) -> 0 | AF21: =((LCC!$O$19*(LCC!$O$21/100))*(LCC!$O$22*(1+K$9))) -> 0 | AG21: =((LCC!$O$19*(LCC!$O$21/100))*(LCC!$O$22*(1+L$9))) -> 0 | AH21: =((LCC!$O$19*(LCC!$O$21/100))*(LCC!$O$22*(1+M$9))) -> 0 | AI21: =((LCC!$O$19*(LCC!$O$21/100))*(LCC!$O$22*(1+N$9))) -> 0 | AJ21: =SUM(Y21:INDEX(Y21:AI21,LCC!$E$6)) -> 0 | AL21: prodotto 6 | AM21: =((LCC!$O$19*(LCC!$O$25/100))*LCC!$O$26) -> 0 | AN21: =((LCC!$O$19*(LCC!$O$25/100))*(LCC!$O$26*(1+$E$9))) -> 0 | AO21: =((LCC!$O$19*(LCC!$O$25/100))*(LCC!$O$26*(1+$F$9))) -> 0 | AP21: =((LCC!$O$19*(LCC!$O$25/100))*(LCC!$O$26*(1+$G$9))) -> 0 | AQ21: =((LCC!$O$19*(LCC!$O$25/100))*(LCC!$O$26*(1+$H$9))) -> 0 | AR21: =((LCC!$O$19*(LCC!$O$25/100))*(LCC!$O$26*(1+$I$9))) -> 0 | AS21: =((LCC!$O$19*(LCC!$O$25/100))*(LCC!$O$26*(1+$J$9))) -> 0 | AT21: =((LCC!$O$19*(LCC!$O$25/100))*(LCC!$O$26*(1+$K$9))) -> 0 | AU21: =((LCC!$O$19*(LCC!$O$25/100))*(LCC!$O$26*(1+$L$9))) -> 0 | AV21: =((LCC!$O$19*(LCC!$O$25/100))*(LCC!$O$26*(1+$M$9))) -> 0 | AW21: =((LCC!$O$19*(LCC!$O$25/100))*(LCC!$O$26*(1+$N$9))) -> 0 | AX21: =SUM(AM21:INDEX(AM21:AW21,LCC!$E$6)) -> 0
A22: Natural Gas | B22: $/millioni Btu | C22: prezzo previsto | D22: 16.09 | E22: 16.1 | F22: 16.52 | G22: 16.73 | H22: 17.02 | I22: 17.17 | J22: 17.26 | K22: 17.41 | L22: 17.7 | M22: 17.96 | N22: 18.17 | X22: prodotto 7 | Y22: =((LCC!$Q$19*(LCC!$Q$21/100))*LCC!$Q$22) -> 0 | Z22: =((LCC!$Q$19*(LCC!$Q$21/100))*(LCC!$Q$22*(1+$E$9))) -> 0 | AA22: =((LCC!$Q$19*(LCC!$Q$21/100))*(LCC!$Q$22*(1+$F$9))) -> 0 | AB22: =((LCC!$Q$19*(LCC!$Q$21/100))*(LCC!$Q$22*(1+G$9))) -> 0 | AC22: =((LCC!$Q$19*(LCC!$Q$21/100))*(LCC!$Q$22*(1+H$9))) -> 0 | AD22: =((LCC!$Q$19*(LCC!$Q$21/100))*(LCC!$Q$22*(1+I$9))) -> 0 | AE22: =((LCC!$Q$19*(LCC!$Q$21/100))*(LCC!$Q$22*(1+J$9))) -> 0 | AF22: =((LCC!$Q$19*(LCC!$Q$21/100))*(LCC!$Q$22*(1+K$9))) -> 0 | AG22: =((LCC!$Q$19*(LCC!$Q$21/100))*(LCC!$Q$22*(1+L$9))) -> 0 | AH22: =((LCC!$Q$19*(LCC!$Q$21/100))*(LCC!$Q$22*(1+M$9))) -> 0 | AI22: =((LCC!$Q$19*(LCC!$Q$21/100))*(LCC!$Q$22*(1+N$9))) -> 0 | AJ22: =SUM(Y22:INDEX(Y22:AI22,LCC!$E$6)) -> 0 | AL22: prodotto 7 | AM22: =((LCC!$Q$19*(LCC!$Q$25/100))*LCC!$Q$26) -> 0 | AN22: =((LCC!$Q$19*(LCC!$Q$25/100))*(LCC!$Q$26*(1+$E$9))) -> 0 | AO22: =((LCC!$Q$19*(LCC!$Q$25/100))*(LCC!$Q$26*(1+$F$9))) -> 0 | AP22: =((LCC!$Q$19*(LCC!$Q$25/100))*(LCC!$Q$26*(1+$G$9))) -> 0 | AQ22: =((LCC!$Q$19*(LCC!$Q$25/100))*(LCC!$Q$26*(1+$H$9))) -> 0 | AR22: =((LCC!$Q$19*(LCC!$Q$25/100))*(LCC!$Q$26*(1+$I$9))) -> 0 | AS22: =((LCC!$Q$19*(LCC!$Q$25/100))*(LCC!$Q$26*(1+$J$9))) -> 0 | AT22: =((LCC!$Q$19*(LCC!$Q$25/100))*(LCC!$Q$26*(1+$K$9))) -> 0 | AU22: =((LCC!$Q$19*(LCC!$Q$25/100))*(LCC!$Q$26*(1+$L$9))) -> 0 | AV22: =((LCC!$Q$19*(LCC!$Q$25/100))*(LCC!$Q$26*(1+$M$9))) -> 0 | AW22: =((LCC!$Q$19*(LCC!$Q$25/100))*(LCC!$Q$26*(1+$N$9))) -> 0 | AX22: =SUM(AM22:INDEX(AM22:AW22,LCC!$E$6)) -> 0
C23: % rispetto anni prec | E23: =(E22-D22)/D22 -> 0.0006215040398 | F23: =(F22-E22)/E22 -> 0.02608695652 | G23: 0.01271186441 | H23: 0.0173341303 | I23: 0.008813160987 | J23: 0.005241700641 | K23: 0.008690614137 | L23: 0.01665709362 | M23: 0.01468926554 | N23: 0.01169265033 | X23: prodotto 8 | Y23: =((LCC!$S$19*(LCC!$S$21/100))*LCC!$S$22) -> 0 | Z23: =((LCC!$S$19*(LCC!$S$21/100))*(LCC!$S$22*(1+$E$9))) -> 0 | AA23: =((LCC!$S$19*(LCC!$S$21/100))*(LCC!$S$22*(1+$F$9))) -> 0 | AB23: =((LCC!$S$19*(LCC!$S$21/100))*(LCC!$S$22*(1+G$9))) -> 0 | AC23: =((LCC!$S$19*(LCC!$S$21/100))*(LCC!$S$22*(1+H$9))) -> 0 | AD23: =((LCC!$S$19*(LCC!$S$21/100))*(LCC!$S$22*(1+I$9))) -> 0 | AE23: =((LCC!$S$19*(LCC!$S$21/100))*(LCC!$S$22*(1+J$9))) -> 0 | AF23: =((LCC!$S$19*(LCC!$S$21/100))*(LCC!$S$22*(1+K$9))) -> 0 | AG23: =((LCC!$S$19*(LCC!$S$21/100))*(LCC!$S$22*(1+L$9))) -> 0 | AH23: =((LCC!$S$19*(LCC!$S$21/100))*(LCC!$S$22*(1+M$9))) -> 0 | AI23: =((LCC!$S$19*(LCC!$S$21/100))*(LCC!$S$22*(1+N$9))) -> 0 | AJ23: =SUM(Y23:INDEX(Y23:AI23,LCC!$E$6)) -> 0 | AL23: prodotto 8 | AM23: =((LCC!$S$19*(LCC!$S$25/100))*LCC!$S$26) -> 0 | AN23: =((LCC!$S$19*(LCC!$S$25/100))*(LCC!$S$26*(1+$E$9))) -> 0 | AO23: =((LCC!$S$19*(LCC!$S$25/100))*(LCC!$S$26*(1+$F$9))) -> 0 | AP23: =((LCC!$S$19*(LCC!$S$25/100))*(LCC!$S$26*(1+$G$9))) -> 0 | AQ23: =((LCC!$S$19*(LCC!$S$25/100))*(LCC!$S$26*(1+$H$9))) -> 0 | AR23: =((LCC!$S$19*(LCC!$S$25/100))*(LCC!$S$26*(1+$I$9))) -> 0 | AS23: =((LCC!$S$19*(LCC!$S$25/100))*(LCC!$S$26*(1+$J$9))) -> 0 | AT23: =((LCC!$S$19*(LCC!$S$25/100))*(LCC!$S$26*(1+$K$9))) -> 0 | AU23: =((LCC!$S$19*(LCC!$S$25/100))*(LCC!$S$26*(1+$L$9))) -> 0 | AV23: =((LCC!$S$19*(LCC!$S$25/100))*(LCC!$S$26*(1+$M$9))) -> 0 | AW23: =((LCC!$S$19*(LCC!$S$25/100))*(LCC!$S$26*(1+$N$9))) -> 0 | AX23: =SUM(AM23:INDEX(AM23:AW23,LCC!$E$6)) -> 0
C24: % cumulativa | E24: =E23 -> 0.0006215040398 | F24: =F23+E24 -> 0.02670846056 | G24: =G23+F24 -> 0.03942032497 | H24: 0.05675445527 | I24: 0.06556761626 | J24: 0.0708093169 | K24: 0.07949993104 | L24: 0.09615702466 | M24: 0.1108462902 | N24: 0.1225389405 | X24: prodotto 9 | Y24: =((LCC!$U$19*(LCC!$U$21/100))*LCC!$U$22) -> 0 | Z24: =((LCC!$U$19*(LCC!$U$21/100))*(LCC!$U$22*(1+$E$9))) -> 0 | AA24: =((LCC!$U$19*(LCC!$U$21/100))*(LCC!$U$22*(1+$F$9))) -> 0 | AB24: =((LCC!$U$19*(LCC!$U$21/100))*(LCC!$U$22*(1+G$9))) -> 0 | AC24: =((LCC!$U$19*(LCC!$U$21/100))*(LCC!$U$22*(1+H$9))) -> 0 | AD24: =((LCC!$U$19*(LCC!$U$21/100))*(LCC!$U$22*(1+I$9))) -> 0 | AE24: =((LCC!$U$19*(LCC!$U$21/100))*(LCC!$U$22*(1+J$9))) -> 0 | AF24: =((LCC!$U$19*(LCC!$U$21/100))*(LCC!$U$22*(1+K$9))) -> 0 | AG24: =((LCC!$U$19*(LCC!$U$21/100))*(LCC!$U$22*(1+L$9))) -> 0 | AH24: =((LCC!$U$19*(LCC!$U$21/100))*(LCC!$U$22*(1+M$9))) -> 0 | AI24: =((LCC!$U$19*(LCC!$U$21/100))*(LCC!$U$22*(1+N$9))) -> 0 | AJ24: =SUM(Y24:INDEX(Y24:AI24,LCC!$E$6)) -> 0 | AL24: prodotto 9 | AM24: =((LCC!$U$19*(LCC!$U$25/100))*LCC!$U$26) -> 0 | AN24: =((LCC!$U$19*(LCC!$U$25/100))*(LCC!$U$26*(1+$E$9))) -> 0 | AO24: =((LCC!$U$19*(LCC!$U$25/100))*(LCC!$U$26*(1+$F$9))) -> 0 | AP24: =((LCC!$U$19*(LCC!$U$25/100))*(LCC!$U$26*(1+$G$9))) -> 0 | AQ24: =((LCC!$U$19*(LCC!$U$25/100))*(LCC!$U$26*(1+$H$9))) -> 0 | AR24: =((LCC!$U$19*(LCC!$U$25/100))*(LCC!$U$26*(1+$I$9))) -> 0 | AS24: =((LCC!$U$19*(LCC!$U$25/100))*(LCC!$U$26*(1+$J$9))) -> 0 | AT24: =((LCC!$U$19*(LCC!$U$25/100))*(LCC!$U$26*(1+$K$9))) -> 0 | AU24: =((LCC!$U$19*(LCC!$U$25/100))*(LCC!$U$26*(1+$L$9))) -> 0 | AV24: =((LCC!$U$19*(LCC!$U$25/100))*(LCC!$U$26*(1+$M$9))) -> 0 | AW24: =((LCC!$U$19*(LCC!$U$25/100))*(LCC!$U$26*(1+$N$9))) -> 0 | AX24: =SUM(AM24:INDEX(AM24:AW24,LCC!$E$6)) -> 0
X25: prodotto 10 | Y25: =((LCC!$W$19*(LCC!$W$21/100))*LCC!$W$22) -> 0 | Z25: =((LCC!$W$19*(LCC!$W$21/100))*(LCC!$W$22*(1+$E$9))) -> 0 | AA25: =((LCC!$W$19*(LCC!$W$21/100))*(LCC!$W$22*(1+$F$9))) -> 0 | AB25: =((LCC!$W$19*(LCC!$W$21/100))*(LCC!$W$22*(1+G$9))) -> 0 | AC25: =((LCC!$W$19*(LCC!$W$21/100))*(LCC!$W$22*(1+H$9))) -> 0 | AD25: =((LCC!$W$19*(LCC!$W$21/100))*(LCC!$W$22*(1+I$9))) -> 0 | AE25: =((LCC!$W$19*(LCC!$W$21/100))*(LCC!$W$22*(1+J$9))) -> 0 | AF25: =((LCC!$W$19*(LCC!$W$21/100))*(LCC!$W$22*(1+K$9))) -> 0 | AG25: =((LCC!$W$19*(LCC!$W$21/100))*(LCC!$W$22*(1+L$9))) -> 0 | AH25: =((LCC!$W$19*(LCC!$W$21/100))*(LCC!$W$22*(1+M$9))) -> 0 | AI25: =((LCC!$W$19*(LCC!$W$21/100))*(LCC!$W$22*(1+N$9))) -> 0 | AJ25: =SUM(Y25:INDEX(Y25:AI25,LCC!$E$6)) -> 0 | AL25: prodotto 10 | AM25: =((LCC!$W$19*(LCC!$W$25/100))*LCC!$W$26) -> 0 | AN25: =((LCC!$W$19*(LCC!$W$25/100))*(LCC!$W$26*(1+$E$9))) -> 0 | AO25: =((LCC!$W$19*(LCC!$W$25/100))*(LCC!$W$26*(1+$F$9))) -> 0 | AP25: =((LCC!$W$19*(LCC!$W$25/100))*(LCC!$W$26*(1+$G$9))) -> 0 | AQ25: =((LCC!$W$19*(LCC!$W$25/100))*(LCC!$W$26*(1+$H$9))) -> 0 | AR25: =((LCC!$W$19*(LCC!$W$25/100))*(LCC!$W$26*(1+$I$9))) -> 0 | AS25: =((LCC!$W$19*(LCC!$W$25/100))*(LCC!$W$26*(1+$J$9))) -> 0 | AT25: =((LCC!$W$19*(LCC!$W$25/100))*(LCC!$W$26*(1+$K$9))) -> 0 | AU25: =((LCC!$W$19*(LCC!$W$25/100))*(LCC!$W$26*(1+$L$9))) -> 0 | AV25: =((LCC!$W$19*(LCC!$W$25/100))*(LCC!$W$26*(1+$M$9))) -> 0 | AW25: =((LCC!$W$19*(LCC!$W$25/100))*(LCC!$W$26*(1+$N$9))) -> 0 | AX25: =SUM(AM25:INDEX(AM25:AW25,LCC!$E$6)) -> 0
D27: 2014 | E27: 2017 (3 anni) | F27: 2019 (5anni) | G27: 2024 (10anni) | H27: prodotto 1 | I27: prodotto 2 | J27: prodotto 3 | K27: prodotto 4 | L27: prodotto 5 | M27: prodotto 6 | N27: prodotto 7 | O27: prodotto 8 | P27: prodotto 9 | Q27: prodotto 10 | X27: LPG | Y27: 2014 | Z27: 2015 | AA27: 2016 | AB27: 2017 | AC27: 2018 | AD27: 2019 | AE27: 2020 | AF27: 2021 | AG27: 2022 | AH27: 2023 | AI27: 2024 | AJ27: Total fuel price for period | AL27: LPG | AM27: 2014 | AN27: 2015 | AO27: 2016 | AP27: 2017 | AQ27: 2018 | AR27: 2019 | AS27: 2020 | AT27: 2021 | AU27: 2022 | AV27: 2023 | AW27: 2024 | AX27: prezzo totale carburante per il periodo
B28: Diesel | C28: prezzo previsto ($/gallone) | D28: 3.68 | E28: 3.5 | F28: 3.61 | G28: 3.92 | H28: =$AJ4 -> 0 | I28: =$AJ5 -> 0 | J28: =$AJ6 -> 0 | K28: =AJ7 -> 0 | L28: =AJ8 -> 0 | M28: =AJ9 -> 0 | N28: =AJ10 -> 0 | O28: =AJ11 -> 0 | P28: =AJ12 -> 0 | Q28: =AJ13 -> 0 | X28: prodotto 1 | Y28: =((LCC!$E$19*(LCC!$E$21/100))*LCC!$E$22) -> 0 | Z28: =((LCC!$E$19*(LCC!$E$21/100))*(LCC!$E$22*(1+$E$12))) -> 0 | AA28: =((LCC!$E$19*(LCC!$E$21/100))*(LCC!$E$22*(1+$F$12))) -> 0 | AB28: =((LCC!$E$19*(LCC!$E$21/100))*(LCC!$E$22*(1+G$12))) -> 0 | AC28: =((LCC!$E$19*(LCC!$E$21/100))*(LCC!$E$22*(1+H$12))) -> 0 | AD28: =((LCC!$E$19*(LCC!$E$21/100))*(LCC!$E$22*(1+I$12))) -> 0 | AE28: =((LCC!$E$19*(LCC!$E$21/100))*(LCC!$E$22*(1+J$12))) -> 0 | AF28: =((LCC!$E$19*(LCC!$E$21/100))*(LCC!$E$22*(1+K$12))) -> 0 | AG28: =((LCC!$E$19*(LCC!$E$21/100))*(LCC!$E$22*(1+L$12))) -> 0 | AH28: =((LCC!$E$19*(LCC!$E$21/100))*(LCC!$E$22*(1+M$12))) -> 0 | AI28: =((LCC!$E$19*(LCC!$E$21/100))*(LCC!$E$22*(1+N$12))) -> 0 | AJ28: =SUM(Y28:INDEX(Y28:AI28,LCC!$E$6)) -> 0 | AL28: prodotto 1 | AM28: =((LCC!$E$19*(LCC!$E$25/100))*LCC!$E$26) -> 0 | AN28: =((LCC!$E$19*(LCC!$E$25/100))*(LCC!$E$26*(1+$E$12))) -> 0 | AO28: =((LCC!$E$19*(LCC!$E$25/100))*(LCC!$E$26*(1+$F$12))) -> 0 | AP28: =((LCC!$E$19*(LCC!$E$25/100))*(LCC!$E$26*(1+$G$12))) -> 0 | AQ28: =((LCC!$E$19*(LCC!$E$25/100))*(LCC!$E$26*(1+$H$12))) -> 0 | AR28: =((LCC!$E$19*(LCC!$E$25/100))*(LCC!$E$26*(1+$I$12))) -> 0 | AS28: =((LCC!$E$19*(LCC!$E$25/100))*(LCC!$E$26*(1+$J$12))) -> 0 | AT28: =((LCC!$E$19*(LCC!$E$25/100))*(LCC!$E$26*(1+$K$12))) -> 0 | AU28: =((LCC!$E$19*(LCC!$E$25/100))*(LCC!$E$26*(1+$L$12))) -> 0 | AV28: =((LCC!$E$19*(LCC!$E$25/100))*(LCC!$E$26*(1+$M$12))) -> 0 | AW28: =((LCC!$E$19*(LCC!$E$25/100))*(LCC!$E$26*(1+$N$12))) -> 0 | AX28: =SUM(AM28:INDEX(AM28:AW28,LCC!$E$6)) -> 0
C29: % crescita/decrescita | E29: -0.051 | F29: -0.0188 | G29: 0.0636 | H29: =AX4 -> 0 | I29: =AX5 -> 0 | J29: =AX6 -> 0 | K29: =AX7 -> 0 | L29: =AX8 -> 0 | M29: =AX9 -> 0 | N29: =AX10 -> 0 | O29: =AX11 -> 0 | P29: =AX12 -> 0 | Q29: =AX13 -> 0 | X29: prodotto 2 | Y29: =((LCC!$G$19*(LCC!$G$21/100))*LCC!$G$22) -> 0 | Z29: =((LCC!$G$19*(LCC!$G$21/100))*(LCC!$G$22*(1+$E$12))) -> 0 | AA29: =((LCC!$G$19*(LCC!$G$21/100))*(LCC!$G$22*(1+$F$12))) -> 0 | AB29: =((LCC!$G$19*(LCC!$G$21/100))*(LCC!$G$22*(1+G$12))) -> 0 | AC29: =((LCC!$G$19*(LCC!$G$21/100))*(LCC!$G$22*(1+H$12))) -> 0 | AD29: =((LCC!$G$19*(LCC!$G$21/100))*(LCC!$G$22*(1+I$12))) -> 0 | AE29: =((LCC!$G$19*(LCC!$G$21/100))*(LCC!$G$22*(1+J$12))) -> 0 | AF29: =((LCC!$G$19*(LCC!$G$21/100))*(LCC!$G$22*(1+K$12))) -> 0 | AG29: =((LCC!$G$19*(LCC!$G$21/100))*(LCC!$G$22*(1+L$12))) -> 0 | AH29: =((LCC!$G$19*(LCC!$G$21/100))*(LCC!$G$22*(1+M$12))) -> 0 | AI29: =((LCC!$G$19*(LCC!$G$21/100))*(LCC!$G$22*(1+N$12))) -> 0 | AJ29: =SUM(Y29:INDEX(Y29:AI29,LCC!$E$6)) -> 0 | AL29: prodotto 2 | AM29: =((LCC!$G$19*(LCC!$G$25/100))*LCC!$G$26) -> 0 | AN29: =((LCC!$G$19*(LCC!$G$25/100))*(LCC!$G$26*(1+$E$12))) -> 0 | AO29: =((LCC!$G$19*(LCC!$G$25/100))*(LCC!$G$26*(1+$F$12))) -> 0 | AP29: =((LCC!$G$19*(LCC!$G$25/100))*(LCC!$G$26*(1+$G$12))) -> 0 | AQ29: =((LCC!$G$19*(LCC!$G$25/100))*(LCC!$G$26*(1+$H$12))) -> 0 | AR29: =((LCC!$G$19*(LCC!$G$25/100))*(LCC!$G$26*(1+$I$12))) -> 0 | AS29: =((LCC!$G$19*(LCC!$G$25/100))*(LCC!$G$26*(1+$J$12))) -> 0 | AT29: =((LCC!$G$19*(LCC!$G$25/100))*(LCC!$G$26*(1+$K$12))) -> 0 | AU29: =((LCC!$G$19*(LCC!$G$25/100))*(LCC!$G$26*(1+$L$12))) -> 0 | AV29: =((LCC!$G$19*(LCC!$G$25/100))*(LCC!$G$26*(1+$M$12))) -> 0 | AW29: =((LCC!$G$19*(LCC!$G$25/100))*(LCC!$G$26*(1+$N$12))) -> 0 | AX29: =SUM(AM29:INDEX(AM29:AW29,LCC!$E$6)) -> 0
B30: benzina | C30: prezzo previsto ($/gallone) | D30: 3.381 | E30: 3.02 | F30: 3.03 | G30: 3.26 | H30: =AJ16 -> 0 | I30: =AJ17 -> 0 | J30: =AJ18 -> 0 | K30: =AJ19 -> 0 | L30: =$AJ20 -> 0 | M30: =$AJ21 -> 0 | N30: =$AJ22 -> 0 | O30: =$AJ23 -> 0 | P30: =$AJ24 -> 0 | Q30: =$AJ25 -> 0 | X30: prodotto 3 | Y30: =((LCC!$I$19*(LCC!$I$21/100))*LCC!$I$22) -> 0 | Z30: =((LCC!$I$19*(LCC!$I$21/100))*(LCC!$I$22*(1+$E$12))) -> 0 | AA30: =((LCC!$I$19*(LCC!$I$21/100))*(LCC!$I$22*(1+$F$12))) -> 0 | AB30: =((LCC!$I$19*(LCC!$I$21/100))*(LCC!$I$22*(1+G$12))) -> 0 | AC30: =((LCC!$I$19*(LCC!$I$21/100))*(LCC!$I$22*(1+H$12))) -> 0 | AD30: =((LCC!$I$19*(LCC!$I$21/100))*(LCC!$I$22*(1+I$12))) -> 0 | AE30: =((LCC!$I$19*(LCC!$I$21/100))*(LCC!$I$22*(1+J$12))) -> 0 | AF30: =((LCC!$I$19*(LCC!$I$21/100))*(LCC!$I$22*(1+K$12))) -> 0 | AG30: =((LCC!$I$19*(LCC!$I$21/100))*(LCC!$I$22*(1+L$12))) -> 0 | AH30: =((LCC!$I$19*(LCC!$I$21/100))*(LCC!$I$22*(1+M$12))) -> 0 | AI30: =((LCC!$I$19*(LCC!$I$21/100))*(LCC!$I$22*(1+N$12))) -> 0 | AJ30: =SUM(Y30:INDEX(Y30:AI30,LCC!$E$6)) -> 0 | AL30: prodotto 3 | AM30: =((LCC!$I$19*(LCC!$I$25/100))*LCC!$I$26) -> 0 | AN30: =((LCC!$I$19*(LCC!$I$25/100))*(LCC!$I$26*(1+$E$12))) -> 0 | AO30: =((LCC!$I$19*(LCC!$I$25/100))*(LCC!$I$26*(1+$F$12))) -> 0 | AP30: =((LCC!$I$19*(LCC!$I$25/100))*(LCC!$I$26*(1+$G$12))) -> 0 | AQ30: =((LCC!$I$19*(LCC!$I$25/100))*(LCC!$I$26*(1+$H$12))) -> 0 | AR30: =((LCC!$I$19*(LCC!$I$25/100))*(LCC!$I$26*(1+$I$12))) -> 0 | AS30: =((LCC!$I$19*(LCC!$I$25/100))*(LCC!$I$26*(1+$J$12))) -> 0 | AT30: =((LCC!$I$19*(LCC!$I$25/100))*(LCC!$I$26*(1+$K$12))) -> 0 | AU30: =((LCC!$I$19*(LCC!$I$25/100))*(LCC!$I$26*(1+$L$12))) -> 0 | AV30: =((LCC!$I$19*(LCC!$I$25/100))*(LCC!$I$26*(1+$M$12))) -> 0 | AW30: =((LCC!$I$19*(LCC!$I$25/100))*(LCC!$I$26*(1+$N$12))) -> 0 | AX30: =SUM(AM30:INDEX(AM30:AW30,LCC!$E$6)) -> 0
C31: % crescita/decrescita | E31: -0.1079 | F31: -0.1054 | G31: -0.0328 | H31: =AX16 -> 0 | I31: =AX17 -> 0 | J31: =AX18 -> 0 | K31: =AX19 -> 0 | L31: =$AX20 -> 0 | M31: =$AX21 -> 0 | N31: =$AX22 -> 0 | O31: =$AX23 -> 0 | P31: =$AX24 -> 0 | Q31: =$AX25 -> 0 | X31: prodotto 4 | Y31: =((LCC!$K$19*(LCC!$K$21/100))*LCC!$K$22) -> 0 | Z31: =((LCC!$K$19*(LCC!$K$21/100))*(LCC!$K$22*(1+$E$12))) -> 0 | AA31: =((LCC!$K$19*(LCC!$K$21/100))*(LCC!$K$22*(1+$F$12))) -> 0 | AB31: =((LCC!$K$19*(LCC!$K$21/100))*(LCC!$K$22*(1+G$12))) -> 0 | AC31: =((LCC!$K$19*(LCC!$K$21/100))*(LCC!$K$22*(1+H$12))) -> 0 | AD31: =((LCC!$K$19*(LCC!$K$21/100))*(LCC!$K$22*(1+I$12))) -> 0 | AE31: =((LCC!$K$19*(LCC!$K$21/100))*(LCC!$K$22*(1+J$12))) -> 0 | AF31: =((LCC!$K$19*(LCC!$K$21/100))*(LCC!$K$22*(1+K$12))) -> 0 | AG31: =((LCC!$K$19*(LCC!$K$21/100))*(LCC!$K$22*(1+L$12))) -> 0 | AH31: =((LCC!$K$19*(LCC!$K$21/100))*(LCC!$K$22*(1+M$12))) -> 0 | AI31: =((LCC!$K$19*(LCC!$K$21/100))*(LCC!$K$22*(1+N$12))) -> 0 | AJ31: =SUM(Y31:INDEX(Y31:AI31,LCC!$E$6)) -> 0 | AL31: prodotto 4 | AM31: =((LCC!$K$19*(LCC!$K$25/100))*LCC!$K$26) -> 0 | AN31: =((LCC!$K$19*(LCC!$K$25/100))*(LCC!$K$26*(1+$E$12))) -> 0 | AO31: =((LCC!$K$19*(LCC!$K$25/100))*(LCC!$K$26*(1+$F$12))) -> 0 | AP31: =((LCC!$K$19*(LCC!$K$25/100))*(LCC!$K$26*(1+$G$12))) -> 0 | AQ31: =((LCC!$K$19*(LCC!$K$25/100))*(LCC!$K$26*(1+$H$12))) -> 0 | AR31: =((LCC!$K$19*(LCC!$K$25/100))*(LCC!$K$26*(1+$I$12))) -> 0 | AS31: =((LCC!$K$19*(LCC!$K$25/100))*(LCC!$K$26*(1+$J$12))) -> 0 | AT31: =((LCC!$K$19*(LCC!$K$25/100))*(LCC!$K$26*(1+$K$12))) -> 0 | AU31: =((LCC!$K$19*(LCC!$K$25/100))*(LCC!$K$26*(1+$L$12))) -> 0 | AV31: =((LCC!$K$19*(LCC!$K$25/100))*(LCC!$K$26*(1+$M$12))) -> 0 | AW31: =((LCC!$K$19*(LCC!$K$25/100))*(LCC!$K$26*(1+$N$12))) -> 0 | AX31: =SUM(AM31:INDEX(AM31:AW31,LCC!$E$6)) -> 0
B32: LPG | C32: prezzo previsto ($/gallone) | D32: 2.18 | E32: 2.19 | F32: 2.25 | G32: 2.34 | H32: =AJ28 -> 0 | I32: =AJ29 -> 0 | J32: =AJ30 -> 0 | K32: =AJ31 -> 0 | L32: =$AJ32 -> 0 | M32: =$AJ33 -> 0 | N32: =$AJ34 -> 0 | O32: =$AJ35 -> 0 | P32: =$AJ36 -> 0 | Q32: =$AJ37 -> 0 | X32: prodotto 5 | Y32: =((LCC!$M$19*(LCC!$M$21/100))*LCC!$M$22) -> 0 | Z32: =((LCC!$M$19*(LCC!$M$21/100))*(LCC!$M$22*(1+$E$12))) -> 0 | AA32: =((LCC!$M$19*(LCC!$M$21/100))*(LCC!$M$22*(1+$F$12))) -> 0 | AB32: =((LCC!$M$19*(LCC!$M$21/100))*(LCC!$M$22*(1+G$12))) -> 0 | AC32: =((LCC!$M$19*(LCC!$M$21/100))*(LCC!$M$22*(1+H$12))) -> 0 | AD32: =((LCC!$M$19*(LCC!$M$21/100))*(LCC!$M$22*(1+I$12))) -> 0 | AE32: =((LCC!$M$19*(LCC!$M$21/100))*(LCC!$M$22*(1+J$12))) -> 0 | AF32: =((LCC!$M$19*(LCC!$M$21/100))*(LCC!$M$22*(1+K$12))) -> 0 | AG32: =((LCC!$M$19*(LCC!$M$21/100))*(LCC!$M$22*(1+L$12))) -> 0 | AH32: =((LCC!$M$19*(LCC!$M$21/100))*(LCC!$M$22*(1+M$12))) -> 0 | AI32: =((LCC!$M$19*(LCC!$M$21/100))*(LCC!$M$22*(1+N$12))) -> 0 | AJ32: =SUM(Y32:INDEX(Y32:AI32,LCC!$E$6)) -> 0 | AL32: prodotto 5 | AM32: =((LCC!$M$19*(LCC!$M$25/100))*LCC!$M$26) -> 0 | AN32: =((LCC!$M$19*(LCC!$M$25/100))*(LCC!$M$26*(1+$E$12))) -> 0 | AO32: =((LCC!$M$19*(LCC!$M$25/100))*(LCC!$M$26*(1+$F$12))) -> 0 | AP32: =((LCC!$M$19*(LCC!$M$25/100))*(LCC!$M$26*(1+$G$12))) -> 0 | AQ32: =((LCC!$M$19*(LCC!$M$25/100))*(LCC!$M$26*(1+$H$12))) -> 0 | AR32: =((LCC!$M$19*(LCC!$M$25/100))*(LCC!$M$26*(1+$I$12))) -> 0 | AS32: =((LCC!$M$19*(LCC!$M$25/100))*(LCC!$M$26*(1+$J$12))) -> 0 | AT32: =((LCC!$M$19*(LCC!$M$25/100))*(LCC!$M$26*(1+$K$12))) -> 0 | AU32: =((LCC!$M$19*(LCC!$M$25/100))*(LCC!$M$26*(1+$L$12))) -> 0 | AV32: =((LCC!$M$19*(LCC!$M$25/100))*(LCC!$M$26*(1+$M$12))) -> 0 | AW32: =((LCC!$M$19*(LCC!$M$25/100))*(LCC!$M$26*(1+$N$12))) -> 0 | AX32: =SUM(AM32:INDEX(AM32:AW32,LCC!$E$6)) -> 0
C33: % crescita/decrescita | E33: 0.0027 | F33: 0.0299 | G33: 0.0701 | H33: =AX28 -> 0 | I33: =AX29 -> 0 | J33: =AX30 -> 0 | K33: =AX31 -> 0 | L33: =AX32 -> 0 | M33: =AX33 -> 0 | N33: =AX34 -> 0 | O33: =AX35 -> 0 | P33: =AX36 -> 0 | Q33: =AX37 -> 0 | X33: prodotto 6 | Y33: =((LCC!$O$19*(LCC!$O$21/100))*LCC!$O$22) -> 0 | Z33: =((LCC!$O$19*(LCC!$O$21/100))*(LCC!$O$22*(1+$E$12))) -> 0 | AA33: =((LCC!$O$19*(LCC!$O$21/100))*(LCC!$O$22*(1+$F$12))) -> 0 | AB33: =((LCC!$O$19*(LCC!$O$21/100))*(LCC!$O$22*(1+G$12))) -> 0 | AC33: =((LCC!$O$19*(LCC!$O$21/100))*(LCC!$O$22*(1+H$12))) -> 0 | AD33: =((LCC!$O$19*(LCC!$O$21/100))*(LCC!$O$22*(1+I$12))) -> 0 | AE33: =((LCC!$O$19*(LCC!$O$21/100))*(LCC!$O$22*(1+J$12))) -> 0 | AF33: =((LCC!$O$19*(LCC!$O$21/100))*(LCC!$O$22*(1+K$12))) -> 0 | AG33: =((LCC!$O$19*(LCC!$O$21/100))*(LCC!$O$22*(1+L$12))) -> 0 | AH33: =((LCC!$O$19*(LCC!$O$21/100))*(LCC!$O$22*(1+M$12))) -> 0 | AI33: =((LCC!$O$19*(LCC!$O$21/100))*(LCC!$O$22*(1+N$12))) -> 0 | AJ33: =SUM(Y33:INDEX(Y33:AI33,LCC!$E$6)) -> 0 | AL33: prodotto 6 | AM33: =((LCC!$O$19*(LCC!$O$25/100))*LCC!$O$26) -> 0 | AN33: =((LCC!$O$19*(LCC!$O$25/100))*(LCC!$O$26*(1+$E$12))) -> 0 | AO33: =((LCC!$O$19*(LCC!$O$25/100))*(LCC!$O$26*(1+$F$12))) -> 0 | AP33: =((LCC!$O$19*(LCC!$O$25/100))*(LCC!$O$26*(1+$G$12))) -> 0 | AQ33: =((LCC!$O$19*(LCC!$O$25/100))*(LCC!$O$26*(1+$H$12))) -> 0 | AR33: =((LCC!$O$19*(LCC!$O$25/100))*(LCC!$O$26*(1+$I$12))) -> 0 | AS33: =((LCC!$O$19*(LCC!$O$25/100))*(LCC!$O$26*(1+$J$12))) -> 0 | AT33: =((LCC!$O$19*(LCC!$O$25/100))*(LCC!$O$26*(1+$K$12))) -> 0 | AU33: =((LCC!$O$19*(LCC!$O$25/100))*(LCC!$O$26*(1+$L$12))) -> 0 | AV33: =((LCC!$O$19*(LCC!$O$25/100))*(LCC!$O$26*(1+$M$12))) -> 0 | AW33: =((LCC!$O$19*(LCC!$O$25/100))*(LCC!$O$26*(1+$N$12))) -> 0 | AX33: =SUM(AM33:INDEX(AM33:AW33,LCC!$E$6)) -> 0
B34: etanolo | C34: prezzo previsto ($/gallone) | D34: 2.57 | E34: 2.58 | F34: 2.59 | G34: 2.6 | H34: =AJ40 -> 0 | I34: =AJ41 -> 0 | J34: =AJ42 -> 0 | K34: =AJ43 -> 0 | L34: =#REF! ->  | M34: =#REF! ->  | N34: =#REF! ->  | O34: =$AJ47 -> 0 | P34: =$AJ48 -> 0 | Q34: =$AJ49 -> 0 | X34: prodotto 7 | Y34: =((LCC!$Q$19*(LCC!$Q$21/100))*LCC!$Q$22) -> 0 | Z34: =((LCC!$Q$19*(LCC!$Q$21/100))*(LCC!$Q$22*(1+$E$12))) -> 0 | AA34: =((LCC!$Q$19*(LCC!$Q$21/100))*(LCC!$Q$22*(1+$F$12))) -> 0 | AB34: =((LCC!$Q$19*(LCC!$Q$21/100))*(LCC!$Q$22*(1+G$12))) -> 0 | AC34: =((LCC!$Q$19*(LCC!$Q$21/100))*(LCC!$Q$22*(1+H$12))) -> 0 | AD34: =((LCC!$Q$19*(LCC!$Q$21/100))*(LCC!$Q$22*(1+I$12))) -> 0 | AE34: =((LCC!$Q$19*(LCC!$Q$21/100))*(LCC!$Q$22*(1+J$12))) -> 0 | AF34: =((LCC!$Q$19*(LCC!$Q$21/100))*(LCC!$Q$22*(1+K$12))) -> 0 | AG34: =((LCC!$Q$19*(LCC!$Q$21/100))*(LCC!$Q$22*(1+L$12))) -> 0 | AH34: =((LCC!$Q$19*(LCC!$Q$21/100))*(LCC!$Q$22*(1+M$12))) -> 0 | AI34: =((LCC!$Q$19*(LCC!$Q$21/100))*(LCC!$Q$22*(1+N$12))) -> 0 | AJ34: =SUM(Y34:INDEX(Y34:AI34,LCC!$E$6)) -> 0 | AL34: prodotto 7 | AM34: =((LCC!$Q$19*(LCC!$Q$25/100))*LCC!$Q$26) -> 0 | AN34: =((LCC!$Q$19*(LCC!$Q$25/100))*(LCC!$Q$26*(1+$E$12))) -> 0 | AO34: =((LCC!$Q$19*(LCC!$Q$25/100))*(LCC!$Q$26*(1+$F$12))) -> 0 | AP34: =((LCC!$Q$19*(LCC!$Q$25/100))*(LCC!$Q$26*(1+$G$12))) -> 0 | AQ34: =((LCC!$Q$19*(LCC!$Q$25/100))*(LCC!$Q$26*(1+$H$12))) -> 0 | AR34: =((LCC!$Q$19*(LCC!$Q$25/100))*(LCC!$Q$26*(1+$I$12))) -> 0 | AS34: =((LCC!$Q$19*(LCC!$Q$25/100))*(LCC!$Q$26*(1+$J$12))) -> 0 | AT34: =((LCC!$Q$19*(LCC!$Q$25/100))*(LCC!$Q$26*(1+$K$12))) -> 0 | AU34: =((LCC!$Q$19*(LCC!$Q$25/100))*(LCC!$Q$26*(1+$L$12))) -> 0 | AV34: =((LCC!$Q$19*(LCC!$Q$25/100))*(LCC!$Q$26*(1+$M$12))) -> 0 | AW34: =((LCC!$Q$19*(LCC!$Q$25/100))*(LCC!$Q$26*(1+$N$12))) -> 0 | AX34: =SUM(AM34:INDEX(AM34:AW34,LCC!$E$6)) -> 0
C35: % crescita/decrescita | E35: 0.0034 | F35: 0.0104 | G35: 0.0132 | H35: =$AX40 -> 0 | I35: =$AX41 -> 0 | J35: =$AX42 -> 0 | K35: =$AX43 -> 0 | L35: =#REF! ->  | M35: =#REF! ->  | N35: =#REF! ->  | O35: =$AX44 -> 0 | P35: =$AX45 -> 0 | Q35: =$AX46 -> 0 | X35: prodotto 8 | Y35: =((LCC!$S$19*(LCC!$S$21/100))*LCC!$S$22) -> 0 | Z35: =((LCC!$S$19*(LCC!$S$21/100))*(LCC!$S$22*(1+$E$12))) -> 0 | AA35: =((LCC!$S$19*(LCC!$S$21/100))*(LCC!$S$22*(1+$F$12))) -> 0 | AB35: =((LCC!$S$19*(LCC!$S$21/100))*(LCC!$S$22*(1+G$12))) -> 0 | AC35: =((LCC!$S$19*(LCC!$S$21/100))*(LCC!$S$22*(1+H$12))) -> 0 | AD35: =((LCC!$S$19*(LCC!$S$21/100))*(LCC!$S$22*(1+I$12))) -> 0 | AE35: =((LCC!$S$19*(LCC!$S$21/100))*(LCC!$S$22*(1+J$12))) -> 0 | AF35: =((LCC!$S$19*(LCC!$S$21/100))*(LCC!$S$22*(1+K$12))) -> 0 | AG35: =((LCC!$S$19*(LCC!$S$21/100))*(LCC!$S$22*(1+L$12))) -> 0 | AH35: =((LCC!$S$19*(LCC!$S$21/100))*(LCC!$S$22*(1+M$12))) -> 0 | AI35: =((LCC!$S$19*(LCC!$S$21/100))*(LCC!$S$22*(1+N$12))) -> 0 | AJ35: =SUM(Y35:INDEX(Y35:AI35,LCC!$E$6)) -> 0 | AL35: prodotto 8 | AM35: =((LCC!$S$19*(LCC!$S$25/100))*LCC!$S$26) -> 0 | AN35: =((LCC!$S$19*(LCC!$S$25/100))*(LCC!$S$26*(1+$E$12))) -> 0 | AO35: =((LCC!$S$19*(LCC!$S$25/100))*(LCC!$S$26*(1+$F$12))) -> 0 | AP35: =((LCC!$S$19*(LCC!$S$25/100))*(LCC!$S$26*(1+$G$12))) -> 0 | AQ35: =((LCC!$S$19*(LCC!$S$25/100))*(LCC!$S$26*(1+$H$12))) -> 0 | AR35: =((LCC!$S$19*(LCC!$S$25/100))*(LCC!$S$26*(1+$I$12))) -> 0 | AS35: =((LCC!$S$19*(LCC!$S$25/100))*(LCC!$S$26*(1+$J$12))) -> 0 | AT35: =((LCC!$S$19*(LCC!$S$25/100))*(LCC!$S$26*(1+$K$12))) -> 0 | AU35: =((LCC!$S$19*(LCC!$S$25/100))*(LCC!$S$26*(1+$L$12))) -> 0 | AV35: =((LCC!$S$19*(LCC!$S$25/100))*(LCC!$S$26*(1+$M$12))) -> 0 | AW35: =((LCC!$S$19*(LCC!$S$25/100))*(LCC!$S$26*(1+$N$12))) -> 0 | AX35: =SUM(AM35:INDEX(AM35:AW35,LCC!$E$6)) -> 0
B36: elettricità | C36: prezzo previsto ($cents/Kwh) | D36: 10.21 | E36: 10.1 | F36: 10.2 | G36: 10.16 | H36: =AJ52 -> 0 | I36: =AJ53 -> 0 | J36: =$AJ54 -> 0 | K36: =$AJ55 -> 0 | L36: =$AJ56 -> 0 | M36: =$AJ57 -> 0 | N36: =$AJ58 -> 0 | O36: =$AJ59 -> 0 | P36: =$AJ60 -> 0 | Q36: =$AJ61 -> 0 | X36: prodotto 9 | Y36: =((LCC!$U$19*(LCC!$U$21/100))*LCC!$U$22) -> 0 | Z36: =((LCC!$U$19*(LCC!$U$21/100))*(LCC!$U$22*(1+$E$12))) -> 0 | AA36: =((LCC!$U$19*(LCC!$U$21/100))*(LCC!$U$22*(1+$F$12))) -> 0 | AB36: =((LCC!$U$19*(LCC!$U$21/100))*(LCC!$U$22*(1+G$12))) -> 0 | AC36: =((LCC!$U$19*(LCC!$U$21/100))*(LCC!$U$22*(1+H$12))) -> 0 | AD36: =((LCC!$U$19*(LCC!$U$21/100))*(LCC!$U$22*(1+I$12))) -> 0 | AE36: =((LCC!$U$19*(LCC!$U$21/100))*(LCC!$U$22*(1+J$12))) -> 0 | AF36: =((LCC!$U$19*(LCC!$U$21/100))*(LCC!$U$22*(1+K$12))) -> 0 | AG36: =((LCC!$U$19*(LCC!$U$21/100))*(LCC!$U$22*(1+L$12))) -> 0 | AH36: =((LCC!$U$19*(LCC!$U$21/100))*(LCC!$U$22*(1+M$12))) -> 0 | AI36: =((LCC!$U$19*(LCC!$U$21/100))*(LCC!$U$22*(1+N$12))) -> 0 | AJ36: =SUM(Y36:INDEX(Y36:AI36,LCC!$E$6)) -> 0 | AL36: prodotto 9 | AM36: =((LCC!$U$19*(LCC!$U$25/100))*LCC!$U$26) -> 0 | AN36: =((LCC!$U$19*(LCC!$U$25/100))*(LCC!$U$26*(1+$E$12))) -> 0 | AO36: =((LCC!$U$19*(LCC!$U$25/100))*(LCC!$U$26*(1+$F$12))) -> 0 | AP36: =((LCC!$U$19*(LCC!$U$25/100))*(LCC!$U$26*(1+$G$12))) -> 0 | AQ36: =((LCC!$U$19*(LCC!$U$25/100))*(LCC!$U$26*(1+$H$12))) -> 0 | AR36: =((LCC!$U$19*(LCC!$U$25/100))*(LCC!$U$26*(1+$I$12))) -> 0 | AS36: =((LCC!$U$19*(LCC!$U$25/100))*(LCC!$U$26*(1+$J$12))) -> 0 | AT36: =((LCC!$U$19*(LCC!$U$25/100))*(LCC!$U$26*(1+$K$12))) -> 0 | AU36: =((LCC!$U$19*(LCC!$U$25/100))*(LCC!$U$26*(1+$L$12))) -> 0 | AV36: =((LCC!$U$19*(LCC!$U$25/100))*(LCC!$U$26*(1+$M$12))) -> 0 | AW36: =((LCC!$U$19*(LCC!$U$25/100))*(LCC!$U$26*(1+$N$12))) -> 0 | AX36: =SUM(AM36:INDEX(AM36:AW36,LCC!$E$6)) -> 0
C37: % crescita/decrescita | E37: -0.0119 | F37: 0.0029 | G37: -0.49 | H37: =AX49 -> 0 | I37: =AX50 -> 0 | J37: =AX51 -> 22209 | K37: =AX52 -> 0 | L37: =AX53 -> 0 | M37: =AX54 -> 0 | N37: =AX55 -> 0 | O37: =AX56 -> 0 | P37: =AX57 -> 0 | Q37: =AX58 -> 0 | X37: prodotto 10 | Y37: =((LCC!$W$19*(LCC!$W$21/100))*LCC!$W$22) -> 0 | Z37: =((LCC!$W$19*(LCC!$W$21/100))*(LCC!$W$22*(1+$E$12))) -> 0 | AA37: =((LCC!$W$19*(LCC!$W$21/100))*(LCC!$W$22*(1+$F$12))) -> 0 | AB37: =((LCC!$W$19*(LCC!$W$21/100))*(LCC!$W$22*(1+G$12))) -> 0 | AC37: =((LCC!$W$19*(LCC!$W$21/100))*(LCC!$W$22*(1+H$12))) -> 0 | AD37: =((LCC!$W$19*(LCC!$W$21/100))*(LCC!$W$22*(1+I$12))) -> 0 | AE37: =((LCC!$W$19*(LCC!$W$21/100))*(LCC!$W$22*(1+J$12))) -> 0 | AF37: =((LCC!$W$19*(LCC!$W$21/100))*(LCC!$W$22*(1+K$12))) -> 0 | AG37: =((LCC!$W$19*(LCC!$W$21/100))*(LCC!$W$22*(1+L$12))) -> 0 | AH37: =((LCC!$W$19*(LCC!$W$21/100))*(LCC!$W$22*(1+M$12))) -> 0 | AI37: =((LCC!$W$19*(LCC!$W$21/100))*(LCC!$W$22*(1+N$12))) -> 0 | AJ37: =SUM(Y37:INDEX(Y37:AI37,LCC!$E$6)) -> 0 | AL37: prodotto 10 | AM37: =((LCC!$W$19*(LCC!$W$25/100))*LCC!$W$26) -> 0 | AN37: =((LCC!$W$19*(LCC!$W$25/100))*(LCC!$W$26*(1+$E$12))) -> 0 | AO37: =((LCC!$W$19*(LCC!$W$25/100))*(LCC!$W$26*(1+$F$12))) -> 0 | AP37: =((LCC!$W$19*(LCC!$W$25/100))*(LCC!$W$26*(1+$G$12))) -> 0 | AQ37: =((LCC!$W$19*(LCC!$W$25/100))*(LCC!$W$26*(1+$H$12))) -> 0 | AR37: =((LCC!$W$19*(LCC!$W$25/100))*(LCC!$W$26*(1+$I$12))) -> 0 | AS37: =((LCC!$W$19*(LCC!$W$25/100))*(LCC!$W$26*(1+$J$12))) -> 0 | AT37: =((LCC!$W$19*(LCC!$W$25/100))*(LCC!$W$26*(1+$K$12))) -> 0 | AU37: =((LCC!$W$19*(LCC!$W$25/100))*(LCC!$W$26*(1+$L$12))) -> 0 | AV37: =((LCC!$W$19*(LCC!$W$25/100))*(LCC!$W$26*(1+$M$12))) -> 0 | AW37: =((LCC!$W$19*(LCC!$W$25/100))*(LCC!$W$26*(1+$N$12))) -> 0 | AX37: =SUM(AM37:INDEX(AM37:AW37,LCC!$E$6)) -> 0
B38: Biodiesel | C38: prezzo previsto ($/100 litro) | D38: 156.2 | E38: 154.7 | F38: 159.8 | G38: 177.6 | H38: =AJ64 -> 0 | I38: =AJ65 -> 0 | J38: =AJ66 -> 0 | K38: =AJ67 -> 0 | L38: =$AJ68 -> 0 | M38: =$AJ69 -> 0 | N38: =$AJ70 -> 0 | O38: =$AJ71 -> 0 | P38: =$AJ72 -> 0 | Q38: =$AJ73 -> 0
C39: % crescita/decrescita | E39: -0.0083 | F39: 0.0247 | G39: 0.1317 | H39: =AX61 -> 0 | I39: =AX62 -> 0 | J39: =AX63 -> 22209 | K39: =AX64 -> 0 | L39: =AX65 -> 0 | M39: =AX66 -> 0 | N39: =AX67 -> 0 | O39: =AX68 -> 0 | P39: =AX69 -> 0 | Q39: =AX70 -> 0 | X39: ETHANOL | Y39: 2014 | Z39: 2015 | AA39: 2016 | AB39: 2017 | AC39: 2018 | AD39: 2019 | AE39: 2020 | AF39: 2021 | AG39: 2022 | AH39: 2023 | AI39: 2024 | AJ39: Total fuel price for period | AL39: Ethanol
B40: Natural Gas | C40: prezzo previsto ($/millionBtu) | D40: 16.09 | E40: 16.73 | F40: 17.17 | G40: 18.17 | H40: =AJ76 -> 0 | I40: =AJ77 -> 0 | J40: =AJ78 -> 0 | K40: =AJ79 -> 0 | L40: =$AJ80 -> 0 | M40: =$AJ81 -> 0 | N40: =$AJ82 -> 0 | O40: =$AJ83 -> 0 | P40: =$AJ84 -> 0 | Q40: =$AJ85 -> 0 | X40: prodotto 1 | Y40: =((LCC!$E$19*(LCC!$E$21/100))*LCC!$E$22) -> 0 | Z40: =((LCC!$E$19*(LCC!$E$21/100))*(LCC!$E$22*(1+$E$15))) -> 0 | AA40: =((LCC!$E$19*(LCC!$E$21/100))*(LCC!$E$22*(1+$F$15))) -> 0 | AB40: =((LCC!$E$19*(LCC!$E$21/100))*(LCC!$E$22*(1+G$15))) -> 0 | AC40: =((LCC!$E$19*(LCC!$E$21/100))*(LCC!$E$22*(1+H$15))) -> 0 | AD40: =((LCC!$E$19*(LCC!$E$21/100))*(LCC!$E$22*(1+I$15))) -> 0 | AE40: =((LCC!$E$19*(LCC!$E$21/100))*(LCC!$E$22*(1+J$15))) -> 0 | AF40: =((LCC!$E$19*(LCC!$E$21/100))*(LCC!$E$22*(1+K$15))) -> 0 | AG40: =((LCC!$E$19*(LCC!$E$21/100))*(LCC!$E$22*(1+L$15))) -> 0 | AH40: =((LCC!$E$19*(LCC!$E$21/100))*(LCC!$E$22*(1+M$15))) -> 0 | AI40: =((LCC!$E$19*(LCC!$E$21/100))*(LCC!$E$22*(1+N$15))) -> 0 | AJ40: =SUM(Y40:INDEX(Y40:AI40,LCC!$E$6)) -> 0 | AL40: prodotto 1 | AM40: =((LCC!$E$19*(LCC!$E$25/100))*LCC!$E$26) -> 0 | AN40: =((LCC!$E$19*(LCC!$E$25/100))*(LCC!$E$26*(1+$E$15))) -> 0 | AO40: =((LCC!$E$19*(LCC!$E$25/100))*(LCC!$E$26*(1+$F$15))) -> 0 | AP40: =((LCC!$E$19*(LCC!$E$25/100))*(LCC!$E$26*(1+$G$15))) -> 0 | AQ40: =((LCC!$E$19*(LCC!$E$25/100))*(LCC!$E$26*(1+$H$15))) -> 0 | AR40: =((LCC!$E$19*(LCC!$E$25/100))*(LCC!$E$26*(1+$I$15))) -> 0 | AS40: =((LCC!$E$19*(LCC!$E$25/100))*(LCC!$E$26*(1+$J$15))) -> 0 | AT40: =((LCC!$E$19*(LCC!$E$25/100))*(LCC!$E$26*(1+$K$15))) -> 0 | AU40: =((LCC!$E$19*(LCC!$E$25/100))*(LCC!$E$26*(1+$L$15))) -> 0 | AV40: =((LCC!$E$19*(LCC!$E$25/100))*(LCC!$E$26*(1+$M$15))) -> 0 | AW40: =((LCC!$E$19*(LCC!$E$25/100))*(LCC!$E$26*(1+$N$15))) -> 0 | AX40: =SUM(AM40:INDEX(AM40:AW40,LCC!$E$6)) -> 0
C41: % crescita/decrescita | E41: 0.0394 | F41: 0.0656 | G41: 0.1225 | H41: =AX73 -> 0 | I41: =AX74 -> 0 | J41: =AX75 -> 22209 | K41: =$AX76 -> 0 | L41: =$AX77 -> 0 | M41: =$AX78 -> 0 | N41: =$AX79 -> 0 | O41: =$AX80 -> 0 | P41: =$AX81 -> 0 | Q41: =$AX82 -> 0 | X41: prodotto 2 | Y41: =((LCC!$G$19*(LCC!$G$21/100))*LCC!$G$22) -> 0 | Z41: =((LCC!$G$19*(LCC!$G$21/100))*(LCC!$G$22*(1+$E$15))) -> 0 | AA41: =((LCC!$G$19*(LCC!$G$21/100))*(LCC!$G$22*(1+$F$15))) -> 0 | AB41: =((LCC!$G$19*(LCC!$G$21/100))*(LCC!$G$22*(1+G$15))) -> 0 | AC41: =((LCC!$G$19*(LCC!$G$21/100))*(LCC!$G$22*(1+H$15))) -> 0 | AD41: =((LCC!$G$19*(LCC!$G$21/100))*(LCC!$G$22*(1+I$15))) -> 0 | AE41: =((LCC!$G$19*(LCC!$G$21/100))*(LCC!$G$22*(1+J$15))) -> 0 | AF41: =((LCC!$G$19*(LCC!$G$21/100))*(LCC!$G$22*(1+K$15))) -> 0 | AG41: =((LCC!$G$19*(LCC!$G$21/100))*(LCC!$G$22*(1+L$15))) -> 0 | AH41: =((LCC!$G$19*(LCC!$G$21/100))*(LCC!$G$22*(1+M$15))) -> 0 | AI41: =((LCC!$G$19*(LCC!$G$21/100))*(LCC!$G$22*(1+N$15))) -> 0 | AJ41: =SUM(Y41:INDEX(Y41:AI41,LCC!$E$6)) -> 0 | AL41: prodotto 2 | AM41: =((LCC!$G$19*(LCC!$G$25/100))*LCC!$G$26) -> 0 | AN41: =((LCC!$G$19*(LCC!$G$25/100))*(LCC!$G$26*(1+$E$15))) -> 0 | AO41: =((LCC!$G$19*(LCC!$G$25/100))*(LCC!$G$26*(1+$F$15))) -> 0 | AP41: =((LCC!$G$19*(LCC!$G$25/100))*(LCC!$G$26*(1+$G$15))) -> 0 | AQ41: =((LCC!$G$19*(LCC!$G$25/100))*(LCC!$G$26*(1+$H$15))) -> 0 | AR41: =((LCC!$G$19*(LCC!$G$25/100))*(LCC!$G$26*(1+$I$15))) -> 0 | AS41: =((LCC!$G$19*(LCC!$G$25/100))*(LCC!$G$26*(1+$J$15))) -> 0 | AT41: =((LCC!$G$19*(LCC!$G$25/100))*(LCC!$G$26*(1+$K$15))) -> 0 | AU41: =((LCC!$G$19*(LCC!$G$25/100))*(LCC!$G$26*(1+$L$15))) -> 0 | AV41: =((LCC!$G$19*(LCC!$G$25/100))*(LCC!$G$26*(1+$M$15))) -> 0 | AW41: =((LCC!$G$19*(LCC!$G$25/100))*(LCC!$G$26*(1+$N$15))) -> 0 | AX41: =SUM(AM41:INDEX(AM41:AW41,LCC!$E$6)) -> 0
X42: prodotto 3 | Y42: =((LCC!$I$19*(LCC!$I$21/100))*LCC!$I$22) -> 0 | Z42: =((LCC!$I$19*(LCC!$I$21/100))*(LCC!$I$22*(1+$E$15))) -> 0 | AA42: =((LCC!$I$19*(LCC!$I$21/100))*(LCC!$I$22*(1+$F$15))) -> 0 | AB42: =((LCC!$I$19*(LCC!$I$21/100))*(LCC!$I$22*(1+G$15))) -> 0 | AC42: =((LCC!$I$19*(LCC!$I$21/100))*(LCC!$I$22*(1+H$15))) -> 0 | AD42: =((LCC!$I$19*(LCC!$I$21/100))*(LCC!$I$22*(1+I$15))) -> 0 | AE42: =((LCC!$I$19*(LCC!$I$21/100))*(LCC!$I$22*(1+J$15))) -> 0 | AF42: =((LCC!$I$19*(LCC!$I$21/100))*(LCC!$I$22*(1+K$15))) -> 0 | AG42: =((LCC!$I$19*(LCC!$I$21/100))*(LCC!$I$22*(1+L$15))) -> 0 | AH42: =((LCC!$I$19*(LCC!$I$21/100))*(LCC!$I$22*(1+M$15))) -> 0 | AI42: =((LCC!$I$19*(LCC!$I$21/100))*(LCC!$I$22*(1+N$15))) -> 0 | AJ42: =SUM(Y42:INDEX(Y42:AI42,LCC!$E$6)) -> 0 | AL42: prodotto 3 | AM42: =((LCC!$I$19*(LCC!$I$25/100))*LCC!$I$26) -> 0 | AN42: =((LCC!$I$19*(LCC!$I$25/100))*(LCC!$I$26*(1+$E$15))) -> 0 | AO42: =((LCC!$I$19*(LCC!$I$25/100))*(LCC!$I$26*(1+$F$15))) -> 0 | AP42: =((LCC!$I$19*(LCC!$I$25/100))*(LCC!$I$26*(1+$G$15))) -> 0 | AQ42: =((LCC!$I$19*(LCC!$I$25/100))*(LCC!$I$26*(1+$H$15))) -> 0 | AR42: =((LCC!$I$19*(LCC!$I$25/100))*(LCC!$I$26*(1+$I$15))) -> 0 | AS42: =((LCC!$I$19*(LCC!$I$25/100))*(LCC!$I$26*(1+$J$15))) -> 0 | AT42: =((LCC!$I$19*(LCC!$I$25/100))*(LCC!$I$26*(1+$K$15))) -> 0 | AU42: =((LCC!$I$19*(LCC!$I$25/100))*(LCC!$I$26*(1+$L$15))) -> 0 | AV42: =((LCC!$I$19*(LCC!$I$25/100))*(LCC!$I$26*(1+$M$15))) -> 0 | AW42: =((LCC!$I$19*(LCC!$I$25/100))*(LCC!$I$26*(1+$N$15))) -> 0 | AX42: =SUM(AM42:INDEX(AM42:AW42,LCC!$E$6)) -> 0
X43: prodotto 4 | Y43: =((LCC!$K$19*(LCC!$K$21/100))*LCC!$K$22) -> 0 | Z43: =((LCC!$K$19*(LCC!$K$21/100))*(LCC!$K$22*(1+$E$15))) -> 0 | AA43: =((LCC!$K$19*(LCC!$K$21/100))*(LCC!$K$22*(1+$F$15))) -> 0 | AB43: =((LCC!$K$19*(LCC!$K$21/100))*(LCC!$K$22*(1+G$15))) -> 0 | AC43: =((LCC!$K$19*(LCC!$K$21/100))*(LCC!$K$22*(1+H$15))) -> 0 | AD43: =((LCC!$K$19*(LCC!$K$21/100))*(LCC!$K$22*(1+I$15))) -> 0 | AE43: =((LCC!$K$19*(LCC!$K$21/100))*(LCC!$K$22*(1+J$15))) -> 0 | AF43: =((LCC!$K$19*(LCC!$K$21/100))*(LCC!$K$22*(1+K$15))) -> 0 | AG43: =((LCC!$K$19*(LCC!$K$21/100))*(LCC!$K$22*(1+L$15))) -> 0 | AH43: =((LCC!$K$19*(LCC!$K$21/100))*(LCC!$K$22*(1+M$15))) -> 0 | AI43: =((LCC!$K$19*(LCC!$K$21/100))*(LCC!$K$22*(1+N$15))) -> 0 | AJ43: =SUM(Y43:INDEX(Y43:AI43,LCC!$E$6)) -> 0 | AL43: prodotto 4 | AM43: =((LCC!$K$19*(LCC!$K$25/100))*LCC!$K$26) -> 0 | AN43: =((LCC!$K$19*(LCC!$K$25/100))*(LCC!$K$26*(1+$E$15))) -> 0 | AO43: =((LCC!$K$19*(LCC!$K$25/100))*(LCC!$K$26*(1+$F$15))) -> 0 | AP43: =((LCC!$K$19*(LCC!$K$25/100))*(LCC!$K$26*(1+$G$15))) -> 0 | AQ43: =((LCC!$K$19*(LCC!$K$25/100))*(LCC!$K$26*(1+$H$15))) -> 0 | AR43: =((LCC!$K$19*(LCC!$K$25/100))*(LCC!$K$26*(1+$I$15))) -> 0 | AS43: =((LCC!$K$19*(LCC!$K$25/100))*(LCC!$K$26*(1+$J$15))) -> 0 | AT43: =((LCC!$K$19*(LCC!$K$25/100))*(LCC!$K$26*(1+$K$15))) -> 0 | AU43: =((LCC!$K$19*(LCC!$K$25/100))*(LCC!$K$26*(1+$L$15))) -> 0 | AV43: =((LCC!$K$19*(LCC!$K$25/100))*(LCC!$K$26*(1+$M$15))) -> 0 | AW43: =((LCC!$K$19*(LCC!$K$25/100))*(LCC!$K$26*(1+$N$15))) -> 0 | AX43: =SUM(AM43:INDEX(AM43:AW43,LCC!$E$6)) -> 0
A44: *** tutti i prezzi sono stati calcolati per il settore dei trasporti | X44: prodotto 5 | Y44: =((LCC!$M$19*(LCC!$M$21/100))*LCC!$M$22) -> 0 | Z44: =((LCC!$M$19*(LCC!$M$21/100))*(LCC!$M$22*(1+$E$15))) -> 0 | AA44: =((LCC!$M$19*(LCC!$M$21/100))*(LCC!$M$22*(1+$F$15))) -> 0 | AB44: =((LCC!$M$19*(LCC!$M$21/100))*(LCC!$M$22*(1+G$15))) -> 0 | AC44: =((LCC!$M$19*(LCC!$M$21/100))*(LCC!$M$22*(1+H$15))) -> 0 | AD44: =((LCC!$M$19*(LCC!$M$21/100))*(LCC!$M$22*(1+I$15))) -> 0 | AE44: =((LCC!$M$19*(LCC!$M$21/100))*(LCC!$M$22*(1+J$15))) -> 0 | AF44: =((LCC!$M$19*(LCC!$M$21/100))*(LCC!$M$22*(1+K$15))) -> 0 | AG44: =((LCC!$M$19*(LCC!$M$21/100))*(LCC!$M$22*(1+L$15))) -> 0 | AH44: =((LCC!$M$19*(LCC!$M$21/100))*(LCC!$M$22*(1+M$15))) -> 0 | AI44: =((LCC!$M$19*(LCC!$M$21/100))*(LCC!$M$22*(1+N$15))) -> 0 | AJ44: =SUM(Y44:INDEX(Y44:AI44,LCC!$E$6)) -> 0 | AL44: prodotto 8 | AM44: =((LCC!$M$19*(LCC!$M$25/100))*LCC!$M$26) -> 0 | AN44: =((LCC!$M$19*(LCC!$M$25/100))*(LCC!$M$26*(1+$E$15))) -> 0 | AO44: =((LCC!$M$19*(LCC!$M$25/100))*(LCC!$M$26*(1+$F$15))) -> 0 | AP44: =((LCC!$M$19*(LCC!$M$25/100))*(LCC!$M$26*(1+$G$15))) -> 0 | AQ44: =((LCC!$M$19*(LCC!$M$25/100))*(LCC!$M$26*(1+$H$15))) -> 0 | AR44: =((LCC!$M$19*(LCC!$M$25/100))*(LCC!$M$26*(1+$I$15))) -> 0 | AS44: =((LCC!$M$19*(LCC!$M$25/100))*(LCC!$M$26*(1+$J$15))) -> 0 | AT44: =((LCC!$M$19*(LCC!$M$25/100))*(LCC!$M$26*(1+$K$15))) -> 0 | AU44: =((LCC!$M$19*(LCC!$M$25/100))*(LCC!$M$26*(1+$L$15))) -> 0 | AV44: =((LCC!$M$19*(LCC!$M$25/100))*(LCC!$M$26*(1+$M$15))) -> 0 | AW44: =((LCC!$M$19*(LCC!$M$25/100))*(LCC!$M$26*(1+$N$15))) -> 0 | AX44: =SUM(AM44:INDEX(AM44:AW44,LCC!$E$6)) -> 0
X45: prodotto 6 | Y45: =((LCC!$O$19*(LCC!$O$21/100))*LCC!$O$22) -> 0 | Z45: =((LCC!$O$19*(LCC!$O$21/100))*(LCC!$O$22*(1+$E$15))) -> 0 | AA45: =((LCC!$O$19*(LCC!$O$21/100))*(LCC!$O$22*(1+$F$15))) -> 0 | AB45: =((LCC!$O$19*(LCC!$O$21/100))*(LCC!$O$22*(1+G$15))) -> 0 | AC45: =((LCC!$O$19*(LCC!$O$21/100))*(LCC!$O$22*(1+H$15))) -> 0 | AD45: =((LCC!$O$19*(LCC!$O$21/100))*(LCC!$O$22*(1+I$15))) -> 0 | AE45: =((LCC!$O$19*(LCC!$O$21/100))*(LCC!$O$22*(1+J$15))) -> 0 | AF45: =((LCC!$O$19*(LCC!$O$21/100))*(LCC!$O$22*(1+K$15))) -> 0 | AG45: =((LCC!$O$19*(LCC!$O$21/100))*(LCC!$O$22*(1+L$15))) -> 0 | AH45: =((LCC!$O$19*(LCC!$O$21/100))*(LCC!$O$22*(1+M$15))) -> 0 | AI45: =((LCC!$O$19*(LCC!$O$21/100))*(LCC!$O$22*(1+N$15))) -> 0 | AJ45: =SUM(Y45:INDEX(Y45:AI45,LCC!$E$6)) -> 0 | AL45: prodotto 9 | AM45: =((LCC!$O$19*(LCC!$O$25/100))*LCC!$O$26) -> 0 | AN45: =((LCC!$O$19*(LCC!$O$25/100))*(LCC!$O$26*(1+$E$15))) -> 0 | AO45: =((LCC!$O$19*(LCC!$O$25/100))*(LCC!$O$26*(1+$F$15))) -> 0 | AP45: =((LCC!$O$19*(LCC!$O$25/100))*(LCC!$O$26*(1+$G$15))) -> 0 | AQ45: =((LCC!$O$19*(LCC!$O$25/100))*(LCC!$O$26*(1+$H$15))) -> 0 | AR45: =((LCC!$O$19*(LCC!$O$25/100))*(LCC!$O$26*(1+$I$15))) -> 0 | AS45: =((LCC!$O$19*(LCC!$O$25/100))*(LCC!$O$26*(1+$J$15))) -> 0 | AT45: =((LCC!$O$19*(LCC!$O$25/100))*(LCC!$O$26*(1+$K$15))) -> 0 | AU45: =((LCC!$O$19*(LCC!$O$25/100))*(LCC!$O$26*(1+$L$15))) -> 0 | AV45: =((LCC!$O$19*(LCC!$O$25/100))*(LCC!$O$26*(1+$M$15))) -> 0 | AW45: =((LCC!$O$19*(LCC!$O$25/100))*(LCC!$O$26*(1+$N$15))) -> 0 | AX45: =SUM(AM45:INDEX(AM45:AW45,LCC!$E$6)) -> 0
X46: prodotto 7 | Y46: =((LCC!$Q$19*(LCC!$Q$21/100))*LCC!$Q$22) -> 0 | Z46: =((LCC!$Q$19*(LCC!$Q$21/100))*(LCC!$Q$22*(1+$E$15))) -> 0 | AA46: =((LCC!$Q$19*(LCC!$Q$21/100))*(LCC!$Q$22*(1+$F$15))) -> 0 | AB46: =((LCC!$Q$19*(LCC!$Q$21/100))*(LCC!$Q$22*(1+G$15))) -> 0 | AC46: =((LCC!$Q$19*(LCC!$Q$21/100))*(LCC!$Q$22*(1+H$15))) -> 0 | AD46: =((LCC!$Q$19*(LCC!$Q$21/100))*(LCC!$Q$22*(1+I$15))) -> 0 | AE46: =((LCC!$Q$19*(LCC!$Q$21/100))*(LCC!$Q$22*(1+J$15))) -> 0 | AF46: =((LCC!$Q$19*(LCC!$Q$21/100))*(LCC!$Q$22*(1+K$15))) -> 0 | AG46: =((LCC!$Q$19*(LCC!$Q$21/100))*(LCC!$Q$22*(1+L$15))) -> 0 | AH46: =((LCC!$Q$19*(LCC!$Q$21/100))*(LCC!$Q$22*(1+M$15))) -> 0 | AI46: =((LCC!$Q$19*(LCC!$Q$21/100))*(LCC!$Q$22*(1+N$15))) -> 0 | AJ46: =SUM(Y46:INDEX(Y46:AI46,LCC!$E$6)) -> 0 | AL46: prodotto 10 | AM46: =((LCC!$Q$19*(LCC!$Q$25/100))*LCC!$Q$26) -> 0 | AN46: =((LCC!$Q$19*(LCC!$Q$25/100))*(LCC!$Q$26*(1+$E$15))) -> 0 | AO46: =((LCC!$Q$19*(LCC!$Q$25/100))*(LCC!$Q$26*(1+$F$15))) -> 0 | AP46: =((LCC!$Q$19*(LCC!$Q$25/100))*(LCC!$Q$26*(1+$G$15))) -> 0 | AQ46: =((LCC!$Q$19*(LCC!$Q$25/100))*(LCC!$Q$26*(1+$H$15))) -> 0 | AR46: =((LCC!$Q$19*(LCC!$Q$25/100))*(LCC!$Q$26*(1+$I$15))) -> 0 | AS46: =((LCC!$Q$19*(LCC!$Q$25/100))*(LCC!$Q$26*(1+$J$15))) -> 0 | AT46: =((LCC!$Q$19*(LCC!$Q$25/100))*(LCC!$Q$26*(1+$K$15))) -> 0 | AU46: =((LCC!$Q$19*(LCC!$Q$25/100))*(LCC!$Q$26*(1+$L$15))) -> 0 | AV46: =((LCC!$Q$19*(LCC!$Q$25/100))*(LCC!$Q$26*(1+$M$15))) -> 0 | AW46: =((LCC!$Q$19*(LCC!$Q$25/100))*(LCC!$Q$26*(1+$N$15))) -> 0 | AX46: =SUM(AM46:INDEX(AM46:AW46,LCC!$E$6)) -> 0
X47: prodotto 8 | Y47: =((LCC!$S$19*(LCC!$S$21/100))*LCC!$S$22) -> 0 | Z47: =((LCC!$S$19*(LCC!$S$21/100))*(LCC!$S$22*(1+$E$15))) -> 0 | AA47: =((LCC!$S$19*(LCC!$S$21/100))*(LCC!$S$22*(1+$F$15))) -> 0 | AB47: =((LCC!$S$19*(LCC!$S$21/100))*(LCC!$S$22*(1+G$15))) -> 0 | AC47: =((LCC!$S$19*(LCC!$S$21/100))*(LCC!$S$22*(1+H$15))) -> 0 | AD47: =((LCC!$S$19*(LCC!$S$21/100))*(LCC!$S$22*(1+I$15))) -> 0 | AE47: =((LCC!$S$19*(LCC!$S$21/100))*(LCC!$S$22*(1+J$15))) -> 0 | AF47: =((LCC!$S$19*(LCC!$S$21/100))*(LCC!$S$22*(1+K$15))) -> 0 | AG47: =((LCC!$S$19*(LCC!$S$21/100))*(LCC!$S$22*(1+L$15))) -> 0 | AH47: =((LCC!$S$19*(LCC!$S$21/100))*(LCC!$S$22*(1+M$15))) -> 0 | AI47: =((LCC!$S$19*(LCC!$S$21/100))*(LCC!$S$22*(1+N$15))) -> 0 | AJ47: =SUM(Y47:INDEX(Y47:AI47,LCC!$E$6)) -> 0 | AM47: =((LCC!$S$19*(LCC!$S$25/100))*LCC!$S$26) -> 0 | AN47: =((LCC!$S$19*(LCC!$S$25/100))*(LCC!$S$26*(1+$E$15))) -> 0 | AO47: =((LCC!$S$19*(LCC!$S$25/100))*(LCC!$S$26*(1+$F$15))) -> 0 | AP47: =((LCC!$S$19*(LCC!$S$25/100))*(LCC!$S$26*(1+$G$15))) -> 0 | AQ47: =((LCC!$S$19*(LCC!$S$25/100))*(LCC!$S$26*(1+$H$15))) -> 0 | AR47: =((LCC!$S$19*(LCC!$S$25/100))*(LCC!$S$26*(1+$I$15))) -> 0 | AS47: =((LCC!$S$19*(LCC!$S$25/100))*(LCC!$S$26*(1+$J$15))) -> 0 | AT47: =((LCC!$S$19*(LCC!$S$25/100))*(LCC!$S$26*(1+$K$15))) -> 0 | AU47: =((LCC!$S$19*(LCC!$S$25/100))*(LCC!$S$26*(1+$L$15))) -> 0 | AV47: =((LCC!$S$19*(LCC!$S$25/100))*(LCC!$S$26*(1+$M$15))) -> 0 | AW47: =((LCC!$S$19*(LCC!$S$25/100))*(LCC!$S$26*(1+$N$15))) -> 0
X48: prodotto 9 | Y48: =((LCC!$U$19*(LCC!$U$21/100))*LCC!$U$22) -> 0 | Z48: =((LCC!$U$19*(LCC!$U$21/100))*(LCC!$U$22*(1+$E$15))) -> 0 | AA48: =((LCC!$U$19*(LCC!$U$21/100))*(LCC!$U$22*(1+$F$15))) -> 0 | AB48: =((LCC!$U$19*(LCC!$U$21/100))*(LCC!$U$22*(1+G$15))) -> 0 | AC48: =((LCC!$U$19*(LCC!$U$21/100))*(LCC!$U$22*(1+H$15))) -> 0 | AD48: =((LCC!$U$19*(LCC!$U$21/100))*(LCC!$U$22*(1+I$15))) -> 0 | AE48: =((LCC!$U$19*(LCC!$U$21/100))*(LCC!$U$22*(1+J$15))) -> 0 | AF48: =((LCC!$U$19*(LCC!$U$21/100))*(LCC!$U$22*(1+K$15))) -> 0 | AG48: =((LCC!$U$19*(LCC!$U$21/100))*(LCC!$U$22*(1+L$15))) -> 0 | AH48: =((LCC!$U$19*(LCC!$U$21/100))*(LCC!$U$22*(1+M$15))) -> 0 | AI48: =((LCC!$U$19*(LCC!$U$21/100))*(LCC!$U$22*(1+N$15))) -> 0 | AJ48: =SUM(Y48:INDEX(Y48:AI48,LCC!$E$6)) -> 0 | AL48: ELECTRICITY | AM48: =((LCC!$U$19*(LCC!$U$25/100))*LCC!$U$26) -> 0 | AN48: =((LCC!$U$19*(LCC!$U$25/100))*(LCC!$U$26*(1+$E$15))) -> 0 | AO48: =((LCC!$U$19*(LCC!$U$25/100))*(LCC!$U$26*(1+$F$15))) -> 0 | AP48: =((LCC!$U$19*(LCC!$U$25/100))*(LCC!$U$26*(1+$G$15))) -> 0 | AQ48: =((LCC!$U$19*(LCC!$U$25/100))*(LCC!$U$26*(1+$H$15))) -> 0 | AR48: =((LCC!$U$19*(LCC!$U$25/100))*(LCC!$U$26*(1+$I$15))) -> 0 | AS48: =((LCC!$U$19*(LCC!$U$25/100))*(LCC!$U$26*(1+$J$15))) -> 0 | AT48: =((LCC!$U$19*(LCC!$U$25/100))*(LCC!$U$26*(1+$K$15))) -> 0 | AU48: =((LCC!$U$19*(LCC!$U$25/100))*(LCC!$U$26*(1+$L$15))) -> 0 | AV48: =((LCC!$U$19*(LCC!$U$25/100))*(LCC!$U$26*(1+$M$15))) -> 0 | AW48: =((LCC!$U$19*(LCC!$U$25/100))*(LCC!$U$26*(1+$N$15))) -> 0 | AX48: prezzo totale carburante per il periodo
X49: prodotto 10 | Y49: =((LCC!$W$19*(LCC!$W$21/100))*LCC!$W$22) -> 0 | Z49: =((LCC!$W$19*(LCC!$W$21/100))*(LCC!$W$22*(1+$E$15))) -> 0 | AA49: =((LCC!$W$19*(LCC!$W$21/100))*(LCC!$W$22*(1+$F$15))) -> 0 | AB49: =((LCC!$W$19*(LCC!$W$21/100))*(LCC!$W$22*(1+G$15))) -> 0 | AC49: =((LCC!$W$19*(LCC!$W$21/100))*(LCC!$W$22*(1+H$15))) -> 0 | AD49: =((LCC!$W$19*(LCC!$W$21/100))*(LCC!$W$22*(1+I$15))) -> 0 | AE49: =((LCC!$W$19*(LCC!$W$21/100))*(LCC!$W$22*(1+J$15))) -> 0 | AF49: =((LCC!$W$19*(LCC!$W$21/100))*(LCC!$W$22*(1+K$15))) -> 0 | AG49: =((LCC!$W$19*(LCC!$W$21/100))*(LCC!$W$22*(1+L$15))) -> 0 | AH49: =((LCC!$W$19*(LCC!$W$21/100))*(LCC!$W$22*(1+M$15))) -> 0 | AI49: =((LCC!$W$19*(LCC!$W$21/100))*(LCC!$W$22*(1+N$15))) -> 0 | AJ49: =SUM(Y49:INDEX(Y49:AI49,LCC!$E$6)) -> 0 | AL49: prodotto 1 | AM49: =((LCC!$W$19*(LCC!$W$25/100))*LCC!$W$26) -> 0 | AN49: =((LCC!$W$19*(LCC!$W$25/100))*(LCC!$W$26*(1+$E$15))) -> 0 | AO49: =((LCC!$W$19*(LCC!$W$25/100))*(LCC!$W$26*(1+$F$15))) -> 0 | AP49: =((LCC!$W$19*(LCC!$W$25/100))*(LCC!$W$26*(1+$G$15))) -> 0 | AQ49: =((LCC!$W$19*(LCC!$W$25/100))*(LCC!$W$26*(1+$H$15))) -> 0 | AR49: =((LCC!$W$19*(LCC!$W$25/100))*(LCC!$W$26*(1+$I$15))) -> 0 | AS49: =((LCC!$W$19*(LCC!$W$25/100))*(LCC!$W$26*(1+$J$15))) -> 0 | AT49: =((LCC!$W$19*(LCC!$W$25/100))*(LCC!$W$26*(1+$K$15))) -> 0 | AU49: =((LCC!$W$19*(LCC!$W$25/100))*(LCC!$W$26*(1+$L$15))) -> 0 | AV49: =((LCC!$W$19*(LCC!$W$25/100))*(LCC!$W$26*(1+$M$15))) -> 0 | AW49: =((LCC!$W$19*(LCC!$W$25/100))*(LCC!$W$26*(1+$N$15))) -> 0 | AX49: =SUM(AM49:INDEX(AM49:AW49,LCC!$E$6)) -> 0
AL50: prodotto 2 | AX50: =SUM(AM50:INDEX(AM50:AW50,LCC!$E$6)) -> 0
X51: ELECTRICITY | Y51: 2014 | Z51: 2015 | AA51: 2016 | AB51: 2017 | AC51: 2018 | AD51: 2019 | AE51: 2020 | AF51: 2021 | AG51: 2022 | AH51: 2023 | AI51: 2024 | AJ51: Total fuel price for period | AL51: prodotto 3 | AM51: 2014 | AN51: 2015 | AO51: 2016 | AP51: 2017 | AQ51: 2018 | AR51: 2019 | AS51: 2020 | AT51: 2021 | AU51: 2022 | AV51: 2023 | AW51: 2024 | AX51: =SUM(AM51:INDEX(AM51:AW51,LCC!$E$6)) -> 22209
X52: prodotto 1 | Y52: =((LCC!$E$19*(LCC!$E$21/100))*LCC!$E$22) -> 0 | Z52: =((LCC!$E$19*(LCC!$E$21/100))*(LCC!$E$22*(1+$E$18))) -> 0 | AA52: =((LCC!$E$19*(LCC!$E$21/100))*(LCC!$E$22*(1+$F$18))) -> 0 | AB52: =((LCC!$E$19*(LCC!$E$21/100))*(LCC!$E$22*(1+G$18))) -> 0 | AC52: =((LCC!$E$19*(LCC!$E$21/100))*(LCC!$E$22*(1+H$18))) -> 0 | AD52: =((LCC!$E$19*(LCC!$E$21/100))*(LCC!$E$22*(1+I$18))) -> 0 | AE52: =((LCC!$E$19*(LCC!$E$21/100))*(LCC!$E$22*(1+J$18))) -> 0 | AF52: =((LCC!$E$19*(LCC!$E$21/100))*(LCC!$E$22*(1+K$18))) -> 0 | AG52: =((LCC!$E$19*(LCC!$E$21/100))*(LCC!$E$22*(1+L$18))) -> 0 | AH52: =((LCC!$E$19*(LCC!$E$21/100))*(LCC!$E$22*(1+M$18))) -> 0 | AI52: =((LCC!$E$19*(LCC!$E$21/100))*(LCC!$E$22*(1+N$18))) -> 0 | AJ52: =SUM(Y52:INDEX(Y52:AI52,LCC!$E$6)) -> 0 | AL52: prodotto 4 | AM52: =((LCC!$E$19*(LCC!$E$25/100))*LCC!$E$26) -> 0 | AN52: =((LCC!$E$19*(LCC!$E$25/100))*(LCC!$E$26*(1+$E$18))) -> 0 | AO52: =((LCC!$E$19*(LCC!$E$25/100))*(LCC!$E$26*(1+$F$18))) -> 0 | AP52: =((LCC!$E$19*(LCC!$E$25/100))*(LCC!$E$26*(1+$G$18))) -> 0 | AQ52: =((LCC!$E$19*(LCC!$E$25/100))*(LCC!$E$26*(1+$H$18))) -> 0 | AR52: =((LCC!$E$19*(LCC!$E$25/100))*(LCC!$E$26*(1+$I$18))) -> 0 | AS52: =((LCC!$E$19*(LCC!$E$25/100))*(LCC!$E$26*(1+$J$18))) -> 0 | AT52: =((LCC!$E$19*(LCC!$E$25/100))*(LCC!$E$26*(1+$K$18))) -> 0 | AU52: =((LCC!$E$19*(LCC!$E$25/100))*(LCC!$E$26*(1+$L$18))) -> 0 | AV52: =((LCC!$E$19*(LCC!$E$25/100))*(LCC!$E$26*(1+$M$18))) -> 0 | AW52: =((LCC!$E$19*(LCC!$E$25/100))*(LCC!$E$26*(1+$N$18))) -> 0 | AX52: =SUM(AM52:INDEX(AM52:AW52,LCC!$E$6)) -> 0
X53: prodotto 2 | Y53: =((LCC!$G$19*(LCC!$G$21/100))*LCC!$G$22) -> 0 | Z53: =((LCC!$G$19*(LCC!$G$21/100))*(LCC!$G$22*(1+$E$18))) -> 0 | AA53: =((LCC!$G$19*(LCC!$G$21/100))*(LCC!$G$22*(1+$F$18))) -> 0 | AB53: =((LCC!$G$19*(LCC!$G$21/100))*(LCC!$G$22*(1+G$18))) -> 0 | AC53: =((LCC!$G$19*(LCC!$G$21/100))*(LCC!$G$22*(1+H$18))) -> 0 | AD53: =((LCC!$G$19*(LCC!$G$21/100))*(LCC!$G$22*(1+I$18))) -> 0 | AE53: =((LCC!$G$19*(LCC!$G$21/100))*(LCC!$G$22*(1+J$18))) -> 0 | AF53: =((LCC!$G$19*(LCC!$G$21/100))*(LCC!$G$22*(1+K$18))) -> 0 | AG53: =((LCC!$G$19*(LCC!$G$21/100))*(LCC!$G$22*(1+L$18))) -> 0 | AH53: =((LCC!$G$19*(LCC!$G$21/100))*(LCC!$G$22*(1+M$18))) -> 0 | AI53: =((LCC!$G$19*(LCC!$G$21/100))*(LCC!$G$22*(1+N$18))) -> 0 | AJ53: =SUM(Y53:INDEX(Y53:AI53,LCC!$E$6)) -> 0 | AL53: prodotto 5 | AM53: =((LCC!$G$19*(LCC!$G$25/100))*LCC!$G$26) -> 0 | AN53: =((LCC!$G$19*(LCC!$G$25/100))*(LCC!$G$26*(1+$E$18))) -> 0 | AO53: =((LCC!$G$19*(LCC!$G$25/100))*(LCC!$G$26*(1+$F$18))) -> 0 | AP53: =((LCC!$G$19*(LCC!$G$25/100))*(LCC!$G$26*(1+$G$18))) -> 0 | AQ53: =((LCC!$G$19*(LCC!$G$25/100))*(LCC!$G$26*(1+$H$18))) -> 0 | AR53: =((LCC!$G$19*(LCC!$G$25/100))*(LCC!$G$26*(1+$I$18))) -> 0 | AS53: =((LCC!$G$19*(LCC!$G$25/100))*(LCC!$G$26*(1+$J$18))) -> 0 | AT53: =((LCC!$G$19*(LCC!$G$25/100))*(LCC!$G$26*(1+$K$18))) -> 0 | AU53: =((LCC!$G$19*(LCC!$G$25/100))*(LCC!$G$26*(1+$L$18))) -> 0 | AV53: =((LCC!$G$19*(LCC!$G$25/100))*(LCC!$G$26*(1+$M$18))) -> 0 | AW53: =((LCC!$G$19*(LCC!$G$25/100))*(LCC!$G$26*(1+$N$18))) -> 0 | AX53: =SUM(AM53:INDEX(AM53:AW53,LCC!$E$6)) -> 0
X54: prodotto 3 | Y54: =((LCC!$I$19*(LCC!$I$21/100))*LCC!$I$22) -> 0 | Z54: =((LCC!$I$19*(LCC!$I$21/100))*(LCC!$I$22*(1+$E$18))) -> 0 | AA54: =((LCC!$I$19*(LCC!$I$21/100))*(LCC!$I$22*(1+$F$18))) -> 0 | AB54: =((LCC!$I$19*(LCC!$I$21/100))*(LCC!$I$22*(1+G$18))) -> 0 | AC54: =((LCC!$I$19*(LCC!$I$21/100))*(LCC!$I$22*(1+H$18))) -> 0 | AD54: =((LCC!$I$19*(LCC!$I$21/100))*(LCC!$I$22*(1+I$18))) -> 0 | AE54: =((LCC!$I$19*(LCC!$I$21/100))*(LCC!$I$22*(1+J$18))) -> 0 | AF54: =((LCC!$I$19*(LCC!$I$21/100))*(LCC!$I$22*(1+K$18))) -> 0 | AG54: =((LCC!$I$19*(LCC!$I$21/100))*(LCC!$I$22*(1+L$18))) -> 0 | AH54: =((LCC!$I$19*(LCC!$I$21/100))*(LCC!$I$22*(1+M$18))) -> 0 | AI54: =((LCC!$I$19*(LCC!$I$21/100))*(LCC!$I$22*(1+N$18))) -> 0 | AJ54: =SUM(Y54:INDEX(Y54:AI54,LCC!$E$6)) -> 0 | AL54: prodotto 6 | AM54: =((LCC!$I$19*(LCC!$I$25/100))*LCC!$I$26) -> 0 | AN54: =((LCC!$I$19*(LCC!$I$25/100))*(LCC!$I$26*(1+$E$18))) -> 0 | AO54: =((LCC!$I$19*(LCC!$I$25/100))*(LCC!$I$26*(1+$F$18))) -> 0 | AP54: =((LCC!$I$19*(LCC!$I$25/100))*(LCC!$I$26*(1+$G$18))) -> 0 | AQ54: =((LCC!$I$19*(LCC!$I$25/100))*(LCC!$I$26*(1+$H$18))) -> 0 | AR54: =((LCC!$I$19*(LCC!$I$25/100))*(LCC!$I$26*(1+$I$18))) -> 0 | AS54: =((LCC!$I$19*(LCC!$I$25/100))*(LCC!$I$26*(1+$J$18))) -> 0 | AT54: =((LCC!$I$19*(LCC!$I$25/100))*(LCC!$I$26*(1+$K$18))) -> 0 | AU54: =((LCC!$I$19*(LCC!$I$25/100))*(LCC!$I$26*(1+$L$18))) -> 0 | AV54: =((LCC!$I$19*(LCC!$I$25/100))*(LCC!$I$26*(1+$M$18))) -> 0 | AW54: =((LCC!$I$19*(LCC!$I$25/100))*(LCC!$I$26*(1+$N$18))) -> 0 | AX54: =SUM(AM54:INDEX(AM54:AW54,LCC!$E$6)) -> 0
X55: prodotto 4 | Y55: =((LCC!$K$19*(LCC!$K$21/100))*LCC!$K$22) -> 0 | Z55: =((LCC!$K$19*(LCC!$K$21/100))*(LCC!$K$22*(1+$E$18))) -> 0 | AA55: =((LCC!$K$19*(LCC!$K$21/100))*(LCC!$K$22*(1+$F$18))) -> 0 | AB55: =((LCC!$K$19*(LCC!$K$21/100))*(LCC!$K$22*(1+G$18))) -> 0 | AC55: =((LCC!$K$19*(LCC!$K$21/100))*(LCC!$K$22*(1+H$18))) -> 0 | AD55: =((LCC!$K$19*(LCC!$K$21/100))*(LCC!$K$22*(1+I$18))) -> 0 | AE55: =((LCC!$K$19*(LCC!$K$21/100))*(LCC!$K$22*(1+J$18))) -> 0 | AF55: =((LCC!$K$19*(LCC!$K$21/100))*(LCC!$K$22*(1+K$18))) -> 0 | AG55: =((LCC!$K$19*(LCC!$K$21/100))*(LCC!$K$22*(1+L$18))) -> 0 | AH55: =((LCC!$K$19*(LCC!$K$21/100))*(LCC!$K$22*(1+M$18))) -> 0 | AI55: =((LCC!$K$19*(LCC!$K$21/100))*(LCC!$K$22*(1+N$18))) -> 0 | AJ55: =SUM(Y55:INDEX(Y55:AI55,LCC!$E$6)) -> 0 | AL55: prodotto 7 | AM55: =((LCC!$K$19*(LCC!$K$25/100))*LCC!$K$26) -> 0 | AN55: =((LCC!$K$19*(LCC!$K$25/100))*(LCC!$K$26*(1+$E$18))) -> 0 | AO55: =((LCC!$K$19*(LCC!$K$25/100))*(LCC!$K$26*(1+$F$18))) -> 0 | AP55: =((LCC!$K$19*(LCC!$K$25/100))*(LCC!$K$26*(1+$G$18))) -> 0 | AQ55: =((LCC!$K$19*(LCC!$K$25/100))*(LCC!$K$26*(1+$H$18))) -> 0 | AR55: =((LCC!$K$19*(LCC!$K$25/100))*(LCC!$K$26*(1+$I$18))) -> 0 | AS55: =((LCC!$K$19*(LCC!$K$25/100))*(LCC!$K$26*(1+$J$18))) -> 0 | AT55: =((LCC!$K$19*(LCC!$K$25/100))*(LCC!$K$26*(1+$K$18))) -> 0 | AU55: =((LCC!$K$19*(LCC!$K$25/100))*(LCC!$K$26*(1+$L$18))) -> 0 | AV55: =((LCC!$K$19*(LCC!$K$25/100))*(LCC!$K$26*(1+$M$18))) -> 0 | AW55: =((LCC!$K$19*(LCC!$K$25/100))*(LCC!$K$26*(1+$N$18))) -> 0 | AX55: =SUM(AM55:INDEX(AM55:AW55,LCC!$E$6)) -> 0
X56: prodotto 5 | Y56: =((LCC!$M$19*(LCC!$M$21/100))*LCC!$M$22) -> 0 | Z56: =((LCC!$M$19*(LCC!$M$21/100))*(LCC!$M$22*(1+$E$18))) -> 0 | AA56: =((LCC!$M$19*(LCC!$M$21/100))*(LCC!$M$22*(1+$F$18))) -> 0 | AB56: =((LCC!$M$19*(LCC!$M$21/100))*(LCC!$M$22*(1+G$18))) -> 0 | AC56: =((LCC!$M$19*(LCC!$M$21/100))*(LCC!$M$22*(1+H$18))) -> 0 | AD56: =((LCC!$M$19*(LCC!$M$21/100))*(LCC!$M$22*(1+I$18))) -> 0 | AE56: =((LCC!$M$19*(LCC!$M$21/100))*(LCC!$M$22*(1+J$18))) -> 0 | AF56: =((LCC!$M$19*(LCC!$M$21/100))*(LCC!$M$22*(1+K$18))) -> 0 | AG56: =((LCC!$M$19*(LCC!$M$21/100))*(LCC!$M$22*(1+L$18))) -> 0 | AH56: =((LCC!$M$19*(LCC!$M$21/100))*(LCC!$M$22*(1+M$18))) -> 0 | AI56: =((LCC!$M$19*(LCC!$M$21/100))*(LCC!$M$22*(1+N$18))) -> 0 | AJ56: =SUM(Y56:INDEX(Y56:AI56,LCC!$E$6)) -> 0 | AL56: prodotto 8 | AM56: =((LCC!$M$19*(LCC!$M$25/100))*LCC!$M$26) -> 0 | AN56: =((LCC!$M$19*(LCC!$M$25/100))*(LCC!$M$26*(1+$E$18))) -> 0 | AO56: =((LCC!$M$19*(LCC!$M$25/100))*(LCC!$M$26*(1+$F$18))) -> 0 | AP56: =((LCC!$M$19*(LCC!$M$25/100))*(LCC!$M$26*(1+$G$18))) -> 0 | AQ56: =((LCC!$M$19*(LCC!$M$25/100))*(LCC!$M$26*(1+$H$18))) -> 0 | AR56: =((LCC!$M$19*(LCC!$M$25/100))*(LCC!$M$26*(1+$I$18))) -> 0 | AS56: =((LCC!$M$19*(LCC!$M$25/100))*(LCC!$M$26*(1+$J$18))) -> 0 | AT56: =((LCC!$M$19*(LCC!$M$25/100))*(LCC!$M$26*(1+$K$18))) -> 0 | AU56: =((LCC!$M$19*(LCC!$M$25/100))*(LCC!$M$26*(1+$L$18))) -> 0 | AV56: =((LCC!$M$19*(LCC!$M$25/100))*(LCC!$M$26*(1+$M$18))) -> 0 | AW56: =((LCC!$M$19*(LCC!$M$25/100))*(LCC!$M$26*(1+$N$18))) -> 0 | AX56: =SUM(AM56:INDEX(AM56:AW56,LCC!$E$6)) -> 0
X57: prodotto 6 | Y57: =((LCC!$O$19*(LCC!$O$21/100))*LCC!$O$22) -> 0 | Z57: =((LCC!$O$19*(LCC!$O$21/100))*(LCC!$O$22*(1+$E$18))) -> 0 | AA57: =((LCC!$O$19*(LCC!$O$21/100))*(LCC!$O$22*(1+$F$18))) -> 0 | AB57: =((LCC!$O$19*(LCC!$O$21/100))*(LCC!$O$22*(1+G$18))) -> 0 | AC57: =((LCC!$O$19*(LCC!$O$21/100))*(LCC!$O$22*(1+H$18))) -> 0 | AD57: =((LCC!$O$19*(LCC!$O$21/100))*(LCC!$O$22*(1+I$18))) -> 0 | AE57: =((LCC!$O$19*(LCC!$O$21/100))*(LCC!$O$22*(1+J$18))) -> 0 | AF57: =((LCC!$O$19*(LCC!$O$21/100))*(LCC!$O$22*(1+K$18))) -> 0 | AG57: =((LCC!$O$19*(LCC!$O$21/100))*(LCC!$O$22*(1+L$18))) -> 0 | AH57: =((LCC!$O$19*(LCC!$O$21/100))*(LCC!$O$22*(1+M$18))) -> 0 | AI57: =((LCC!$O$19*(LCC!$O$21/100))*(LCC!$O$22*(1+N$18))) -> 0 | AJ57: =SUM(Y57:INDEX(Y57:AI57,LCC!$E$6)) -> 0 | AL57: prodotto 9 | AM57: =((LCC!$O$19*(LCC!$O$25/100))*LCC!$O$26) -> 0 | AN57: =((LCC!$O$19*(LCC!$O$25/100))*(LCC!$O$26*(1+$E$18))) -> 0 | AO57: =((LCC!$O$19*(LCC!$O$25/100))*(LCC!$O$26*(1+$F$18))) -> 0 | AP57: =((LCC!$O$19*(LCC!$O$25/100))*(LCC!$O$26*(1+$G$18))) -> 0 | AQ57: =((LCC!$O$19*(LCC!$O$25/100))*(LCC!$O$26*(1+$H$18))) -> 0 | AR57: =((LCC!$O$19*(LCC!$O$25/100))*(LCC!$O$26*(1+$I$18))) -> 0 | AS57: =((LCC!$O$19*(LCC!$O$25/100))*(LCC!$O$26*(1+$J$18))) -> 0 | AT57: =((LCC!$O$19*(LCC!$O$25/100))*(LCC!$O$26*(1+$K$18))) -> 0 | AU57: =((LCC!$O$19*(LCC!$O$25/100))*(LCC!$O$26*(1+$L$18))) -> 0 | AV57: =((LCC!$O$19*(LCC!$O$25/100))*(LCC!$O$26*(1+$M$18))) -> 0 | AW57: =((LCC!$O$19*(LCC!$O$25/100))*(LCC!$O$26*(1+$N$18))) -> 0 | AX57: =SUM(AM57:INDEX(AM57:AW57,LCC!$E$6)) -> 0
X58: prodotto 7 | Y58: =((LCC!$Q$19*(LCC!$Q$21/100))*LCC!$Q$22) -> 0 | Z58: =((LCC!$Q$19*(LCC!$Q$21/100))*(LCC!$Q$22*(1+$E$18))) -> 0 | AA58: =((LCC!$Q$19*(LCC!$Q$21/100))*(LCC!$Q$22*(1+$F$18))) -> 0 | AB58: =((LCC!$Q$19*(LCC!$Q$21/100))*(LCC!$Q$22*(1+G$18))) -> 0 | AC58: =((LCC!$Q$19*(LCC!$Q$21/100))*(LCC!$Q$22*(1+H$18))) -> 0 | AD58: =((LCC!$Q$19*(LCC!$Q$21/100))*(LCC!$Q$22*(1+I$18))) -> 0 | AE58: =((LCC!$Q$19*(LCC!$Q$21/100))*(LCC!$Q$22*(1+J$18))) -> 0 | AF58: =((LCC!$Q$19*(LCC!$Q$21/100))*(LCC!$Q$22*(1+K$18))) -> 0 | AG58: =((LCC!$Q$19*(LCC!$Q$21/100))*(LCC!$Q$22*(1+L$18))) -> 0 | AH58: =((LCC!$Q$19*(LCC!$Q$21/100))*(LCC!$Q$22*(1+M$18))) -> 0 | AI58: =((LCC!$Q$19*(LCC!$Q$21/100))*(LCC!$Q$22*(1+N$18))) -> 0 | AJ58: =SUM(Y58:INDEX(Y58:AI58,LCC!$E$6)) -> 0 | AL58: prodotto 10 | AM58: =((LCC!$Q$19*(LCC!$Q$25/100))*LCC!$Q$26) -> 0 | AN58: =((LCC!$Q$19*(LCC!$Q$25/100))*(LCC!$Q$26*(1+$E$18))) -> 0 | AO58: =((LCC!$Q$19*(LCC!$Q$25/100))*(LCC!$Q$26*(1+$F$18))) -> 0 | AP58: =((LCC!$Q$19*(LCC!$Q$25/100))*(LCC!$Q$26*(1+$G$18))) -> 0 | AQ58: =((LCC!$Q$19*(LCC!$Q$25/100))*(LCC!$Q$26*(1+$H$18))) -> 0 | AR58: =((LCC!$Q$19*(LCC!$Q$25/100))*(LCC!$Q$26*(1+$I$18))) -> 0 | AS58: =((LCC!$Q$19*(LCC!$Q$25/100))*(LCC!$Q$26*(1+$J$18))) -> 0 | AT58: =((LCC!$Q$19*(LCC!$Q$25/100))*(LCC!$Q$26*(1+$K$18))) -> 0 | AU58: =((LCC!$Q$19*(LCC!$Q$25/100))*(LCC!$Q$26*(1+$L$18))) -> 0 | AV58: =((LCC!$Q$19*(LCC!$Q$25/100))*(LCC!$Q$26*(1+$M$18))) -> 0 | AW58: =((LCC!$Q$19*(LCC!$Q$25/100))*(LCC!$Q$26*(1+$N$18))) -> 0 | AX58: =SUM(AM58:INDEX(AM58:AW58,LCC!$E$6)) -> 0
X59: prodotto 8 | Y59: =((LCC!$S$19*(LCC!$S$21/100))*LCC!$S$22) -> 0 | Z59: =((LCC!$S$19*(LCC!$S$21/100))*(LCC!$S$22*(1+$E$18))) -> 0 | AA59: =((LCC!$S$19*(LCC!$S$21/100))*(LCC!$S$22*(1+$F$18))) -> 0 | AB59: =((LCC!$S$19*(LCC!$S$21/100))*(LCC!$S$22*(1+G$18))) -> 0 | AC59: =((LCC!$S$19*(LCC!$S$21/100))*(LCC!$S$22*(1+H$18))) -> 0 | AD59: =((LCC!$S$19*(LCC!$S$21/100))*(LCC!$S$22*(1+I$18))) -> 0 | AE59: =((LCC!$S$19*(LCC!$S$21/100))*(LCC!$S$22*(1+J$18))) -> 0 | AF59: =((LCC!$S$19*(LCC!$S$21/100))*(LCC!$S$22*(1+K$18))) -> 0 | AG59: =((LCC!$S$19*(LCC!$S$21/100))*(LCC!$S$22*(1+L$18))) -> 0 | AH59: =((LCC!$S$19*(LCC!$S$21/100))*(LCC!$S$22*(1+M$18))) -> 0 | AI59: =((LCC!$S$19*(LCC!$S$21/100))*(LCC!$S$22*(1+N$18))) -> 0 | AJ59: =SUM(Y59:INDEX(Y59:AI59,LCC!$E$6)) -> 0 | AM59: =((LCC!$S$19*(LCC!$S$25/100))*LCC!$S$26) -> 0 | AN59: =((LCC!$S$19*(LCC!$S$25/100))*(LCC!$S$26*(1+$E$18))) -> 0 | AO59: =((LCC!$S$19*(LCC!$S$25/100))*(LCC!$S$26*(1+$F$18))) -> 0 | AP59: =((LCC!$S$19*(LCC!$S$25/100))*(LCC!$S$26*(1+$G$18))) -> 0 | AQ59: =((LCC!$S$19*(LCC!$S$25/100))*(LCC!$S$26*(1+$H$18))) -> 0 | AR59: =((LCC!$S$19*(LCC!$S$25/100))*(LCC!$S$26*(1+$I$18))) -> 0 | AS59: =((LCC!$S$19*(LCC!$S$25/100))*(LCC!$S$26*(1+$J$18))) -> 0 | AT59: =((LCC!$S$19*(LCC!$S$25/100))*(LCC!$S$26*(1+$K$18))) -> 0 | AU59: =((LCC!$S$19*(LCC!$S$25/100))*(LCC!$S$26*(1+$L$18))) -> 0 | AV59: =((LCC!$S$19*(LCC!$S$25/100))*(LCC!$S$26*(1+$M$18))) -> 0 | AW59: =((LCC!$S$19*(LCC!$S$25/100))*(LCC!$S$26*(1+$N$18))) -> 0
X60: prodotto 9 | Y60: =((LCC!$U$19*(LCC!$U$21/100))*LCC!$U$22) -> 0 | Z60: =((LCC!$U$19*(LCC!$U$21/100))*(LCC!$U$22*(1+$E$18))) -> 0 | AA60: =((LCC!$U$19*(LCC!$U$21/100))*(LCC!$U$22*(1+$F$18))) -> 0 | AB60: =((LCC!$U$19*(LCC!$U$21/100))*(LCC!$U$22*(1+G$18))) -> 0 | AC60: =((LCC!$U$19*(LCC!$U$21/100))*(LCC!$U$22*(1+H$18))) -> 0 | AD60: =((LCC!$U$19*(LCC!$U$21/100))*(LCC!$U$22*(1+I$18))) -> 0 | AE60: =((LCC!$U$19*(LCC!$U$21/100))*(LCC!$U$22*(1+J$18))) -> 0 | AF60: =((LCC!$U$19*(LCC!$U$21/100))*(LCC!$U$22*(1+K$18))) -> 0 | AG60: =((LCC!$U$19*(LCC!$U$21/100))*(LCC!$U$22*(1+L$18))) -> 0 | AH60: =((LCC!$U$19*(LCC!$U$21/100))*(LCC!$U$22*(1+M$18))) -> 0 | AI60: =((LCC!$U$19*(LCC!$U$21/100))*(LCC!$U$22*(1+N$18))) -> 0 | AJ60: =SUM(Y60:INDEX(Y60:AI60,LCC!$E$6)) -> 0 | AL60: BIODIESEL | AM60: =((LCC!$U$19*(LCC!$U$25/100))*LCC!$U$26) -> 0 | AN60: =((LCC!$U$19*(LCC!$U$25/100))*(LCC!$U$26*(1+$E$18))) -> 0 | AO60: =((LCC!$U$19*(LCC!$U$25/100))*(LCC!$U$26*(1+$F$18))) -> 0 | AP60: =((LCC!$U$19*(LCC!$U$25/100))*(LCC!$U$26*(1+$G$18))) -> 0 | AQ60: =((LCC!$U$19*(LCC!$U$25/100))*(LCC!$U$26*(1+$H$18))) -> 0 | AR60: =((LCC!$U$19*(LCC!$U$25/100))*(LCC!$U$26*(1+$I$18))) -> 0 | AS60: =((LCC!$U$19*(LCC!$U$25/100))*(LCC!$U$26*(1+$J$18))) -> 0 | AT60: =((LCC!$U$19*(LCC!$U$25/100))*(LCC!$U$26*(1+$K$18))) -> 0 | AU60: =((LCC!$U$19*(LCC!$U$25/100))*(LCC!$U$26*(1+$L$18))) -> 0 | AV60: =((LCC!$U$19*(LCC!$U$25/100))*(LCC!$U$26*(1+$M$18))) -> 0 | AW60: =((LCC!$U$19*(LCC!$U$25/100))*(LCC!$U$26*(1+$N$18))) -> 0 | AX60: prezzo totale carburante per il periodo
X61: prodotto 10 | Y61: =((LCC!$W$19*(LCC!$W$21/100))*LCC!$W$22) -> 0 | Z61: =((LCC!$W$19*(LCC!$W$21/100))*(LCC!$W$22*(1+$E$18))) -> 0 | AA61: =((LCC!$W$19*(LCC!$W$21/100))*(LCC!$W$22*(1+$F$18))) -> 0 | AB61: =((LCC!$W$19*(LCC!$W$21/100))*(LCC!$W$22*(1+G$18))) -> 0 | AC61: =((LCC!$W$19*(LCC!$W$21/100))*(LCC!$W$22*(1+H$18))) -> 0 | AD61: =((LCC!$W$19*(LCC!$W$21/100))*(LCC!$W$22*(1+I$18))) -> 0 | AE61: =((LCC!$W$19*(LCC!$W$21/100))*(LCC!$W$22*(1+J$18))) -> 0 | AF61: =((LCC!$W$19*(LCC!$W$21/100))*(LCC!$W$22*(1+K$18))) -> 0 | AG61: =((LCC!$W$19*(LCC!$W$21/100))*(LCC!$W$22*(1+L$18))) -> 0 | AH61: =((LCC!$W$19*(LCC!$W$21/100))*(LCC!$W$22*(1+M$18))) -> 0 | AI61: =((LCC!$W$19*(LCC!$W$21/100))*(LCC!$W$22*(1+N$18))) -> 0 | AJ61: =SUM(Y61:INDEX(Y61:AI61,LCC!$E$6)) -> 0 | AL61: prodotto 1 | AM61: =((LCC!$W$19*(LCC!$W$25/100))*LCC!$W$26) -> 0 | AN61: =((LCC!$W$19*(LCC!$W$25/100))*(LCC!$W$26*(1+$E$18))) -> 0 | AO61: =((LCC!$W$19*(LCC!$W$25/100))*(LCC!$W$26*(1+$F$18))) -> 0 | AP61: =((LCC!$W$19*(LCC!$W$25/100))*(LCC!$W$26*(1+$G$18))) -> 0 | AQ61: =((LCC!$W$19*(LCC!$W$25/100))*(LCC!$W$26*(1+$H$18))) -> 0 | AR61: =((LCC!$W$19*(LCC!$W$25/100))*(LCC!$W$26*(1+$I$18))) -> 0 | AS61: =((LCC!$W$19*(LCC!$W$25/100))*(LCC!$W$26*(1+$J$18))) -> 0 | AT61: =((LCC!$W$19*(LCC!$W$25/100))*(LCC!$W$26*(1+$K$18))) -> 0 | AU61: =((LCC!$W$19*(LCC!$W$25/100))*(LCC!$W$26*(1+$L$18))) -> 0 | AV61: =((LCC!$W$19*(LCC!$W$25/100))*(LCC!$W$26*(1+$M$18))) -> 0 | AW61: =((LCC!$W$19*(LCC!$W$25/100))*(LCC!$W$26*(1+$N$18))) -> 0 | AX61: =SUM(AM61:INDEX(AM61:AW61,LCC!$E$6)) -> 0
AL62: prodotto 2 | AX62: =SUM(AM62:INDEX(AM62:AW62,LCC!$E$6)) -> 0
X63: BIODIESEL | Y63: 2014 | Z63: 2015 | AA63: 2016 | AB63: 2017 | AC63: 2018 | AD63: 2019 | AE63: 2020 | AF63: 2021 | AG63: 2022 | AH63: 2023 | AI63: 2024 | AJ63: Total fuel price for period | AL63: prodotto 3 | AM63: 2014 | AN63: 2015 | AO63: 2016 | AP63: 2017 | AQ63: 2018 | AR63: 2019 | AS63: 2020 | AT63: 2021 | AU63: 2022 | AV63: 2023 | AW63: 2024 | AX63: =SUM(AM63:INDEX(AM63:AW63,LCC!$E$6)) -> 22209
X64: prodotto 1 | Y64: =((LCC!$E$19*(LCC!$E$21/100))*LCC!$E$22) -> 0 | Z64: =((LCC!$E$19*(LCC!$E$21/100))*(LCC!$E$22*(1+$E$21))) -> 0 | AA64: =((LCC!$E$19*(LCC!$E$21/100))*(LCC!$E$22*(1+$F$21))) -> 0 | AB64: =((LCC!$E$19*(LCC!$E$21/100))*(LCC!$E$22*(1+G$21))) -> 0 | AC64: =((LCC!$E$19*(LCC!$E$21/100))*(LCC!$E$22*(1+H$21))) -> 0 | AD64: =((LCC!$E$19*(LCC!$E$21/100))*(LCC!$E$22*(1+I$21))) -> 0 | AE64: =((LCC!$E$19*(LCC!$E$21/100))*(LCC!$E$22*(1+J$21))) -> 0 | AF64: =((LCC!$E$19*(LCC!$E$21/100))*(LCC!$E$22*(1+K$21))) -> 0 | AG64: =((LCC!$E$19*(LCC!$E$21/100))*(LCC!$E$22*(1+L$21))) -> 0 | AH64: =((LCC!$E$19*(LCC!$E$21/100))*(LCC!$E$22*(1+M$21))) -> 0 | AI64: =((LCC!$E$19*(LCC!$E$21/100))*(LCC!$E$22*(1+N$21))) -> 0 | AJ64: =SUM(Y64:INDEX(Y64:AI64,LCC!$E$6)) -> 0 | AL64: prodotto 4 | AM64: =((LCC!$E$19*(LCC!$E$25/100))*LCC!$E$26) -> 0 | AN64: =((LCC!$E$19*(LCC!$E$25/100))*(LCC!$E$26*(1+$E$21))) -> 0 | AO64: =((LCC!$E$19*(LCC!$E$25/100))*(LCC!$E$26*(1+$F$21))) -> 0 | AP64: =((LCC!$E$19*(LCC!$E$25/100))*(LCC!$E$26*(1+$G$21))) -> 0 | AQ64: =((LCC!$E$19*(LCC!$E$25/100))*(LCC!$E$26*(1+$H$21))) -> 0 | AR64: =((LCC!$E$19*(LCC!$E$25/100))*(LCC!$E$26*(1+$I$21))) -> 0 | AS64: =((LCC!$E$19*(LCC!$E$25/100))*(LCC!$E$26*(1+$J$21))) -> 0 | AT64: =((LCC!$E$19*(LCC!$E$25/100))*(LCC!$E$26*(1+$K$21))) -> 0 | AU64: =((LCC!$E$19*(LCC!$E$25/100))*(LCC!$E$26*(1+$L$21))) -> 0 | AV64: =((LCC!$E$19*(LCC!$E$25/100))*(LCC!$E$26*(1+$M$21))) -> 0 | AW64: =((LCC!$E$19*(LCC!$E$25/100))*(LCC!$E$26*(1+$N$21))) -> 0 | AX64: =SUM(AM64:INDEX(AM64:AW64,LCC!$E$6)) -> 0
X65: prodotto 2 | Y65: =((LCC!$G$19*(LCC!$G$21/100))*LCC!$G$22) -> 0 | Z65: =((LCC!$G$19*(LCC!$G$21/100))*(LCC!$G$22*(1+$E$21))) -> 0 | AA65: =((LCC!$G$19*(LCC!$G$21/100))*(LCC!$G$22*(1+$F$21))) -> 0 | AB65: =((LCC!$G$19*(LCC!$G$21/100))*(LCC!$G$22*(1+G$21))) -> 0 | AC65: =((LCC!$G$19*(LCC!$G$21/100))*(LCC!$G$22*(1+H$21))) -> 0 | AD65: =((LCC!$G$19*(LCC!$G$21/100))*(LCC!$G$22*(1+I$21))) -> 0 | AE65: =((LCC!$G$19*(LCC!$G$21/100))*(LCC!$G$22*(1+J$21))) -> 0 | AF65: =((LCC!$G$19*(LCC!$G$21/100))*(LCC!$G$22*(1+K$21))) -> 0 | AG65: =((LCC!$G$19*(LCC!$G$21/100))*(LCC!$G$22*(1+L$21))) -> 0 | AH65: =((LCC!$G$19*(LCC!$G$21/100))*(LCC!$G$22*(1+M$21))) -> 0 | AI65: =((LCC!$G$19*(LCC!$G$21/100))*(LCC!$G$22*(1+N$21))) -> 0 | AJ65: =SUM(Y65:INDEX(Y65:AI65,LCC!$E$6)) -> 0 | AL65: prodotto 5 | AM65: =((LCC!$G$19*(LCC!$G$25/100))*LCC!$G$26) -> 0 | AN65: =((LCC!$G$19*(LCC!$G$25/100))*(LCC!$G$26*(1+$E$21))) -> 0 | AO65: =((LCC!$G$19*(LCC!$G$25/100))*(LCC!$G$26*(1+$F$21))) -> 0 | AP65: =((LCC!$G$19*(LCC!$G$25/100))*(LCC!$G$26*(1+$G$21))) -> 0 | AQ65: =((LCC!$G$19*(LCC!$G$25/100))*(LCC!$G$26*(1+$H$21))) -> 0 | AR65: =((LCC!$G$19*(LCC!$G$25/100))*(LCC!$G$26*(1+$I$21))) -> 0 | AS65: =((LCC!$G$19*(LCC!$G$25/100))*(LCC!$G$26*(1+$J$21))) -> 0 | AT65: =((LCC!$G$19*(LCC!$G$25/100))*(LCC!$G$26*(1+$K$21))) -> 0 | AU65: =((LCC!$G$19*(LCC!$G$25/100))*(LCC!$G$26*(1+$L$21))) -> 0 | AV65: =((LCC!$G$19*(LCC!$G$25/100))*(LCC!$G$26*(1+$M$21))) -> 0 | AW65: =((LCC!$G$19*(LCC!$G$25/100))*(LCC!$G$26*(1+$N$21))) -> 0 | AX65: =SUM(AM65:INDEX(AM65:AW65,LCC!$E$6)) -> 0
X66: prodotto 3 | Y66: =((LCC!$I$19*(LCC!$I$21/100))*LCC!$I$22) -> 0 | Z66: =((LCC!$I$19*(LCC!$I$21/100))*(LCC!$I$22*(1+$E$21))) -> 0 | AA66: =((LCC!$I$19*(LCC!$I$21/100))*(LCC!$I$22*(1+$F$21))) -> 0 | AB66: =((LCC!$I$19*(LCC!$I$21/100))*(LCC!$I$22*(1+G$21))) -> 0 | AC66: =((LCC!$I$19*(LCC!$I$21/100))*(LCC!$I$22*(1+H$21))) -> 0 | AD66: =((LCC!$I$19*(LCC!$I$21/100))*(LCC!$I$22*(1+I$21))) -> 0 | AE66: =((LCC!$I$19*(LCC!$I$21/100))*(LCC!$I$22*(1+J$21))) -> 0 | AF66: =((LCC!$I$19*(LCC!$I$21/100))*(LCC!$I$22*(1+K$21))) -> 0 | AG66: =((LCC!$I$19*(LCC!$I$21/100))*(LCC!$I$22*(1+L$21))) -> 0 | AH66: =((LCC!$I$19*(LCC!$I$21/100))*(LCC!$I$22*(1+M$21))) -> 0 | AI66: =((LCC!$I$19*(LCC!$I$21/100))*(LCC!$I$22*(1+N$21))) -> 0 | AJ66: =SUM(Y66:INDEX(Y66:AI66,LCC!$E$6)) -> 0 | AL66: prodotto 6 | AM66: =((LCC!$I$19*(LCC!$I$25/100))*LCC!$I$26) -> 0 | AN66: =((LCC!$I$19*(LCC!$I$25/100))*(LCC!$I$26*(1+$E$21))) -> 0 | AO66: =((LCC!$I$19*(LCC!$I$25/100))*(LCC!$I$26*(1+$F$21))) -> 0 | AP66: =((LCC!$I$19*(LCC!$I$25/100))*(LCC!$I$26*(1+$G$21))) -> 0 | AQ66: =((LCC!$I$19*(LCC!$I$25/100))*(LCC!$I$26*(1+$H$21))) -> 0 | AR66: =((LCC!$I$19*(LCC!$I$25/100))*(LCC!$I$26*(1+$I$21))) -> 0 | AS66: =((LCC!$I$19*(LCC!$I$25/100))*(LCC!$I$26*(1+$J$21))) -> 0 | AT66: =((LCC!$I$19*(LCC!$I$25/100))*(LCC!$I$26*(1+$K$21))) -> 0 | AU66: =((LCC!$I$19*(LCC!$I$25/100))*(LCC!$I$26*(1+$L$21))) -> 0 | AV66: =((LCC!$I$19*(LCC!$I$25/100))*(LCC!$I$26*(1+$M$21))) -> 0 | AW66: =((LCC!$I$19*(LCC!$I$25/100))*(LCC!$I$26*(1+$N$21))) -> 0 | AX66: =SUM(AM66:INDEX(AM66:AW66,LCC!$E$6)) -> 0
X67: prodotto 4 | Y67: =((LCC!$K$19*(LCC!$K$21/100))*LCC!$K$22) -> 0 | Z67: =((LCC!$K$19*(LCC!$K$21/100))*(LCC!$K$22*(1+$E$21))) -> 0 | AA67: =((LCC!$K$19*(LCC!$K$21/100))*(LCC!$K$22*(1+$F$21))) -> 0 | AB67: =((LCC!$K$19*(LCC!$K$21/100))*(LCC!$K$22*(1+G$21))) -> 0 | AC67: =((LCC!$K$19*(LCC!$K$21/100))*(LCC!$K$22*(1+H$21))) -> 0 | AD67: =((LCC!$K$19*(LCC!$K$21/100))*(LCC!$K$22*(1+I$21))) -> 0 | AE67: =((LCC!$K$19*(LCC!$K$21/100))*(LCC!$K$22*(1+J$21))) -> 0 | AF67: =((LCC!$K$19*(LCC!$K$21/100))*(LCC!$K$22*(1+K$21))) -> 0 | AG67: =((LCC!$K$19*(LCC!$K$21/100))*(LCC!$K$22*(1+L$21))) -> 0 | AH67: =((LCC!$K$19*(LCC!$K$21/100))*(LCC!$K$22*(1+M$21))) -> 0 | AI67: =((LCC!$K$19*(LCC!$K$21/100))*(LCC!$K$22*(1+N$21))) -> 0 | AJ67: =SUM(Y67:INDEX(Y67:AI67,LCC!$E$6)) -> 0 | AL67: prodotto 7 | AM67: =((LCC!$K$19*(LCC!$K$25/100))*LCC!$K$26) -> 0 | AN67: =((LCC!$K$19*(LCC!$K$25/100))*(LCC!$K$26*(1+$E$21))) -> 0 | AO67: =((LCC!$K$19*(LCC!$K$25/100))*(LCC!$K$26*(1+$F$21))) -> 0 | AP67: =((LCC!$K$19*(LCC!$K$25/100))*(LCC!$K$26*(1+$G$21))) -> 0 | AQ67: =((LCC!$K$19*(LCC!$K$25/100))*(LCC!$K$26*(1+$H$21))) -> 0 | AR67: =((LCC!$K$19*(LCC!$K$25/100))*(LCC!$K$26*(1+$I$21))) -> 0 | AS67: =((LCC!$K$19*(LCC!$K$25/100))*(LCC!$K$26*(1+$J$21))) -> 0 | AT67: =((LCC!$K$19*(LCC!$K$25/100))*(LCC!$K$26*(1+$K$21))) -> 0 | AU67: =((LCC!$K$19*(LCC!$K$25/100))*(LCC!$K$26*(1+$L$21))) -> 0 | AV67: =((LCC!$K$19*(LCC!$K$25/100))*(LCC!$K$26*(1+$M$21))) -> 0 | AW67: =((LCC!$K$19*(LCC!$K$25/100))*(LCC!$K$26*(1+$N$21))) -> 0 | AX67: =SUM(AM67:INDEX(AM67:AW67,LCC!$E$6)) -> 0
X68: prodotto 5 | Y68: =((LCC!$M$19*(LCC!$M$21/100))*LCC!$M$22) -> 0 | Z68: =((LCC!$M$19*(LCC!$M$21/100))*(LCC!$M$22*(1+$E$21))) -> 0 | AA68: =((LCC!$M$19*(LCC!$M$21/100))*(LCC!$M$22*(1+$F$21))) -> 0 | AB68: =((LCC!$M$19*(LCC!$M$21/100))*(LCC!$M$22*(1+G$21))) -> 0 | AC68: =((LCC!$M$19*(LCC!$M$21/100))*(LCC!$M$22*(1+H$21))) -> 0 | AD68: =((LCC!$M$19*(LCC!$M$21/100))*(LCC!$M$22*(1+I$21))) -> 0 | AE68: =((LCC!$M$19*(LCC!$M$21/100))*(LCC!$M$22*(1+J$21))) -> 0 | AF68: =((LCC!$M$19*(LCC!$M$21/100))*(LCC!$M$22*(1+K$21))) -> 0 | AG68: =((LCC!$M$19*(LCC!$M$21/100))*(LCC!$M$22*(1+L$21))) -> 0 | AH68: =((LCC!$M$19*(LCC!$M$21/100))*(LCC!$M$22*(1+M$21))) -> 0 | AI68: =((LCC!$M$19*(LCC!$M$21/100))*(LCC!$M$22*(1+N$21))) -> 0 | AJ68: =SUM(Y68:INDEX(Y68:AI68,LCC!$E$6)) -> 0 | AL68: prodotto 8 | AM68: =((LCC!$M$19*(LCC!$M$25/100))*LCC!$M$26) -> 0 | AN68: =((LCC!$M$19*(LCC!$M$25/100))*(LCC!$M$26*(1+$E$21))) -> 0 | AO68: =((LCC!$M$19*(LCC!$M$25/100))*(LCC!$M$26*(1+$F$21))) -> 0 | AP68: =((LCC!$M$19*(LCC!$M$25/100))*(LCC!$M$26*(1+$G$21))) -> 0 | AQ68: =((LCC!$M$19*(LCC!$M$25/100))*(LCC!$M$26*(1+$H$21))) -> 0 | AR68: =((LCC!$M$19*(LCC!$M$25/100))*(LCC!$M$26*(1+$I$21))) -> 0 | AS68: =((LCC!$M$19*(LCC!$M$25/100))*(LCC!$M$26*(1+$J$21))) -> 0 | AT68: =((LCC!$M$19*(LCC!$M$25/100))*(LCC!$M$26*(1+$K$21))) -> 0 | AU68: =((LCC!$M$19*(LCC!$M$25/100))*(LCC!$M$26*(1+$L$21))) -> 0 | AV68: =((LCC!$M$19*(LCC!$M$25/100))*(LCC!$M$26*(1+$M$21))) -> 0 | AW68: =((LCC!$M$19*(LCC!$M$25/100))*(LCC!$M$26*(1+$N$21))) -> 0 | AX68: =SUM(AM68:INDEX(AM68:AW68,LCC!$E$6)) -> 0
X69: prodotto 6 | Y69: =((LCC!$O$19*(LCC!$O$21/100))*LCC!$O$22) -> 0 | Z69: =((LCC!$O$19*(LCC!$O$21/100))*(LCC!$O$22*(1+$E$21))) -> 0 | AA69: =((LCC!$O$19*(LCC!$O$21/100))*(LCC!$O$22*(1+$F$21))) -> 0 | AB69: =((LCC!$O$19*(LCC!$O$21/100))*(LCC!$O$22*(1+G$21))) -> 0 | AC69: =((LCC!$O$19*(LCC!$O$21/100))*(LCC!$O$22*(1+H$21))) -> 0 | AD69: =((LCC!$O$19*(LCC!$O$21/100))*(LCC!$O$22*(1+I$21))) -> 0 | AE69: =((LCC!$O$19*(LCC!$O$21/100))*(LCC!$O$22*(1+J$21))) -> 0 | AF69: =((LCC!$O$19*(LCC!$O$21/100))*(LCC!$O$22*(1+K$21))) -> 0 | AG69: =((LCC!$O$19*(LCC!$O$21/100))*(LCC!$O$22*(1+L$21))) -> 0 | AH69: =((LCC!$O$19*(LCC!$O$21/100))*(LCC!$O$22*(1+M$21))) -> 0 | AI69: =((LCC!$O$19*(LCC!$O$21/100))*(LCC!$O$22*(1+N$21))) -> 0 | AJ69: =SUM(Y69:INDEX(Y69:AI69,LCC!$E$6)) -> 0 | AL69: prodotto 9 | AM69: =((LCC!$O$19*(LCC!$O$25/100))*LCC!$O$26) -> 0 | AN69: =((LCC!$O$19*(LCC!$O$25/100))*(LCC!$O$26*(1+$E$21))) -> 0 | AO69: =((LCC!$O$19*(LCC!$O$25/100))*(LCC!$O$26*(1+$F$21))) -> 0 | AP69: =((LCC!$O$19*(LCC!$O$25/100))*(LCC!$O$26*(1+$G$21))) -> 0 | AQ69: =((LCC!$O$19*(LCC!$O$25/100))*(LCC!$O$26*(1+$H$21))) -> 0 | AR69: =((LCC!$O$19*(LCC!$O$25/100))*(LCC!$O$26*(1+$I$21))) -> 0 | AS69: =((LCC!$O$19*(LCC!$O$25/100))*(LCC!$O$26*(1+$J$21))) -> 0 | AT69: =((LCC!$O$19*(LCC!$O$25/100))*(LCC!$O$26*(1+$K$21))) -> 0 | AU69: =((LCC!$O$19*(LCC!$O$25/100))*(LCC!$O$26*(1+$L$21))) -> 0 | AV69: =((LCC!$O$19*(LCC!$O$25/100))*(LCC!$O$26*(1+$M$21))) -> 0 | AW69: =((LCC!$O$19*(LCC!$O$25/100))*(LCC!$O$26*(1+$N$21))) -> 0 | AX69: =SUM(AM69:INDEX(AM69:AW69,LCC!$E$6)) -> 0
X70: prodotto 7 | Y70: =((LCC!$Q$19*(LCC!$Q$21/100))*LCC!$Q$22) -> 0 | Z70: =((LCC!$Q$19*(LCC!$Q$21/100))*(LCC!$Q$22*(1+$E$21))) -> 0 | AA70: =((LCC!$Q$19*(LCC!$Q$21/100))*(LCC!$Q$22*(1+$F$21))) -> 0 | AB70: =((LCC!$Q$19*(LCC!$Q$21/100))*(LCC!$Q$22*(1+G$21))) -> 0 | AC70: =((LCC!$Q$19*(LCC!$Q$21/100))*(LCC!$Q$22*(1+H$21))) -> 0 | AD70: =((LCC!$Q$19*(LCC!$Q$21/100))*(LCC!$Q$22*(1+I$21))) -> 0 | AE70: =((LCC!$Q$19*(LCC!$Q$21/100))*(LCC!$Q$22*(1+J$21))) -> 0 | AF70: =((LCC!$Q$19*(LCC!$Q$21/100))*(LCC!$Q$22*(1+K$21))) -> 0 | AG70: =((LCC!$Q$19*(LCC!$Q$21/100))*(LCC!$Q$22*(1+L$21))) -> 0 | AH70: =((LCC!$Q$19*(LCC!$Q$21/100))*(LCC!$Q$22*(1+M$21))) -> 0 | AI70: =((LCC!$Q$19*(LCC!$Q$21/100))*(LCC!$Q$22*(1+N$21))) -> 0 | AJ70: =SUM(Y70:INDEX(Y70:AI70,LCC!$E$6)) -> 0 | AL70: prodotto 10 | AM70: =((LCC!$Q$19*(LCC!$Q$25/100))*LCC!$Q$26) -> 0 | AN70: =((LCC!$Q$19*(LCC!$Q$25/100))*(LCC!$Q$26*(1+$E$21))) -> 0 | AO70: =((LCC!$Q$19*(LCC!$Q$25/100))*(LCC!$Q$26*(1+$F$21))) -> 0 | AP70: =((LCC!$Q$19*(LCC!$Q$25/100))*(LCC!$Q$26*(1+$G$21))) -> 0 | AQ70: =((LCC!$Q$19*(LCC!$Q$25/100))*(LCC!$Q$26*(1+$H$21))) -> 0 | AR70: =((LCC!$Q$19*(LCC!$Q$25/100))*(LCC!$Q$26*(1+$I$21))) -> 0 | AS70: =((LCC!$Q$19*(LCC!$Q$25/100))*(LCC!$Q$26*(1+$J$21))) -> 0 | AT70: =((LCC!$Q$19*(LCC!$Q$25/100))*(LCC!$Q$26*(1+$K$21))) -> 0 | AU70: =((LCC!$Q$19*(LCC!$Q$25/100))*(LCC!$Q$26*(1+$L$21))) -> 0 | AV70: =((LCC!$Q$19*(LCC!$Q$25/100))*(LCC!$Q$26*(1+$M$21))) -> 0 | AW70: =((LCC!$Q$19*(LCC!$Q$25/100))*(LCC!$Q$26*(1+$N$21))) -> 0 | AX70: =SUM(AM70:INDEX(AM70:AW70,LCC!$E$6)) -> 0
X71: prodotto 8 | Y71: =((LCC!$S$19*(LCC!$S$21/100))*LCC!$S$22) -> 0 | Z71: =((LCC!$S$19*(LCC!$S$21/100))*(LCC!$S$22*(1+$E$21))) -> 0 | AA71: =((LCC!$S$19*(LCC!$S$21/100))*(LCC!$S$22*(1+$F$21))) -> 0 | AB71: =((LCC!$S$19*(LCC!$S$21/100))*(LCC!$S$22*(1+G$21))) -> 0 | AC71: =((LCC!$S$19*(LCC!$S$21/100))*(LCC!$S$22*(1+H$21))) -> 0 | AD71: =((LCC!$S$19*(LCC!$S$21/100))*(LCC!$S$22*(1+I$21))) -> 0 | AE71: =((LCC!$S$19*(LCC!$S$21/100))*(LCC!$S$22*(1+J$21))) -> 0 | AF71: =((LCC!$S$19*(LCC!$S$21/100))*(LCC!$S$22*(1+K$21))) -> 0 | AG71: =((LCC!$S$19*(LCC!$S$21/100))*(LCC!$S$22*(1+L$21))) -> 0 | AH71: =((LCC!$S$19*(LCC!$S$21/100))*(LCC!$S$22*(1+M$21))) -> 0 | AI71: =((LCC!$S$19*(LCC!$S$21/100))*(LCC!$S$22*(1+N$21))) -> 0 | AJ71: =SUM(Y71:INDEX(Y71:AI71,LCC!$E$6)) -> 0 | AM71: =((LCC!$S$19*(LCC!$S$25/100))*LCC!$S$26) -> 0 | AN71: =((LCC!$S$19*(LCC!$S$25/100))*(LCC!$S$26*(1+$E$21))) -> 0 | AO71: =((LCC!$S$19*(LCC!$S$25/100))*(LCC!$S$26*(1+$F$21))) -> 0 | AP71: =((LCC!$S$19*(LCC!$S$25/100))*(LCC!$S$26*(1+$G$21))) -> 0 | AQ71: =((LCC!$S$19*(LCC!$S$25/100))*(LCC!$S$26*(1+$H$21))) -> 0 | AR71: =((LCC!$S$19*(LCC!$S$25/100))*(LCC!$S$26*(1+$I$21))) -> 0 | AS71: =((LCC!$S$19*(LCC!$S$25/100))*(LCC!$S$26*(1+$J$21))) -> 0 | AT71: =((LCC!$S$19*(LCC!$S$25/100))*(LCC!$S$26*(1+$K$21))) -> 0 | AU71: =((LCC!$S$19*(LCC!$S$25/100))*(LCC!$S$26*(1+$L$21))) -> 0 | AV71: =((LCC!$S$19*(LCC!$S$25/100))*(LCC!$S$26*(1+$M$21))) -> 0 | AW71: =((LCC!$S$19*(LCC!$S$25/100))*(LCC!$S$26*(1+$N$21))) -> 0
X72: prodotto 9 | Y72: =((LCC!$U$19*(LCC!$U$21/100))*LCC!$U$22) -> 0 | Z72: =((LCC!$U$19*(LCC!$U$21/100))*(LCC!$U$22*(1+$E$21))) -> 0 | AA72: =((LCC!$U$19*(LCC!$U$21/100))*(LCC!$U$22*(1+$F$21))) -> 0 | AB72: =((LCC!$U$19*(LCC!$U$21/100))*(LCC!$U$22*(1+G$21))) -> 0 | AC72: =((LCC!$U$19*(LCC!$U$21/100))*(LCC!$U$22*(1+H$21))) -> 0 | AD72: =((LCC!$U$19*(LCC!$U$21/100))*(LCC!$U$22*(1+I$21))) -> 0 | AE72: =((LCC!$U$19*(LCC!$U$21/100))*(LCC!$U$22*(1+J$21))) -> 0 | AF72: =((LCC!$U$19*(LCC!$U$21/100))*(LCC!$U$22*(1+K$21))) -> 0 | AG72: =((LCC!$U$19*(LCC!$U$21/100))*(LCC!$U$22*(1+L$21))) -> 0 | AH72: =((LCC!$U$19*(LCC!$U$21/100))*(LCC!$U$22*(1+M$21))) -> 0 | AI72: =((LCC!$U$19*(LCC!$U$21/100))*(LCC!$U$22*(1+N$21))) -> 0 | AJ72: =SUM(Y72:INDEX(Y72:AI72,LCC!$E$6)) -> 0 | AL72: NATURAL GAS | AM72: =((LCC!$U$19*(LCC!$U$25/100))*LCC!$U$26) -> 0 | AN72: =((LCC!$U$19*(LCC!$U$25/100))*(LCC!$U$26*(1+$E$21))) -> 0 | AO72: =((LCC!$U$19*(LCC!$U$25/100))*(LCC!$U$26*(1+$F$21))) -> 0 | AP72: =((LCC!$U$19*(LCC!$U$25/100))*(LCC!$U$26*(1+$G$21))) -> 0 | AQ72: =((LCC!$U$19*(LCC!$U$25/100))*(LCC!$U$26*(1+$H$21))) -> 0 | AR72: =((LCC!$U$19*(LCC!$U$25/100))*(LCC!$U$26*(1+$I$21))) -> 0 | AS72: =((LCC!$U$19*(LCC!$U$25/100))*(LCC!$U$26*(1+$J$21))) -> 0 | AT72: =((LCC!$U$19*(LCC!$U$25/100))*(LCC!$U$26*(1+$K$21))) -> 0 | AU72: =((LCC!$U$19*(LCC!$U$25/100))*(LCC!$U$26*(1+$L$21))) -> 0 | AV72: =((LCC!$U$19*(LCC!$U$25/100))*(LCC!$U$26*(1+$M$21))) -> 0 | AW72: =((LCC!$U$19*(LCC!$U$25/100))*(LCC!$U$26*(1+$N$21))) -> 0 | AX72: prezzo totale carburante per il periodo
X73: prodotto 10 | Y73: =((LCC!$W$19*(LCC!$W$21/100))*LCC!$W$22) -> 0 | Z73: =((LCC!$W$19*(LCC!$W$21/100))*(LCC!$W$22*(1+$E$21))) -> 0 | AA73: =((LCC!$W$19*(LCC!$W$21/100))*(LCC!$W$22*(1+$F$21))) -> 0 | AB73: =((LCC!$W$19*(LCC!$W$21/100))*(LCC!$W$22*(1+G$21))) -> 0 | AC73: =((LCC!$W$19*(LCC!$W$21/100))*(LCC!$W$22*(1+H$21))) -> 0 | AD73: =((LCC!$W$19*(LCC!$W$21/100))*(LCC!$W$22*(1+I$21))) -> 0 | AE73: =((LCC!$W$19*(LCC!$W$21/100))*(LCC!$W$22*(1+J$21))) -> 0 | AF73: =((LCC!$W$19*(LCC!$W$21/100))*(LCC!$W$22*(1+K$21))) -> 0 | AG73: =((LCC!$W$19*(LCC!$W$21/100))*(LCC!$W$22*(1+L$21))) -> 0 | AH73: =((LCC!$W$19*(LCC!$W$21/100))*(LCC!$W$22*(1+M$21))) -> 0 | AI73: =((LCC!$W$19*(LCC!$W$21/100))*(LCC!$W$22*(1+N$21))) -> 0 | AJ73: =SUM(Y73:INDEX(Y73:AI73,LCC!$E$6)) -> 0 | AL73: prodotto 1 | AM73: =((LCC!$W$19*(LCC!$W$25/100))*LCC!$W$26) -> 0 | AN73: =((LCC!$W$19*(LCC!$W$25/100))*(LCC!$W$26*(1+$E$21))) -> 0 | AO73: =((LCC!$W$19*(LCC!$W$25/100))*(LCC!$W$26*(1+$F$21))) -> 0 | AP73: =((LCC!$W$19*(LCC!$W$25/100))*(LCC!$W$26*(1+$G$21))) -> 0 | AQ73: =((LCC!$W$19*(LCC!$W$25/100))*(LCC!$W$26*(1+$H$21))) -> 0 | AR73: =((LCC!$W$19*(LCC!$W$25/100))*(LCC!$W$26*(1+$I$21))) -> 0 | AS73: =((LCC!$W$19*(LCC!$W$25/100))*(LCC!$W$26*(1+$J$21))) -> 0 | AT73: =((LCC!$W$19*(LCC!$W$25/100))*(LCC!$W$26*(1+$K$21))) -> 0 | AU73: =((LCC!$W$19*(LCC!$W$25/100))*(LCC!$W$26*(1+$L$21))) -> 0 | AV73: =((LCC!$W$19*(LCC!$W$25/100))*(LCC!$W$26*(1+$M$21))) -> 0 | AW73: =((LCC!$W$19*(LCC!$W$25/100))*(LCC!$W$26*(1+$N$21))) -> 0 | AX73: =SUM(AM73:INDEX(AM73:AW73,LCC!$E$6)) -> 0
AL74: prodotto 2 | AX74: =SUM(AM74:INDEX(AM74:AW74,LCC!$E$6)) -> 0
X75: NATURAL GAS | Y75: 2014 | Z75: 2015 | AA75: 2016 | AB75: 2017 | AC75: 2018 | AD75: 2019 | AE75: 2020 | AF75: 2021 | AG75: 2022 | AH75: 2023 | AI75: 2024 | AJ75: Total fuel price for period | AL75: prodotto 3 | AM75: 2014 | AN75: 2015 | AO75: 2016 | AP75: 2017 | AQ75: 2018 | AR75: 2019 | AS75: 2020 | AT75: 2021 | AU75: 2022 | AV75: 2023 | AW75: 2024 | AX75: =SUM(AM75:INDEX(AM75:AW75,LCC!$E$6)) -> 22209
X76: prodotto 1 | Y76: =((LCC!$E$19*(LCC!$E$21/100))*LCC!$E$22) -> 0 | Z76: =((LCC!$E$19*(LCC!$E$21/100))*(LCC!$E$22*(1+$E$24))) -> 0 | AA76: =((LCC!$E$19*(LCC!$E$21/100))*(LCC!$E$22*(1+$F$24))) -> 0 | AB76: =((LCC!$E$19*(LCC!$E$21/100))*(LCC!$E$22*(1+G$24))) -> 0 | AC76: =((LCC!$E$19*(LCC!$E$21/100))*(LCC!$E$22*(1+H$24))) -> 0 | AD76: =((LCC!$E$19*(LCC!$E$21/100))*(LCC!$E$22*(1+I$24))) -> 0 | AE76: =((LCC!$E$19*(LCC!$E$21/100))*(LCC!$E$22*(1+J$24))) -> 0 | AF76: =((LCC!$E$19*(LCC!$E$21/100))*(LCC!$E$22*(1+K$24))) -> 0 | AG76: =((LCC!$E$19*(LCC!$E$21/100))*(LCC!$E$22*(1+L$24))) -> 0 | AH76: =((LCC!$E$19*(LCC!$E$21/100))*(LCC!$E$22*(1+M$24))) -> 0 | AI76: =((LCC!$E$19*(LCC!$E$21/100))*(LCC!$E$22*(1+N$24))) -> 0 | AJ76: =SUM(Y76:INDEX(Y76:AI76,LCC!$E$6)) -> 0 | AL76: prodotto 4 | AM76: =((LCC!$E$19*(LCC!$E$25/100))*LCC!$E$26) -> 0 | AN76: =((LCC!$E$19*(LCC!$E$25/100))*(LCC!$E$26*(1+$E$24))) -> 0 | AO76: =((LCC!$E$19*(LCC!$E$25/100))*(LCC!$E$26*(1+$F$24))) -> 0 | AP76: =((LCC!$E$19*(LCC!$E$25/100))*(LCC!$E$26*(1+$G$24))) -> 0 | AQ76: =((LCC!$E$19*(LCC!$E$25/100))*(LCC!$E$26*(1+$H$24))) -> 0 | AR76: =((LCC!$E$19*(LCC!$E$25/100))*(LCC!$E$26*(1+$I$24))) -> 0 | AS76: =((LCC!$E$19*(LCC!$E$25/100))*(LCC!$E$26*(1+$J$24))) -> 0 | AT76: =((LCC!$E$19*(LCC!$E$25/100))*(LCC!$E$26*(1+$K$24))) -> 0 | AU76: =((LCC!$E$19*(LCC!$E$25/100))*(LCC!$E$26*(1+$L$24))) -> 0 | AV76: =((LCC!$E$19*(LCC!$E$25/100))*(LCC!$E$26*(1+$M$24))) -> 0 | AW76: =((LCC!$E$19*(LCC!$E$25/100))*(LCC!$E$26*(1+$N$24))) -> 0 | AX76: =SUM(AM76:INDEX(AM76:AW76,LCC!$E$6)) -> 0
X77: prodotto 2 | Y77: =((LCC!$G$19*(LCC!$G$21/100))*LCC!$G$22) -> 0 | Z77: =((LCC!$G$19*(LCC!$G$21/100))*(LCC!$G$22*(1+$E$24))) -> 0 | AA77: =((LCC!$G$19*(LCC!$G$21/100))*(LCC!$G$22*(1+$F$24))) -> 0 | AB77: =((LCC!$G$19*(LCC!$G$21/100))*(LCC!$G$22*(1+G$24))) -> 0 | AC77: =((LCC!$G$19*(LCC!$G$21/100))*(LCC!$G$22*(1+H$24))) -> 0 | AD77: =((LCC!$G$19*(LCC!$G$21/100))*(LCC!$G$22*(1+I$24))) -> 0 | AE77: =((LCC!$G$19*(LCC!$G$21/100))*(LCC!$G$22*(1+J$24))) -> 0 | AF77: =((LCC!$G$19*(LCC!$G$21/100))*(LCC!$G$22*(1+K$24))) -> 0 | AG77: =((LCC!$G$19*(LCC!$G$21/100))*(LCC!$G$22*(1+L$24))) -> 0 | AH77: =((LCC!$G$19*(LCC!$G$21/100))*(LCC!$G$22*(1+M$24))) -> 0 | AI77: =((LCC!$G$19*(LCC!$G$21/100))*(LCC!$G$22*(1+N$24))) -> 0 | AJ77: =SUM(Y77:INDEX(Y77:AI77,LCC!$E$6)) -> 0 | AL77: prodotto 5 | AM77: =((LCC!$G$19*(LCC!$G$25/100))*LCC!$G$26) -> 0 | AN77: =((LCC!$G$19*(LCC!$G$25/100))*(LCC!$G$26*(1+$E$24))) -> 0 | AO77: =((LCC!$G$19*(LCC!$G$25/100))*(LCC!$G$26*(1+$F$24))) -> 0 | AP77: =((LCC!$G$19*(LCC!$G$25/100))*(LCC!$G$26*(1+$G$24))) -> 0 | AQ77: =((LCC!$G$19*(LCC!$G$25/100))*(LCC!$G$26*(1+$H$24))) -> 0 | AR77: =((LCC!$G$19*(LCC!$G$25/100))*(LCC!$G$26*(1+$I$24))) -> 0 | AS77: =((LCC!$G$19*(LCC!$G$25/100))*(LCC!$G$26*(1+$J$24))) -> 0 | AT77: =((LCC!$G$19*(LCC!$G$25/100))*(LCC!$G$26*(1+$K$24))) -> 0 | AU77: =((LCC!$G$19*(LCC!$G$25/100))*(LCC!$G$26*(1+$L$24))) -> 0 | AV77: =((LCC!$G$19*(LCC!$G$25/100))*(LCC!$G$26*(1+$M$24))) -> 0 | AW77: =((LCC!$G$19*(LCC!$G$25/100))*(LCC!$G$26*(1+$N$24))) -> 0 | AX77: =SUM(AM77:INDEX(AM77:AW77,LCC!$E$6)) -> 0
X78: prodotto 3 | Y78: =((LCC!$I$19*(LCC!$I$21/100))*LCC!$I$22) -> 0 | Z78: =((LCC!$I$19*(LCC!$I$21/100))*(LCC!$I$22*(1+$E$24))) -> 0 | AA78: =((LCC!$I$19*(LCC!$I$21/100))*(LCC!$I$22*(1+$F$24))) -> 0 | AB78: =((LCC!$I$19*(LCC!$I$21/100))*(LCC!$I$22*(1+G$24))) -> 0 | AC78: =((LCC!$I$19*(LCC!$I$21/100))*(LCC!$I$22*(1+H$24))) -> 0 | AD78: =((LCC!$I$19*(LCC!$I$21/100))*(LCC!$I$22*(1+I$24))) -> 0 | AE78: =((LCC!$I$19*(LCC!$I$21/100))*(LCC!$I$22*(1+J$24))) -> 0 | AF78: =((LCC!$I$19*(LCC!$I$21/100))*(LCC!$I$22*(1+K$24))) -> 0 | AG78: =((LCC!$I$19*(LCC!$I$21/100))*(LCC!$I$22*(1+L$24))) -> 0 | AH78: =((LCC!$I$19*(LCC!$I$21/100))*(LCC!$I$22*(1+M$24))) -> 0 | AI78: =((LCC!$I$19*(LCC!$I$21/100))*(LCC!$I$22*(1+N$24))) -> 0 | AJ78: =SUM(Y78:INDEX(Y78:AI78,LCC!$E$6)) -> 0 | AL78: prodotto 6 | AM78: =((LCC!$I$19*(LCC!$I$25/100))*LCC!$I$26) -> 0 | AN78: =((LCC!$I$19*(LCC!$I$25/100))*(LCC!$I$26*(1+$E$24))) -> 0 | AO78: =((LCC!$I$19*(LCC!$I$25/100))*(LCC!$I$26*(1+$F$24))) -> 0 | AP78: =((LCC!$I$19*(LCC!$I$25/100))*(LCC!$I$26*(1+$G$24))) -> 0 | AQ78: =((LCC!$I$19*(LCC!$I$25/100))*(LCC!$I$26*(1+$H$24))) -> 0 | AR78: =((LCC!$I$19*(LCC!$I$25/100))*(LCC!$I$26*(1+$I$24))) -> 0 | AS78: =((LCC!$I$19*(LCC!$I$25/100))*(LCC!$I$26*(1+$J$24))) -> 0 | AT78: =((LCC!$I$19*(LCC!$I$25/100))*(LCC!$I$26*(1+$K$24))) -> 0 | AU78: =((LCC!$I$19*(LCC!$I$25/100))*(LCC!$I$26*(1+$L$24))) -> 0 | AV78: =((LCC!$I$19*(LCC!$I$25/100))*(LCC!$I$26*(1+$M$24))) -> 0 | AW78: =((LCC!$I$19*(LCC!$I$25/100))*(LCC!$I$26*(1+$N$24))) -> 0 | AX78: =SUM(AM78:INDEX(AM78:AW78,LCC!$E$6)) -> 0
X79: prodotto 4 | Y79: =((LCC!$K$19*(LCC!$K$21/100))*LCC!$K$22) -> 0 | Z79: =((LCC!$K$19*(LCC!$K$21/100))*(LCC!$K$22*(1+$E$24))) -> 0 | AA79: =((LCC!$K$19*(LCC!$K$21/100))*(LCC!$K$22*(1+$F$24))) -> 0 | AB79: =((LCC!$K$19*(LCC!$K$21/100))*(LCC!$K$22*(1+G$24))) -> 0 | AC79: =((LCC!$K$19*(LCC!$K$21/100))*(LCC!$K$22*(1+H$24))) -> 0 | AD79: =((LCC!$K$19*(LCC!$K$21/100))*(LCC!$K$22*(1+I$24))) -> 0 | AE79: =((LCC!$K$19*(LCC!$K$21/100))*(LCC!$K$22*(1+J$24))) -> 0 | AF79: =((LCC!$K$19*(LCC!$K$21/100))*(LCC!$K$22*(1+K$24))) -> 0 | AG79: =((LCC!$K$19*(LCC!$K$21/100))*(LCC!$K$22*(1+L$24))) -> 0 | AH79: =((LCC!$K$19*(LCC!$K$21/100))*(LCC!$K$22*(1+M$24))) -> 0 | AI79: =((LCC!$K$19*(LCC!$K$21/100))*(LCC!$K$22*(1+N$24))) -> 0 | AJ79: =SUM(Y79:INDEX(Y79:AI79,LCC!$E$6)) -> 0 | AL79: prodotto 7 | AM79: =((LCC!$K$19*(LCC!$K$25/100))*LCC!$K$26) -> 0 | AN79: =((LCC!$K$19*(LCC!$K$25/100))*(LCC!$K$26*(1+$E$24))) -> 0 | AO79: =((LCC!$K$19*(LCC!$K$25/100))*(LCC!$K$26*(1+$F$24))) -> 0 | AP79: =((LCC!$K$19*(LCC!$K$25/100))*(LCC!$K$26*(1+$G$24))) -> 0 | AQ79: =((LCC!$K$19*(LCC!$K$25/100))*(LCC!$K$26*(1+$H$24))) -> 0 | AR79: =((LCC!$K$19*(LCC!$K$25/100))*(LCC!$K$26*(1+$I$24))) -> 0 | AS79: =((LCC!$K$19*(LCC!$K$25/100))*(LCC!$K$26*(1+$J$24))) -> 0 | AT79: =((LCC!$K$19*(LCC!$K$25/100))*(LCC!$K$26*(1+$K$24))) -> 0 | AU79: =((LCC!$K$19*(LCC!$K$25/100))*(LCC!$K$26*(1+$L$24))) -> 0 | AV79: =((LCC!$K$19*(LCC!$K$25/100))*(LCC!$K$26*(1+$M$24))) -> 0 | AW79: =((LCC!$K$19*(LCC!$K$25/100))*(LCC!$K$26*(1+$N$24))) -> 0 | AX79: =SUM(AM79:INDEX(AM79:AW79,LCC!$E$6)) -> 0
X80: prodotto 5 | Y80: =((LCC!$M$19*(LCC!$M$21/100))*LCC!$M$22) -> 0 | Z80: =((LCC!$M$19*(LCC!$M$21/100))*(LCC!$M$22*(1+$E$24))) -> 0 | AA80: =((LCC!$M$19*(LCC!$M$21/100))*(LCC!$M$22*(1+$F$24))) -> 0 | AB80: =((LCC!$M$19*(LCC!$M$21/100))*(LCC!$M$22*(1+G$24))) -> 0 | AC80: =((LCC!$M$19*(LCC!$M$21/100))*(LCC!$M$22*(1+H$24))) -> 0 | AD80: =((LCC!$M$19*(LCC!$M$21/100))*(LCC!$M$22*(1+I$24))) -> 0 | AE80: =((LCC!$M$19*(LCC!$M$21/100))*(LCC!$M$22*(1+J$24))) -> 0 | AF80: =((LCC!$M$19*(LCC!$M$21/100))*(LCC!$M$22*(1+K$24))) -> 0 | AG80: =((LCC!$M$19*(LCC!$M$21/100))*(LCC!$M$22*(1+L$24))) -> 0 | AH80: =((LCC!$M$19*(LCC!$M$21/100))*(LCC!$M$22*(1+M$24))) -> 0 | AI80: =((LCC!$M$19*(LCC!$M$21/100))*(LCC!$M$22*(1+N$24))) -> 0 | AJ80: =SUM(Y80:INDEX(Y80:AI80,LCC!$E$6)) -> 0 | AL80: prodotto 8 | AM80: =((LCC!$M$19*(LCC!$M$25/100))*LCC!$M$26) -> 0 | AN80: =((LCC!$M$19*(LCC!$M$25/100))*(LCC!$M$26*(1+$E$24))) -> 0 | AO80: =((LCC!$M$19*(LCC!$M$25/100))*(LCC!$M$26*(1+$F$24))) -> 0 | AP80: =((LCC!$M$19*(LCC!$M$25/100))*(LCC!$M$26*(1+$G$24))) -> 0 | AQ80: =((LCC!$M$19*(LCC!$M$25/100))*(LCC!$M$26*(1+$H$24))) -> 0 | AR80: =((LCC!$M$19*(LCC!$M$25/100))*(LCC!$M$26*(1+$I$24))) -> 0 | AS80: =((LCC!$M$19*(LCC!$M$25/100))*(LCC!$M$26*(1+$J$24))) -> 0 | AT80: =((LCC!$M$19*(LCC!$M$25/100))*(LCC!$M$26*(1+$K$24))) -> 0 | AU80: =((LCC!$M$19*(LCC!$M$25/100))*(LCC!$M$26*(1+$L$24))) -> 0 | AV80: =((LCC!$M$19*(LCC!$M$25/100))*(LCC!$M$26*(1+$M$24))) -> 0 | AW80: =((LCC!$M$19*(LCC!$M$25/100))*(LCC!$M$26*(1+$N$24))) -> 0 | AX80: =SUM(AM80:INDEX(AM80:AW80,LCC!$E$6)) -> 0
X81: prodotto 6 | Y81: =((LCC!$O$19*(LCC!$O$21/100))*LCC!$O$22) -> 0 | Z81: =((LCC!$O$19*(LCC!$O$21/100))*(LCC!$O$22*(1+$E$24))) -> 0 | AA81: =((LCC!$O$19*(LCC!$O$21/100))*(LCC!$O$22*(1+$F$24))) -> 0 | AB81: =((LCC!$O$19*(LCC!$O$21/100))*(LCC!$O$22*(1+G$24))) -> 0 | AC81: =((LCC!$O$19*(LCC!$O$21/100))*(LCC!$O$22*(1+H$24))) -> 0 | AD81: =((LCC!$O$19*(LCC!$O$21/100))*(LCC!$O$22*(1+I$24))) -> 0 | AE81: =((LCC!$O$19*(LCC!$O$21/100))*(LCC!$O$22*(1+J$24))) -> 0 | AF81: =((LCC!$O$19*(LCC!$O$21/100))*(LCC!$O$22*(1+K$24))) -> 0 | AG81: =((LCC!$O$19*(LCC!$O$21/100))*(LCC!$O$22*(1+L$24))) -> 0 | AH81: =((LCC!$O$19*(LCC!$O$21/100))*(LCC!$O$22*(1+M$24))) -> 0 | AI81: =((LCC!$O$19*(LCC!$O$21/100))*(LCC!$O$22*(1+N$24))) -> 0 | AJ81: =SUM(Y81:INDEX(Y81:AI81,LCC!$E$6)) -> 0 | AL81: prodotto 9 | AM81: =((LCC!$O$19*(LCC!$O$25/100))*LCC!$O$26) -> 0 | AN81: =((LCC!$O$19*(LCC!$O$25/100))*(LCC!$O$26*(1+$E$24))) -> 0 | AO81: =((LCC!$O$19*(LCC!$O$25/100))*(LCC!$O$26*(1+$F$24))) -> 0 | AP81: =((LCC!$O$19*(LCC!$O$25/100))*(LCC!$O$26*(1+$G$24))) -> 0 | AQ81: =((LCC!$O$19*(LCC!$O$25/100))*(LCC!$O$26*(1+$H$24))) -> 0 | AR81: =((LCC!$O$19*(LCC!$O$25/100))*(LCC!$O$26*(1+$I$24))) -> 0 | AS81: =((LCC!$O$19*(LCC!$O$25/100))*(LCC!$O$26*(1+$J$24))) -> 0 | AT81: =((LCC!$O$19*(LCC!$O$25/100))*(LCC!$O$26*(1+$K$24))) -> 0 | AU81: =((LCC!$O$19*(LCC!$O$25/100))*(LCC!$O$26*(1+$L$24))) -> 0 | AV81: =((LCC!$O$19*(LCC!$O$25/100))*(LCC!$O$26*(1+$M$24))) -> 0 | AW81: =((LCC!$O$19*(LCC!$O$25/100))*(LCC!$O$26*(1+$N$24))) -> 0 | AX81: =SUM(AM81:INDEX(AM81:AW81,LCC!$E$6)) -> 0
X82: prodotto 7 | Y82: =((LCC!$Q$19*(LCC!$Q$21/100))*LCC!$Q$22) -> 0 | Z82: =((LCC!$Q$19*(LCC!$Q$21/100))*(LCC!$Q$22*(1+$E$24))) -> 0 | AA82: =((LCC!$Q$19*(LCC!$Q$21/100))*(LCC!$Q$22*(1+$F$24))) -> 0 | AB82: =((LCC!$Q$19*(LCC!$Q$21/100))*(LCC!$Q$22*(1+G$24))) -> 0 | AC82: =((LCC!$Q$19*(LCC!$Q$21/100))*(LCC!$Q$22*(1+H$24))) -> 0 | AD82: =((LCC!$Q$19*(LCC!$Q$21/100))*(LCC!$Q$22*(1+I$24))) -> 0 | AE82: =((LCC!$Q$19*(LCC!$Q$21/100))*(LCC!$Q$22*(1+J$24))) -> 0 | AF82: =((LCC!$Q$19*(LCC!$Q$21/100))*(LCC!$Q$22*(1+K$24))) -> 0 | AG82: =((LCC!$Q$19*(LCC!$Q$21/100))*(LCC!$Q$22*(1+L$24))) -> 0 | AH82: =((LCC!$Q$19*(LCC!$Q$21/100))*(LCC!$Q$22*(1+M$24))) -> 0 | AI82: =((LCC!$Q$19*(LCC!$Q$21/100))*(LCC!$Q$22*(1+N$24))) -> 0 | AJ82: =SUM(Y82:INDEX(Y82:AI82,LCC!$E$6)) -> 0 | AL82: prodotto 10 | AM82: =((LCC!$Q$19*(LCC!$Q$25/100))*LCC!$Q$26) -> 0 | AN82: =((LCC!$Q$19*(LCC!$Q$25/100))*(LCC!$Q$26*(1+$E$24))) -> 0 | AO82: =((LCC!$Q$19*(LCC!$Q$25/100))*(LCC!$Q$26*(1+$F$24))) -> 0 | AP82: =((LCC!$Q$19*(LCC!$Q$25/100))*(LCC!$Q$26*(1+$G$24))) -> 0 | AQ82: =((LCC!$Q$19*(LCC!$Q$25/100))*(LCC!$Q$26*(1+$H$24))) -> 0 | AR82: =((LCC!$Q$19*(LCC!$Q$25/100))*(LCC!$Q$26*(1+$I$24))) -> 0 | AS82: =((LCC!$Q$19*(LCC!$Q$25/100))*(LCC!$Q$26*(1+$J$24))) -> 0 | AT82: =((LCC!$Q$19*(LCC!$Q$25/100))*(LCC!$Q$26*(1+$K$24))) -> 0 | AU82: =((LCC!$Q$19*(LCC!$Q$25/100))*(LCC!$Q$26*(1+$L$24))) -> 0 | AV82: =((LCC!$Q$19*(LCC!$Q$25/100))*(LCC!$Q$26*(1+$M$24))) -> 0 | AW82: =((LCC!$Q$19*(LCC!$Q$25/100))*(LCC!$Q$26*(1+$N$24))) -> 0 | AX82: =SUM(AM82:INDEX(AM82:AW82,LCC!$E$6)) -> 0
X83: prodotto 8 | Y83: =((LCC!$S$19*(LCC!$S$21/100))*LCC!$S$22) -> 0 | Z83: =((LCC!$S$19*(LCC!$S$21/100))*(LCC!$S$22*(1+$E$24))) -> 0 | AA83: =((LCC!$S$19*(LCC!$S$21/100))*(LCC!$S$22*(1+$F$24))) -> 0 | AB83: =((LCC!$S$19*(LCC!$S$21/100))*(LCC!$S$22*(1+G$24))) -> 0 | AC83: =((LCC!$S$19*(LCC!$S$21/100))*(LCC!$S$22*(1+H$24))) -> 0 | AD83: =((LCC!$S$19*(LCC!$S$21/100))*(LCC!$S$22*(1+I$24))) -> 0 | AE83: =((LCC!$S$19*(LCC!$S$21/100))*(LCC!$S$22*(1+J$24))) -> 0 | AF83: =((LCC!$S$19*(LCC!$S$21/100))*(LCC!$S$22*(1+K$24))) -> 0 | AG83: =((LCC!$S$19*(LCC!$S$21/100))*(LCC!$S$22*(1+L$24))) -> 0 | AH83: =((LCC!$S$19*(LCC!$S$21/100))*(LCC!$S$22*(1+M$24))) -> 0 | AI83: =((LCC!$S$19*(LCC!$S$21/100))*(LCC!$S$22*(1+N$24))) -> 0 | AJ83: =SUM(Y83:INDEX(Y83:AI83,LCC!$E$6)) -> 0 | AM83: =((LCC!$S$19*(LCC!$S$25/100))*LCC!$S$26) -> 0 | AN83: =((LCC!$S$19*(LCC!$S$25/100))*(LCC!$S$26*(1+$E$24))) -> 0 | AO83: =((LCC!$S$19*(LCC!$S$25/100))*(LCC!$S$26*(1+$F$24))) -> 0 | AP83: =((LCC!$S$19*(LCC!$S$25/100))*(LCC!$S$26*(1+$G$24))) -> 0 | AQ83: =((LCC!$S$19*(LCC!$S$25/100))*(LCC!$S$26*(1+$H$24))) -> 0 | AR83: =((LCC!$S$19*(LCC!$S$25/100))*(LCC!$S$26*(1+$I$24))) -> 0 | AS83: =((LCC!$S$19*(LCC!$S$25/100))*(LCC!$S$26*(1+$J$24))) -> 0 | AT83: =((LCC!$S$19*(LCC!$S$25/100))*(LCC!$S$26*(1+$K$24))) -> 0 | AU83: =((LCC!$S$19*(LCC!$S$25/100))*(LCC!$S$26*(1+$L$24))) -> 0 | AV83: =((LCC!$S$19*(LCC!$S$25/100))*(LCC!$S$26*(1+$M$24))) -> 0 | AW83: =((LCC!$S$19*(LCC!$S$25/100))*(LCC!$S$26*(1+$N$24))) -> 0
X84: prodotto 9 | Y84: =((LCC!$U$19*(LCC!$U$21/100))*LCC!$U$22) -> 0 | Z84: =((LCC!$U$19*(LCC!$U$21/100))*(LCC!$U$22*(1+$E$24))) -> 0 | AA84: =((LCC!$U$19*(LCC!$U$21/100))*(LCC!$U$22*(1+$F$24))) -> 0 | AB84: =((LCC!$U$19*(LCC!$U$21/100))*(LCC!$U$22*(1+G$24))) -> 0 | AC84: =((LCC!$U$19*(LCC!$U$21/100))*(LCC!$U$22*(1+H$24))) -> 0 | AD84: =((LCC!$U$19*(LCC!$U$21/100))*(LCC!$U$22*(1+I$24))) -> 0 | AE84: =((LCC!$U$19*(LCC!$U$21/100))*(LCC!$U$22*(1+J$24))) -> 0 | AF84: =((LCC!$U$19*(LCC!$U$21/100))*(LCC!$U$22*(1+K$24))) -> 0 | AG84: =((LCC!$U$19*(LCC!$U$21/100))*(LCC!$U$22*(1+L$24))) -> 0 | AH84: =((LCC!$U$19*(LCC!$U$21/100))*(LCC!$U$22*(1+M$24))) -> 0 | AI84: =((LCC!$U$19*(LCC!$U$21/100))*(LCC!$U$22*(1+N$24))) -> 0 | AJ84: =SUM(Y84:INDEX(Y84:AI84,LCC!$E$6)) -> 0 | AL84: BATTERY | AM84: =((LCC!$U$19*(LCC!$U$25/100))*LCC!$U$26) -> 0 | AN84: =((LCC!$U$19*(LCC!$U$25/100))*(LCC!$U$26*(1+$E$24))) -> 0 | AO84: =((LCC!$U$19*(LCC!$U$25/100))*(LCC!$U$26*(1+$F$24))) -> 0 | AP84: =((LCC!$U$19*(LCC!$U$25/100))*(LCC!$U$26*(1+$G$24))) -> 0 | AQ84: =((LCC!$U$19*(LCC!$U$25/100))*(LCC!$U$26*(1+$H$24))) -> 0 | AR84: =((LCC!$U$19*(LCC!$U$25/100))*(LCC!$U$26*(1+$I$24))) -> 0 | AS84: =((LCC!$U$19*(LCC!$U$25/100))*(LCC!$U$26*(1+$J$24))) -> 0 | AT84: =((LCC!$U$19*(LCC!$U$25/100))*(LCC!$U$26*(1+$K$24))) -> 0 | AU84: =((LCC!$U$19*(LCC!$U$25/100))*(LCC!$U$26*(1+$L$24))) -> 0 | AV84: =((LCC!$U$19*(LCC!$U$25/100))*(LCC!$U$26*(1+$M$24))) -> 0 | AW84: =((LCC!$U$19*(LCC!$U$25/100))*(LCC!$U$26*(1+$N$24))) -> 0 | AX84: Cost of replacements for period
X85: prodotto 10 | Y85: =((LCC!$W$19*(LCC!$W$21/100))*LCC!$W$22) -> 0 | Z85: =((LCC!$W$19*(LCC!$W$21/100))*(LCC!$W$22*(1+$E$24))) -> 0 | AA85: =((LCC!$W$19*(LCC!$W$21/100))*(LCC!$W$22*(1+$F$24))) -> 0 | AB85: =((LCC!$W$19*(LCC!$W$21/100))*(LCC!$W$22*(1+G$24))) -> 0 | AC85: =((LCC!$W$19*(LCC!$W$21/100))*(LCC!$W$22*(1+H$24))) -> 0 | AD85: =((LCC!$W$19*(LCC!$W$21/100))*(LCC!$W$22*(1+I$24))) -> 0 | AE85: =((LCC!$W$19*(LCC!$W$21/100))*(LCC!$W$22*(1+J$24))) -> 0 | AF85: =((LCC!$W$19*(LCC!$W$21/100))*(LCC!$W$22*(1+K$24))) -> 0 | AG85: =((LCC!$W$19*(LCC!$W$21/100))*(LCC!$W$22*(1+L$24))) -> 0 | AH85: =((LCC!$W$19*(LCC!$W$21/100))*(LCC!$W$22*(1+M$24))) -> 0 | AI85: =((LCC!$W$19*(LCC!$W$21/100))*(LCC!$W$22*(1+N$24))) -> 0 | AJ85: =SUM(Y85:INDEX(Y85:AI85,LCC!$E$6)) -> 0 | AL85: prodotto 1 | AM85: =((LCC!$W$19*(LCC!$W$25/100))*LCC!$W$26) -> 0 | AN85: =((LCC!$W$19*(LCC!$W$25/100))*(LCC!$W$26*(1+$E$24))) -> 0 | AO85: =((LCC!$W$19*(LCC!$W$25/100))*(LCC!$W$26*(1+$F$24))) -> 0 | AP85: =((LCC!$W$19*(LCC!$W$25/100))*(LCC!$W$26*(1+$G$24))) -> 0 | AQ85: =((LCC!$W$19*(LCC!$W$25/100))*(LCC!$W$26*(1+$H$24))) -> 0 | AR85: =((LCC!$W$19*(LCC!$W$25/100))*(LCC!$W$26*(1+$I$24))) -> 0 | AS85: =((LCC!$W$19*(LCC!$W$25/100))*(LCC!$W$26*(1+$J$24))) -> 0 | AT85: =((LCC!$W$19*(LCC!$W$25/100))*(LCC!$W$26*(1+$K$24))) -> 0 | AU85: =((LCC!$W$19*(LCC!$W$25/100))*(LCC!$W$26*(1+$L$24))) -> 0 | AV85: =((LCC!$W$19*(LCC!$W$25/100))*(LCC!$W$26*(1+$M$24))) -> 0 | AW85: =((LCC!$W$19*(LCC!$W$25/100))*(LCC!$W$26*(1+$N$24))) -> 0 | AX85: =SUM(AM85:INDEX(AM85:AW85,LCC!$E$6)) -> 0
AL86: prodotto 2 | AM86: 0 | AN86: =IF(LCC!$G$28=1,LCC!$G$27,0) -> 0 | AO86: =IF(OR(LCC!$G$28=1,$E$24=2),LCC!$G$27,0) -> 0 | AP86: =IF(OR(LCC!$G$28=1,LCC!$G$28=3),LCC!$G$27,0) -> 0 | AQ86: =IF(OR(LCC!$G$28=1,LCC!$G$28=2,LCC!$G$28=4),LCC!$G$27,0) -> 0 | AR86: =IF(OR(LCC!$G$28=1,LCC!$G$28=5),LCC!$G$27,0) -> 0 | AS86: =IF(OR(LCC!$G$28=1,LCC!$G$28=2,LCC!$G$28=3,LCC!$G$28=6),LCC!$G$27,0) -> 0 | AT86: =IF(OR(LCC!$G$28=1,LCC!$G$28=7),LCC!$G$27,0) -> 0 | AU86: =IF(OR(LCC!$G$28=1,LCC!$G$28=2,LCC!$G$28=4,LCC!$G$28=8),LCC!$G$27,0) -> 0 | AV86: =IF(OR(LCC!$G$28=1,LCC!$G$28=3,LCC!$G$28=9),LCC!$G$27,0) -> 0 | AW86: =IF(OR(LCC!$G$28=1,LCC!$G$28=2,LCC!$G$28=5,LCC!$G$28=10),LCC!$G$27,0) -> 0 | AX86: =SUM(AM86:INDEX(AM86:AW86,LCC!$E$6)) -> 0
X87: BATTERY | Y87: 2014 | Z87: 2015 | AA87: 2016 | AB87: 2017 | AC87: 2018 | AD87: 2019 | AE87: 2020 | AF87: 2021 | AG87: 2022 | AH87: 2023 | AI87: 2024 | AJ87: Cost of replacements for period | AL87: prodotto 3 | AM87: 0 | AN87: =IF(LCC!$I$28=1,LCC!$I$27,0) -> 0 | AO87: =IF(OR(LCC!$I$28=1,$E$24=2),LCC!$I$27,0) -> 0 | AP87: =IF(OR(LCC!$I$28=1,LCC!$I$28=3),LCC!$I$27,0) -> 0 | AQ87: =IF(OR(LCC!$I$28=1,LCC!$I$28=2,LCC!$I$28=4),LCC!$I$27,0) -> 0 | AR87: =IF(OR(LCC!$I$28=1,LCC!$I$28=5),LCC!$I$27,0) -> 0 | AS87: =IF(OR(LCC!$I$28=1,LCC!$I$28=2,LCC!$I$28=3,LCC!$I$28=6),LCC!$I$27,0) -> 0 | AT87: =IF(OR(LCC!$I$28=1,LCC!$I$28=7),LCC!$I$27,0) -> 0 | AU87: =IF(OR(LCC!$I$28=1,LCC!$I$28=2,LCC!$I$28=4,LCC!$I$28=8),LCC!$I$27,0) -> 0 | AV87: =IF(OR(LCC!$I$28=1,LCC!$I$28=3,LCC!$I$28=9),LCC!$I$27,0) -> 0 | AW87: =IF(OR(LCC!$I$28=1,LCC!$I$28=2,LCC!$I$28=5,LCC!$I$28=10),LCC!$I$27,0) -> 0 | AX87: =SUM(AM87:INDEX(AM87:AW87,LCC!$E$6)) -> 0
X88: prodotto 1 | Y88: 0 | Z88: =IF(LCC!$E$28=1,LCC!$E$27,0) -> 0 | AA88: =IF(OR(LCC!$E$28=1,$E$24=2),LCC!$E$27,0) -> 0 | AB88: =IF(OR(LCC!$E$28=1,LCC!$E$28=3),LCC!$E$27,0) -> 0 | AC88: =IF(OR(LCC!$E$28=1,LCC!$E$28=2,LCC!$E$28=4),LCC!$E$27,0) -> 0 | AD88: =IF(OR(LCC!$E$28=1,LCC!$E$28=5),LCC!$E$27,0) -> 0 | AE88: =IF(OR(LCC!$E$28=1,LCC!$E$28=2,LCC!$E$28=3,LCC!$E$28=6),LCC!$E$27,0) -> 0 | AF88: =IF(OR(LCC!$E$28=1,LCC!$E$28=7),LCC!$E$27,0) -> 0 | AG88: =IF(OR(LCC!$E$28=1,LCC!$E$28=2,LCC!$E$28=4,LCC!$E$28=8),LCC!$E$27,0) -> 0 | AH88: =IF(OR(LCC!$E$28=1,LCC!$E$28=3,LCC!$E$28=9),LCC!$E$27,0) -> 0 | AI88: =IF(OR(LCC!$E$28=1,LCC!$E$28=2,LCC!$E$28=5,LCC!$E$28=10),LCC!$E$27,0) -> 0 | AJ88: =SUM(Y88:INDEX(Y88:AI88,LCC!$E$6)) -> 0 | AL88: prodotto 4 | AM88: 0 | AN88: =IF(LCC!$K$28=1,LCC!$K$27,0) -> 0 | AO88: =IF(OR(LCC!$K$28=1,$E$24=2),LCC!$K$27,0) -> 0 | AP88: =IF(OR(LCC!$K$28=1,LCC!$K$28=3),LCC!$K$27,0) -> 0 | AQ88: =IF(OR(LCC!$K$28=1,LCC!$K$28=2,LCC!$K$28=4),LCC!$K$27,0) -> 0 | AR88: =IF(OR(LCC!$K$28=1,LCC!$K$28=5),LCC!$K$27,0) -> 0 | AS88: =IF(OR(LCC!$K$28=1,LCC!$K$28=2,LCC!$K$28=3,LCC!$K$28=6),LCC!$K$27,0) -> 0 | AT88: =IF(OR(LCC!$K$28=1,LCC!$K$28=7),LCC!$K$27,0) -> 0 | AU88: =IF(OR(LCC!$K$28=1,LCC!$K$28=2,LCC!$K$28=4,LCC!$K$28=8),LCC!$K$27,0) -> 0 | AV88: =IF(OR(LCC!$K$28=1,LCC!$K$28=3,LCC!$K$28=9),LCC!$K$27,0) -> 0 | AW88: =IF(OR(LCC!$K$28=1,LCC!$K$28=2,LCC!$K$28=5,LCC!$K$28=10),LCC!$K$27,0) -> 0 | AX88: =SUM(AM88:INDEX(AM88:AW88,LCC!$E$6)) -> 0
X89: prodotto 2 | Y89: 0 | Z89: =IF(LCC!$G$28=1,LCC!$G$27,0) -> 0 | AA89: =IF(OR(LCC!$G$28=1,$E$24=2),LCC!$G$27,0) -> 0 | AB89: =IF(OR(LCC!$G$28=1,LCC!$G$28=3),LCC!$G$27,0) -> 0 | AC89: =IF(OR(LCC!$G$28=1,LCC!$G$28=2,LCC!$G$28=4),LCC!$G$27,0) -> 0 | AD89: =IF(OR(LCC!$G$28=1,LCC!$G$28=5),LCC!$G$27,0) -> 0 | AE89: =IF(OR(LCC!$G$28=1,LCC!$G$28=2,LCC!$G$28=3,LCC!$G$28=6),LCC!$G$27,0) -> 0 | AF89: =IF(OR(LCC!$G$28=1,LCC!$G$28=7),LCC!$G$27,0) -> 0 | AG89: =IF(OR(LCC!$G$28=1,LCC!$G$28=2,LCC!$G$28=4,LCC!$G$28=8),LCC!$G$27,0) -> 0 | AH89: =IF(OR(LCC!$G$28=1,LCC!$G$28=3,LCC!$G$28=9),LCC!$G$27,0) -> 0 | AI89: =IF(OR(LCC!$G$28=1,LCC!$G$28=2,LCC!$G$28=5,LCC!$G$28=10),LCC!$G$27,0) -> 0 | AJ89: =SUM(Y89:INDEX(Y89:AI89,LCC!$E$6)) -> 0 | AL89: prodotto 5 | AM89: 0 | AN89: =IF(LCC!$M$28=1,LCC!$M$27,0) -> 0 | AO89: =IF(OR(LCC!$M$28=1,$E$24=2),LCC!$M$27,0) -> 0 | AP89: =IF(OR(LCC!$M$28=1,LCC!$M$28=3),LCC!$M$27,0) -> 0 | AQ89: =IF(OR(LCC!$M$28=1,LCC!$M$28=2,LCC!$M$28=4),LCC!$M$27,0) -> 0 | AR89: =IF(OR(LCC!$M$28=1,LCC!$M$28=5),LCC!$M$27,0) -> 0 | AS89: =IF(OR(LCC!$M$28=1,LCC!$M$28=2,LCC!$M$28=3,LCC!$M$28=6),LCC!$M$27,0) -> 0 | AT89: =IF(OR(LCC!$M$28=1,LCC!$M$28=7),LCC!$M$27,0) -> 0 | AU89: =IF(OR(LCC!$M$28=1,LCC!$M$28=2,LCC!$M$28=4,LCC!$M$28=8),LCC!$M$27,0) -> 0 | AV89: =IF(OR(LCC!$M$28=1,LCC!$M$28=3,LCC!$M$28=9),LCC!$M$27,0) -> 0 | AW89: =IF(OR(LCC!$M$28=1,LCC!$M$28=2,LCC!$M$28=5,LCC!$M$28=10),LCC!$M$27,0) -> 0 | AX89: =SUM(AM89:INDEX(AM89:AW89,LCC!$E$6)) -> 0
X90: prodotto 3 | Y90: 0 | Z90: =IF(LCC!$I$28=1,LCC!$I$27,0) -> 0 | AA90: =IF(OR(LCC!$I$28=1,$E$24=2),LCC!$I$27,0) -> 0 | AB90: =IF(OR(LCC!$I$28=1,LCC!$I$28=3),LCC!$I$27,0) -> 0 | AC90: =IF(OR(LCC!$I$28=1,LCC!$I$28=2,LCC!$I$28=4),LCC!$I$27,0) -> 0 | AD90: =IF(OR(LCC!$I$28=1,LCC!$I$28=5),LCC!$I$27,0) -> 0 | AE90: =IF(OR(LCC!$I$28=1,LCC!$I$28=2,LCC!$I$28=3,LCC!$I$28=6),LCC!$I$27,0) -> 0 | AF90: =IF(OR(LCC!$I$28=1,LCC!$I$28=7),LCC!$I$27,0) -> 0 | AG90: =IF(OR(LCC!$I$28=1,LCC!$I$28=2,LCC!$I$28=4,LCC!$I$28=8),LCC!$I$27,0) -> 0 | AH90: =IF(OR(LCC!$I$28=1,LCC!$I$28=3,LCC!$I$28=9),LCC!$I$27,0) -> 0 | AI90: =IF(OR(LCC!$I$28=1,LCC!$I$28=2,LCC!$I$28=5,LCC!$I$28=10),LCC!$I$27,0) -> 0 | AJ90: =SUM(Y90:INDEX(Y90:AI90,LCC!$E$6)) -> 0 | AL90: prodotto 6 | AM90: 0 | AN90: =IF(LCC!$O$28=1,LCC!$O$27,0) -> 0 | AO90: =IF(OR(LCC!$O$28=1,$E$24=2),LCC!$O$27,0) -> 0 | AP90: =IF(OR(LCC!$O$28=1,LCC!$O$28=3),LCC!$O$27,0) -> 0 | AQ90: =IF(OR(LCC!$O$28=1,LCC!$O$28=2,LCC!$O$28=4),LCC!$O$27,0) -> 0 | AR90: =IF(OR(LCC!$O$28=1,LCC!$O$28=5),LCC!$O$27,0) -> 0 | AS90: =IF(OR(LCC!$O$28=1,LCC!$O$28=2,LCC!$O$28=3,LCC!$O$28=6),LCC!$O$27,0) -> 0 | AT90: =IF(OR(LCC!$O$28=1,LCC!$O$28=7),LCC!$O$27,0) -> 0 | AU90: =IF(OR(LCC!$O$28=1,LCC!$O$28=2,LCC!$O$28=4,LCC!$O$28=8),LCC!$O$27,0) -> 0 | AV90: =IF(OR(LCC!$O$28=1,LCC!$O$28=3,LCC!$O$28=9),LCC!$O$27,0) -> 0 | AW90: =IF(OR(LCC!$O$28=1,LCC!$O$28=2,LCC!$O$28=5,LCC!$O$28=10),LCC!$O$27,0) -> 0 | AX90: =SUM(AM90:INDEX(AM90:AW90,LCC!$E$6)) -> 0
X91: prodotto 4 | Y91: 0 | Z91: =IF(LCC!$K$28=1,LCC!$K$27,0) -> 0 | AA91: =IF(OR(LCC!$K$28=1,$E$24=2),LCC!$K$27,0) -> 0 | AB91: =IF(OR(LCC!$K$28=1,LCC!$K$28=3),LCC!$K$27,0) -> 0 | AC91: =IF(OR(LCC!$K$28=1,LCC!$K$28=2,LCC!$K$28=4),LCC!$K$27,0) -> 0 | AD91: =IF(OR(LCC!$K$28=1,LCC!$K$28=5),LCC!$K$27,0) -> 0 | AE91: =IF(OR(LCC!$K$28=1,LCC!$K$28=2,LCC!$K$28=3,LCC!$K$28=6),LCC!$K$27,0) -> 0 | AF91: =IF(OR(LCC!$K$28=1,LCC!$K$28=7),LCC!$K$27,0) -> 0 | AG91: =IF(OR(LCC!$K$28=1,LCC!$K$28=2,LCC!$K$28=4,LCC!$K$28=8),LCC!$K$27,0) -> 0 | AH91: =IF(OR(LCC!$K$28=1,LCC!$K$28=3,LCC!$K$28=9),LCC!$K$27,0) -> 0 | AI91: =IF(OR(LCC!$K$28=1,LCC!$K$28=2,LCC!$K$28=5,LCC!$K$28=10),LCC!$K$27,0) -> 0 | AJ91: =SUM(Y91:INDEX(Y91:AI91,LCC!$E$6)) -> 0 | AL91: prodotto 7 | AM91: 0 | AN91: =IF(LCC!$Q$28=1,LCC!$Q$27,0) -> 0 | AO91: =IF(OR(LCC!$Q$28=1,$E$24=2),LCC!$Q$27,0) -> 0 | AP91: =IF(OR(LCC!$Q$28=1,LCC!$Q$28=3),LCC!$Q$27,0) -> 0 | AQ91: =IF(OR(LCC!$Q$28=1,LCC!$Q$28=2,LCC!$Q$28=4),LCC!$Q$27,0) -> 0 | AR91: =IF(OR(LCC!$Q$28=1,LCC!$Q$28=5),LCC!$Q$27,0) -> 0 | AS91: =IF(OR(LCC!$Q$28=1,LCC!$Q$28=2,LCC!$Q$28=3,LCC!$Q$28=6),LCC!$Q$27,0) -> 0 | AT91: =IF(OR(LCC!$Q$28=1,LCC!$Q$28=7),LCC!$Q$27,0) -> 0 | AU91: =IF(OR(LCC!$Q$28=1,LCC!$Q$28=2,LCC!$Q$28=4,LCC!$Q$28=8),LCC!$Q$27,0) -> 0 | AV91: =IF(OR(LCC!$Q$28=1,LCC!$Q$28=3,LCC!$Q$28=9),LCC!$Q$27,0) -> 0 | AW91: =IF(OR(LCC!$Q$28=1,LCC!$Q$28=2,LCC!$Q$28=5,LCC!$Q$28=10),LCC!$Q$27,0) -> 0 | AX91: =SUM(AM91:INDEX(AM91:AW91,LCC!$E$6)) -> 0
X92: prodotto 5 | Y92: 0 | Z92: =IF(LCC!$M$28=1,LCC!$M$27,0) -> 0 | AA92: =IF(OR(LCC!$M$28=1,$E$24=2),LCC!$M$27,0) -> 0 | AB92: =IF(OR(LCC!$M$28=1,LCC!$M$28=3),LCC!$M$27,0) -> 0 | AC92: =IF(OR(LCC!$M$28=1,LCC!$M$28=2,LCC!$M$28=4),LCC!$M$27,0) -> 0 | AD92: =IF(OR(LCC!$M$28=1,LCC!$M$28=5),LCC!$M$27,0) -> 0 | AE92: =IF(OR(LCC!$M$28=1,LCC!$M$28=2,LCC!$M$28=3,LCC!$M$28=6),LCC!$M$27,0) -> 0 | AF92: =IF(OR(LCC!$M$28=1,LCC!$M$28=7),LCC!$M$27,0) -> 0 | AG92: =IF(OR(LCC!$M$28=1,LCC!$M$28=2,LCC!$M$28=4,LCC!$M$28=8),LCC!$M$27,0) -> 0 | AH92: =IF(OR(LCC!$M$28=1,LCC!$M$28=3,LCC!$M$28=9),LCC!$M$27,0) -> 0 | AI92: =IF(OR(LCC!$M$28=1,LCC!$M$28=2,LCC!$M$28=5,LCC!$M$28=10),LCC!$M$27,0) -> 0 | AJ92: =SUM(Y92:INDEX(Y92:AI92,LCC!$E$6)) -> 0 | AL92: prodotto 8 | AM92: 0 | AN92: =IF(LCC!$S$28=1,LCC!$S$27,0) -> 0 | AO92: =IF(OR(LCC!$S$28=1,$E$24=2),LCC!$S$27,0) -> 0 | AP92: =IF(OR(LCC!$S$28=1,LCC!$S$28=3),LCC!$S$27,0) -> 0 | AQ92: =IF(OR(LCC!$S$28=1,LCC!$S$28=2,LCC!$S$28=4),LCC!$S$27,0) -> 0 | AR92: =IF(OR(LCC!$S$28=1,LCC!$S$28=5),LCC!$S$27,0) -> 0 | AS92: =IF(OR(LCC!$S$28=1,LCC!$S$28=2,LCC!$S$28=3,LCC!$S$28=6),LCC!$S$27,0) -> 0 | AT92: =IF(OR(LCC!$S$28=1,LCC!$S$28=7),LCC!$S$27,0) -> 0 | AU92: =IF(OR(LCC!$S$28=1,LCC!$S$28=2,LCC!$S$28=4,LCC!$S$28=8),LCC!$S$27,0) -> 0 | AV92: =IF(OR(LCC!$S$28=1,LCC!$S$28=3,LCC!$S$28=9),LCC!$S$27,0) -> 0 | AW92: =IF(OR(LCC!$S$28=1,LCC!$S$28=2,LCC!$S$28=5,LCC!$S$28=10),LCC!$S$27,0) -> 0 | AX92: =SUM(AM92:INDEX(AM92:AW92,LCC!$E$6)) -> 0
X93: prodotto 6 | Y93: 0 | Z93: =IF(LCC!$O$28=1,LCC!$O$27,0) -> 0 | AA93: =IF(OR(LCC!$O$28=1,$E$24=2),LCC!$O$27,0) -> 0 | AB93: =IF(OR(LCC!$O$28=1,LCC!$O$28=3),LCC!$O$27,0) -> 0 | AC93: =IF(OR(LCC!$O$28=1,LCC!$O$28=2,LCC!$O$28=4),LCC!$O$27,0) -> 0 | AD93: =IF(OR(LCC!$O$28=1,LCC!$O$28=5),LCC!$O$27,0) -> 0 | AE93: =IF(OR(LCC!$O$28=1,LCC!$O$28=2,LCC!$O$28=3,LCC!$O$28=6),LCC!$O$27,0) -> 0 | AF93: =IF(OR(LCC!$O$28=1,LCC!$O$28=7),LCC!$O$27,0) -> 0 | AG93: =IF(OR(LCC!$O$28=1,LCC!$O$28=2,LCC!$O$28=4,LCC!$O$28=8),LCC!$O$27,0) -> 0 | AH93: =IF(OR(LCC!$O$28=1,LCC!$O$28=3,LCC!$O$28=9),LCC!$O$27,0) -> 0 | AI93: =IF(OR(LCC!$O$28=1,LCC!$O$28=2,LCC!$O$28=5,LCC!$O$28=10),LCC!$O$27,0) -> 0 | AJ93: =SUM(Y93:INDEX(Y93:AI93,LCC!$E$6)) -> 0 | AL93: prodotto 9 | AM93: 0 | AN93: =IF(LCC!$U$28=1,LCC!$U$27,0) -> 0 | AO93: =IF(OR(LCC!$U$28=1,$E$24=2),LCC!$U$27,0) -> 0 | AP93: =IF(OR(LCC!$U$28=1,LCC!$U$28=3),LCC!$U$27,0) -> 0 | AQ93: =IF(OR(LCC!$U$28=1,LCC!$U$28=2,LCC!$U$28=4),LCC!$U$27,0) -> 0 | AR93: =IF(OR(LCC!$U$28=1,LCC!$U$28=5),LCC!$U$27,0) -> 0 | AS93: =IF(OR(LCC!$U$28=1,LCC!$U$28=2,LCC!$U$28=3,LCC!$U$28=6),LCC!$U$27,0) -> 0 | AT93: =IF(OR(LCC!$U$28=1,LCC!$U$28=7),LCC!$U$27,0) -> 0 | AU93: =IF(OR(LCC!$U$28=1,LCC!$U$28=2,LCC!$U$28=4,LCC!$U$28=8),LCC!$U$27,0) -> 0 | AV93: =IF(OR(LCC!$U$28=1,LCC!$U$28=3,LCC!$U$28=9),LCC!$U$27,0) -> 0 | AW93: =IF(OR(LCC!$U$28=1,LCC!$U$28=2,LCC!$U$28=5,LCC!$U$28=10),LCC!$U$27,0) -> 0 | AX93: =SUM(AM93:INDEX(AM93:AW93,LCC!$E$6)) -> 0
X94: prodotto 7 | Y94: 0 | Z94: =IF(LCC!$Q$28=1,LCC!$Q$27,0) -> 0 | AA94: =IF(OR(LCC!$Q$28=1,$E$24=2),LCC!$Q$27,0) -> 0 | AB94: =IF(OR(LCC!$Q$28=1,LCC!$Q$28=3),LCC!$Q$27,0) -> 0 | AC94: =IF(OR(LCC!$Q$28=1,LCC!$Q$28=2,LCC!$Q$28=4),LCC!$Q$27,0) -> 0 | AD94: =IF(OR(LCC!$Q$28=1,LCC!$Q$28=5),LCC!$Q$27,0) -> 0 | AE94: =IF(OR(LCC!$Q$28=1,LCC!$Q$28=2,LCC!$Q$28=3,LCC!$Q$28=6),LCC!$Q$27,0) -> 0 | AF94: =IF(OR(LCC!$Q$28=1,LCC!$Q$28=7),LCC!$Q$27,0) -> 0 | AG94: =IF(OR(LCC!$Q$28=1,LCC!$Q$28=2,LCC!$Q$28=4,LCC!$Q$28=8),LCC!$Q$27,0) -> 0 | AH94: =IF(OR(LCC!$Q$28=1,LCC!$Q$28=3,LCC!$Q$28=9),LCC!$Q$27,0) -> 0 | AI94: =IF(OR(LCC!$Q$28=1,LCC!$Q$28=2,LCC!$Q$28=5,LCC!$Q$28=10),LCC!$Q$27,0) -> 0 | AJ94: =SUM(Y94:INDEX(Y94:AI94,LCC!$E$6)) -> 0 | AL94: prodotto 10 | AM94: 0 | AN94: =IF(LCC!$W$28=1,LCC!$W$27,0) -> 0 | AO94: =IF(OR(LCC!$W$28=1,$E$24=2),LCC!$W$27,0) -> 0 | AP94: =IF(OR(LCC!$W$28=1,LCC!$W$28=3),LCC!$W$27,0) -> 0 | AQ94: =IF(OR(LCC!$W$28=1,LCC!$W$28=2,LCC!$W$28=4),LCC!$W$27,0) -> 0 | AR94: =IF(OR(LCC!$W$28=1,LCC!$W$28=5),LCC!$W$27,0) -> 0 | AS94: =IF(OR(LCC!$W$28=1,LCC!$W$28=2,LCC!$W$28=3,LCC!$W$28=6),LCC!$W$27,0) -> 0 | AT94: =IF(OR(LCC!$W$28=1,LCC!$W$28=7),LCC!$W$27,0) -> 0 | AU94: =IF(OR(LCC!$W$28=1,LCC!$W$28=2,LCC!$W$28=4,LCC!$W$28=8),LCC!$W$27,0) -> 0 | AV94: =IF(OR(LCC!$W$28=1,LCC!$W$28=3,LCC!$W$28=9),LCC!$W$27,0) -> 0 | AW94: =IF(OR(LCC!$W$28=1,LCC!$W$28=2,LCC!$W$28=5,LCC!$W$28=10),LCC!$W$27,0) -> 0 | AX94: =SUM(AM94:INDEX(AM94:AW94,LCC!$E$6)) -> 0
X95: prodotto 8 | Y95: 0 | Z95: =IF(LCC!$S$28=1,LCC!$S$27,0) -> 0 | AA95: =IF(OR(LCC!$S$28=1,$E$24=2),LCC!$S$27,0) -> 0 | AB95: =IF(OR(LCC!$S$28=1,LCC!$S$28=3),LCC!$S$27,0) -> 0 | AC95: =IF(OR(LCC!$S$28=1,LCC!$S$28=2,LCC!$S$28=4),LCC!$S$27,0) -> 0 | AD95: =IF(OR(LCC!$S$28=1,LCC!$S$28=5),LCC!$S$27,0) -> 0 | AE95: =IF(OR(LCC!$S$28=1,LCC!$S$28=2,LCC!$S$28=3,LCC!$S$28=6),LCC!$S$27,0) -> 0 | AF95: =IF(OR(LCC!$S$28=1,LCC!$S$28=7),LCC!$S$27,0) -> 0 | AG95: =IF(OR(LCC!$S$28=1,LCC!$S$28=2,LCC!$S$28=4,LCC!$S$28=8),LCC!$S$27,0) -> 0 | AH95: =IF(OR(LCC!$S$28=1,LCC!$S$28=3,LCC!$S$28=9),LCC!$S$27,0) -> 0 | AI95: =IF(OR(LCC!$S$28=1,LCC!$S$28=2,LCC!$S$28=5,LCC!$S$28=10),LCC!$S$27,0) -> 0 | AJ95: =SUM(Y95:INDEX(Y95:AI95,LCC!$E$6)) -> 0
X96: prodotto 9 | Y96: 0 | Z96: =IF(LCC!$U$28=1,LCC!$U$27,0) -> 0 | AA96: =IF(OR(LCC!$U$28=1,$E$24=2),LCC!$U$27,0) -> 0 | AB96: =IF(OR(LCC!$U$28=1,LCC!$U$28=3),LCC!$U$27,0) -> 0 | AC96: =IF(OR(LCC!$U$28=1,LCC!$U$28=2,LCC!$U$28=4),LCC!$U$27,0) -> 0 | AD96: =IF(OR(LCC!$U$28=1,LCC!$U$28=5),LCC!$U$27,0) -> 0 | AE96: =IF(OR(LCC!$U$28=1,LCC!$U$28=2,LCC!$U$28=3,LCC!$U$28=6),LCC!$U$27,0) -> 0 | AF96: =IF(OR(LCC!$U$28=1,LCC!$U$28=7),LCC!$U$27,0) -> 0 | AG96: =IF(OR(LCC!$U$28=1,LCC!$U$28=2,LCC!$U$28=4,LCC!$U$28=8),LCC!$U$27,0) -> 0 | AH96: =IF(OR(LCC!$U$28=1,LCC!$U$28=3,LCC!$U$28=9),LCC!$U$27,0) -> 0 | AI96: =IF(OR(LCC!$U$28=1,LCC!$U$28=2,LCC!$U$28=5,LCC!$U$28=10),LCC!$U$27,0) -> 0 | AJ96: =SUM(Y96:INDEX(Y96:AI96,LCC!$E$6)) -> 0
X97: prodotto 10 | Y97: 0 | Z97: =IF(LCC!$W$28=1,LCC!$W$27,0) -> 0 | AA97: =IF(OR(LCC!$W$28=1,$E$24=2),LCC!$W$27,0) -> 0 | AB97: =IF(OR(LCC!$W$28=1,LCC!$W$28=3),LCC!$W$27,0) -> 0 | AC97: =IF(OR(LCC!$W$28=1,LCC!$W$28=2,LCC!$W$28=4),LCC!$W$27,0) -> 0 | AD97: =IF(OR(LCC!$W$28=1,LCC!$W$28=5),LCC!$W$27,0) -> 0 | AE97: =IF(OR(LCC!$W$28=1,LCC!$W$28=2,LCC!$W$28=3,LCC!$W$28=6),LCC!$W$27,0) -> 0 | AF97: =IF(OR(LCC!$W$28=1,LCC!$W$28=7),LCC!$W$27,0) -> 0 | AG97: =IF(OR(LCC!$W$28=1,LCC!$W$28=2,LCC!$W$28=4,LCC!$W$28=8),LCC!$W$27,0) -> 0 | AH97: =IF(OR(LCC!$W$28=1,LCC!$W$28=3,LCC!$W$28=9),LCC!$W$27,0) -> 0 | AI97: =IF(OR(LCC!$W$28=1,LCC!$W$28=2,LCC!$W$28=5,LCC!$W$28=10),LCC!$W$27,0) -> 0 | AJ97: =SUM(Y97:INDEX(Y97:AI97,LCC!$E$6)) -> 0

Sheet calcoli (hidden)
A1: FOR CALCULATIONS ONLY - DO NOT AMEND!
D3: prodotto 1 | E3: prodotto 2 | F3: prodotto 3 | G3: prodotto 4 | H3: prodotto 5 | I3: prodotto 6 | J3: prodotto 7 | K3: prodotto 8 | L3: prodotto 9 | M3: prodotto 10
C4: tipo di carburante | D4: =MATCH(LCC!E20,$B$26:$B$38,0) ->  | E4: =MATCH(LCC!G20,$B$26:$B$38,0) ->  | F4: =MATCH(LCC!I20,$B$26:$B$38,0) ->  | G4: =MATCH(LCC!K20,$B$26:$B$38,0) ->  | H4: =MATCH(LCC!M20,$B$26:$B$38,0) ->  | I4: =MATCH(LCC!O20,$B$26:$B$38,0) ->  | J4: =MATCH(LCC!Q20,$B$26:$B$38,0) ->  | K4: =MATCH(LCC!S20,$B$26:$B$38,0) ->  | L4: =MATCH(LCC!U20,$B$26:$B$38,0) ->  | M4: =MATCH(LCC!W20,$B$26:$B$38,0) -> 
C5: tipo di carburante 2 | D5: =IF(CELL("contents",LCC!E24)>0,MATCH(LCC!E24,$B$26:$B$38,0),0) -> 0 | E5: =IF(CELL("contents",LCC!G24)>0,MATCH(LCC!G24,$B$26:$B$38,0),0) -> 0 | F5: =IF(CELL("contents",LCC!I24)>0,MATCH(LCC!I24,$B$26:$B$38,0),0) -> 0 | G5: =IF(CELL("contents",LCC!K24)>0,MATCH(LCC!K24,$B$26:$B$38,0),0) -> 0 | H5: =IF(CELL("contents",LCC!M24)>0,MATCH(LCC!M24,$B$26:$B$38,0),0) -> 0 | I5: =IF(CELL("contents",LCC!O24)>0,MATCH(LCC!O24,$B$26:$B$38,0),0) -> 0 | J5: =IF(CELL("contents",LCC!Q24)>0,MATCH(LCC!Q24,$B$26:$B$38,0),0) -> 0 | K5: =IF(CELL("contents",LCC!S24)>0,MATCH(LCC!S24,$B$26:$B$38,0),0) -> 0 | L5: =IF(CELL("contents",LCC!U24)>0,MATCH(LCC!U24,$B$26:$B$38,0),0) -> 0 | M5: =IF(CELL("contents",LCC!W24)>0,MATCH(LCC!W24,$B$26:$B$38,0),0) -> 0
C6: carburante di riferimento (1 = diesel, 2 = benzina) | D6: =IF(LCC!E59>0,IF(LCC!E59="Diesel",1,2),0) -> 0 | E6: =IF(LCC!G59>0,IF(LCC!G59="Diesel",1,2),0) -> 0 | F6: =IF(LCC!I59>0,IF(LCC!I59="Diesel",1,2),0) -> 0 | G6: =IF(LCC!K59>0,IF(LCC!K59="Diesel",1,2),0) -> 0 | H6: =IF(LCC!M59>0,IF(LCC!M59="Diesel",1,2),0) -> 0 | I6: =IF(LCC!O59>0,IF(LCC!O59="Diesel",1,2),0) -> 0 | J6: =IF(LCC!Q59>0,IF(LCC!Q59="Diesel",1,2),0) -> 0 | K6: =IF(LCC!S59>0,IF(LCC!S59="Diesel",1,2),0) -> 0 | L6: =IF(LCC!U59>0,IF(LCC!U59="Diesel",1,2),0) -> 0 | M6: =IF(LCC!W59>0,IF(LCC!W59="Diesel",1,2),0) -> 0
C7: carburante 1 | D7: =INDEX(G$26:G$38,D4)/LCC!$E$6 ->  | E7: =INDEX(H$26:H$38,E4)/LCC!$E$6 ->  | F7: =INDEX(I$26:I$38,F4)/LCC!$E$6 ->  | G7: =INDEX(J$26:J$38,G4)/LCC!$E$6 ->  | H7: =INDEX(K$26:K$38,H4)/LCC!$E$6 ->  | I7: =INDEX(L$26:L$38,I4)/LCC!$E$6 ->  | J7: =INDEX(M$26:M$38,J4)/LCC!$E$6 ->  | K7: =INDEX(N$26:N$38,K4)/LCC!$E$6 ->  | L7: =INDEX(O$26:O$38,L4)/LCC!$E$6 ->  | M7: =INDEX(P$26:P$38,M4)/LCC!$E$6 -> 
C8: carburante 2 | D8: =IF(LCC!E23="Yes",INDEX(G$42:G$54,D5)/LCC!$E$6,0) -> 0 | E8: =IF(LCC!G23="Yes",INDEX(H$42:H$54,E5)/LCC!$E$6,0) -> 0 | F8: =IF(LCC!I23="Yes",INDEX(I$42:I$54,F5)/LCC!$E$6,0) -> 0 | G8: =IF(LCC!K23="Yes",INDEX(J$42:J$54,G5)/LCC!$E$6,0) -> 0 | H8: =IF(LCC!M23="Yes",INDEX(K$42:K$54,H5)/LCC!$E$6,0) -> 0 | I8: =IF(LCC!O23="Yes",INDEX(L$42:L$54,I5)/LCC!$E$6,0) -> 0 | J8: =IF(LCC!Q23="Yes",INDEX(M$42:M$54,J5)/LCC!$E$6,0) -> 0 | K8: =IF(LCC!S23="Yes",INDEX(N$42:N$54,K5)/LCC!$E$6,0) -> 0 | L8: =IF(LCC!U23="Yes",INDEX(O$42:O$54,L5)/LCC!$E$6,0) -> 0 | M8: =IF(LCC!W23="Yes",INDEX(P$42:P$54,M5)/LCC!$E$6,0) -> 0
C9: pagamento per periodo di carburante | D9: =SUM(D7:D8) -> 
C10: prezzo medio annuale batteria | D10: ='prezzi combustibile'!AJ88/LCC!$E$6 ->  | E10: ='prezzi combustibile'!AJ89/LCC!$E$6 ->  | F10: ='prezzi combustibile'!AJ90/LCC!$E$6 ->  | G10: ='prezzi combustibile'!AJ91/LCC!$E$6 ->  | H10: ='prezzi combustibile'!AJ92/LCC!$E$6 ->  | I10: ='prezzi combustibile'!AJ93/LCC!$E$6 ->  | J10: ='prezzi combustibile'!AJ94/LCC!$E$6 ->  | K10: ='prezzi combustibile'!AJ95/LCC!$E$6 ->  | L10: ='prezzi combustibile'!AJ96/LCC!$E$6 ->  | M10: ='prezzi combustibile'!AJ97/LCC!$E$6 -> 
C11: prezzo carburante per litro scegliendo i valori (carburante 1) | D11: =IF(INDEX(LCC!$C$84:$D$96,calcoli!D4,2)>0,LCC!$E$22-CUMIPMT(INDEX(LCC!$C$84:$D$96,calcoli!D4,2),LCC!$E$6,LCC!$E$22,1,LCC!$E$6,1),LCC!$E$22*(1+(INDEX(LCC!$C$84:$D$95,calcoli!D4,2))^LCC!$E$6)) ->  | E11: =IF(INDEX(LCC!$C$84:$D$96,calcoli!E4,2)>0,LCC!$G$22-CUMIPMT(INDEX(LCC!$C$84:$D$96,calcoli!E4,2),LCC!$E$6,LCC!$G$22,1,LCC!$E$6,1),LCC!$G$22*(1+(INDEX(LCC!$C$84:$D$95,calcoli!E4,2))^LCC!$E$6)) ->  | F11: =IF(INDEX(LCC!$C$84:$D$96,calcoli!F4,2)>0,LCC!$I$22-CUMIPMT(INDEX(LCC!$C$84:$D$96,calcoli!F4,2),LCC!$E$6,LCC!$I$22,1,LCC!$E$6,1),LCC!$I$22*(1+(INDEX(LCC!$C$84:$D$95,calcoli!F4,2))^LCC!$E$6)) ->  | G11: =IF(INDEX(LCC!$C$84:$D$96,calcoli!G4,2)>0,LCC!$K$22-CUMIPMT(INDEX(LCC!$C$84:$D$96,calcoli!G4,2),LCC!$E$6,LCC!$K$22,1,LCC!$E$6,1),LCC!$K$22*(1+(INDEX(LCC!$C$84:$D$95,calcoli!G4,2))^LCC!$E$6)) ->  | H11: =IF(INDEX(LCC!$C$84:$D$96,calcoli!H4,2)>0,LCC!$M$22-CUMIPMT(INDEX(LCC!$C$84:$D$96,calcoli!H4,2),LCC!$E$6,LCC!$M$22,1,LCC!$E$6,1),LCC!$M$22*(1+(INDEX(LCC!$C$84:$D$95,calcoli!H4,2))^LCC!$E$6)) ->  | I11: =IF(INDEX(LCC!$C$84:$D$96,calcoli!I4,2)>0,LCC!$O$22-CUMIPMT(INDEX(LCC!$C$84:$D$96,calcoli!I4,2),LCC!$E$6,LCC!$O$22,1,LCC!$E$6,1),LCC!$O$22*(1+(INDEX(LCC!$C$84:$D$95,calcoli!I4,2))^LCC!$E$6)) ->  | J11: =IF(INDEX(LCC!$C$84:$D$96,calcoli!J4,2)>0,LCC!$Q$22-CUMIPMT(INDEX(LCC!$C$84:$D$96,calcoli!J4,2),LCC!$E$6,LCC!$Q$22,1,LCC!$E$6,1),LCC!$Q$22*(1+(INDEX(LCC!$C$84:$D$95,calcoli!J4,2))^LCC!$E$6)) ->  | K11: =IF(INDEX(LCC!$C$84:$D$96,calcoli!K4,2)>0,LCC!$S$22-CUMIPMT(INDEX(LCC!$C$84:$D$96,calcoli!K4,2),LCC!$E$6,LCC!$S$22,1,LCC!$E$6,1),LCC!$S$22*(1+(INDEX(LCC!$C$84:$D$95,calcoli!K4,2))^LCC!$E$6)) ->  | L11: =IF(INDEX(LCC!$C$84:$D$96,calcoli!L4,2)>0,LCC!$U$22-CUMIPMT(INDEX(LCC!$C$84:$D$96,calcoli!L4,2),LCC!$E$6,LCC!$U$22,1,LCC!$E$6,1),LCC!$U$22*(1+(INDEX(LCC!$C$84:$D$95,calcoli!L4,2))^LCC!$E$6)) ->  | M11: =IF(INDEX(LCC!$C$84:$D$96,calcoli!M4,2)>0,LCC!$W$22-CUMIPMT(INDEX(LCC!$C$84:$D$96,calcoli!M4,2),LCC!$E$6,LCC!$W$22,1,LCC!$E$6,1),LCC!$W$22*(1+(INDEX(LCC!$C$84:$D$95,calcoli!M4,2))^LCC!$E$6)) -> 
C12: prezzo carburante per litro scegliendo i valori (carburante 2) | D12: =IF(CELL("contents",D5)>0,IF(INDEX(LCC!$C$84:$D$96,calcoli!D5,2)>0,LCC!$E$26-CUMIPMT(INDEX(LCC!$C$84:$D$96,calcoli!D5,2),LCC!$E$6,LCC!$E$26,1,LCC!$E$6,1),LCC!$E$26*(1+(INDEX(LCC!$C$84:$D$95,calcoli!D5,2))^LCC!$E$6)),0) -> 0 | E12: =IF(CELL("contents",E5)>0,IF(INDEX(LCC!$C$84:$D$96,calcoli!E5,2)>0,LCC!G26-CUMIPMT(INDEX(LCC!$C$84:$D$96,calcoli!E5,2),LCC!$E$6,LCC!G26,1,LCC!$E$6,1),LCC!G26*(1+(INDEX(LCC!$C$84:$D$95,calcoli!E5,2))^LCC!$E$6)),0) -> 0 | F12: =IF(CELL("contents",F5)>0,IF(INDEX(LCC!$C$84:$D$96,calcoli!F5,2)>0,LCC!I26-CUMIPMT(INDEX(LCC!$C$84:$D$96,calcoli!F5,2),LCC!$E$6,LCC!I26,1,LCC!$E$6,1),LCC!I26*(1+(INDEX(LCC!$C$84:$D$95,calcoli!F5,2))^LCC!$E$6)),0) -> 0 | G12: =IF(CELL("contents",G5)>0,IF(INDEX(LCC!$C$84:$D$96,calcoli!G5,2)>0,LCC!K26-CUMIPMT(INDEX(LCC!$C$84:$D$96,calcoli!G5,2),LCC!$E$6,LCC!K26,1,LCC!$E$6,1),LCC!K26*(1+(INDEX(LCC!$C$84:$D$95,calcoli!G5,2))^LCC!$E$6)),0) -> 0 | H12: =IF(CELL("contents",H5)>0,IF(INDEX(LCC!$C$84:$D$96,calcoli!H5,2)>0,LCC!M26-CUMIPMT(INDEX(LCC!$C$84:$D$96,calcoli!H5,2),LCC!$E$6,LCC!M26,1,LCC!$E$6,1),LCC!M26*(1+(INDEX(LCC!$C$84:$D$95,calcoli!H5,2))^LCC!$E$6)),0) -> 0 | I12: =IF(CELL("contents",I5)>0,IF(INDEX(LCC!$C$84:$D$96,calcoli!I5,2)>0,LCC!O26-CUMIPMT(INDEX(LCC!$C$84:$D$96,calcoli!I5,2),LCC!$E$6,LCC!O26,1,LCC!$E$6,1),LCC!O26*(1+(INDEX(LCC!$C$84:$D$95,calcoli!I5,2))^LCC!$E$6)),0) -> 0 | J12: =IF(CELL("contents",J5)>0,IF(INDEX(LCC!$C$84:$D$96,calcoli!J5,2)>0,LCC!Q26-CUMIPMT(INDEX(LCC!$C$84:$D$96,calcoli!J5,2),LCC!$E$6,LCC!Q26,1,LCC!$E$6,1),LCC!Q26*(1+(INDEX(LCC!$C$84:$D$95,calcoli!J5,2))^LCC!$E$6)),0) -> 0 | K12: =IF(CELL("contents",K5)>0,IF(INDEX(LCC!$C$84:$D$96,calcoli!K5,2)>0,LCC!S26-CUMIPMT(INDEX(LCC!$C$84:$D$96,calcoli!K5,2),LCC!$E$6,LCC!S26,1,LCC!$E$6,1),LCC!S26*(1+(INDEX(LCC!$C$84:$D$95,calcoli!K5,2))^LCC!$E$6)),0) -> 0 | L12: =IF(CELL("contents",L5)>0,IF(INDEX(LCC!$C$84:$D$96,calcoli!L5,2)>0,LCC!U26-CUMIPMT(INDEX(LCC!$C$84:$D$96,calcoli!L5,2),LCC!$E$6,LCC!U26,1,LCC!$E$6,1),LCC!U26*(1+(INDEX(LCC!$C$84:$D$95,calcoli!L5,2))^LCC!$E$6)),0) -> 0 | M12: =IF(CELL("contents",M5)>0,IF(INDEX(LCC!$C$84:$D$96,calcoli!M5,2)>0,LCC!W26-CUMIPMT(INDEX(LCC!$C$84:$D$96,calcoli!M5,2),LCC!$E$6,LCC!W26,1,LCC!$E$6,1),LCC!W26*(1+(INDEX(LCC!$C$84:$D$95,calcoli!M5,2))^LCC!$E$6)),0) -> 0
C13: carburante consumption per vehicle (carburante 1) | D13: =LCC!E$21 -> 0 | E13: =LCC!G$21 -> 0 | F13: =LCC!I$21 -> 0 | G13: =LCC!K$21 -> 0 | H13: =LCC!M$21 -> 0 | I13: =LCC!O$21 -> 0 | J13: =LCC!Q$21 -> 0 | K13: =LCC!S$21 -> 0 | L13: =LCC!U$21 -> 0 | M13: =LCC!W$21 -> 0
C14: contenuto energetico (carburante 1) | D14: =IF(CELL("contents",LCC!E22)>0,INDEX($C$26:$C$38,D$4),0) -> 0 | E14: =IF(CELL("contents",LCC!G22)>0,INDEX($C$26:$C$38,E$4),0) -> 0 | F14: =IF(CELL("contents",LCC!I22)>0,INDEX($C$26:$C$38,F$4),0) -> 0 | G14: =IF(CELL("contents",LCC!K22)>0,INDEX($C$26:$C$38,G$4),0) -> 0 | H14: =IF(CELL("contents",LCC!M22)>0,INDEX($C$26:$C$38,H$4),0) -> 0 | I14: =IF(CELL("contents",LCC!O22)>0,INDEX($C$26:$C$38,I$4),0) -> 0 | J14: =IF(CELL("contents",LCC!Q22)>0,INDEX($C$26:$C$38,J$4),0) -> 0 | K14: =IF(CELL("contents",LCC!S22)>0,INDEX($C$26:$C$38,K$4),0) -> 0 | L14: =IF(CELL("contents",LCC!U22)>0,INDEX($C$26:$C$38,L$4),0) -> 0 | M14: =IF(CELL("contents",LCC!W22)>0,INDEX($C$26:$C$38,M$4),0) -> 0
C15: consumo carburante per veicolo (carburante 2) | D15: =LCC!E$25 -> 0 | E15: =LCC!G$25 -> 0 | F15: =LCC!I$25 -> 0 | G15: =LCC!K$25 -> 0 | H15: =LCC!M$25 -> 0 | I15: =LCC!O$25 -> 0 | J15: =LCC!Q$25 -> 0 | K15: =LCC!S$25 -> 0 | L15: =LCC!U$25 -> 0 | M15: =LCC!W$25 -> 0
C16: contenuto energetico (carburante 2) | D16: =IF(CELL("contents",LCC!E26)>0,INDEX($C$42:$C$54,D$5),0) -> 0 | E16: =IF(CELL("contents",LCC!G26)>0,INDEX($C$42:$C$54,E$5),0) -> 0 | F16: =IF(CELL("contents",LCC!I26)>0,INDEX($C$42:$C$54,F$5),0) -> 0 | G16: =IF(CELL("contents",LCC!K26)>0,INDEX($C$42:$C$54,G$5),0) -> 0 | H16: =IF(CELL("contents",LCC!M26)>0,INDEX($C$42:$C$54,H$5),0) -> 0 | I16: =IF(CELL("contents",LCC!O26)>0,INDEX($C$42:$C$54,I$5),0) -> 0 | J16: =IF(CELL("contents",LCC!Q26)>0,INDEX($C$42:$C$54,J$5),0) -> 0 | K16: =IF(CELL("contents",LCC!S26)>0,INDEX($C$42:$C$54,K$5),0) -> 0 | L16: =IF(CELL("contents",LCC!U26)>0,INDEX($C$42:$C$54,L$5),0) -> 0 | M16: =IF(CELL("contents",LCC!W26)>0,INDEX($C$42:$C$54,M$5),0) -> 0
C17: consumo energetico (MJ/km) | D17: =((D13/100)*D14)+((D15/100)*D16) -> 0 | E17: 0 | F17: 0 | G17: 0 | H17: 0 | I17: 0 | J17: 0 | K17: 0 | L17: 0 | M17: 0
C18: Costo al litro del carburante di riferimento (€/l) | D18: =LCC!E$60 -> 0 | E18: =LCC!G$60 -> 0 | F18: =LCC!I$60 -> 0 | G18: =LCC!K$60 -> 0 | H18: =LCC!M$60 -> 0 | I18: =LCC!O$60 -> 0 | J18: =LCC!Q$60 -> 0 | K18: =LCC!S$60 -> 0 | L18: =LCC!U$60 -> 0 | M18: =LCC!W$60 -> 0
C19: contenuto energetico carburante di riferimento | D19: =IF(D$6=1,$C$26, IF(D$6=2,$C$27,0)) -> 0 | E19: 0 | F19: 0 | G19: 0 | H19: 0 | I19: 0 | J19: 0 | K19: 0 | L19: 0 | M19: 0
C20: Costo per unità di energia (€/MJ) | D20: =IF(CELL("contents",D18)>0,D18/D19,0) -> 0 | E20: 0 | F20: 0 | G20: 0 | H20: 0 | I20: 0 | J20: 0 | K20: 0 | L20: 0 | M20: 0
C21: chilometraggio di vita (km) | D21: =LCC!E19*LCC!E$6 -> 0 | E21: =LCC!G19*LCC!$E$6 -> 0 | F21: =LCC!I19*LCC!E$6 -> 0 | G21: =LCC!K19*LCC!E$6 -> 0 | H21: =LCC!M19*LCC!E$6 -> 0 | I21: =LCC!O19*LCC!E$6 -> 0 | J21: =LCC!Q19*LCC!E$6 -> 0 | K21: =LCC!S19*LCC!E$6 -> 0 | L21: =LCC!U19*LCC!E$6 -> 0 | M21: =LCC!W19*LCC!E$6 -> 0
C22: costo di vita del consumo energetico (€) | D22: =IF(CELL("contents",D17)>0,D17*D20*D21,0) -> 0 | E22: 0 | F22: 0 | G22: 0 | H22: 0 | I22: 0 | J22: 0 | K22: 0 | L22: 0 | M22: 0
B24: carburante 1 | G24: costo totale per il carburante per il periodo specificato
B25: tipo carburante | C25: contenuto energetico | D25: unità di misura | E25: unità di misura consumo combustibile | F25: unità di misura costo | G25: prodotto 1 | H25: prodotto 2 | I25: prodotto 3 | J25: prodotto 4 | K25: prodotto 5 | L25: prodotto 6 | M25: prodotto 7 | N25: prodotto 8 | O25: prodotto 9 | P25: prodotto 10
B26: Diesel | C26: 36 | D26: MJ/l | E26: l/100km | F26: €/l | G26: ='prezzi combustibile'!$H$28 -> 0 | H26: ='prezzi combustibile'!$I$28 -> 0 | I26: ='prezzi combustibile'!$J$28 -> 0 | J26: ='prezzi combustibile'!$K$28 -> 0 | K26: ='prezzi combustibile'!L$28 -> 0 | L26: ='prezzi combustibile'!M$28 -> 0 | M26: ='prezzi combustibile'!N$28 -> 0 | N26: ='prezzi combustibile'!O$28 -> 0 | O26: ='prezzi combustibile'!P$28 -> 0 | P26: ='prezzi combustibile'!Q$28 -> 0
B27: benzina | C27: 32 | D27: MJ/l | E27: l/100km | F27: €/l | G27: ='prezzi combustibile'!$H$30 -> 0 | H27: ='prezzi combustibile'!$I$30 -> 0 | I27: ='prezzi combustibile'!$J$30 -> 0 | J27: ='prezzi combustibile'!$K$30 -> 0 | K27: ='prezzi combustibile'!L$30 -> 0 | L27: ='prezzi combustibile'!M$30 -> 0 | M27: ='prezzi combustibile'!N$30 -> 0 | N27: ='prezzi combustibile'!O$30 -> 0 | O27: ='prezzi combustibile'!P$30 -> 0 | P27: ='prezzi combustibile'!Q$30 -> 0
A28: i | B28: Biogas/CBG | C28: 35 | D28: MJ/Nm3 | E28: Nm3/100km | F28: €/Nm3
A29: i | B29: Natural Gas/CNG (Nm3/100km) | C29: 35 | D29: MJ/Nm3 | E29: Nm3/100km | F29: €/Nm3 | G29: ='prezzi combustibile'!$H$40 -> 0 | H29: ='prezzi combustibile'!$I$40 -> 0 | I29: ='prezzi combustibile'!$J$40 -> 0 | J29: ='prezzi combustibile'!$K$40 -> 0 | K29: ='prezzi combustibile'!L$40 -> 0 | L29: ='prezzi combustibile'!M$40 -> 0 | M29: ='prezzi combustibile'!N$40 -> 0 | N29: ='prezzi combustibile'!O$40 -> 0 | O29: ='prezzi combustibile'!P$40 -> 0 | P29: ='prezzi combustibile'!Q$40 -> 0
A30: i | B30: Natural Gas/CNG (kg/100km) | C30: =C29*0.7 -> 24.5 | D30: MJ/kg | E30: kg/100km | F30: €/kg | G30: ='prezzi combustibile'!$H$40 -> 0 | H30: ='prezzi combustibile'!$I$40 -> 0 | I30: ='prezzi combustibile'!$J$40 -> 0 | J30: ='prezzi combustibile'!$K$40 -> 0 | K30: ='prezzi combustibile'!L$40 -> 0 | L30: ='prezzi combustibile'!M$40 -> 0 | M30: ='prezzi combustibile'!N$40 -> 0 | N30: ='prezzi combustibile'!O$40 -> 0 | O30: ='prezzi combustibile'!P$40 -> 0 | P30: ='prezzi combustibile'!Q$40 -> 0
B31: elettricità | C31: 3.6 | D31: MJ/kWh | E31: kWh/100km | F31: €/kWh | G31: ='prezzi combustibile'!$H$36 -> 0 | H31: ='prezzi combustibile'!$I$36 -> 0 | I31: ='prezzi combustibile'!$J$36 -> 0 | J31: ='prezzi combustibile'!$K$36 -> 0 | K31: ='prezzi combustibile'!L$36 -> 0 | L31: ='prezzi combustibile'!M$36 -> 0 | M31: ='prezzi combustibile'!N$36 -> 0 | N31: ='prezzi combustibile'!O$36 -> 0 | O31: ='prezzi combustibile'!P$36 -> 0 | P31: ='prezzi combustibile'!Q$36 -> 0
B32: biodiesel | C32: 33 | D32: MJ/l | E32: l/100km | F32: €/l | G32: ='prezzi combustibile'!$H$38 -> 0 | H32: ='prezzi combustibile'!$I$38 -> 0 | I32: ='prezzi combustibile'!$J$38 -> 0 | J32: ='prezzi combustibile'!$K$38 -> 0 | K32: ='prezzi combustibile'!L$38 -> 0 | L32: ='prezzi combustibile'!M$38 -> 0 | M32: ='prezzi combustibile'!N$38 -> 0 | N32: ='prezzi combustibile'!O$38 -> 0 | O32: ='prezzi combustibile'!P$38 -> 0 | P32: ='prezzi combustibile'!Q$38 -> 0
B33: LPG | C33: 24 | D33: MJ/l | E33: l/100km | F33: €/l | G33: ='prezzi combustibile'!$H$32 -> 0 | H33: ='prezzi combustibile'!$I$32 -> 0 | I33: ='prezzi combustibile'!$J$32 -> 0 | J33: ='prezzi combustibile'!$K$32 -> 0 | K33: ='prezzi combustibile'!L$32 -> 0 | L33: ='prezzi combustibile'!M$32 -> 0 | M33: ='prezzi combustibile'!N$32 -> 0 | N33: ='prezzi combustibile'!O$32 -> 0 | O33: ='prezzi combustibile'!P$32 -> 0 | P33: ='prezzi combustibile'!Q$32 -> 0
B34: etanolo | C34: 21 | D34: MJ/l | E34: l/100km | F34: €/l | G34: ='prezzi combustibile'!$H$34 -> 0 | H34: ='prezzi combustibile'!$I$34 -> 0 | I34: ='prezzi combustibile'!$J$34 -> 0 | J34: ='prezzi combustibile'!$K$34 -> 0 | K34: ='prezzi combustibile'!L$34 ->  | L34: ='prezzi combustibile'!M$34 ->  | M34: ='prezzi combustibile'!N$34 ->  | N34: ='prezzi combustibile'!O$34 -> 0 | O34: ='prezzi combustibile'!P$34 -> 0 | P34: ='prezzi combustibile'!Q$34 -> 0
B35: idrogeno gas | C35: 11 | D35: MJ/Nm3 | E35: Nm3/100km | F35: €/Nm3
B36: idrogeno liquido - kg/100km | C36: 120 | D36: MJ/kg | E36: kg/100km | F36: €/kg
B37: idrogeno liquido - l/100km | C37: 8.6 | D37: MJ/l | E37: l/100km | F37: €/l
B38: Carburante emulsionato | C38: 32 | D38: MJ/l | E38: l/100km | F38: €/l
B40: carburante 2 | G40: costo totale per il carburante per il periodo specificato
B41: tipo carburante | C41: contenuto energetico | D41: unità di misura | E41: unità di misura consumo combustibile | F41: unità di misura costo | G41: prodotto 1 | H41: prodotto 2 | I41: prodotto 3 | J41: prodotto 4 | K41: prodotto 5 | L41: prodotto 6 | M41: prodotto 7 | N41: prodotto 8 | O41: prodotto 9 | P41: prodotto 10
B42: Diesel | C42: 36 | D42: MJ/l | E42: l/100km | F42: €/l | G42: ='prezzi combustibile'!$H$29 -> 0 | H42: ='prezzi combustibile'!$I$29 -> 0 | I42: ='prezzi combustibile'!$J$29 -> 0 | J42: ='prezzi combustibile'!$K$29 -> 0 | K42: ='prezzi combustibile'!L$29 -> 0 | L42: ='prezzi combustibile'!M$29 -> 0 | M42: ='prezzi combustibile'!N$29 -> 0 | N42: ='prezzi combustibile'!O$29 -> 0 | O42: ='prezzi combustibile'!P$29 -> 0 | P42: ='prezzi combustibile'!Q$29 -> 0
B43: benzina | C43: 32 | D43: MJ/l | E43: l/100km | F43: €/l | G43: ='prezzi combustibile'!$H$31 -> 0 | H43: ='prezzi combustibile'!$I$31 -> 0 | I43: ='prezzi combustibile'!$J$31 -> 0 | J43: ='prezzi combustibile'!$K$31 -> 0 | K43: ='prezzi combustibile'!L$31 -> 0 | L43: ='prezzi combustibile'!M$31 -> 0 | M43: ='prezzi combustibile'!N$31 -> 0 | N43: ='prezzi combustibile'!O$31 -> 0 | O43: ='prezzi combustibile'!P$31 -> 0 | P43: ='prezzi combustibile'!Q$31 -> 0
A44: i | B44: Biogas/CBG | C44: 35 | D44: MJ/Nm3 | E44: Nm3/100km | F44: €/Nm3
A45: i | B45: Gas Naturale/CNG (Nm3/100km) | C45: 35 | D45: MJ/Nm3 | E45: Nm3/100km | F45: €/Nm3 | G45: ='prezzi combustibile'!$H$41 -> 0 | H45: ='prezzi combustibile'!$I$41 -> 0 | I45: ='prezzi combustibile'!$J$41 -> 22209 | J45: ='prezzi combustibile'!$K$41 -> 0 | K45: ='prezzi combustibile'!L$41 -> 0 | L45: ='prezzi combustibile'!M$41 -> 0 | M45: ='prezzi combustibile'!N$41 -> 0 | N45: ='prezzi combustibile'!O$41 -> 0 | O45: ='prezzi combustibile'!P$41 -> 0 | P45: ='prezzi combustibile'!Q$41 -> 0
A46: i | B46: Gas naturale/CNG (kg/100km) | C46: 23 | D46: MJ/kg | E46: kg/100km | F46: €/kg | G46: ='prezzi combustibile'!$H$41 -> 0 | H46: ='prezzi combustibile'!$I$41 -> 0 | I46: ='prezzi combustibile'!$J$41 -> 22209 | J46: ='prezzi combustibile'!$K$41 -> 0 | K46: ='prezzi combustibile'!L$41 -> 0 | L46: ='prezzi combustibile'!M$41 -> 0 | M46: ='prezzi combustibile'!N$41 -> 0 | N46: ='prezzi combustibile'!O$41 -> 0 | O46: ='prezzi combustibile'!P$41 -> 0 | P46: ='prezzi combustibile'!Q$41 -> 0
B47: elettricità | C47: 3.6 | D47: MJ/kWh | E47: kWh/100km | F47: €/kWh | G47: ='prezzi combustibile'!$H$37 -> 0 | H47: ='prezzi combustibile'!$I$37 -> 0 | I47: ='prezzi combustibile'!$J$37 -> 22209 | J47: ='prezzi combustibile'!$K$37 -> 0 | K47: ='prezzi combustibile'!L$37 -> 0 | L47: ='prezzi combustibile'!M$37 -> 0 | M47: ='prezzi combustibile'!N$37 -> 0 | N47: ='prezzi combustibile'!O$37 -> 0 | O47: ='prezzi combustibile'!P$37 -> 0 | P47: ='prezzi combustibile'!Q$37 -> 0
B48: biodiesel | C48: 33 | D48: MJ/l | E48: l/100km | F48: €/l | G48: ='prezzi combustibile'!$H$39 -> 0 | H48: ='prezzi combustibile'!$I$39 -> 0 | I48: ='prezzi combustibile'!$J$39 -> 22209 | J48: ='prezzi combustibile'!$K$39 -> 0 | K48: ='prezzi combustibile'!L$39 -> 0 | L48: ='prezzi combustibile'!M$39 -> 0 | M48: ='prezzi combustibile'!N$39 -> 0 | N48: ='prezzi combustibile'!O$39 -> 0 | O48: ='prezzi combustibile'!P$39 -> 0 | P48: ='prezzi combustibile'!Q$39 -> 0
B49: LPG | C49: 24 | D49: MJ/l | E49: l/100km | F49: €/l | G49: ='prezzi combustibile'!$H$33 -> 0 | H49: ='prezzi combustibile'!$I$33 -> 0 | I49: ='prezzi combustibile'!$J$33 -> 0 | J49: ='prezzi combustibile'!$K$33 -> 0 | K49: ='prezzi combustibile'!L$33 -> 0 | L49: ='prezzi combustibile'!M$33 -> 0 | M49: ='prezzi combustibile'!N$33 -> 0 | N49: ='prezzi combustibile'!O$33 -> 0 | O49: ='prezzi combustibile'!P$33 -> 0 | P49: ='prezzi combustibile'!Q$33 -> 0
B50: etanolo | C50: 21 | D50: MJ/l | E50: l/100km | F50: €/l | G50: ='prezzi combustibile'!$H$35 -> 0 | H50: ='prezzi combustibile'!$I$35 -> 0 | I50: ='prezzi combustibile'!$J$35 -> 0 | J50: ='prezzi combustibile'!$K$35 -> 0 | K50: ='prezzi combustibile'!L$35 ->  | L50: ='prezzi combustibile'!M$35 ->  | M50: ='prezzi combustibile'!N$35 ->  | N50: ='prezzi combustibile'!O$35 -> 0 | O50: ='prezzi combustibile'!P$35 -> 0 | P50: ='prezzi combustibile'!Q$35 -> 0
B51: idrogeno gas | C51: 11 | D51: MJ/Nm3 | E51: Nm3/100km | F51: €/Nm3
B52: idrogeno liquido - kg/100km | C52: 120 | D52: MJ/kg | E52: kg/100km | F52: €/kg
B53: idrogeno liquido - l/100km | C53: 8.6 | D53: MJ/l | E53: l/100km | F53: €/l
B54: Carburante emulsionato | C54: 32 | D54: MJ/l | E54: l/100km | F54: €/l
B56: Elenchi a tendina
B57: tipo di contratto | C57: carburante di riferimento | D57: aumento prezzo carburante | E57: si_no
B58: acquisto | C58: Diesel | D58: scegli uno dei valori | E58: si | F58: si
B59: leasing | C59: benzina | D59: Usa i valori OECD-FAO di default | E59: no | F59: no

Sheet esempio (hidden)
D2: VEICOLI - CALCOLATORE LCC
D3: completa riempiendo solo le celle bianche
B5: CONDIZIONI GENERALI
C6: lunghezza contratto | D6: anno | E6: 10 | G6: =E6 -> 10 | I6: =E6 -> 10 | K6: =E6 -> 10 | N6: =F6 -> 0
B7: i | C7: sconto | D7: % | E7: 2 | G7: =E7 -> 2 | I7: =E7 -> 2 | K7: =E7 -> 2 | N7: =F7 -> 0
B8: i | C8: numero offerte | E8: 2
B10: COSTI DI ACQUISIZIONE
C11: Name del modello di veicolo | E11: Mercedes Citaro 10.5m | G11: Volvo Hybrid 10.5m | I11: Product 3 | K11: Product 4 | M11: Product 5
B13: i | C13: numero di veicoli | E13: 10 | G13: 10
B14: i | C14: prezzo di acquisto | D14: €/unità | E14: 217800 | F14: €/unità | G14: 310000 | H14: €/unità | J14: €/unità | L14: €/unità
C15: (or) prezzo leasing | D15: €/unità/anno | F15: €/unità/anno | H15: €/unità/anno | J15: €/unità/anno | L15: €/unità/anno
C16: COSTI DI ACQUISIZIONE / unità | E16: =IF(CELL("type",E13)="v",-PV($E$7*0.01,$E$6,E15)+E14,0) -> 217800 | G16: =IF(CELL("type",G13)="v",-PV($E$7*0.01,$E$6,G15)+G14,0) -> 310000 | I16: =IF(CELL("type",I13)="v",-PV($E$7*0.01,$E$6,I15)+I14,0) -> 0 | K16: =IF(CELL("type",K13)="v",-PV($E$7*0.01,$E$6,K15)+K14,0) -> 0 | M16: =IF(CELL("type",M13)="v",-PV($E$7*0.01,$E$6,M15)+M14,0) -> 0
B18: COSTI OPERATIVI PER VEICOLO
B19: i | C19: uso annuale veicolo | D19: km | E19: 80000 | F19: km | G19: 80000 | H19: km | I19: 20000 | J19: km | L19: km
B20: i | C20: tipo di carburante | E20: Diesel | G20: Diesel | I20: Biodiesel
B21: i | C21: consumo di carburante per veicolo | D21: l/100km | E21: 41.9 | F21: =INDEX('calcolo esempio'!$E$26:$E$38,'calcolo esempio'!E$4) -> l/100km | G21: 32.6 | H21: =INDEX('calcolo esempio'!$E$26:$E$38,'calcolo esempio'!F$4) -> l/100km | I21: 60 | J21: =INDEX('calcolo esempio'!$E$26:$E$38,'calcolo esempio'!G$4) ->  | L21: =INDEX('calcolo esempio'!$E$26:$E$38,'calcolo esempio'!H$4) -> 
C22: prezzo carburante | D22: €/l | E22: 1.22 | F22: =INDEX('calcolo esempio'!$F$26:$F$38,'calcolo esempio'!E4) -> €/l | G22: 1.22 | H22: =INDEX('calcolo esempio'!$F$26:$F$38,'calcolo esempio'!F4) -> €/l | I22: 3 | J22: =INDEX('calcolo esempio'!$F$26:$F$38,'calcolo esempio'!G4) ->  | L22: =INDEX('calcolo esempio'!$F$26:$F$38,'calcolo esempio'!H4) -> 
B23: i | C23: secondo tipo di carburante? | E23: No | G23: No | I23: No
C24: tipo di carburante | G24: benzina
B25: i | C25: consumo di carburante per veicolo | D25: =INDEX(calcoli!$E$26:$E$38,calcoli!D$5) ->  | F25: =INDEX('calcolo esempio'!$E$26:$E$38,'calcolo esempio'!E$5) -> l/100km | G25: 250 | H25: =INDEX('calcolo esempio'!$E$26:$E$38,'calcolo esempio'!F$5) ->  | J25: =INDEX('calcolo esempio'!$E$26:$E$38,'calcolo esempio'!G$5) ->  | L25: =INDEX('calcolo esempio'!$E$26:$E$38,'calcolo esempio'!H$5) -> 
C26: prezzo carburante | D26: =INDEX(calcoli!$F$26:$F$38,calcoli!D5) -> €/l | F26: =INDEX('calcolo esempio'!$F$26:$F$38,'calcolo esempio'!E5) -> €/l | G26: 1 | H26: =INDEX('calcolo esempio'!$F$26:$F$38,'calcolo esempio'!F5) ->  | J26: =INDEX('calcolo esempio'!$F$26:$F$38,'calcolo esempio'!G5) ->  | L26: =INDEX('calcolo esempio'!$F$26:$F$38,'calcolo esempio'!H5) -> 
C27: Replacement battery price | D27: €/unità | F27: €/unità | G27: 25 | H27: €/unità | J27: €/unità | L27: €/unità | N27: €/unità
C28: Expected lifetime of battery | D28: annos | F28: annos | G28: 3 | H28: annos | J28: annos | L28: annos | N28: annos
C29: (or) Battery lease price | D29: €/unità/anno | F29: €/unità/anno | H29: €/unità/anno | J29: €/unità/anno | L29: €/unità/anno | N29: €/unità/anno
C30: COSTI OPERATIVI / unità | E30: =IF(CELL("type",E19)="v",IF($C$81="Use default OECD-FAO values",-PV($E$7*0.01,$E$6,'calcolo esempio'!D9+'calcolo esempio'!D10+esempio!E29),-PV($E$7*0.01,$E$6,$E$25*(E19/100)*'calcolo esempio'!D11)+(E21*(E19/100)*'calcolo esempio'!D12)+'calcolo esempio'!D10+esempio!E29),0) -> 15 | G30: =IF(CELL("type",G19)="v",IF($C$81="Use default OECD-FAO values",-PV($E$7*0.01,$E$6,'calcolo esempio'!E9+'calcolo esempio'!E10+esempio!G29),-PV($E$7*0.01,$E$6,$E$25*(G19/100)*'calcolo esempio'!E11)+(G21*(G19/100)*'calcolo esempio'!E12)+'calcolo esempio'!E10+esempio!G29),0) -> 26080 | I30: =IF(CELL("type",I19)="v",IF($C$81="Use default OECD-FAO values",-PV($E$7*0.01,$E$6,'calcolo esempio'!F9+'calcolo esempio'!F10+esempio!I29),-PV($E$7*0.01,$E$6,$E$25*(I19/100)*'calcolo esempio'!F11)+(I21*(I19/100)*'calcolo esempio'!F12)+'calcolo esempio'!F10+esempio!I29),0) -> 0 | K30: =IF(CELL("type",K19)="v",IF($C$81="Use default OECD-FAO values",-PV($E$7*0.01,$E$6,'calcolo esempio'!G9+'calcolo esempio'!G10+esempio!K29),-PV($E$7*0.01,$E$6,$E$25*(K19/100)*'calcolo esempio'!G11)+(K21*(K19/100)*'calcolo esempio'!G12)+'calcolo esempio'!G10+esempio!K29),0) -> 0 | M30: =IF(CELL("type",M19)="v",IF($C$81="Use default OECD-FAO values",-PV($E$7*0.01,$E$6,'calcolo esempio'!H9+'calcolo esempio'!H10+esempio!M29),-PV($E$7*0.01,$E$6,$E$25*(M19/100)*'calcolo esempio'!H11)+(M21*(M19/100)*'calcolo esempio'!H12)+'calcolo esempio'!H10+esempio!M29),0) -> 0
B32: COSTI DI MANUTENZIONE PER VEICOLO
B33: i | C33: costi stimati annuali manutenzione | D33: €/unità/anno | F33: €/unità/anno | H33: €/unità/anno | J33: €/unità/anno | L33: €/unità/anno
B34: i | C34: (o) costo annuale del servizio | D34: €/unità/anno | F34: €/unità/anno | H34: €/unità/anno | I34: 300 | J34: €/unità/anno | L34: €/unità/anno
C35: COSTI DI MANUTENZIONE / unità | E35: =IF(CELL("type",E33)="v",-PV($E$7*0.01,$E$6,(E34+E33)),IF(CELL("type",E34)="v",-PV($E$7*0.01,$E$6,(E34+E33)),0)) -> 0 | G35: =IF(CELL("type",G33)="v",-PV($E$7*0.01,$E$6,(G34+G33)),IF(CELL("type",G34)="v",-PV($E$7*0.01,$E$6,(G34+G33)),0)) -> 0 | I35: =IF(CELL("type",I33)="v",-PV($E$7*0.01,$E$6,(I34+I33)),IF(CELL("type",I34)="v",-PV($E$7*0.01,$E$6,(I34+I33)),0)) -> 2694.775502 | K35: =IF(CELL("type",K33)="v",-PV($E$7*0.01,$E$6,(K34+K33)),IF(CELL("type",K34)="v",-PV($E$7*0.01,$E$6,(K34+K33)),0)) -> 0 | M35: =IF(CELL("type",M33)="v",-PV($E$7*0.01,$E$6,(M34+M33)),IF(CELL("type",M34)="v",-PV($E$7*0.01,$E$6,(M34+M33)),0)) -> 0
B37: EMISSIONI (OLC) PER VEICOLO - SEZIONE OPZIONALE
B38: i | C38: tasse | D38: €/unità/anno | F38: €/unità/anno | H38: €/unità/anno | J38: €/unità/anno | L38: €/unità/anno
C39: assicurazione | D39: €/unità/anno | F39: €/unità/anno | H39: €/unità/anno | J39: €/unità/anno | L39: €/unità/anno
B40: i | C40: infrastrutture - investimenti | D40: € | F40: € | H40: € | J40: € | L40: €
C41: (o) infrastrutture costi annuali | D41: €/anno | F41: €/anno | H41: €/anno | J41: €/anno | L41: €/anno
B42: i | C42: Altri costi e sussidi
C43: (Annual cost 1) | D43: €/anno | F43: €/anno | H43: €/anno | J43: €/anno | L43: €/anno | N43: €/anno
C44: (Annual cost 2) | D44: €/anno | F44: €/anno | H44: €/anno | J44: €/anno | L44: €/anno | N44: €/anno
C45: (One off initial cost 1) | D45: € | F45: € | H45: € | J45: € | L45: € | N45: €
C46: (One off initial cost 2) | D46: € | F46: € | H46: € | J46: € | L46: € | N46: €
C47: (Annual subsidy) | D47: € | N47: €
C48: (One off initial subsidy) | D48: € | N48: €
C49: TOTALE ALTRI COSTI E SUSSIDI/ unità | E49: =-PV(E7*0.01,E6,(E38+E39+E41+E43+E44-E47))+E40+E45+E46-E48 -> 0 | G49: =-PV(G7*0.01,G6,(G38+G39+G41+G43+G44-G47))+G40+G45+G46-G48 -> 0 | I49: =-PV(I7*0.01,I6,(I38+I39+I41+I43+I44-I47))+I40+I45+I46-I48 -> 0 | K49: =-PV(K7*0.01,K6,(K38+K39+K41+K43+K44-K47))+K40+K45+K46-K48 -> 0 | M49: =-PV(M7*0.01,M6,(M38+M39+M41+M43+M44-M47))+M40+M45+M46-M48 -> 0
B51: EMISSIONI (OLC) PER VEICOLO - SEZIONE OPZIONALE
C52: vuoi applicare la metodologia OLC delle direttiva? | E52: sì
B53: i | C53: Emissioni CO2 | D53: g/km | E53: 1.11 | F53: g/km | G53: 864 | H53: g/km | J53: g/km | L53: g/km
C54: costo di vita delle emissioni CO2 / unità | E54: =$D$77*E53*E19*$E$6 -> 26.64 | G54: =$D$77*G53*G19*$E$6 -> 20736 | I54: =$D$77*I53*I19*$E$6 -> 0 | K54: =$D$77*K53*K19*$E$6 -> 0 | M54: =$D$77*M53*M19*$E$6 -> 0
B55: i | C55: NOx (ossidi di azoto) | D55: g/km | E55: 0.24 | F55: g/km | G55: 0.24 | H55: g/km | J55: g/km | L55: g/km
B56: i | C56: PM (Particolato) | D56: g/km | E56: 0.0029 | F56: g/km | G56: 0.0029 | H56: g/km | J56: g/km | L56: g/km
B57: i | C57: NMHC (idrocarburi non metanici) | D57: g/km | E57: 0.007 | F57: g/km | G57: 0.007 | H57: g/km | J57: g/km | L57: g/km
C58: costo di vita degli inquinanti / unità | E58: =((E55*$D$74)+(E56*$D$75)+(E57*$D$76))*E19*E6 -> 1052.24 | G58: =((G55*$D$74)+(G56*$D$75)+(G57*$D$76))*G19*G6 -> 1052.24 | I58: =((I55*$D$74)+(I56*$D$75)+(I57*$D$76))*I19*I6 -> 0 | K58: =((K55*$D$74)+(K56*$D$75)+(K57*$D$76))*K19*K6 -> 0 | M58: =((M55*$D$74)+(M56*$D$75)+(M57*$D$76))*M19*M6 -> 0
B59: i | C59: carburante di riferimento (il più economico senza tasse) | E59: Diesel | G59: Diesel
B60: i | C60: Costo di riferimento del carburante (prima delle tasse) | D60: €/l | E60: 1.01 | F60: €/l | G60: 1.01 | H60: €/l | J60: €/l | L60: €/l
C61: costo di vita del consumo di energia / unità | E61: ='calcolo esempio'!D22 -> 338552 | G61: =IF(CELL("type",G60)="v",'calcolo esempio'!E22,0) -> 2058963.556 | I61: =IF(CELL("type",I60)="v",'calcolo esempio'!G22,0) -> 0 | K61: =IF(CELL("type",K60)="v",'calcolo esempio'!I22,0) -> 0 | M61: =IF(CELL("type",M60)="v",'calcolo esempio'!K22,0) -> 0
C62: COSTO OPERATIVO DI VITA (OLC) / unità | E62: =SUM(E54,E58,E61) -> 339630.88 | G62: =SUM(G54,G58,G61) -> 2080751.796 | I62: =SUM(I54,I58,I61) -> 0 | K62: =SUM(K54,K58,K61) -> 0 | M62: =SUM(M54,M58,M61) -> 0
B64: END OF LIFE
B65: i | C65: valore residuale (fine del contratto) | D65: €/unità | G65: 0
E66: =SUM(E65) -> 0 | G66: =SUM(G65) -> 0 | I66: =SUM(I65) -> 0 | M66: =SUM(M65) -> 0
C68: TOTAL LCC PER unità | E68: =E16+E30+E35+E49+E62-E66 -> 557445.88 | G68: =G16+G30+G35+G49+G62-G66 -> 2416831.796 | I68: =I16+I30+I35+I49+I62-I66 -> 2694.775502 | K68: =K16+K30+K35+K49+K62-K66 -> 0 | M68: =M16+M30+M35+M49+M62-M66 -> 0
C69: TOTAL LCC | E69: =E68*E13 -> 5574458.8 | G69: =G68*G13 -> 24168317.96 | I69: =I68*I13 -> 0 | K69: =K68*K13 -> 0 | M69: =M68*M13 -> 0
B72: COSTO DELLE EMISSIONI | F72: > | G72: CLICCA QUI PER I DIAGRAMMI
C73: emissioni | D73: Costo per unità €/g
C74: NOx (range consentito 0,0044-0,0088) | D74: 0.0044
C75: PM (range consentito 0,087-0,174) | D75: 0.087
C76: NMHC (range consentito 0,001-0,002) | D76: 0.001
C77: CO2 (range consentito 0,00003 - 0,00008) | D77: 3e-05
B79: AUMENTO PREZZO CARBURANTE
C80: seleziona una delle opzioni sotto
B81: i | C81: usa OECD-FAO valori di default
C83: Annual fuel price increase %
C84: Diesel (€/l)
C85: Petrol (€/l)
C86: Biogas/CBG
C87: Natural Gas/CNG (€/Nm3)
C88: Electricity (€/kWh)
C89: Biodiesel (€/l)
C90: LPG (€/l)
C91: Ethanol (€/l)
C92: Hydrogen gas (€/Nm3)
C93: Hydrogen liquid - kg/100km (€/kg)
C94: Hydrogen liquid - l/100km (€/l)
C95: Emulsion Fuel (€/l)
D96: inserisci le tue percentuali di incremento annuali nel box sotto
C97: Diesel | D97: =INDEX('prezzi combustibile'!$D$6:$N$6,esempio!$E$6)/esempio!$E$6 -> 0.005064486039
C98: benzina | D98: =INDEX('prezzi combustibile'!$D$9:$N$9,esempio!$E$6)/esempio!$E$6 -> -0.004554074171
C99: Biogas/CBG
C100: Natural Gas/CNG (Nm3/100km) | D100: =INDEX('prezzi combustibile'!$D$24:$N$24,esempio!$E$6)/esempio!$E$6 -> 0.01108462902
C101: elettricità | D101: =INDEX('prezzi combustibile'!$D$18:$N$18,esempio!$E$6)/esempio!$E$6 -> -0.001724544501
C102: biodiesel | D102: =INDEX('prezzi combustibile'!$D$21:$N$21,esempio!$E$6)/esempio!$E$6 -> 0.01167955379
C103: LPG | D103: =INDEX('prezzi combustibile'!$D$12:$N$12,esempio!$E$6)/esempio!$E$6 -> 0.006248446322
C104: etanolo | D104: =INDEX('prezzi combustibile'!$D$15:$N$15,esempio!$E$6)/esempio!$E$6 -> 0.005048239264
C105: idrogeno gas
C106: idrogeno liquido - kg/100km
C107: idrogeno liquido - l/100km
C108: carburante emulsionato

Sheet calcolo esempio (hidden)
A1: FOR CALCULATIONS ONLY - DO NOT AMEND! | P1: SINGLE FUEL TIME SERIES | AC1: Fuel 1 Time Series | AD1: SECOND FUEL TIME SERIES
D3: Product 1 | E3: Product 2 | F3: Product 3 | G3: Product 4 | H3: Product 5 | P3: DIESEL | Q3: 2014 | R3: 2015 | S3: 2016 | T3: 2017 | U3: 2018 | V3: 2019 | W3: 2020 | X3: 2021 | Y3: 2022 | Z3: 2023 | AA3: 2024 | AB3: Total fuel price for period | AD3: DIESEL | AE3: 2014 | AF3: 2015 | AG3: 2016 | AH3: 2017 | AI3: 2018 | AJ3: 2019 | AK3: 2020 | AL3: 2021 | AM3: 2022 | AN3: 2023 | AO3: 2024 | AP3: Total fuel price for period
C4: tipo di carburante | D4: =MATCH(esempio!E20,$B$26:$B$38,0) -> 1 | E4: =MATCH(esempio!G20,$B$26:$B$38,0) -> 1 | F4: =MATCH(esempio!I20,$B$26:$B$38,0) -> 7 | G4: =MATCH(esempio!K20,$B$26:$B$38,0) ->  | H4: =MATCH(esempio!M20,$B$26:$B$38,0) ->  | P4: Product 1 | Q4: =((esempio!$E$19*(esempio!$E$21/100))*esempio!$E$22) -> 40894.4 | R4: =((esempio!$E$19*(esempio!$E$21/100))*(esempio!$E$22*(1+'prezzi combustibile'!$E$6))) -> 39348.94556 | S4: =((esempio!$E$19*(esempio!$E$21/100))*(esempio!$E$22*(1+'prezzi combustibile'!$F$6))) -> 38784.60309 | T4: =((esempio!$E$19*(esempio!$E$21/100))*(esempio!$E$22*(1+'prezzi combustibile'!$G$6))) -> 38807.03215 | U4: =((esempio!$E$19*(esempio!$E$21/100))*(esempio!$E$22*(1+'prezzi combustibile'!$H$6))) -> 39236.51725 | V4: =((esempio!$E$19*(esempio!$E$21/100))*(esempio!$E$22*(1+'prezzi combustibile'!$I$6))) -> 40124.65552 | W4: =((esempio!$E$19*(esempio!$E$21/100))*(esempio!$E$22*(1+'prezzi combustibile'!$J$6))) -> 40818.48451 | X4: =((esempio!$E$19*(esempio!$E$21/100))*(esempio!$E$22*(1+'prezzi combustibile'!$K$6))) -> 41585.02446 | Y4: =((esempio!$E$19*(esempio!$E$21/100))*(esempio!$E$22*(1+'prezzi combustibile'!$L$6))) -> 42405.64509 | Z4: =((esempio!$E$19*(esempio!$E$21/100))*(esempio!$E$22*(1+'prezzi combustibile'!$M$6))) -> 42965.49118 | AA4: =((esempio!$E$19*(esempio!$E$21/100))*(esempio!$E$22*(1+'prezzi combustibile'!$N$6))) -> 43494.95047 | AB4: =SUM(Q4:INDEX(Q4:AA4,esempio!$E$6)) -> 404970.7988 | AD4: Product 1 | AE4: =((esempio!$E$19*(esempio!$E$25/100))*esempio!$E$26) -> 0 | AF4: =((esempio!$E$19*(esempio!$E$25/100))*(esempio!$E$26*(1+'prezzi combustibile'!$E$6))) -> 0 | AG4: =((esempio!$E$19*(esempio!$E$25/100))*(esempio!$E$26*(1+'prezzi combustibile'!$F$6))) -> 0 | AH4: =((esempio!$E$19*(esempio!$E$25/100))*(esempio!$E$26*(1+'prezzi combustibile'!$G$6))) -> 0 | AI4: =((esempio!$E$19*(esempio!$E$25/100))*(esempio!$E$26*(1+'prezzi combustibile'!$H$6))) -> 0 | AJ4: =((esempio!$E$19*(esempio!$E$25/100))*(esempio!$E$26*(1+'prezzi combustibile'!$I$6))) -> 0 | AK4: =((esempio!$E$19*(esempio!$E$25/100))*(esempio!$E$26*(1+'prezzi combustibile'!$J$6))) -> 0 | AL4: =((esempio!$E$19*(esempio!$E$25/100))*(esempio!$E$26*(1+$K$6))) -> 0 | AM4: =((esempio!$E$19*(esempio!$E$25/100))*(esempio!$E$26*(1+$L$6))) -> 0 | AN4: =((esempio!$E$19*(esempio!$E$25/100))*(esempio!$E$26*(1+$M$6))) -> 0 | AO4: =((esempio!$E$19*(esempio!$E$25/100))*(esempio!$E$26*(1+$N$6))) -> 0 | AP4: =SUM(AE4:INDEX(AE4:AO4,esempio!$E$6)) -> 0
C5: tipo di carburante 2 | D5: =MATCH(esempio!E24,$B$26:$B$38,0) ->  | E5: =MATCH(esempio!G24,$B$26:$B$38,0) -> 2 | F5: =MATCH(esempio!I24,$B$26:$B$38,0) ->  | G5: =MATCH(esempio!K24,$B$26:$B$38,0) ->  | H5: =MATCH(esempio!M24,$B$26:$B$38,0) ->  | P5: Product 2 | Q5: =((esempio!$G$19*(esempio!$G$21/100))*esempio!$G$22) -> 31817.6 | R5: =((esempio!$G$19*(esempio!$G$21/100))*(esempio!$G$22*(1+'prezzi combustibile'!$E$6))) -> 30615.17006 | S5: =((esempio!$G$19*(esempio!$G$21/100))*(esempio!$G$22*(1+'prezzi combustibile'!$F$6))) -> 30176.08737 | T5: =((esempio!$G$19*(esempio!$G$21/100))*(esempio!$G$22*(1+'prezzi combustibile'!$G$6))) -> 30193.53814 | U5: =((esempio!$G$19*(esempio!$G$21/100))*(esempio!$G$22*(1+'prezzi combustibile'!$H$6))) -> 30527.696 | V5: =((esempio!$G$19*(esempio!$G$21/100))*(esempio!$G$22*(1+'prezzi combustibile'!$I$6))) -> 31218.70573 | W5: =((esempio!$G$19*(esempio!$G$21/100))*(esempio!$G$22*(1+'prezzi combustibile'!$J$6))) -> 31758.53449 | X5: =((esempio!$G$19*(esempio!$G$21/100))*(esempio!$G$22*(1+'prezzi combustibile'!$K$6))) -> 32354.9355 | Y5: =((esempio!$G$19*(esempio!$G$21/100))*(esempio!$G$22*(1+'prezzi combustibile'!$L$6))) -> 32993.4136 | Z5: =((esempio!$G$19*(esempio!$G$21/100))*(esempio!$G$22*(1+'prezzi combustibile'!$M$6))) -> 33428.99791 | AA5: =((esempio!$G$19*(esempio!$G$21/100))*(esempio!$G$22*(1+'prezzi combustibile'!$N$6))) -> 33840.93998 | AB5: =SUM(Q5:INDEX(Q5:AA5,esempio!$G$6)) -> 315084.6788 | AD5: Product 2 | AE5: =((esempio!$G$19*(esempio!$G$25/100))*esempio!$G$26) -> 200000 | AF5: =((esempio!$G$19*(esempio!$G$25/100))*(esempio!$G$26*(1+'prezzi combustibile'!$E$6))) -> 192441.7307 | AG5: =((esempio!$G$19*(esempio!$G$25/100))*(esempio!$G$26*(1+'prezzi combustibile'!$F$6))) -> 189681.7319 | AH5: =((esempio!$G$19*(esempio!$G$25/100))*(esempio!$G$26*(1+'prezzi combustibile'!$G$6))) -> 189791.4245 | AI5: =((esempio!$G$19*(esempio!$G$25/100))*(esempio!$G$26*(1+'prezzi combustibile'!$H$6))) -> 191891.8837 | AJ5: =((esempio!$G$19*(esempio!$G$25/100))*(esempio!$G$26*(1+'prezzi combustibile'!$I$6))) -> 196235.4529 | AK5: =((esempio!$G$19*(esempio!$G$25/100))*(esempio!$G$26*(1+'prezzi combustibile'!$J$6))) -> 199628.7243 | AL5: =((esempio!$G$19*(esempio!$G$25/100))*(esempio!$G$26*(1+$K$6))) -> 200000 | AM5: =((esempio!$G$19*(esempio!$G$25/100))*(esempio!$G$26*(1+$L$6))) -> 200000 | AN5: =((esempio!$G$19*(esempio!$G$25/100))*(esempio!$G$26*(1+$M$6))) -> 200000 | AO5: =((esempio!$G$19*(esempio!$G$25/100))*(esempio!$G$26*(1+$N$6))) -> 200000 | AP5: =SUM(AE5:INDEX(AE5:AO5,esempio!$E$6)) -> 1959670.948
C6: carburante di riferimento (1 = diesel, 2 = benzina) | D6: =IF(esempio!E59>0,IF(esempio!E59="Diesel",1,2),0) -> 1 | E6: =IF(esempio!G59>0,IF(esempio!G59="Diesel",1,2),0) -> 1 | F6: =IF(esempio!I59>0,IF(esempio!I59="Diesel",1,2),0) -> 0 | G6: =IF(esempio!K59>0,IF(esempio!K59="Diesel",1,2),0) -> 0 | H6: =IF(esempio!M59>0,IF(esempio!M59="Diesel",1,2),0) -> 0 | P6: Product 3 | Q6: =((esempio!$I$19*(esempio!$I$21/100))*esempio!$I$22) -> 36000 | R6: =((esempio!$I$19*(esempio!$I$21/100))*(esempio!$I$22*(1+'prezzi combustibile'!$E$6))) -> 34639.51153 | S6: =((esempio!$I$19*(esempio!$I$21/100))*(esempio!$I$22*(1+'prezzi combustibile'!$F$6))) -> 34142.71175 | T6: =((esempio!$I$19*(esempio!$I$21/100))*(esempio!$I$22*(1+'prezzi combustibile'!$G$6))) -> 34162.45641 | U6: =((esempio!$I$19*(esempio!$I$21/100))*(esempio!$I$22*(1+'prezzi combustibile'!$H$6))) -> 34540.53907 | V6: =((esempio!$I$19*(esempio!$I$21/100))*(esempio!$I$22*(1+'prezzi combustibile'!$I$6))) -> 35322.38152 | W6: =((esempio!$I$19*(esempio!$I$21/100))*(esempio!$I$22*(1+'prezzi combustibile'!$J$6))) -> 35933.17037 | X6: =((esempio!$I$19*(esempio!$I$21/100))*(esempio!$I$22*(1+'prezzi combustibile'!$K$6))) -> 36607.96785 | Y6: =((esempio!$I$19*(esempio!$I$21/100))*(esempio!$I$22*(1+'prezzi combustibile'!$L$6))) -> 37330.37343 | Z6: =((esempio!$I$19*(esempio!$I$21/100))*(esempio!$I$22*(1+'prezzi combustibile'!$M$6))) -> 37823.21497 | AA6: =((esempio!$I$19*(esempio!$I$21/100))*(esempio!$I$22*(1+'prezzi combustibile'!$N$6))) -> 38289.30653 | AB6: =SUM(Q6:INDEX(Q6:AA6,esempio!$I$6)) -> 356502.3269 | AD6: Product 3 | AE6: =((esempio!$I$19*(esempio!$I$25/100))*esempio!$I$26) -> 0 | AF6: =((esempio!$I$19*(esempio!$I$25/100))*(esempio!$I$26*(1+'prezzi combustibile'!$E$6))) -> 0 | AG6: =((esempio!$I$19*(esempio!$I$25/100))*(esempio!$I$26*(1+'prezzi combustibile'!$F$6))) -> 0 | AH6: =((esempio!$I$19*(esempio!$I$25/100))*(esempio!$I$26*(1+'prezzi combustibile'!$G$6))) -> 0 | AI6: =((esempio!$I$19*(esempio!$I$25/100))*(esempio!$I$26*(1+'prezzi combustibile'!$H$6))) -> 0 | AJ6: =((esempio!$I$19*(esempio!$I$25/100))*(esempio!$I$26*(1+'prezzi combustibile'!$I$6))) -> 0 | AK6: =((esempio!$I$19*(esempio!$I$25/100))*(esempio!$I$26*(1+'prezzi combustibile'!$J$6))) -> 0 | AL6: =((esempio!$I$19*(esempio!$I$25/100))*(esempio!$I$26*(1+$K$6))) -> 0 | AM6: =((esempio!$I$19*(esempio!$I$25/100))*(esempio!$I$26*(1+$L$6))) -> 0 | AN6: =((esempio!$I$19*(esempio!$I$25/100))*(esempio!$I$26*(1+$M$6))) -> 0 | AO6: =((esempio!$I$19*(esempio!$I$25/100))*(esempio!$I$26*(1+$N$6))) -> 0 | AP6: =SUM(AE6:INDEX(AE6:AO6,esempio!$E$6)) -> 0
C7: carburante 1 | D7: =INDEX($G$26:$G$38,D4)/esempio!$E$6 -> 40497.07988 | E7: =INDEX($H$26:$H$38,E4)/esempio!$E$6 -> 31508.46788 | F7: =INDEX($I$26:$I$38,F4)/esempio!$E$6 -> 35650.23269 | G7: =INDEX($J$26:$J$38,G4)/esempio!$E$6 ->  | H7: =INDEX($K$26:$K$38,H4)/esempio!$E$6 ->  | P7: Product 4 | Q7: =((esempio!$K$19*(esempio!$K$21/100))*esempio!$K$22) -> 0 | R7: =((esempio!$K$19*(esempio!$K$21/100))*(esempio!$K$22*(1+'prezzi combustibile'!$E$6))) -> 0 | S7: =((esempio!$K$19*(esempio!$K$21/100))*(esempio!$K$22*(1+'prezzi combustibile'!$F$6))) -> 0 | T7: =((esempio!$K$19*(esempio!$K$21/100))*(esempio!$K$22*(1+'prezzi combustibile'!$G$6))) -> 0 | U7: =((esempio!$K$19*(esempio!$K$21/100))*(esempio!$K$22*(1+'prezzi combustibile'!$H$6))) -> 0 | V7: =((esempio!$K$19*(esempio!$K$21/100))*(esempio!$K$22*(1+'prezzi combustibile'!$I$6))) -> 0 | W7: =((esempio!$K$19*(esempio!$K$21/100))*(esempio!$K$22*(1+'prezzi combustibile'!$J$6))) -> 0 | X7: =((esempio!$K$19*(esempio!$K$21/100))*(esempio!$K$22*(1+'prezzi combustibile'!$K$6))) -> 0 | Y7: =((esempio!$K$19*(esempio!$K$21/100))*(esempio!$K$22*(1+'prezzi combustibile'!$L$6))) -> 0 | Z7: =((esempio!$K$19*(esempio!$K$21/100))*(esempio!$K$22*(1+'prezzi combustibile'!$M$6))) -> 0 | AA7: =((esempio!$K$19*(esempio!$K$21/100))*(esempio!$K$22*(1+'prezzi combustibile'!$N$6))) -> 0 | AB7: =SUM(Q7:INDEX(Q7:AA7,esempio!$K$6)) -> 0 | AD7: Product 4 | AE7: =((esempio!$K$19*(esempio!$K$25/100))*esempio!$K$26) -> 0 | AF7: =((esempio!$K$19*(esempio!$K$25/100))*(esempio!$K$26*(1+'prezzi combustibile'!$E$6))) -> 0 | AG7: =((esempio!$K$19*(esempio!$K$25/100))*(esempio!$K$26*(1+'prezzi combustibile'!$F$6))) -> 0 | AH7: =((esempio!$K$19*(esempio!$K$25/100))*(esempio!$K$26*(1+'prezzi combustibile'!$G$6))) -> 0 | AI7: =((esempio!$K$19*(esempio!$K$25/100))*(esempio!$K$26*(1+'prezzi combustibile'!$H$6))) -> 0 | AJ7: =((esempio!$K$19*(esempio!$K$25/100))*(esempio!$K$26*(1+'prezzi combustibile'!$I$6))) -> 0 | AK7: =((esempio!$K$19*(esempio!$K$25/100))*(esempio!$K$26*(1+'prezzi combustibile'!$J$6))) -> 0 | AL7: =((esempio!$K$19*(esempio!$K$25/100))*(esempio!$K$26*(1+$K$6))) -> 0 | AM7: =((esempio!$K$19*(esempio!$K$25/100))*(esempio!$K$26*(1+$L$6))) -> 0 | AN7: =((esempio!$K$19*(esempio!$K$25/100))*(esempio!$K$26*(1+$M$6))) -> 0 | AO7: =((esempio!$K$19*(esempio!$K$25/100))*(esempio!$K$26*(1+$N$6))) -> 0 | AP7: =SUM(AE7:INDEX(AE7:AO7,esempio!$E$6)) -> 0
C8: carburante 2 | D8: =IF(esempio!E23="Yes",INDEX($G$42:$G$54,D5)/esempio!$E$6,0) -> 0 | E8: =IF(esempio!G23="Yes",INDEX($G$42:$G$54,E5)/esempio!$E$6,0) -> 0 | F8: =IF(esempio!I23="Yes",INDEX($G$42:$G$54,F5)/esempio!$E$6,0) -> 0 | G8: =IF(esempio!K23="Yes",INDEX($G$42:$G$54,G5)/esempio!$E$6,0) -> 0 | H8: =IF(esempio!M23="Yes",INDEX($G$42:$G$54,H5)/esempio!$E$6,0) -> 0 | P8: Product 5 | Q8: =((esempio!$M$19*(esempio!$M$21/100))*esempio!$M$22) -> 0 | R8: =((esempio!$M$19*(esempio!$M$21/100))*(esempio!$M$22*(1+'prezzi combustibile'!$E$6))) -> 0 | S8: =((esempio!$M$19*(esempio!$M$21/100))*(esempio!$M$22*(1+'prezzi combustibile'!$F$6))) -> 0 | T8: =((esempio!$M$19*(esempio!$M$21/100))*(esempio!$M$22*(1+'prezzi combustibile'!$G$6))) -> 0 | U8: =((esempio!$M$19*(esempio!$M$21/100))*(esempio!$M$22*(1+'prezzi combustibile'!$H$6))) -> 0 | V8: =((esempio!$M$19*(esempio!$M$21/100))*(esempio!$M$22*(1+'prezzi combustibile'!$I$6))) -> 0 | W8: =((esempio!$M$19*(esempio!$M$21/100))*(esempio!$M$22*(1+'prezzi combustibile'!$J$6))) -> 0 | X8: =((esempio!$M$19*(esempio!$M$21/100))*(esempio!$M$22*(1+'prezzi combustibile'!$K$6))) -> 0 | Y8: =((esempio!$M$19*(esempio!$M$21/100))*(esempio!$M$22*(1+'prezzi combustibile'!$L$6))) -> 0 | Z8: =((esempio!$M$19*(esempio!$M$21/100))*(esempio!$M$22*(1+'prezzi combustibile'!$M$6))) -> 0 | AA8: =((esempio!$M$19*(esempio!$M$21/100))*(esempio!$M$22*(1+'prezzi combustibile'!$N$6))) -> 0 | AB8: =SUM(Q8:INDEX(Q8:AA8,esempio!$M$6)) -> 0 | AD8: Product 5 | AE8: =((esempio!$M$19*(esempio!$M$25/100))*esempio!$M$26) -> 0 | AF8: =((esempio!$M$19*(esempio!$M$25/100))*(esempio!$M$26*(1+'prezzi combustibile'!$E$6))) -> 0 | AG8: =((esempio!$M$19*(esempio!$M$25/100))*(esempio!$M$26*(1+'prezzi combustibile'!$F$6))) -> 0 | AH8: =((esempio!$M$19*(esempio!$M$25/100))*(esempio!$M$26*(1+'prezzi combustibile'!$G$6))) -> 0 | AI8: =((esempio!$M$19*(esempio!$M$25/100))*(esempio!$M$26*(1+'prezzi combustibile'!$H$6))) -> 0 | AJ8: =((esempio!$M$19*(esempio!$M$25/100))*(esempio!$M$26*(1+'prezzi combustibile'!$I$6))) -> 0 | AK8: =((esempio!$M$19*(esempio!$M$25/100))*(esempio!$M$26*(1+'prezzi combustibile'!$J$6))) -> 0 | AL8: =((esempio!$M$19*(esempio!$M$25/100))*(esempio!$M$26*(1+$K$6))) -> 0 | AM8: =((esempio!$M$19*(esempio!$M$25/100))*(esempio!$M$26*(1+$L$6))) -> 0 | AN8: =((esempio!$M$19*(esempio!$M$25/100))*(esempio!$M$26*(1+$M$6))) -> 0 | AO8: =((esempio!$M$19*(esempio!$M$25/100))*(esempio!$M$26*(1+$N$6))) -> 0 | AP8: =SUM(AE8:INDEX(AE8:AO8,esempio!$E$6)) -> 0
C9: pagamento per periodo di carburante | D9: =SUM(D7:D8) -> 40497.07988 | E9: 31508.46788 | F9: 35650.23269
C10: prezzo medio annuale batteria | D10: =AB54/esempio!$E$6+AB54/esempio!$E$6 -> 15 | E10: =AB55/esempio!$E$6+AB55/esempio!$E$6 -> 0 | F10: =AB56/esempio!$E$6+AB56/esempio!$E$6 -> 0 | G10: =AB57/esempio!$E$6+AB57/esempio!$E$6 -> 0 | H10: =AB58/esempio!$E$6+AB58/esempio!$E$6 -> 0 | P10: PETROL | Q10: 2014 | R10: 2015 | S10: 2016 | T10: 2017 | U10: 2018 | V10: 2019 | W10: 2020 | X10: 2021 | Y10: 2022 | Z10: 2023 | AA10: 2024 | AB10: Total fuel price for period | AD10: PETROL | AE10: 2014 | AF10: 2015 | AG10: 2016 | AH10: 2017 | AI10: 2018 | AJ10: 2019 | AK10: 2020 | AL10: 2021 | AM10: 2022 | AN10: 2023 | AO10: 2024 | AP10: Total fuel price for period
C11: prezzo carburante per litro scegliendo i valori (carburante 1) | D11: =IF(INDEX(esempio!$C$84:$D$95,'calcolo esempio'!D4,2)>0,esempio!$E$22-CUMIPMT(INDEX(esempio!$C$84:$D$95,'calcolo esempio'!D4,2),esempio!$E$6,esempio!$E$22,1,esempio!$E$6,1),esempio!$E$22*(1+(INDEX(esempio!$C$84:$D$94,'calcolo esempio'!D4,2))^esempio!$E$6)) -> 1.22 | E11: =IF(INDEX(esempio!$C$84:$D$95,'calcolo esempio'!E4,2)>0,esempio!$G$22-CUMIPMT(INDEX(esempio!$C$84:$D$95,'calcolo esempio'!E4,2),esempio!$E$6,esempio!$G$22,1,esempio!$E$6,1),esempio!$G$22*(1+(INDEX(esempio!$C$84:$D$94,'calcolo esempio'!E4,2))^esempio!$E$6)) -> 1.22 | F11: =IF(INDEX(esempio!$C$84:$D$95,'calcolo esempio'!F4,2)>0,esempio!$I$22-CUMIPMT(INDEX(esempio!$C$84:$D$95,'calcolo esempio'!F4,2),esempio!$E$6,esempio!$I$22,1,esempio!$E$6,1),esempio!$I$22*(1+(INDEX(esempio!$C$84:$D$94,'calcolo esempio'!F4,2))^esempio!$E$6)) -> 3 | G11: =IF(INDEX(esempio!$C$84:$D$95,'calcolo esempio'!G4,2)>0,esempio!$K$22-CUMIPMT(INDEX(esempio!$C$84:$D$95,'calcolo esempio'!G4,2),esempio!$E$6,esempio!$K$22,1,esempio!$E$6,1),esempio!$K$22*(1+(INDEX(esempio!$C$84:$D$94,'calcolo esempio'!G4,2))^esempio!$E$6)) ->  | H11: =IF(INDEX(esempio!$C$84:$D$95,'calcolo esempio'!H4,2)>0,esempio!$M$22-CUMIPMT(INDEX(esempio!$C$84:$D$95,'calcolo esempio'!H4,2),esempio!$E$6,esempio!$M$22,1,esempio!$E$6,1),esempio!$M$22*(1+(INDEX(esempio!$C$84:$D$94,'calcolo esempio'!H4,2))^esempio!$E$6)) ->  | P11: Product 1 | Q11: =((esempio!$E$19*(esempio!$E$21/100))*esempio!$E$22) -> 40894.4 | R11: =((esempio!$E$19*(esempio!$E$21/100))*(esempio!$E$22*(1+'prezzi combustibile'!$E$6))) -> 39348.94556 | S11: =((esempio!$E$19*(esempio!$E$21/100))*(esempio!$E$22*(1+'prezzi combustibile'!$F$6))) -> 38784.60309 | T11: =((esempio!$E$19*(esempio!$E$21/100))*(esempio!$E$22*(1+'prezzi combustibile'!$G$6))) -> 38807.03215 | U11: =((esempio!$E$19*(esempio!$E$21/100))*(esempio!$E$22*(1+'prezzi combustibile'!$H$6))) -> 39236.51725 | V11: =((esempio!$E$19*(esempio!$E$21/100))*(esempio!$E$22*(1+'prezzi combustibile'!$I$6))) -> 40124.65552 | W11: =((esempio!$E$19*(esempio!$E$21/100))*(esempio!$E$22*(1+'prezzi combustibile'!$J$6))) -> 40818.48451 | X11: =((esempio!$E$19*(esempio!$E$21/100))*(esempio!$E$22*(1+'prezzi combustibile'!$K$6))) -> 41585.02446 | Y11: =((esempio!$E$19*(esempio!$E$21/100))*(esempio!$E$22*(1+'prezzi combustibile'!$L$6))) -> 42405.64509 | Z11: =((esempio!$E$19*(esempio!$E$21/100))*(esempio!$E$22*(1+'prezzi combustibile'!$M$6))) -> 42965.49118 | AA11: =((esempio!$E$19*(esempio!$E$21/100))*(esempio!$E$22*(1+'prezzi combustibile'!$N$6))) -> 43494.95047 | AB11: =SUM(Q11:INDEX(Q11:AA11,esempio!$E$6)) -> 404970.7988 | AD11: Product 1 | AE11: =((esempio!$E$19*(esempio!$E$25/100))*esempio!$E$26) -> 0 | AF11: =((esempio!$E$19*(esempio!$E$25/100))*(esempio!$E$26*(1+'prezzi combustibile'!$E$6))) -> 0 | AG11: =((esempio!$E$19*(esempio!$E$25/100))*(esempio!$E$26*(1+'prezzi combustibile'!$F$6))) -> 0 | AH11: =((esempio!$E$19*(esempio!$E$25/100))*(esempio!$E$26*(1+'prezzi combustibile'!$G$6))) -> 0 | AI11: =((esempio!$E$19*(esempio!$E$25/100))*(esempio!$E$26*(1+'prezzi combustibile'!$H$6))) -> 0 | AJ11: =((esempio!$E$19*(esempio!$E$25/100))*(esempio!$E$26*(1+'prezzi combustibile'!$I$6))) -> 0 | AK11: =((esempio!$E$19*(esempio!$E$25/100))*(esempio!$E$26*(1+'prezzi combustibile'!$J$6))) -> 0 | AL11: =((esempio!$E$19*(esempio!$E$25/100))*(esempio!$E$26*(1+$K$6))) -> 0 | AM11: =((esempio!$E$19*(esempio!$E$25/100))*(esempio!$E$26*(1+$L$6))) -> 0 | AN11: =((esempio!$E$19*(esempio!$E$25/100))*(esempio!$E$26*(1+$M$6))) -> 0 | AO11: =((esempio!$E$19*(esempio!$E$25/100))*(esempio!$E$26*(1+$N$6))) -> 0 | AP11: =SUM(AE11:INDEX(AE11:AO11,esempio!$E$6)) -> 0
C12: prezzo carburante per litro scegliendo i valori (carburante 2) | E12: =IF(INDEX(esempio!$C$84:$D$95,'calcolo esempio'!E4,2)>0,esempio!G26-CUMIPMT(INDEX(esempio!$C$84:$D$95,'calcolo esempio'!E4,2),esempio!$E$6,esempio!G26,1,esempio!$E$6,1),esempio!G26*(1+(INDEX(esempio!$C$84:$D$94,'calcolo esempio'!E4,2))^esempio!$E$6)) -> 1 | F12: =IF(INDEX(esempio!$C$84:$D$95,'calcolo esempio'!F4,2)>0,esempio!I26-CUMIPMT(INDEX(esempio!$C$84:$D$95,'calcolo esempio'!F4,2),esempio!$E$6,esempio!I26,1,esempio!$E$6,1),esempio!I26*(1+(INDEX(esempio!$C$84:$D$94,'calcolo esempio'!F4,2))^esempio!$E$6)) -> 0 | G12: =IF(INDEX(esempio!$C$84:$D$95,'calcolo esempio'!G4,2)>0,esempio!K26-CUMIPMT(INDEX(esempio!$C$84:$D$95,'calcolo esempio'!G4,2),esempio!$E$6,esempio!K26,1,esempio!$E$6,1),esempio!K26*(1+(INDEX(esempio!$C$84:$D$94,'calcolo esempio'!G4,2))^esempio!$E$6)) ->  | H12: =IF(INDEX(esempio!$C$84:$D$95,'calcolo esempio'!H4,2)>0,esempio!M26-CUMIPMT(INDEX(esempio!$C$84:$D$95,'calcolo esempio'!H4,2),esempio!$E$6,esempio!M26,1,esempio!$E$6,1),esempio!M26*(1+(INDEX(esempio!$C$84:$D$94,'calcolo esempio'!H4,2))^esempio!$E$6)) ->  | P12: Product 2 | Q12: =((esempio!$G$19*(esempio!$G$21/100))*esempio!$G$22) -> 31817.6 | R12: =((esempio!$G$19*(esempio!$G$21/100))*(esempio!$G$22*(1+'prezzi combustibile'!$E$6))) -> 30615.17006 | S12: =((esempio!$G$19*(esempio!$G$21/100))*(esempio!$G$22*(1+'prezzi combustibile'!$F$6))) -> 30176.08737 | T12: =((esempio!$G$19*(esempio!$G$21/100))*(esempio!$G$22*(1+'prezzi combustibile'!$G$6))) -> 30193.53814 | U12: =((esempio!$G$19*(esempio!$G$21/100))*(esempio!$G$22*(1+'prezzi combustibile'!$H$6))) -> 30527.696 | V12: =((esempio!$G$19*(esempio!$G$21/100))*(esempio!$G$22*(1+'prezzi combustibile'!$I$6))) -> 31218.70573 | W12: =((esempio!$G$19*(esempio!$G$21/100))*(esempio!$G$22*(1+'prezzi combustibile'!$J$6))) -> 31758.53449 | X12: =((esempio!$G$19*(esempio!$G$21/100))*(esempio!$G$22*(1+'prezzi combustibile'!$K$6))) -> 32354.9355 | Y12: =((esempio!$G$19*(esempio!$G$21/100))*(esempio!$G$22*(1+'prezzi combustibile'!$L$6))) -> 32993.4136 | Z12: =((esempio!$G$19*(esempio!$G$21/100))*(esempio!$G$22*(1+'prezzi combustibile'!$M$6))) -> 33428.99791 | AA12: =((esempio!$G$19*(esempio!$G$21/100))*(esempio!$G$22*(1+'prezzi combustibile'!$N$6))) -> 33840.93998 | AB12: =SUM(Q12:INDEX(Q12:AA12,esempio!$G$6)) -> 315084.6788 | AD12: Product 2 | AE12: =((esempio!$G$19*(esempio!$G$25/100))*esempio!$G$26) -> 200000 | AF12: =((esempio!$G$19*(esempio!$G$25/100))*(esempio!$G$26*(1+'prezzi combustibile'!$E$6))) -> 192441.7307 | AG12: =((esempio!$G$19*(esempio!$G$25/100))*(esempio!$G$26*(1+'prezzi combustibile'!$F$6))) -> 189681.7319 | AH12: =((esempio!$G$19*(esempio!$G$25/100))*(esempio!$G$26*(1+'prezzi combustibile'!$G$6))) -> 189791.4245 | AI12: =((esempio!$G$19*(esempio!$G$25/100))*(esempio!$G$26*(1+'prezzi combustibile'!$H$6))) -> 191891.8837 | AJ12: =((esempio!$G$19*(esempio!$G$25/100))*(esempio!$G$26*(1+'prezzi combustibile'!$I$6))) -> 196235.4529 | AK12: =((esempio!$G$19*(esempio!$G$25/100))*(esempio!$G$26*(1+'prezzi combustibile'!$J$6))) -> 199628.7243 | AL12: =((esempio!$G$19*(esempio!$G$25/100))*(esempio!$G$26*(1+$K$6))) -> 200000 | AM12: =((esempio!$G$19*(esempio!$G$25/100))*(esempio!$G$26*(1+$L$6))) -> 200000 | AN12: =((esempio!$G$19*(esempio!$G$25/100))*(esempio!$G$26*(1+$M$6))) -> 200000 | AO12: =((esempio!$G$19*(esempio!$G$25/100))*(esempio!$G$26*(1+$N$6))) -> 200000 | AP12: =SUM(AE12:INDEX(AE12:AO12,esempio!$E$6)) -> 1959670.948
C13: carburante consumption per vehicle (carburante 1) | D13: =esempio!E$21 -> 41.9 | E13: =esempio!G$21 -> 32.6 | F13: =esempio!I$21 -> 60 | G13: =esempio!K$21 -> 0 | H13: =esempio!M$21 -> 0 | P13: Product 3 | Q13: =((esempio!$I$19*(esempio!$I$21/100))*esempio!$I$22) -> 36000 | R13: =((esempio!$I$19*(esempio!$I$21/100))*(esempio!$I$22*(1+'prezzi combustibile'!$E$6))) -> 34639.51153 | S13: =((esempio!$I$19*(esempio!$I$21/100))*(esempio!$I$22*(1+'prezzi combustibile'!$F$6))) -> 34142.71175 | T13: =((esempio!$I$19*(esempio!$I$21/100))*(esempio!$I$22*(1+'prezzi combustibile'!$G$6))) -> 34162.45641 | U13: =((esempio!$I$19*(esempio!$I$21/100))*(esempio!$I$22*(1+'prezzi combustibile'!$H$6))) -> 34540.53907 | V13: =((esempio!$I$19*(esempio!$I$21/100))*(esempio!$I$22*(1+'prezzi combustibile'!$I$6))) -> 35322.38152 | W13: =((esempio!$I$19*(esempio!$I$21/100))*(esempio!$I$22*(1+'prezzi combustibile'!$J$6))) -> 35933.17037 | X13: =((esempio!$I$19*(esempio!$I$21/100))*(esempio!$I$22*(1+'prezzi combustibile'!$K$6))) -> 36607.96785 | Y13: =((esempio!$I$19*(esempio!$I$21/100))*(esempio!$I$22*(1+'prezzi combustibile'!$L$6))) -> 37330.37343 | Z13: =((esempio!$I$19*(esempio!$I$21/100))*(esempio!$I$22*(1+'prezzi combustibile'!$M$6))) -> 37823.21497 | AA13: =((esempio!$I$19*(esempio!$I$21/100))*(esempio!$I$22*(1+'prezzi combustibile'!$N$6))) -> 38289.30653 | AB13: =SUM(Q13:INDEX(Q13:AA13,esempio!$I$6)) -> 356502.3269 | AD13: Product 3 | AE13: =((esempio!$I$19*(esempio!$I$25/100))*esempio!$I$26) -> 0 | AF13: =((esempio!$I$19*(esempio!$I$25/100))*(esempio!$I$26*(1+'prezzi combustibile'!$E$6))) -> 0 | AG13: =((esempio!$I$19*(esempio!$I$25/100))*(esempio!$I$26*(1+'prezzi combustibile'!$F$6))) -> 0 | AH13: =((esempio!$I$19*(esempio!$I$25/100))*(esempio!$I$26*(1+'prezzi combustibile'!$G$6))) -> 0 | AI13: =((esempio!$I$19*(esempio!$I$25/100))*(esempio!$I$26*(1+'prezzi combustibile'!$H$6))) -> 0 | AJ13: =((esempio!$I$19*(esempio!$I$25/100))*(esempio!$I$26*(1+'prezzi combustibile'!$I$6))) -> 0 | AK13: =((esempio!$I$19*(esempio!$I$25/100))*(esempio!$I$26*(1+'prezzi combustibile'!$J$6))) -> 0 | AL13: =((esempio!$I$19*(esempio!$I$25/100))*(esempio!$I$26*(1+$K$6))) -> 0 | AM13: =((esempio!$I$19*(esempio!$I$25/100))*(esempio!$I$26*(1+$L$6))) -> 0 | AN13: =((esempio!$I$19*(esempio!$I$25/100))*(esempio!$I$26*(1+$M$6))) -> 0 | AO13: =((esempio!$I$19*(esempio!$I$25/100))*(esempio!$I$26*(1+$N$6))) -> 0 | AP13: =SUM(AE13:INDEX(AE13:AO13,esempio!$E$6)) -> 0
C14: contenuto energetico (carburante 1) | D14: =INDEX($C$26:$C$38,D$4) -> 36 | E14: 36 | F14: 33 | P14: Product 4 | Q14: =((esempio!$K$19*(esempio!$K$21/100))*esempio!$K$22) -> 0 | R14: =((esempio!$K$19*(esempio!$K$21/100))*(esempio!$K$22*(1+'prezzi combustibile'!$E$6))) -> 0 | S14: =((esempio!$K$19*(esempio!$K$21/100))*(esempio!$K$22*(1+'prezzi combustibile'!$F$6))) -> 0 | T14: =((esempio!$K$19*(esempio!$K$21/100))*(esempio!$K$22*(1+'prezzi combustibile'!$G$6))) -> 0 | U14: =((esempio!$K$19*(esempio!$K$21/100))*(esempio!$K$22*(1+'prezzi combustibile'!$H$6))) -> 0 | V14: =((esempio!$K$19*(esempio!$K$21/100))*(esempio!$K$22*(1+'prezzi combustibile'!$I$6))) -> 0 | W14: =((esempio!$K$19*(esempio!$K$21/100))*(esempio!$K$22*(1+'prezzi combustibile'!$J$6))) -> 0 | X14: =((esempio!$K$19*(esempio!$K$21/100))*(esempio!$K$22*(1+'prezzi combustibile'!$K$6))) -> 0 | Y14: =((esempio!$K$19*(esempio!$K$21/100))*(esempio!$K$22*(1+'prezzi combustibile'!$L$6))) -> 0 | Z14: =((esempio!$K$19*(esempio!$K$21/100))*(esempio!$K$22*(1+'prezzi combustibile'!$M$6))) -> 0 | AA14: =((esempio!$K$19*(esempio!$K$21/100))*(esempio!$K$22*(1+'prezzi combustibile'!$N$6))) -> 0 | AB14: =SUM(Q14:INDEX(Q14:AA14,esempio!$K$6)) -> 0 | AD14: Product 4 | AE14: =((esempio!$K$19*(esempio!$K$25/100))*esempio!$K$26) -> 0 | AF14: =((esempio!$K$19*(esempio!$K$25/100))*(esempio!$K$26*(1+'prezzi combustibile'!$E$6))) -> 0 | AG14: =((esempio!$K$19*(esempio!$K$25/100))*(esempio!$K$26*(1+'prezzi combustibile'!$F$6))) -> 0 | AH14: =((esempio!$K$19*(esempio!$K$25/100))*(esempio!$K$26*(1+'prezzi combustibile'!$G$6))) -> 0 | AI14: =((esempio!$K$19*(esempio!$K$25/100))*(esempio!$K$26*(1+'prezzi combustibile'!$H$6))) -> 0 | AJ14: =((esempio!$K$19*(esempio!$K$25/100))*(esempio!$K$26*(1+'prezzi combustibile'!$I$6))) -> 0 | AK14: =((esempio!$K$19*(esempio!$K$25/100))*(esempio!$K$26*(1+'prezzi combustibile'!$J$6))) -> 0 | AL14: =((esempio!$K$19*(esempio!$K$25/100))*(esempio!$K$26*(1+$K$6))) -> 0 | AM14: =((esempio!$K$19*(esempio!$K$25/100))*(esempio!$K$26*(1+$L$6))) -> 0 | AN14: =((esempio!$K$19*(esempio!$K$25/100))*(esempio!$K$26*(1+$M$6))) -> 0 | AO14: =((esempio!$K$19*(esempio!$K$25/100))*(esempio!$K$26*(1+$N$6))) -> 0 | AP14: =SUM(AE14:INDEX(AE14:AO14,esempio!$E$6)) -> 0
C15: consumo carburante per veicolo (carburante 2) | D15: =esempio!E$25 -> 0 | E15: =esempio!G$25 -> 250 | F15: =esempio!I$25 -> 0 | G15: =esempio!K$25 -> 0 | H15: =esempio!M$25 -> 0 | P15: Product 5 | Q15: =((esempio!$M$19*(esempio!$M$21/100))*esempio!$M$22) -> 0 | R15: =((esempio!$M$19*(esempio!$M$21/100))*(esempio!$M$22*(1+'prezzi combustibile'!$E$6))) -> 0 | S15: =((esempio!$M$19*(esempio!$M$21/100))*(esempio!$M$22*(1+'prezzi combustibile'!$F$6))) -> 0 | T15: =((esempio!$M$19*(esempio!$M$21/100))*(esempio!$M$22*(1+'prezzi combustibile'!$G$6))) -> 0 | U15: =((esempio!$M$19*(esempio!$M$21/100))*(esempio!$M$22*(1+'prezzi combustibile'!$H$6))) -> 0 | V15: =((esempio!$M$19*(esempio!$M$21/100))*(esempio!$M$22*(1+'prezzi combustibile'!$I$6))) -> 0 | W15: =((esempio!$M$19*(esempio!$M$21/100))*(esempio!$M$22*(1+'prezzi combustibile'!$J$6))) -> 0 | X15: =((esempio!$M$19*(esempio!$M$21/100))*(esempio!$M$22*(1+'prezzi combustibile'!$K$6))) -> 0 | Y15: =((esempio!$M$19*(esempio!$M$21/100))*(esempio!$M$22*(1+'prezzi combustibile'!$L$6))) -> 0 | Z15: =((esempio!$M$19*(esempio!$M$21/100))*(esempio!$M$22*(1+'prezzi combustibile'!$M$6))) -> 0 | AA15: =((esempio!$M$19*(esempio!$M$21/100))*(esempio!$M$22*(1+'prezzi combustibile'!$N$6))) -> 0 | AB15: =SUM(Q15:INDEX(Q15:AA15,esempio!$M$6)) -> 0 | AD15: Product 5 | AE15: =((esempio!$M$19*(esempio!$M$25/100))*esempio!$M$26) -> 0 | AF15: =((esempio!$M$19*(esempio!$M$25/100))*(esempio!$M$26*(1+'prezzi combustibile'!$E$6))) -> 0 | AG15: =((esempio!$M$19*(esempio!$M$25/100))*(esempio!$M$26*(1+'prezzi combustibile'!$F$6))) -> 0 | AH15: =((esempio!$M$19*(esempio!$M$25/100))*(esempio!$M$26*(1+'prezzi combustibile'!$G$6))) -> 0 | AI15: =((esempio!$M$19*(esempio!$M$25/100))*(esempio!$M$26*(1+'prezzi combustibile'!$H$6))) -> 0 | AJ15: =((esempio!$M$19*(esempio!$M$25/100))*(esempio!$M$26*(1+'prezzi combustibile'!$I$6))) -> 0 | AK15: =((esempio!$M$19*(esempio!$M$25/100))*(esempio!$M$26*(1+'prezzi combustibile'!$J$6))) -> 0 | AL15: =((esempio!$M$19*(esempio!$M$25/100))*(esempio!$M$26*(1+$K$6))) -> 0 | AM15: =((esempio!$M$19*(esempio!$M$25/100))*(esempio!$M$26*(1+$L$6))) -> 0 | AN15: =((esempio!$M$19*(esempio!$M$25/100))*(esempio!$M$26*(1+$M$6))) -> 0 | AO15: =((esempio!$M$19*(esempio!$M$25/100))*(esempio!$M$26*(1+$N$6))) -> 0 | AP15: =SUM(AE15:INDEX(AE15:AO15,esempio!$E$6)) -> 0
C16: contenuto energetico (carburante 2) | E16: =INDEX($C$42:$C$54,E$5) -> 32
C17: consumo energetico (MJ/km) | D17: =((D13/100)*D14)+((D15/100)*D16) -> 15.084 | E17: 91.736 | P17: LPG | Q17: 2014 | R17: 2015 | S17: 2016 | T17: 2017 | U17: 2018 | V17: 2019 | W17: 2020 | X17: 2021 | Y17: 2022 | Z17: 2023 | AA17: 2024 | AB17: Total fuel price for period | AD17: LPG | AE17: 2014 | AF17: 2015 | AG17: 2016 | AH17: 2017 | AI17: 2018 | AJ17: 2019 | AK17: 2020 | AL17: 2021 | AM17: 2022 | AN17: 2023 | AO17: 2024 | AP17: Total fuel price for period
C18: Costo al litro del carburante di riferimento (€/l) | D18: =esempio!E$60 -> 1.01 | E18: =esempio!G$60 -> 1.01 | F18: =esempio!I$60 -> 0 | G18: =esempio!K$60 -> 0 | H18: =esempio!M$60 -> 0 | P18: Product 1 | Q18: =((esempio!$E$19*(esempio!$E$21/100))*esempio!$E$22) -> 40894.4 | R18: =((esempio!$E$19*(esempio!$E$21/100))*(esempio!$E$22*(1+'prezzi combustibile'!$E$6))) -> 39348.94556 | S18: =((esempio!$E$19*(esempio!$E$21/100))*(esempio!$E$22*(1+'prezzi combustibile'!$F$6))) -> 38784.60309 | T18: =((esempio!$E$19*(esempio!$E$21/100))*(esempio!$E$22*(1+'prezzi combustibile'!$G$6))) -> 38807.03215 | U18: =((esempio!$E$19*(esempio!$E$21/100))*(esempio!$E$22*(1+'prezzi combustibile'!$H$6))) -> 39236.51725 | V18: =((esempio!$E$19*(esempio!$E$21/100))*(esempio!$E$22*(1+'prezzi combustibile'!$I$6))) -> 40124.65552 | W18: =((esempio!$E$19*(esempio!$E$21/100))*(esempio!$E$22*(1+'prezzi combustibile'!$J$6))) -> 40818.48451 | X18: =((esempio!$E$19*(esempio!$E$21/100))*(esempio!$E$22*(1+'prezzi combustibile'!$K$6))) -> 41585.02446 | Y18: =((esempio!$E$19*(esempio!$E$21/100))*(esempio!$E$22*(1+'prezzi combustibile'!$L$6))) -> 42405.64509 | Z18: =((esempio!$E$19*(esempio!$E$21/100))*(esempio!$E$22*(1+'prezzi combustibile'!$M$6))) -> 42965.49118 | AA18: =((esempio!$E$19*(esempio!$E$21/100))*(esempio!$E$22*(1+'prezzi combustibile'!$N$6))) -> 43494.95047 | AB18: =SUM(Q18:INDEX(Q18:AA18,esempio!$E$6)) -> 404970.7988 | AD18: Product 1 | AE18: =((esempio!$E$19*(esempio!$E$25/100))*esempio!$E$26) -> 0 | AF18: =((esempio!$E$19*(esempio!$E$25/100))*(esempio!$E$26*(1+'prezzi combustibile'!$E$6))) -> 0 | AG18: =((esempio!$E$19*(esempio!$E$25/100))*(esempio!$E$26*(1+'prezzi combustibile'!$F$6))) -> 0 | AH18: =((esempio!$E$19*(esempio!$E$25/100))*(esempio!$E$26*(1+'prezzi combustibile'!$G$6))) -> 0 | AI18: =((esempio!$E$19*(esempio!$E$25/100))*(esempio!$E$26*(1+'prezzi combustibile'!$H$6))) -> 0 | AJ18: =((esempio!$E$19*(esempio!$E$25/100))*(esempio!$E$26*(1+'prezzi combustibile'!$I$6))) -> 0 | AK18: =((esempio!$E$19*(esempio!$E$25/100))*(esempio!$E$26*(1+'prezzi combustibile'!$J$6))) -> 0 | AL18: =((esempio!$E$19*(esempio!$E$25/100))*(esempio!$E$26*(1+$K$6))) -> 0 | AM18: =((esempio!$E$19*(esempio!$E$25/100))*(esempio!$E$26*(1+$L$6))) -> 0 | AN18: =((esempio!$E$19*(esempio!$E$25/100))*(esempio!$E$26*(1+$M$6))) -> 0 | AO18: =((esempio!$E$19*(esempio!$E$25/100))*(esempio!$E$26*(1+$N$6))) -> 0 | AP18: =SUM(AE18:INDEX(AE18:AO18,esempio!$E$6)) -> 0
C19: contenuto energetico carburante di riferimento | D19: =IF($D$6=1,C26, IF($D$6=2,C27, "INCORRECT")) -> 36 | E19: =IF(E$6=1,$C$26, IF(E$6=2,$C$27, "INCORRECT")) -> 36 | F19: =IF(F$6=1,$C$26, IF(F$6=2,$C$27, "INCORRECT")) -> INCORRECT | G19: =IF(G$6=1,$C$26, IF(G$6=2,$C$27, "INCORRECT")) -> INCORRECT | H19: =IF(H$6=1,$C$26, IF(H$6=2,$C$27, "INCORRECT")) -> INCORRECT | P19: Product 2 | Q19: =((esempio!$G$19*(esempio!$G$21/100))*esempio!$G$22) -> 31817.6 | R19: =((esempio!$G$19*(esempio!$G$21/100))*(esempio!$G$22*(1+'prezzi combustibile'!$E$6))) -> 30615.17006 | S19: =((esempio!$G$19*(esempio!$G$21/100))*(esempio!$G$22*(1+'prezzi combustibile'!$F$6))) -> 30176.08737 | T19: =((esempio!$G$19*(esempio!$G$21/100))*(esempio!$G$22*(1+'prezzi combustibile'!$G$6))) -> 30193.53814 | U19: =((esempio!$G$19*(esempio!$G$21/100))*(esempio!$G$22*(1+'prezzi combustibile'!$H$6))) -> 30527.696 | V19: =((esempio!$G$19*(esempio!$G$21/100))*(esempio!$G$22*(1+'prezzi combustibile'!$I$6))) -> 31218.70573 | W19: =((esempio!$G$19*(esempio!$G$21/100))*(esempio!$G$22*(1+'prezzi combustibile'!$J$6))) -> 31758.53449 | X19: =((esempio!$G$19*(esempio!$G$21/100))*(esempio!$G$22*(1+'prezzi combustibile'!$K$6))) -> 32354.9355 | Y19: =((esempio!$G$19*(esempio!$G$21/100))*(esempio!$G$22*(1+'prezzi combustibile'!$L$6))) -> 32993.4136 | Z19: =((esempio!$G$19*(esempio!$G$21/100))*(esempio!$G$22*(1+'prezzi combustibile'!$M$6))) -> 33428.99791 | AA19: =((esempio!$G$19*(esempio!$G$21/100))*(esempio!$G$22*(1+'prezzi combustibile'!$N$6))) -> 33840.93998 | AB19: =SUM(Q19:INDEX(Q19:AA19,esempio!$G$6)) -> 315084.6788 | AD19: Product 2 | AE19: =((esempio!$G$19*(esempio!$G$25/100))*esempio!$G$26) -> 200000 | AF19: =((esempio!$G$19*(esempio!$G$25/100))*(esempio!$G$26*(1+'prezzi combustibile'!$E$6))) -> 192441.7307 | AG19: =((esempio!$G$19*(esempio!$G$25/100))*(esempio!$G$26*(1+'prezzi combustibile'!$F$6))) -> 189681.7319 | AH19: =((esempio!$G$19*(esempio!$G$25/100))*(esempio!$G$26*(1+'prezzi combustibile'!$G$6))) -> 189791.4245 | AI19: =((esempio!$G$19*(esempio!$G$25/100))*(esempio!$G$26*(1+'prezzi combustibile'!$H$6))) -> 191891.8837 | AJ19: =((esempio!$G$19*(esempio!$G$25/100))*(esempio!$G$26*(1+'prezzi combustibile'!$I$6))) -> 196235.4529 | AK19: =((esempio!$G$19*(esempio!$G$25/100))*(esempio!$G$26*(1+'prezzi combustibile'!$J$6))) -> 199628.7243 | AL19: =((esempio!$G$19*(esempio!$G$25/100))*(esempio!$G$26*(1+$K$6))) -> 200000 | AM19: =((esempio!$G$19*(esempio!$G$25/100))*(esempio!$G$26*(1+$L$6))) -> 200000 | AN19: =((esempio!$G$19*(esempio!$G$25/100))*(esempio!$G$26*(1+$M$6))) -> 200000 | AO19: =((esempio!$G$19*(esempio!$G$25/100))*(esempio!$G$26*(1+$N$6))) -> 200000 | AP19: =SUM(AE19:INDEX(AE19:AO19,esempio!$E$6)) -> 1959670.948
C20: Costo per unità di energia (€/MJ) | D20: =D18/D19 -> 0.02805555556 | E20: 0.02805555556 | P20: Product 3 | Q20: =((esempio!$I$19*(esempio!$I$21/100))*esempio!$I$22) -> 36000 | R20: =((esempio!$I$19*(esempio!$I$21/100))*(esempio!$I$22*(1+'prezzi combustibile'!$E$6))) -> 34639.51153 | S20: =((esempio!$I$19*(esempio!$I$21/100))*(esempio!$I$22*(1+'prezzi combustibile'!$F$6))) -> 34142.71175 | T20: =((esempio!$I$19*(esempio!$I$21/100))*(esempio!$I$22*(1+'prezzi combustibile'!$G$6))) -> 34162.45641 | U20: =((esempio!$I$19*(esempio!$I$21/100))*(esempio!$I$22*(1+'prezzi combustibile'!$H$6))) -> 34540.53907 | V20: =((esempio!$I$19*(esempio!$I$21/100))*(esempio!$I$22*(1+'prezzi combustibile'!$I$6))) -> 35322.38152 | W20: =((esempio!$I$19*(esempio!$I$21/100))*(esempio!$I$22*(1+'prezzi combustibile'!$J$6))) -> 35933.17037 | X20: =((esempio!$I$19*(esempio!$I$21/100))*(esempio!$I$22*(1+'prezzi combustibile'!$K$6))) -> 36607.96785 | Y20: =((esempio!$I$19*(esempio!$I$21/100))*(esempio!$I$22*(1+'prezzi combustibile'!$L$6))) -> 37330.37343 | Z20: =((esempio!$I$19*(esempio!$I$21/100))*(esempio!$I$22*(1+'prezzi combustibile'!$M$6))) -> 37823.21497 | AA20: =((esempio!$I$19*(esempio!$I$21/100))*(esempio!$I$22*(1+'prezzi combustibile'!$N$6))) -> 38289.30653 | AB20: =SUM(Q20:INDEX(Q20:AA20,esempio!$I$6)) -> 356502.3269 | AD20: Product 3 | AE20: =((esempio!$I$19*(esempio!$I$25/100))*esempio!$I$26) -> 0 | AF20: =((esempio!$I$19*(esempio!$I$25/100))*(esempio!$I$26*(1+'prezzi combustibile'!$E$6))) -> 0 | AG20: =((esempio!$I$19*(esempio!$I$25/100))*(esempio!$I$26*(1+'prezzi combustibile'!$F$6))) -> 0 | AH20: =((esempio!$I$19*(esempio!$I$25/100))*(esempio!$I$26*(1+'prezzi combustibile'!$G$6))) -> 0 | AI20: =((esempio!$I$19*(esempio!$I$25/100))*(esempio!$I$26*(1+'prezzi combustibile'!$H$6))) -> 0 | AJ20: =((esempio!$I$19*(esempio!$I$25/100))*(esempio!$I$26*(1+'prezzi combustibile'!$I$6))) -> 0 | AK20: =((esempio!$I$19*(esempio!$I$25/100))*(esempio!$I$26*(1+'prezzi combustibile'!$J$6))) -> 0 | AL20: =((esempio!$I$19*(esempio!$I$25/100))*(esempio!$I$26*(1+$K$6))) -> 0 | AM20: =((esempio!$I$19*(esempio!$I$25/100))*(esempio!$I$26*(1+$L$6))) -> 0 | AN20: =((esempio!$I$19*(esempio!$I$25/100))*(esempio!$I$26*(1+$M$6))) -> 0 | AO20: =((esempio!$I$19*(esempio!$I$25/100))*(esempio!$I$26*(1+$N$6))) -> 0 | AP20: =SUM(AE20:INDEX(AE20:AO20,esempio!$E$6)) -> 0
C21: chilometraggio di vita (km) | D21: =esempio!E19*esempio!E$6 -> 800000 | E21: =esempio!G19*esempio!G$6 -> 800000 | F21: =esempio!I19*esempio!I$6 -> 200000 | G21: =esempio!K19*esempio!K$6 -> 0 | H21: =esempio!M19*esempio!M$6 -> 0 | P21: Product 4 | Q21: =((esempio!$K$19*(esempio!$K$21/100))*esempio!$K$22) -> 0 | R21: =((esempio!$K$19*(esempio!$K$21/100))*(esempio!$K$22*(1+'prezzi combustibile'!$E$6))) -> 0 | S21: =((esempio!$K$19*(esempio!$K$21/100))*(esempio!$K$22*(1+'prezzi combustibile'!$F$6))) -> 0 | T21: =((esempio!$K$19*(esempio!$K$21/100))*(esempio!$K$22*(1+'prezzi combustibile'!$G$6))) -> 0 | U21: =((esempio!$K$19*(esempio!$K$21/100))*(esempio!$K$22*(1+'prezzi combustibile'!$H$6))) -> 0 | V21: =((esempio!$K$19*(esempio!$K$21/100))*(esempio!$K$22*(1+'prezzi combustibile'!$I$6))) -> 0 | W21: =((esempio!$K$19*(esempio!$K$21/100))*(esempio!$K$22*(1+'prezzi combustibile'!$J$6))) -> 0 | X21: =((esempio!$K$19*(esempio!$K$21/100))*(esempio!$K$22*(1+'prezzi combustibile'!$K$6))) -> 0 | Y21: =((esempio!$K$19*(esempio!$K$21/100))*(esempio!$K$22*(1+'prezzi combustibile'!$L$6))) -> 0 | Z21: =((esempio!$K$19*(esempio!$K$21/100))*(esempio!$K$22*(1+'prezzi combustibile'!$M$6))) -> 0 | AA21: =((esempio!$K$19*(esempio!$K$21/100))*(esempio!$K$22*(1+'prezzi combustibile'!$N$6))) -> 0 | AB21: =SUM(Q21:INDEX(Q21:AA21,esempio!$K$6)) -> 0 | AD21: Product 4 | AE21: =((esempio!$K$19*(esempio!$K$25/100))*esempio!$K$26) -> 0 | AF21: =((esempio!$K$19*(esempio!$K$25/100))*(esempio!$K$26*(1+'prezzi combustibile'!$E$6))) -> 0 | AG21: =((esempio!$K$19*(esempio!$K$25/100))*(esempio!$K$26*(1+'prezzi combustibile'!$F$6))) -> 0 | AH21: =((esempio!$K$19*(esempio!$K$25/100))*(esempio!$K$26*(1+'prezzi combustibile'!$G$6))) -> 0 | AI21: =((esempio!$K$19*(esempio!$K$25/100))*(esempio!$K$26*(1+'prezzi combustibile'!$H$6))) -> 0 | AJ21: =((esempio!$K$19*(esempio!$K$25/100))*(esempio!$K$26*(1+'prezzi combustibile'!$I$6))) -> 0 | AK21: =((esempio!$K$19*(esempio!$K$25/100))*(esempio!$K$26*(1+'prezzi combustibile'!$J$6))) -> 0 | AL21: =((esempio!$K$19*(esempio!$K$25/100))*(esempio!$K$26*(1+$K$6))) -> 0 | AM21: =((esempio!$K$19*(esempio!$K$25/100))*(esempio!$K$26*(1+$L$6))) -> 0 | AN21: =((esempio!$K$19*(esempio!$K$25/100))*(esempio!$K$26*(1+$M$6))) -> 0 | AO21: =((esempio!$K$19*(esempio!$K$25/100))*(esempio!$K$26*(1+$N$6))) -> 0 | AP21: =SUM(AE21:INDEX(AE21:AO21,esempio!$E$6)) -> 0
C22: costo di vita del consumo energetico (€) | D22: =D17*D20*D21 -> 338552 | E22: 2058963.556 | P22: Product 5 | Q22: =((esempio!$M$19*(esempio!$M$21/100))*esempio!$M$22) -> 0 | R22: =((esempio!$M$19*(esempio!$M$21/100))*(esempio!$M$22*(1+'prezzi combustibile'!$E$6))) -> 0 | S22: =((esempio!$M$19*(esempio!$M$21/100))*(esempio!$M$22*(1+'prezzi combustibile'!$F$6))) -> 0 | T22: =((esempio!$M$19*(esempio!$M$21/100))*(esempio!$M$22*(1+'prezzi combustibile'!$G$6))) -> 0 | U22: =((esempio!$M$19*(esempio!$M$21/100))*(esempio!$M$22*(1+'prezzi combustibile'!$H$6))) -> 0 | V22: =((esempio!$M$19*(esempio!$M$21/100))*(esempio!$M$22*(1+'prezzi combustibile'!$I$6))) -> 0 | W22: =((esempio!$M$19*(esempio!$M$21/100))*(esempio!$M$22*(1+'prezzi combustibile'!$J$6))) -> 0 | X22: =((esempio!$M$19*(esempio!$M$21/100))*(esempio!$M$22*(1+'prezzi combustibile'!$K$6))) -> 0 | Y22: =((esempio!$M$19*(esempio!$M$21/100))*(esempio!$M$22*(1+'prezzi combustibile'!$L$6))) -> 0 | Z22: =((esempio!$M$19*(esempio!$M$21/100))*(esempio!$M$22*(1+'prezzi combustibile'!$M$6))) -> 0 | AA22: =((esempio!$M$19*(esempio!$M$21/100))*(esempio!$M$22*(1+'prezzi combustibile'!$N$6))) -> 0 | AB22: =SUM(Q22:INDEX(Q22:AA22,esempio!$M$6)) -> 0 | AD22: Product 5 | AE22: =((esempio!$M$19*(esempio!$M$25/100))*esempio!$M$26) -> 0 | AF22: =((esempio!$M$19*(esempio!$M$25/100))*(esempio!$M$26*(1+'prezzi combustibile'!$E$6))) -> 0 | AG22: =((esempio!$M$19*(esempio!$M$25/100))*(esempio!$M$26*(1+'prezzi combustibile'!$F$6))) -> 0 | AH22: =((esempio!$M$19*(esempio!$M$25/100))*(esempio!$M$26*(1+'prezzi combustibile'!$G$6))) -> 0 | AI22: =((esempio!$M$19*(esempio!$M$25/100))*(esempio!$M$26*(1+'prezzi combustibile'!$H$6))) -> 0 | AJ22: =((esempio!$M$19*(esempio!$M$25/100))*(esempio!$M$26*(1+'prezzi combustibile'!$I$6))) -> 0 | AK22: =((esempio!$M$19*(esempio!$M$25/100))*(esempio!$M$26*(1+'prezzi combustibile'!$J$6))) -> 0 | AL22: =((esempio!$M$19*(esempio!$M$25/100))*(esempio!$M$26*(1+$K$6))) -> 0 | AM22: =((esempio!$M$19*(esempio!$M$25/100))*(esempio!$M$26*(1+$L$6))) -> 0 | AN22: =((esempio!$M$19*(esempio!$M$25/100))*(esempio!$M$26*(1+$M$6))) -> 0 | AO22: =((esempio!$M$19*(esempio!$M$25/100))*(esempio!$M$26*(1+$N$6))) -> 0 | AP22: =SUM(AE22:INDEX(AE22:AO22,esempio!$E$6)) -> 0
B24: carburante 1 | G24: costo totale per il carburante per il periodo specificato | P24: ETHANOL | Q24: 2014 | R24: 2015 | S24: 2016 | T24: 2017 | U24: 2018 | V24: 2019 | W24: 2020 | X24: 2021 | Y24: 2022 | Z24: 2023 | AA24: 2024 | AB24: Total fuel price for period | AD24: Ethanol
B25: tipo carburante | C25: contenuto energetico | D25: unità di misura | E25: unità di misura consumo combustibile | F25: unità di misura costo | G25: prodotto 1 | H25: prodotto 2 | I25: prodotto 3 | J25: prodotto 4 | K25: prodotto 5 | P25: Product 1 | Q25: =((esempio!$E$19*(esempio!$E$21/100))*esempio!$E$22) -> 40894.4 | R25: =((esempio!$E$19*(esempio!$E$21/100))*(esempio!$E$22*(1+'prezzi combustibile'!$E$6))) -> 39348.94556 | S25: =((esempio!$E$19*(esempio!$E$21/100))*(esempio!$E$22*(1+'prezzi combustibile'!$F$6))) -> 38784.60309 | T25: =((esempio!$E$19*(esempio!$E$21/100))*(esempio!$E$22*(1+'prezzi combustibile'!$G$6))) -> 38807.03215 | U25: =((esempio!$E$19*(esempio!$E$21/100))*(esempio!$E$22*(1+'prezzi combustibile'!$H$6))) -> 39236.51725 | V25: =((esempio!$E$19*(esempio!$E$21/100))*(esempio!$E$22*(1+'prezzi combustibile'!$I$6))) -> 40124.65552 | W25: =((esempio!$E$19*(esempio!$E$21/100))*(esempio!$E$22*(1+'prezzi combustibile'!$J$6))) -> 40818.48451 | X25: =((esempio!$E$19*(esempio!$E$21/100))*(esempio!$E$22*(1+'prezzi combustibile'!$K$6))) -> 41585.02446 | Y25: =((esempio!$E$19*(esempio!$E$21/100))*(esempio!$E$22*(1+'prezzi combustibile'!$L$6))) -> 42405.64509 | Z25: =((esempio!$E$19*(esempio!$E$21/100))*(esempio!$E$22*(1+'prezzi combustibile'!$M$6))) -> 42965.49118 | AA25: =((esempio!$E$19*(esempio!$E$21/100))*(esempio!$E$22*(1+'prezzi combustibile'!$N$6))) -> 43494.95047 | AB25: =SUM(Q25:INDEX(Q25:AA25,esempio!$E$6)) -> 404970.7988 | AD25: Product 1 | AE25: =((esempio!$E$19*(esempio!$E$25/100))*esempio!$E$26) -> 0 | AF25: =((esempio!$E$19*(esempio!$E$25/100))*(esempio!$E$26*(1+'prezzi combustibile'!$E$6))) -> 0 | AG25: =((esempio!$E$19*(esempio!$E$25/100))*(esempio!$E$26*(1+'prezzi combustibile'!$F$6))) -> 0 | AH25: =((esempio!$E$19*(esempio!$E$25/100))*(esempio!$E$26*(1+'prezzi combustibile'!$G$6))) -> 0 | AI25: =((esempio!$E$19*(esempio!$E$25/100))*(esempio!$E$26*(1+'prezzi combustibile'!$H$6))) -> 0 | AJ25: =((esempio!$E$19*(esempio!$E$25/100))*(esempio!$E$26*(1+'prezzi combustibile'!$I$6))) -> 0 | AK25: =((esempio!$E$19*(esempio!$E$25/100))*(esempio!$E$26*(1+'prezzi combustibile'!$J$6))) -> 0 | AL25: =((esempio!$E$19*(esempio!$E$25/100))*(esempio!$E$26*(1+$K$6))) -> 0 | AM25: =((esempio!$E$19*(esempio!$E$25/100))*(esempio!$E$26*(1+$L$6))) -> 0 | AN25: =((esempio!$E$19*(esempio!$E$25/100))*(esempio!$E$26*(1+$M$6))) -> 0 | AO25: =((esempio!$E$19*(esempio!$E$25/100))*(esempio!$E$26*(1+$N$6))) -> 0 | AP25: =SUM(AE25:INDEX(AE25:AO25,esempio!$E$6)) -> 0
B26: Diesel | C26: 36 | D26: MJ/l | E26: l/100km | F26: €/l | G26: =$AB$4 -> 404970.7988 | H26: =$AB$5 -> 315084.6788 | I26: =$AB$6 -> 356502.3269 | J26: =$AB$7 -> 0 | K26: =$AB$8 -> 0 | P26: Product 2 | Q26: =((esempio!$G$19*(esempio!$G$21/100))*esempio!$G$22) -> 31817.6 | R26: =((esempio!$G$19*(esempio!$G$21/100))*(esempio!$G$22*(1+'prezzi combustibile'!$E$6))) -> 30615.17006 | S26: =((esempio!$G$19*(esempio!$G$21/100))*(esempio!$G$22*(1+'prezzi combustibile'!$F$6))) -> 30176.08737 | T26: =((esempio!$G$19*(esempio!$G$21/100))*(esempio!$G$22*(1+'prezzi combustibile'!$G$6))) -> 30193.53814 | U26: =((esempio!$G$19*(esempio!$G$21/100))*(esempio!$G$22*(1+'prezzi combustibile'!$H$6))) -> 30527.696 | V26: =((esempio!$G$19*(esempio!$G$21/100))*(esempio!$G$22*(1+'prezzi combustibile'!$I$6))) -> 31218.70573 | W26: =((esempio!$G$19*(esempio!$G$21/100))*(esempio!$G$22*(1+'prezzi combustibile'!$J$6))) -> 31758.53449 | X26: =((esempio!$G$19*(esempio!$G$21/100))*(esempio!$G$22*(1+'prezzi combustibile'!$K$6))) -> 32354.9355 | Y26: =((esempio!$G$19*(esempio!$G$21/100))*(esempio!$G$22*(1+'prezzi combustibile'!$L$6))) -> 32993.4136 | Z26: =((esempio!$G$19*(esempio!$G$21/100))*(esempio!$G$22*(1+'prezzi combustibile'!$M$6))) -> 33428.99791 | AA26: =((esempio!$G$19*(esempio!$G$21/100))*(esempio!$G$22*(1+'prezzi combustibile'!$N$6))) -> 33840.93998 | AB26: =SUM(Q26:INDEX(Q26:AA26,esempio!$G$6)) -> 315084.6788 | AD26: Product 2 | AE26: =((esempio!$G$19*(esempio!$G$25/100))*esempio!$G$26) -> 200000 | AF26: =((esempio!$G$19*(esempio!$G$25/100))*(esempio!$G$26*(1+'prezzi combustibile'!$E$6))) -> 192441.7307 | AG26: =((esempio!$G$19*(esempio!$G$25/100))*(esempio!$G$26*(1+'prezzi combustibile'!$F$6))) -> 189681.7319 | AH26: =((esempio!$G$19*(esempio!$G$25/100))*(esempio!$G$26*(1+'prezzi combustibile'!$G$6))) -> 189791.4245 | AI26: =((esempio!$G$19*(esempio!$G$25/100))*(esempio!$G$26*(1+'prezzi combustibile'!$H$6))) -> 191891.8837 | AJ26: =((esempio!$G$19*(esempio!$G$25/100))*(esempio!$G$26*(1+'prezzi combustibile'!$I$6))) -> 196235.4529 | AK26: =((esempio!$G$19*(esempio!$G$25/100))*(esempio!$G$26*(1+'prezzi combustibile'!$J$6))) -> 199628.7243 | AL26: =((esempio!$G$19*(esempio!$G$25/100))*(esempio!$G$26*(1+$K$6))) -> 200000 | AM26: =((esempio!$G$19*(esempio!$G$25/100))*(esempio!$G$26*(1+$L$6))) -> 200000 | AN26: =((esempio!$G$19*(esempio!$G$25/100))*(esempio!$G$26*(1+$M$6))) -> 200000 | AO26: =((esempio!$G$19*(esempio!$G$25/100))*(esempio!$G$26*(1+$N$6))) -> 200000 | AP26: =SUM(AE26:INDEX(AE26:AO26,esempio!$E$6)) -> 1959670.948
B27: benzina | C27: 32 | D27: MJ/l | E27: l/100km | F27: €/l | G27: =$AB$11 -> 404970.7988 | H27: =$AB$12 -> 315084.6788 | I27: =$AB$13 -> 356502.3269 | J27: =$AB$14 -> 0 | K27: =$AB$15 -> 0 | P27: Product 3 | Q27: =((esempio!$I$19*(esempio!$I$21/100))*esempio!$I$22) -> 36000 | R27: =((esempio!$I$19*(esempio!$I$21/100))*(esempio!$I$22*(1+'prezzi combustibile'!$E$6))) -> 34639.51153 | S27: =((esempio!$I$19*(esempio!$I$21/100))*(esempio!$I$22*(1+'prezzi combustibile'!$F$6))) -> 34142.71175 | T27: =((esempio!$I$19*(esempio!$I$21/100))*(esempio!$I$22*(1+'prezzi combustibile'!$G$6))) -> 34162.45641 | U27: =((esempio!$I$19*(esempio!$I$21/100))*(esempio!$I$22*(1+'prezzi combustibile'!$H$6))) -> 34540.53907 | V27: =((esempio!$I$19*(esempio!$I$21/100))*(esempio!$I$22*(1+'prezzi combustibile'!$I$6))) -> 35322.38152 | W27: =((esempio!$I$19*(esempio!$I$21/100))*(esempio!$I$22*(1+'prezzi combustibile'!$J$6))) -> 35933.17037 | X27: =((esempio!$I$19*(esempio!$I$21/100))*(esempio!$I$22*(1+'prezzi combustibile'!$K$6))) -> 36607.96785 | Y27: =((esempio!$I$19*(esempio!$I$21/100))*(esempio!$I$22*(1+'prezzi combustibile'!$L$6))) -> 37330.37343 | Z27: =((esempio!$I$19*(esempio!$I$21/100))*(esempio!$I$22*(1+'prezzi combustibile'!$M$6))) -> 37823.21497 | AA27: =((esempio!$I$19*(esempio!$I$21/100))*(esempio!$I$22*(1+'prezzi combustibile'!$N$6))) -> 38289.30653 | AB27: =SUM(Q27:INDEX(Q27:AA27,esempio!$I$6)) -> 356502.3269 | AD27: Product 3 | AE27: =((esempio!$I$19*(esempio!$I$25/100))*esempio!$I$26) -> 0 | AF27: =((esempio!$I$19*(esempio!$I$25/100))*(esempio!$I$26*(1+'prezzi combustibile'!$E$6))) -> 0 | AG27: =((esempio!$I$19*(esempio!$I$25/100))*(esempio!$I$26*(1+'prezzi combustibile'!$F$6))) -> 0 | AH27: =((esempio!$I$19*(esempio!$I$25/100))*(esempio!$I$26*(1+'prezzi combustibile'!$G$6))) -> 0 | AI27: =((esempio!$I$19*(esempio!$I$25/100))*(esempio!$I$26*(1+'prezzi combustibile'!$H$6))) -> 0 | AJ27: =((esempio!$I$19*(esempio!$I$25/100))*(esempio!$I$26*(1+'prezzi combustibile'!$I$6))) -> 0 | AK27: =((esempio!$I$19*(esempio!$I$25/100))*(esempio!$I$26*(1+'prezzi combustibile'!$J$6))) -> 0 | AL27: =((esempio!$I$19*(esempio!$I$25/100))*(esempio!$I$26*(1+$K$6))) -> 0 | AM27: =((esempio!$I$19*(esempio!$I$25/100))*(esempio!$I$26*(1+$L$6))) -> 0 | AN27: =((esempio!$I$19*(esempio!$I$25/100))*(esempio!$I$26*(1+$M$6))) -> 0 | AO27: =((esempio!$I$19*(esempio!$I$25/100))*(esempio!$I$26*(1+$N$6))) -> 0 | AP27: =SUM(AE27:INDEX(AE27:AO27,esempio!$E$6)) -> 0
B28: Biogas/CBG | C28: 35 | D28: MJ/Nm3 | E28: Nm3/100km | F28: €/Nm3 | P28: Product 4 | Q28: =((esempio!$K$19*(esempio!$K$21/100))*esempio!$K$22) -> 0 | R28: =((esempio!$K$19*(esempio!$K$21/100))*(esempio!$K$22*(1+'prezzi combustibile'!$E$6))) -> 0 | S28: =((esempio!$K$19*(esempio!$K$21/100))*(esempio!$K$22*(1+'prezzi combustibile'!$F$6))) -> 0 | T28: =((esempio!$K$19*(esempio!$K$21/100))*(esempio!$K$22*(1+'prezzi combustibile'!$G$6))) -> 0 | U28: =((esempio!$K$19*(esempio!$K$21/100))*(esempio!$K$22*(1+'prezzi combustibile'!$H$6))) -> 0 | V28: =((esempio!$K$19*(esempio!$K$21/100))*(esempio!$K$22*(1+'prezzi combustibile'!$I$6))) -> 0 | W28: =((esempio!$K$19*(esempio!$K$21/100))*(esempio!$K$22*(1+'prezzi combustibile'!$J$6))) -> 0 | X28: =((esempio!$K$19*(esempio!$K$21/100))*(esempio!$K$22*(1+'prezzi combustibile'!$K$6))) -> 0 | Y28: =((esempio!$K$19*(esempio!$K$21/100))*(esempio!$K$22*(1+'prezzi combustibile'!$L$6))) -> 0 | Z28: =((esempio!$K$19*(esempio!$K$21/100))*(esempio!$K$22*(1+'prezzi combustibile'!$M$6))) -> 0 | AA28: =((esempio!$K$19*(esempio!$K$21/100))*(esempio!$K$22*(1+'prezzi combustibile'!$N$6))) -> 0 | AB28: =SUM(Q28:INDEX(Q28:AA28,esempio!$K$6)) -> 0 | AD28: Product 4 | AE28: =((esempio!$K$19*(esempio!$K$25/100))*esempio!$K$26) -> 0 | AF28: =((esempio!$K$19*(esempio!$K$25/100))*(esempio!$K$26*(1+'prezzi combustibile'!$E$6))) -> 0 | AG28: =((esempio!$K$19*(esempio!$K$25/100))*(esempio!$K$26*(1+'prezzi combustibile'!$F$6))) -> 0 | AH28: =((esempio!$K$19*(esempio!$K$25/100))*(esempio!$K$26*(1+'prezzi combustibile'!$G$6))) -> 0 | AI28: =((esempio!$K$19*(esempio!$K$25/100))*(esempio!$K$26*(1+'prezzi combustibile'!$H$6))) -> 0 | AJ28: =((esempio!$K$19*(esempio!$K$25/100))*(esempio!$K$26*(1+'prezzi combustibile'!$I$6))) -> 0 | AK28: =((esempio!$K$19*(esempio!$K$25/100))*(esempio!$K$26*(1+'prezzi combustibile'!$J$6))) -> 0 | AL28: =((esempio!$K$19*(esempio!$K$25/100))*(esempio!$K$26*(1+$K$6))) -> 0 | AM28: =((esempio!$K$19*(esempio!$K$25/100))*(esempio!$K$26*(1+$L$6))) -> 0 | AN28: =((esempio!$K$19*(esempio!$K$25/100))*(esempio!$K$26*(1+$M$6))) -> 0 | AO28: =((esempio!$K$19*(esempio!$K$25/100))*(esempio!$K$26*(1+$N$6))) -> 0 | AP28: =SUM(AE28:INDEX(AE28:AO28,esempio!$E$6)) -> 0
B29: Natural Gas/CNG (Nm3/100km) | C29: 35 | D29: MJ/Nm3 | E29: Nm3/100km | F29: €/Nm3 | G29: =$AB$46 -> 404970.7988 | H29: =$AB$47 -> 315084.6788 | I29: =$AB$48 -> 356502.3269 | J29: =$AB$49 -> 0 | K29: =$AB$50 -> 0 | P29: Product 5 | Q29: =((esempio!$M$19*(esempio!$M$21/100))*esempio!$M$22) -> 0 | R29: =((esempio!$M$19*(esempio!$M$21/100))*(esempio!$M$22*(1+'prezzi combustibile'!$E$6))) -> 0 | S29: =((esempio!$M$19*(esempio!$M$21/100))*(esempio!$M$22*(1+'prezzi combustibile'!$F$6))) -> 0 | T29: =((esempio!$M$19*(esempio!$M$21/100))*(esempio!$M$22*(1+'prezzi combustibile'!$G$6))) -> 0 | U29: =((esempio!$M$19*(esempio!$M$21/100))*(esempio!$M$22*(1+'prezzi combustibile'!$H$6))) -> 0 | V29: =((esempio!$M$19*(esempio!$M$21/100))*(esempio!$M$22*(1+'prezzi combustibile'!$I$6))) -> 0 | W29: =((esempio!$M$19*(esempio!$M$21/100))*(esempio!$M$22*(1+'prezzi combustibile'!$J$6))) -> 0 | X29: =((esempio!$M$19*(esempio!$M$21/100))*(esempio!$M$22*(1+'prezzi combustibile'!$K$6))) -> 0 | Y29: =((esempio!$M$19*(esempio!$M$21/100))*(esempio!$M$22*(1+'prezzi combustibile'!$L$6))) -> 0 | Z29: =((esempio!$M$19*(esempio!$M$21/100))*(esempio!$M$22*(1+'prezzi combustibile'!$M$6))) -> 0 | AA29: =((esempio!$M$19*(esempio!$M$21/100))*(esempio!$M$22*(1+'prezzi combustibile'!$N$6))) -> 0 | AB29: =SUM(Q29:INDEX(Q29:AA29,esempio!$M$6)) -> 0 | AD29: Product 5 | AE29: =((esempio!$M$19*(esempio!$M$25/100))*esempio!$M$26) -> 0 | AF29: =((esempio!$M$19*(esempio!$M$25/100))*(esempio!$M$26*(1+'prezzi combustibile'!$E$6))) -> 0 | AG29: =((esempio!$M$19*(esempio!$M$25/100))*(esempio!$M$26*(1+'prezzi combustibile'!$F$6))) -> 0 | AH29: =((esempio!$M$19*(esempio!$M$25/100))*(esempio!$M$26*(1+'prezzi combustibile'!$G$6))) -> 0 | AI29: =((esempio!$M$19*(esempio!$M$25/100))*(esempio!$M$26*(1+'prezzi combustibile'!$H$6))) -> 0 | AJ29: =((esempio!$M$19*(esempio!$M$25/100))*(esempio!$M$26*(1+'prezzi combustibile'!$I$6))) -> 0 | AK29: =((esempio!$M$19*(esempio!$M$25/100))*(esempio!$M$26*(1+'prezzi combustibile'!$J$6))) -> 0 | AL29: =((esempio!$M$19*(esempio!$M$25/100))*(esempio!$M$26*(1+$K$6))) -> 0 | AM29: =((esempio!$M$19*(esempio!$M$25/100))*(esempio!$M$26*(1+$L$6))) -> 0 | AN29: =((esempio!$M$19*(esempio!$M$25/100))*(esempio!$M$26*(1+$M$6))) -> 0 | AO29: =((esempio!$M$19*(esempio!$M$25/100))*(esempio!$M$26*(1+$N$6))) -> 0 | AP29: =SUM(AE29:INDEX(AE29:AO29,esempio!$E$6)) -> 0
B30: Natural Gas/CNG (kg/100km) | D30: MJ/kg | E30: kg/100km | F30: €/kg | G30: =$AB$46 -> 404970.7988 | H30: =$AB$47 -> 315084.6788 | I30: =$AB$48 -> 356502.3269 | J30: =$AB$49 -> 0 | K30: =$AB$50 -> 0
B31: elettricità | C31: 3.6 | D31: MJ/kWh | E31: kWh/100km | F31: €/kWh | G31: =$AB$32 -> 404970.7988 | H31: =$AB$33 -> 315084.6788 | I31: =$AB$34 -> 356502.3269 | J31: =$AB$35 -> 0 | K31: =$AB$36 -> 0 | P31: ELECTRICITY | Q31: 2014 | R31: 2015 | S31: 2016 | T31: 2017 | U31: 2018 | V31: 2019 | W31: 2020 | X31: 2021 | Y31: 2022 | Z31: 2023 | AA31: 2024 | AB31: Total fuel price for period | AD31: ELECTRICITY | AE31: 2014 | AF31: 2015 | AG31: 2016 | AH31: 2017 | AI31: 2018 | AJ31: 2019 | AK31: 2020 | AL31: 2021 | AM31: 2022 | AN31: 2023 | AO31: 2024 | AP31: Total fuel price for period
B32: biodiesel | C32: 33 | D32: MJ/l | E32: l/100km | F32: €/l | G32: =$AB$39 -> 404970.7988 | H32: =$AB$40 -> 315084.6788 | I32: =$AB$41 -> 356502.3269 | J32: =$AB$42 -> 0 | K32: =$AB$43 -> 0 | P32: Product 1 | Q32: =((esempio!$E$19*(esempio!$E$21/100))*esempio!$E$22) -> 40894.4 | R32: =((esempio!$E$19*(esempio!$E$21/100))*(esempio!$E$22*(1+'prezzi combustibile'!$E$6))) -> 39348.94556 | S32: =((esempio!$E$19*(esempio!$E$21/100))*(esempio!$E$22*(1+'prezzi combustibile'!$F$6))) -> 38784.60309 | T32: =((esempio!$E$19*(esempio!$E$21/100))*(esempio!$E$22*(1+'prezzi combustibile'!$G$6))) -> 38807.03215 | U32: =((esempio!$E$19*(esempio!$E$21/100))*(esempio!$E$22*(1+'prezzi combustibile'!$H$6))) -> 39236.51725 | V32: =((esempio!$E$19*(esempio!$E$21/100))*(esempio!$E$22*(1+'prezzi combustibile'!$I$6))) -> 40124.65552 | W32: =((esempio!$E$19*(esempio!$E$21/100))*(esempio!$E$22*(1+'prezzi combustibile'!$J$6))) -> 40818.48451 | X32: =((esempio!$E$19*(esempio!$E$21/100))*(esempio!$E$22*(1+'prezzi combustibile'!$K$6))) -> 41585.02446 | Y32: =((esempio!$E$19*(esempio!$E$21/100))*(esempio!$E$22*(1+'prezzi combustibile'!$L$6))) -> 42405.64509 | Z32: =((esempio!$E$19*(esempio!$E$21/100))*(esempio!$E$22*(1+'prezzi combustibile'!$M$6))) -> 42965.49118 | AA32: =((esempio!$E$19*(esempio!$E$21/100))*(esempio!$E$22*(1+'prezzi combustibile'!$N$6))) -> 43494.95047 | AB32: =SUM(Q32:INDEX(Q32:AA32,esempio!$E$6)) -> 404970.7988 | AD32: Product 1 | AE32: =((esempio!$E$19*(esempio!$E$25/100))*esempio!$E$26) -> 0 | AF32: =((esempio!$E$19*(esempio!$E$25/100))*(esempio!$E$26*(1+'prezzi combustibile'!$E$6))) -> 0 | AG32: =((esempio!$E$19*(esempio!$E$25/100))*(esempio!$E$26*(1+'prezzi combustibile'!$F$6))) -> 0 | AH32: =((esempio!$E$19*(esempio!$E$25/100))*(esempio!$E$26*(1+'prezzi combustibile'!$G$6))) -> 0 | AI32: =((esempio!$E$19*(esempio!$E$25/100))*(esempio!$E$26*(1+'prezzi combustibile'!$H$6))) -> 0 | AJ32: =((esempio!$E$19*(esempio!$E$25/100))*(esempio!$E$26*(1+'prezzi combustibile'!$I$6))) -> 0 | AK32: =((esempio!$E$19*(esempio!$E$25/100))*(esempio!$E$26*(1+'prezzi combustibile'!$J$6))) -> 0 | AL32: =((esempio!$E$19*(esempio!$E$25/100))*(esempio!$E$26*(1+$K$6))) -> 0 | AM32: =((esempio!$E$19*(esempio!$E$25/100))*(esempio!$E$26*(1+$L$6))) -> 0 | AN32: =((esempio!$E$19*(esempio!$E$25/100))*(esempio!$E$26*(1+$M$6))) -> 0 | AO32: =((esempio!$E$19*(esempio!$E$25/100))*(esempio!$E$26*(1+$N$6))) -> 0 | AP32: =SUM(AE32:INDEX(AE32:AO32,esempio!$E$6)) -> 0
B33: LPG | C33: 24 | D33: MJ/l | E33: l/100km | F33: €/l | G33: =$AB$18 -> 404970.7988 | H33: =$AB$19 -> 315084.6788 | I33: =$AB$20 -> 356502.3269 | J33: =$AB$21 -> 0 | K33: =$AB$22 -> 0 | P33: Product 2 | Q33: =((esempio!$G$19*(esempio!$G$21/100))*esempio!$G$22) -> 31817.6 | R33: =((esempio!$G$19*(esempio!$G$21/100))*(esempio!$G$22*(1+'prezzi combustibile'!$E$6))) -> 30615.17006 | S33: =((esempio!$G$19*(esempio!$G$21/100))*(esempio!$G$22*(1+'prezzi combustibile'!$F$6))) -> 30176.08737 | T33: =((esempio!$G$19*(esempio!$G$21/100))*(esempio!$G$22*(1+'prezzi combustibile'!$G$6))) -> 30193.53814 | U33: =((esempio!$G$19*(esempio!$G$21/100))*(esempio!$G$22*(1+'prezzi combustibile'!$H$6))) -> 30527.696 | V33: =((esempio!$G$19*(esempio!$G$21/100))*(esempio!$G$22*(1+'prezzi combustibile'!$I$6))) -> 31218.70573 | W33: =((esempio!$G$19*(esempio!$G$21/100))*(esempio!$G$22*(1+'prezzi combustibile'!$J$6))) -> 31758.53449 | X33: =((esempio!$G$19*(esempio!$G$21/100))*(esempio!$G$22*(1+'prezzi combustibile'!$K$6))) -> 32354.9355 | Y33: =((esempio!$G$19*(esempio!$G$21/100))*(esempio!$G$22*(1+'prezzi combustibile'!$L$6))) -> 32993.4136 | Z33: =((esempio!$G$19*(esempio!$G$21/100))*(esempio!$G$22*(1+'prezzi combustibile'!$M$6))) -> 33428.99791 | AA33: =((esempio!$G$19*(esempio!$G$21/100))*(esempio!$G$22*(1+'prezzi combustibile'!$N$6))) -> 33840.93998 | AB33: =SUM(Q33:INDEX(Q33:AA33,esempio!$G$6)) -> 315084.6788 | AD33: Product 2 | AE33: =((esempio!$G$19*(esempio!$G$25/100))*esempio!$G$26) -> 200000 | AF33: =((esempio!$G$19*(esempio!$G$25/100))*(esempio!$G$26*(1+'prezzi combustibile'!$E$6))) -> 192441.7307 | AG33: =((esempio!$G$19*(esempio!$G$25/100))*(esempio!$G$26*(1+'prezzi combustibile'!$F$6))) -> 189681.7319 | AH33: =((esempio!$G$19*(esempio!$G$25/100))*(esempio!$G$26*(1+'prezzi combustibile'!$G$6))) -> 189791.4245 | AI33: =((esempio!$G$19*(esempio!$G$25/100))*(esempio!$G$26*(1+'prezzi combustibile'!$H$6))) -> 191891.8837 | AJ33: =((esempio!$G$19*(esempio!$G$25/100))*(esempio!$G$26*(1+'prezzi combustibile'!$I$6))) -> 196235.4529 | AK33: =((esempio!$G$19*(esempio!$G$25/100))*(esempio!$G$26*(1+'prezzi combustibile'!$J$6))) -> 199628.7243 | AL33: =((esempio!$G$19*(esempio!$G$25/100))*(esempio!$G$26*(1+$K$6))) -> 200000 | AM33: =((esempio!$G$19*(esempio!$G$25/100))*(esempio!$G$26*(1+$L$6))) -> 200000 | AN33: =((esempio!$G$19*(esempio!$G$25/100))*(esempio!$G$26*(1+$M$6))) -> 200000 | AO33: =((esempio!$G$19*(esempio!$G$25/100))*(esempio!$G$26*(1+$N$6))) -> 200000 | AP33: =SUM(AE33:INDEX(AE33:AO33,esempio!$E$6)) -> 1959670.948
B34: etanolo | C34: 21 | D34: MJ/l | E34: l/100km | F34: €/l | G34: =$AB$25 -> 404970.7988 | H34: =$AB$26 -> 315084.6788 | I34: =$AB$27 -> 356502.3269 | J34: =$AB$28 -> 0 | K34: =$AB$29 -> 0 | P34: Product 3 | Q34: =((esempio!$I$19*(esempio!$I$21/100))*esempio!$I$22) -> 36000 | R34: =((esempio!$I$19*(esempio!$I$21/100))*(esempio!$I$22*(1+'prezzi combustibile'!$E$6))) -> 34639.51153 | S34: =((esempio!$I$19*(esempio!$I$21/100))*(esempio!$I$22*(1+'prezzi combustibile'!$F$6))) -> 34142.71175 | T34: =((esempio!$I$19*(esempio!$I$21/100))*(esempio!$I$22*(1+'prezzi combustibile'!$G$6))) -> 34162.45641 | U34: =((esempio!$I$19*(esempio!$I$21/100))*(esempio!$I$22*(1+'prezzi combustibile'!$H$6))) -> 34540.53907 | V34: =((esempio!$I$19*(esempio!$I$21/100))*(esempio!$I$22*(1+'prezzi combustibile'!$I$6))) -> 35322.38152 | W34: =((esempio!$I$19*(esempio!$I$21/100))*(esempio!$I$22*(1+'prezzi combustibile'!$J$6))) -> 35933.17037 | X34: =((esempio!$I$19*(esempio!$I$21/100))*(esempio!$I$22*(1+'prezzi combustibile'!$K$6))) -> 36607.96785 | Y34: =((esempio!$I$19*(esempio!$I$21/100))*(esempio!$I$22*(1+'prezzi combustibile'!$L$6))) -> 37330.37343 | Z34: =((esempio!$I$19*(esempio!$I$21/100))*(esempio!$I$22*(1+'prezzi combustibile'!$M$6))) -> 37823.21497 | AA34: =((esempio!$I$19*(esempio!$I$21/100))*(esempio!$I$22*(1+'prezzi combustibile'!$N$6))) -> 38289.30653 | AB34: =SUM(Q34:INDEX(Q34:AA34,esempio!$I$6)) -> 356502.3269 | AD34: Product 3 | AE34: =((esempio!$I$19*(esempio!$I$25/100))*esempio!$I$26) -> 0 | AF34: =((esempio!$I$19*(esempio!$I$25/100))*(esempio!$I$26*(1+'prezzi combustibile'!$E$6))) -> 0 | AG34: =((esempio!$I$19*(esempio!$I$25/100))*(esempio!$I$26*(1+'prezzi combustibile'!$F$6))) -> 0 | AH34: =((esempio!$I$19*(esempio!$I$25/100))*(esempio!$I$26*(1+'prezzi combustibile'!$G$6))) -> 0 | AI34: =((esempio!$I$19*(esempio!$I$25/100))*(esempio!$I$26*(1+'prezzi combustibile'!$H$6))) -> 0 | AJ34: =((esempio!$I$19*(esempio!$I$25/100))*(esempio!$I$26*(1+'prezzi combustibile'!$I$6))) -> 0 | AK34: =((esempio!$I$19*(esempio!$I$25/100))*(esempio!$I$26*(1+'prezzi combustibile'!$J$6))) -> 0 | AL34: =((esempio!$I$19*(esempio!$I$25/100))*(esempio!$I$26*(1+$K$6))) -> 0 | AM34: =((esempio!$I$19*(esempio!$I$25/100))*(esempio!$I$26*(1+$L$6))) -> 0 | AN34: =((esempio!$I$19*(esempio!$I$25/100))*(esempio!$I$26*(1+$M$6))) -> 0 | AO34: =((esempio!$I$19*(esempio!$I$25/100))*(esempio!$I$26*(1+$N$6))) -> 0 | AP34: =SUM(AE34:INDEX(AE34:AO34,esempio!$E$6)) -> 0
B35: idrogeno gas | C35: 11 | D35: MJ/Nm3 | E35: Nm3/100km | F35: €/Nm3 | P35: Product 4 | Q35: =((esempio!$K$19*(esempio!$K$21/100))*esempio!$K$22) -> 0 | R35: =((esempio!$K$19*(esempio!$K$21/100))*(esempio!$K$22*(1+'prezzi combustibile'!$E$6))) -> 0 | S35: =((esempio!$K$19*(esempio!$K$21/100))*(esempio!$K$22*(1+'prezzi combustibile'!$F$6))) -> 0 | T35: =((esempio!$K$19*(esempio!$K$21/100))*(esempio!$K$22*(1+'prezzi combustibile'!$G$6))) -> 0 | U35: =((esempio!$K$19*(esempio!$K$21/100))*(esempio!$K$22*(1+'prezzi combustibile'!$H$6))) -> 0 | V35: =((esempio!$K$19*(esempio!$K$21/100))*(esempio!$K$22*(1+'prezzi combustibile'!$I$6))) -> 0 | W35: =((esempio!$K$19*(esempio!$K$21/100))*(esempio!$K$22*(1+'prezzi combustibile'!$J$6))) -> 0 | X35: =((esempio!$K$19*(esempio!$K$21/100))*(esempio!$K$22*(1+'prezzi combustibile'!$K$6))) -> 0 | Y35: =((esempio!$K$19*(esempio!$K$21/100))*(esempio!$K$22*(1+'prezzi combustibile'!$L$6))) -> 0 | Z35: =((esempio!$K$19*(esempio!$K$21/100))*(esempio!$K$22*(1+'prezzi combustibile'!$M$6))) -> 0 | AA35: =((esempio!$K$19*(esempio!$K$21/100))*(esempio!$K$22*(1+'prezzi combustibile'!$N$6))) -> 0 | AB35: =SUM(Q35:INDEX(Q35:AA35,esempio!$K$6)) -> 0 | AD35: Product 4 | AE35: =((esempio!$K$19*(esempio!$K$25/100))*esempio!$K$26) -> 0 | AF35: =((esempio!$K$19*(esempio!$K$25/100))*(esempio!$K$26*(1+'prezzi combustibile'!$E$6))) -> 0 | AG35: =((esempio!$K$19*(esempio!$K$25/100))*(esempio!$K$26*(1+'prezzi combustibile'!$F$6))) -> 0 | AH35: =((esempio!$K$19*(esempio!$K$25/100))*(esempio!$K$26*(1+'prezzi combustibile'!$G$6))) -> 0 | AI35: =((esempio!$K$19*(esempio!$K$25/100))*(esempio!$K$26*(1+'prezzi combustibile'!$H$6))) -> 0 | AJ35: =((esempio!$K$19*(esempio!$K$25/100))*(esempio!$K$26*(1+'prezzi combustibile'!$I$6))) -> 0 | AK35: =((esempio!$K$19*(esempio!$K$25/100))*(esempio!$K$26*(1+'prezzi combustibile'!$J$6))) -> 0 | AL35: =((esempio!$K$19*(esempio!$K$25/100))*(esempio!$K$26*(1+$K$6))) -> 0 | AM35: =((esempio!$K$19*(esempio!$K$25/100))*(esempio!$K$26*(1+$L$6))) -> 0 | AN35: =((esempio!$K$19*(esempio!$K$25/100))*(esempio!$K$26*(1+$M$6))) -> 0 | AO35: =((esempio!$K$19*(esempio!$K$25/100))*(esempio!$K$26*(1+$N$6))) -> 0 | AP35: =SUM(AE35:INDEX(AE35:AO35,esempio!$E$6)) -> 0
B36: idrogeno liquido - kg/100km | C36: 120 | D36: MJ/kg | E36: kg/100km | F36: €/kg | P36: Product 5 | Q36: =((esempio!$M$19*(esempio!$M$21/100))*esempio!$M$22) -> 0 | R36: =((esempio!$M$19*(esempio!$M$21/100))*(esempio!$M$22*(1+'prezzi combustibile'!$E$6))) -> 0 | S36: =((esempio!$M$19*(esempio!$M$21/100))*(esempio!$M$22*(1+'prezzi combustibile'!$F$6))) -> 0 | T36: =((esempio!$M$19*(esempio!$M$21/100))*(esempio!$M$22*(1+'prezzi combustibile'!$G$6))) -> 0 | U36: =((esempio!$M$19*(esempio!$M$21/100))*(esempio!$M$22*(1+'prezzi combustibile'!$H$6))) -> 0 | V36: =((esempio!$M$19*(esempio!$M$21/100))*(esempio!$M$22*(1+'prezzi combustibile'!$I$6))) -> 0 | W36: =((esempio!$M$19*(esempio!$M$21/100))*(esempio!$M$22*(1+'prezzi combustibile'!$J$6))) -> 0 | X36: =((esempio!$M$19*(esempio!$M$21/100))*(esempio!$M$22*(1+'prezzi combustibile'!$K$6))) -> 0 | Y36: =((esempio!$M$19*(esempio!$M$21/100))*(esempio!$M$22*(1+'prezzi combustibile'!$L$6))) -> 0 | Z36: =((esempio!$M$19*(esempio!$M$21/100))*(esempio!$M$22*(1+'prezzi combustibile'!$M$6))) -> 0 | AA36: =((esempio!$M$19*(esempio!$M$21/100))*(esempio!$M$22*(1+'prezzi combustibile'!$N$6))) -> 0 | AB36: =SUM(Q36:INDEX(Q36:AA36,esempio!$M$6)) -> 0 | AD36: Product 5 | AE36: =((esempio!$M$19*(esempio!$M$25/100))*esempio!$M$26) -> 0 | AF36: =((esempio!$M$19*(esempio!$M$25/100))*(esempio!$M$26*(1+'prezzi combustibile'!$E$6))) -> 0 | AG36: =((esempio!$M$19*(esempio!$M$25/100))*(esempio!$M$26*(1+'prezzi combustibile'!$F$6))) -> 0 | AH36: =((esempio!$M$19*(esempio!$M$25/100))*(esempio!$M$26*(1+'prezzi combustibile'!$G$6))) -> 0 | AI36: =((esempio!$M$19*(esempio!$M$25/100))*(esempio!$M$26*(1+'prezzi combustibile'!$H$6))) -> 0 | AJ36: =((esempio!$M$19*(esempio!$M$25/100))*(esempio!$M$26*(1+'prezzi combustibile'!$I$6))) -> 0 | AK36: =((esempio!$M$19*(esempio!$M$25/100))*(esempio!$M$26*(1+'prezzi combustibile'!$J$6))) -> 0 | AL36: =((esempio!$M$19*(esempio!$M$25/100))*(esempio!$M$26*(1+$K$6))) -> 0 | AM36: =((esempio!$M$19*(esempio!$M$25/100))*(esempio!$M$26*(1+$L$6))) -> 0 | AN36: =((esempio!$M$19*(esempio!$M$25/100))*(esempio!$M$26*(1+$M$6))) -> 0 | AO36: =((esempio!$M$19*(esempio!$M$25/100))*(esempio!$M$26*(1+$N$6))) -> 0 | AP36: =SUM(AE36:INDEX(AE36:AO36,esempio!$E$6)) -> 0
B37: idrogeno liquido - l/100km | C37: 8.6 | D37: MJ/l | E37: l/100km | F37: €/l
B38: Carburante emulsionato | C38: 32 | D38: MJ/l | E38: l/100km | F38: €/l | P38: BIODIESEL | Q38: 2014 | R38: 2015 | S38: 2016 | T38: 2017 | U38: 2018 | V38: 2019 | W38: 2020 | X38: 2021 | Y38: 2022 | Z38: 2023 | AA38: 2024 | AB38: Total fuel price for period | AD38: BIODIESEL | AE38: 2014 | AF38: 2015 | AG38: 2016 | AH38: 2017 | AI38: 2018 | AJ38: 2019 | AK38: 2020 | AL38: 2021 | AM38: 2022 | AN38: 2023 | AO38: 2024 | AP38: Total fuel price for period
P39: Product 1 | Q39: =((esempio!$E$19*(esempio!$E$21/100))*esempio!$E$22) -> 40894.4 | R39: =((esempio!$E$19*(esempio!$E$21/100))*(esempio!$E$22*(1+'prezzi combustibile'!$E$6))) -> 39348.94556 | S39: =((esempio!$E$19*(esempio!$E$21/100))*(esempio!$E$22*(1+'prezzi combustibile'!$F$6))) -> 38784.60309 | T39: =((esempio!$E$19*(esempio!$E$21/100))*(esempio!$E$22*(1+'prezzi combustibile'!$G$6))) -> 38807.03215 | U39: =((esempio!$E$19*(esempio!$E$21/100))*(esempio!$E$22*(1+'prezzi combustibile'!$H$6))) -> 39236.51725 | V39: =((esempio!$E$19*(esempio!$E$21/100))*(esempio!$E$22*(1+'prezzi combustibile'!$I$6))) -> 40124.65552 | W39: =((esempio!$E$19*(esempio!$E$21/100))*(esempio!$E$22*(1+'prezzi combustibile'!$J$6))) -> 40818.48451 | X39: =((esempio!$E$19*(esempio!$E$21/100))*(esempio!$E$22*(1+'prezzi combustibile'!$K$6))) -> 41585.02446 | Y39: =((esempio!$E$19*(esempio!$E$21/100))*(esempio!$E$22*(1+'prezzi combustibile'!$L$6))) -> 42405.64509 | Z39: =((esempio!$E$19*(esempio!$E$21/100))*(esempio!$E$22*(1+'prezzi combustibile'!$M$6))) -> 42965.49118 | AA39: =((esempio!$E$19*(esempio!$E$21/100))*(esempio!$E$22*(1+'prezzi combustibile'!$N$6))) -> 43494.95047 | AB39: =SUM(Q39:INDEX(Q39:AA39,esempio!$E$6)) -> 404970.7988 | AD39: Product 1 | AE39: =((esempio!$E$19*(esempio!$E$25/100))*esempio!$E$26) -> 0 | AF39: =((esempio!$E$19*(esempio!$E$25/100))*(esempio!$E$26*(1+'prezzi combustibile'!$E$6))) -> 0 | AG39: =((esempio!$E$19*(esempio!$E$25/100))*(esempio!$E$26*(1+'prezzi combustibile'!$F$6))) -> 0 | AH39: =((esempio!$E$19*(esempio!$E$25/100))*(esempio!$E$26*(1+'prezzi combustibile'!$G$6))) -> 0 | AI39: =((esempio!$E$19*(esempio!$E$25/100))*(esempio!$E$26*(1+'prezzi combustibile'!$H$6))) -> 0 | AJ39: =((esempio!$E$19*(esempio!$E$25/100))*(esempio!$E$26*(1+'prezzi combustibile'!$I$6))) -> 0 | AK39: =((esempio!$E$19*(esempio!$E$25/100))*(esempio!$E$26*(1+'prezzi combustibile'!$J$6))) -> 0 | AL39: =((esempio!$E$19*(esempio!$E$25/100))*(esempio!$E$26*(1+$K$6))) -> 0 | AM39: =((esempio!$E$19*(esempio!$E$25/100))*(esempio!$E$26*(1+$L$6))) -> 0 | AN39: =((esempio!$E$19*(esempio!$E$25/100))*(esempio!$E$26*(1+$M$6))) -> 0 | AO39: =((esempio!$E$19*(esempio!$E$25/100))*(esempio!$E$26*(1+$N$6))) -> 0 | AP39: =SUM(AE39:INDEX(AE39:AO39,esempio!$E$6)) -> 0
B40: carburante 1 | G40: costo totale per il carburante per il periodo specificato | P40: Product 2 | Q40: =((esempio!$G$19*(esempio!$G$21/100))*esempio!$G$22) -> 31817.6 | R40: =((esempio!$G$19*(esempio!$G$21/100))*(esempio!$G$22*(1+'prezzi combustibile'!$E$6))) -> 30615.17006 | S40: =((esempio!$G$19*(esempio!$G$21/100))*(esempio!$G$22*(1+'prezzi combustibile'!$F$6))) -> 30176.08737 | T40: =((esempio!$G$19*(esempio!$G$21/100))*(esempio!$G$22*(1+'prezzi combustibile'!$G$6))) -> 30193.53814 | U40: =((esempio!$G$19*(esempio!$G$21/100))*(esempio!$G$22*(1+'prezzi combustibile'!$H$6))) -> 30527.696 | V40: =((esempio!$G$19*(esempio!$G$21/100))*(esempio!$G$22*(1+'prezzi combustibile'!$I$6))) -> 31218.70573 | W40: =((esempio!$G$19*(esempio!$G$21/100))*(esempio!$G$22*(1+'prezzi combustibile'!$J$6))) -> 31758.53449 | X40: =((esempio!$G$19*(esempio!$G$21/100))*(esempio!$G$22*(1+'prezzi combustibile'!$K$6))) -> 32354.9355 | Y40: =((esempio!$G$19*(esempio!$G$21/100))*(esempio!$G$22*(1+'prezzi combustibile'!$L$6))) -> 32993.4136 | Z40: =((esempio!$G$19*(esempio!$G$21/100))*(esempio!$G$22*(1+'prezzi combustibile'!$M$6))) -> 33428.99791 | AA40: =((esempio!$G$19*(esempio!$G$21/100))*(esempio!$G$22*(1+'prezzi combustibile'!$N$6))) -> 33840.93998 | AB40: =SUM(Q40:INDEX(Q40:AA40,esempio!$G$6)) -> 315084.6788 | AD40: Product 2 | AE40: =((esempio!$G$19*(esempio!$G$25/100))*esempio!$G$26) -> 200000 | AF40: =((esempio!$G$19*(esempio!$G$25/100))*(esempio!$G$26*(1+'prezzi combustibile'!$E$6))) -> 192441.7307 | AG40: =((esempio!$G$19*(esempio!$G$25/100))*(esempio!$G$26*(1+'prezzi combustibile'!$F$6))) -> 189681.7319 | AH40: =((esempio!$G$19*(esempio!$G$25/100))*(esempio!$G$26*(1+'prezzi combustibile'!$G$6))) -> 189791.4245 | AI40: =((esempio!$G$19*(esempio!$G$25/100))*(esempio!$G$26*(1+'prezzi combustibile'!$H$6))) -> 191891.8837 | AJ40: =((esempio!$G$19*(esempio!$G$25/100))*(esempio!$G$26*(1+'prezzi combustibile'!$I$6))) -> 196235.4529 | AK40: =((esempio!$G$19*(esempio!$G$25/100))*(esempio!$G$26*(1+'prezzi combustibile'!$J$6))) -> 199628.7243 | AL40: =((esempio!$G$19*(esempio!$G$25/100))*(esempio!$G$26*(1+$K$6))) -> 200000 | AM40: =((esempio!$G$19*(esempio!$G$25/100))*(esempio!$G$26*(1+$L$6))) -> 200000 | AN40: =((esempio!$G$19*(esempio!$G$25/100))*(esempio!$G$26*(1+$M$6))) -> 200000 | AO40: =((esempio!$G$19*(esempio!$G$25/100))*(esempio!$G$26*(1+$N$6))) -> 200000 | AP40: =SUM(AE40:INDEX(AE40:AO40,esempio!$E$6)) -> 1959670.948
B41: tipo carburante | C41: contenuto energetico | D41: unità di misura | E41: unità di misura consumo combustibile | F41: unità di misura costo | G41: prodotto 1 | H41: prodotto 2 | I41: prodotto 3 | J41: prodotto 4 | K41: prodotto 5 | P41: Product 3 | Q41: =((esempio!$I$19*(esempio!$I$21/100))*esempio!$I$22) -> 36000 | R41: =((esempio!$I$19*(esempio!$I$21/100))*(esempio!$I$22*(1+'prezzi combustibile'!$E$6))) -> 34639.51153 | S41: =((esempio!$I$19*(esempio!$I$21/100))*(esempio!$I$22*(1+'prezzi combustibile'!$F$6))) -> 34142.71175 | T41: =((esempio!$I$19*(esempio!$I$21/100))*(esempio!$I$22*(1+'prezzi combustibile'!$G$6))) -> 34162.45641 | U41: =((esempio!$I$19*(esempio!$I$21/100))*(esempio!$I$22*(1+'prezzi combustibile'!$H$6))) -> 34540.53907 | V41: =((esempio!$I$19*(esempio!$I$21/100))*(esempio!$I$22*(1+'prezzi combustibile'!$I$6))) -> 35322.38152 | W41: =((esempio!$I$19*(esempio!$I$21/100))*(esempio!$I$22*(1+'prezzi combustibile'!$J$6))) -> 35933.17037 | X41: =((esempio!$I$19*(esempio!$I$21/100))*(esempio!$I$22*(1+'prezzi combustibile'!$K$6))) -> 36607.96785 | Y41: =((esempio!$I$19*(esempio!$I$21/100))*(esempio!$I$22*(1+'prezzi combustibile'!$L$6))) -> 37330.37343 | Z41: =((esempio!$I$19*(esempio!$I$21/100))*(esempio!$I$22*(1+'prezzi combustibile'!$M$6))) -> 37823.21497 | AA41: =((esempio!$I$19*(esempio!$I$21/100))*(esempio!$I$22*(1+'prezzi combustibile'!$N$6))) -> 38289.30653 | AB41: =SUM(Q41:INDEX(Q41:AA41,esempio!$I$6)) -> 356502.3269 | AD41: Product 3 | AE41: =((esempio!$I$19*(esempio!$I$25/100))*esempio!$I$26) -> 0 | AF41: =((esempio!$I$19*(esempio!$I$25/100))*(esempio!$I$26*(1+'prezzi combustibile'!$E$6))) -> 0 | AG41: =((esempio!$I$19*(esempio!$I$25/100))*(esempio!$I$26*(1+'prezzi combustibile'!$F$6))) -> 0 | AH41: =((esempio!$I$19*(esempio!$I$25/100))*(esempio!$I$26*(1+'prezzi combustibile'!$G$6))) -> 0 | AI41: =((esempio!$I$19*(esempio!$I$25/100))*(esempio!$I$26*(1+'prezzi combustibile'!$H$6))) -> 0 | AJ41: =((esempio!$I$19*(esempio!$I$25/100))*(esempio!$I$26*(1+'prezzi combustibile'!$I$6))) -> 0 | AK41: =((esempio!$I$19*(esempio!$I$25/100))*(esempio!$I$26*(1+'prezzi combustibile'!$J$6))) -> 0 | AL41: =((esempio!$I$19*(esempio!$I$25/100))*(esempio!$I$26*(1+$K$6))) -> 0 | AM41: =((esempio!$I$19*(esempio!$I$25/100))*(esempio!$I$26*(1+$L$6))) -> 0 | AN41: =((esempio!$I$19*(esempio!$I$25/100))*(esempio!$I$26*(1+$M$6))) -> 0 | AO41: =((esempio!$I$19*(esempio!$I$25/100))*(esempio!$I$26*(1+$N$6))) -> 0 | AP41: =SUM(AE41:INDEX(AE41:AO41,esempio!$E$6)) -> 0
B42: Diesel | C42: 36 | D42: MJ/l | E42: l/100km | F42: €/l | G42: =$AP$4 -> 0 | H42: =$AP$5 -> 1959670.948 | I42: =$AP$6 -> 0 | J42: =$AP$7 -> 0 | K42: =$AP$8 -> 0 | P42: Product 4 | Q42: =((esempio!$K$19*(esempio!$K$21/100))*esempio!$K$22) -> 0 | R42: =((esempio!$K$19*(esempio!$K$21/100))*(esempio!$K$22*(1+'prezzi combustibile'!$E$6))) -> 0 | S42: =((esempio!$K$19*(esempio!$K$21/100))*(esempio!$K$22*(1+'prezzi combustibile'!$F$6))) -> 0 | T42: =((esempio!$K$19*(esempio!$K$21/100))*(esempio!$K$22*(1+'prezzi combustibile'!$G$6))) -> 0 | U42: =((esempio!$K$19*(esempio!$K$21/100))*(esempio!$K$22*(1+'prezzi combustibile'!$H$6))) -> 0 | V42: =((esempio!$K$19*(esempio!$K$21/100))*(esempio!$K$22*(1+'prezzi combustibile'!$I$6))) -> 0 | W42: =((esempio!$K$19*(esempio!$K$21/100))*(esempio!$K$22*(1+'prezzi combustibile'!$J$6))) -> 0 | X42: =((esempio!$K$19*(esempio!$K$21/100))*(esempio!$K$22*(1+'prezzi combustibile'!$K$6))) -> 0 | Y42: =((esempio!$K$19*(esempio!$K$21/100))*(esempio!$K$22*(1+'prezzi combustibile'!$L$6))) -> 0 | Z42: =((esempio!$K$19*(esempio!$K$21/100))*(esempio!$K$22*(1+'prezzi combustibile'!$M$6))) -> 0 | AA42: =((esempio!$K$19*(esempio!$K$21/100))*(esempio!$K$22*(1+'prezzi combustibile'!$N$6))) -> 0 | AB42: =SUM(Q42:INDEX(Q42:AA42,esempio!$K$6)) -> 0 | AD42: Product 4 | AE42: =((esempio!$K$19*(esempio!$K$25/100))*esempio!$K$26) -> 0 | AF42: =((esempio!$K$19*(esempio!$K$25/100))*(esempio!$K$26*(1+'prezzi combustibile'!$E$6))) -> 0 | AG42: =((esempio!$K$19*(esempio!$K$25/100))*(esempio!$K$26*(1+'prezzi combustibile'!$F$6))) -> 0 | AH42: =((esempio!$K$19*(esempio!$K$25/100))*(esempio!$K$26*(1+'prezzi combustibile'!$G$6))) -> 0 | AI42: =((esempio!$K$19*(esempio!$K$25/100))*(esempio!$K$26*(1+'prezzi combustibile'!$H$6))) -> 0 | AJ42: =((esempio!$K$19*(esempio!$K$25/100))*(esempio!$K$26*(1+'prezzi combustibile'!$I$6))) -> 0 | AK42: =((esempio!$K$19*(esempio!$K$25/100))*(esempio!$K$26*(1+'prezzi combustibile'!$J$6))) -> 0 | AL42: =((esempio!$K$19*(esempio!$K$25/100))*(esempio!$K$26*(1+$K$6))) -> 0 | AM42: =((esempio!$K$19*(esempio!$K$25/100))*(esempio!$K$26*(1+$L$6))) -> 0 | AN42: =((esempio!$K$19*(esempio!$K$25/100))*(esempio!$K$26*(1+$M$6))) -> 0 | AO42: =((esempio!$K$19*(esempio!$K$25/100))*(esempio!$K$26*(1+$N$6))) -> 0 | AP42: =SUM(AE42:INDEX(AE42:AO42,esempio!$E$6)) -> 0
B43: benzina | C43: 32 | D43: MJ/l | E43: l/100km | F43: €/l | G43: =$AP$11 -> 0 | H43: =$AP$12 -> 1959670.948 | I43: =$AP$13 -> 0 | J43: =$AP$14 -> 0 | K43: =$AP$15 -> 0 | P43: Product 5 | Q43: =((esempio!$M$19*(esempio!$M$21/100))*esempio!$M$22) -> 0 | R43: =((esempio!$M$19*(esempio!$M$21/100))*(esempio!$M$22*(1+'prezzi combustibile'!$E$6))) -> 0 | S43: =((esempio!$M$19*(esempio!$M$21/100))*(esempio!$M$22*(1+'prezzi combustibile'!$F$6))) -> 0 | T43: =((esempio!$M$19*(esempio!$M$21/100))*(esempio!$M$22*(1+'prezzi combustibile'!$G$6))) -> 0 | U43: =((esempio!$M$19*(esempio!$M$21/100))*(esempio!$M$22*(1+'prezzi combustibile'!$H$6))) -> 0 | V43: =((esempio!$M$19*(esempio!$M$21/100))*(esempio!$M$22*(1+'prezzi combustibile'!$I$6))) -> 0 | W43: =((esempio!$M$19*(esempio!$M$21/100))*(esempio!$M$22*(1+'prezzi combustibile'!$J$6))) -> 0 | X43: =((esempio!$M$19*(esempio!$M$21/100))*(esempio!$M$22*(1+'prezzi combustibile'!$K$6))) -> 0 | Y43: =((esempio!$M$19*(esempio!$M$21/100))*(esempio!$M$22*(1+'prezzi combustibile'!$L$6))) -> 0 | Z43: =((esempio!$M$19*(esempio!$M$21/100))*(esempio!$M$22*(1+'prezzi combustibile'!$M$6))) -> 0 | AA43: =((esempio!$M$19*(esempio!$M$21/100))*(esempio!$M$22*(1+'prezzi combustibile'!$N$6))) -> 0 | AB43: =SUM(Q43:INDEX(Q43:AA43,esempio!$M$6)) -> 0 | AD43: Product 5 | AE43: =((esempio!$M$19*(esempio!$M$25/100))*esempio!$M$26) -> 0 | AF43: =((esempio!$M$19*(esempio!$M$25/100))*(esempio!$M$26*(1+'prezzi combustibile'!$E$6))) -> 0 | AG43: =((esempio!$M$19*(esempio!$M$25/100))*(esempio!$M$26*(1+'prezzi combustibile'!$F$6))) -> 0 | AH43: =((esempio!$M$19*(esempio!$M$25/100))*(esempio!$M$26*(1+'prezzi combustibile'!$G$6))) -> 0 | AI43: =((esempio!$M$19*(esempio!$M$25/100))*(esempio!$M$26*(1+'prezzi combustibile'!$H$6))) -> 0 | AJ43: =((esempio!$M$19*(esempio!$M$25/100))*(esempio!$M$26*(1+'prezzi combustibile'!$I$6))) -> 0 | AK43: =((esempio!$M$19*(esempio!$M$25/100))*(esempio!$M$26*(1+'prezzi combustibile'!$J$6))) -> 0 | AL43: =((esempio!$M$19*(esempio!$M$25/100))*(esempio!$M$26*(1+$K$6))) -> 0 | AM43: =((esempio!$M$19*(esempio!$M$25/100))*(esempio!$M$26*(1+$L$6))) -> 0 | AN43: =((esempio!$M$19*(esempio!$M$25/100))*(esempio!$M$26*(1+$M$6))) -> 0 | AO43: =((esempio!$M$19*(esempio!$M$25/100))*(esempio!$M$26*(1+$N$6))) -> 0 | AP43: =SUM(AE43:INDEX(AE43:AO43,esempio!$E$6)) -> 0
B44: Biogas/CBG | C44: 35 | D44: MJ/Nm3 | E44: Nm3/100km | F44: €/Nm3
B45: Natural Gas/CNG (Nm3/100km) | C45: 35 | D45: MJ/Nm3 | E45: Nm3/100km | F45: €/Nm3 | G45: =$AP$46 -> 0 | H45: =$AP$47 -> 1959670.948 | I45: =$AP$48 -> 0 | J45: =$AP$49 -> 0 | K45: =$AP$50 -> 0 | P45: NATURAL GAS | Q45: 2014 | R45: 2015 | S45: 2016 | T45: 2017 | U45: 2018 | V45: 2019 | W45: 2020 | X45: 2021 | Y45: 2022 | Z45: 2023 | AA45: 2024 | AB45: Total fuel price for period | AD45: NATURAL GAS | AE45: 2014 | AF45: 2015 | AG45: 2016 | AH45: 2017 | AI45: 2018 | AJ45: 2019 | AK45: 2020 | AL45: 2021 | AM45: 2022 | AN45: 2023 | AO45: 2024 | AP45: Total fuel price for period
B46: Natural Gas/CNG (kg/100km) | D46: MJ/kg | E46: kg/100km | F46: €/kg | G46: =$AP$46 -> 0 | H46: =$AP$47 -> 1959670.948 | I46: =$AP$48 -> 0 | J46: =$AP$49 -> 0 | K46: =$AP$50 -> 0 | P46: Product 1 | Q46: =((esempio!$E$19*(esempio!$E$21/100))*esempio!$E$22) -> 40894.4 | R46: =((esempio!$E$19*(esempio!$E$21/100))*(esempio!$E$22*(1+'prezzi combustibile'!$E$6))) -> 39348.94556 | S46: =((esempio!$E$19*(esempio!$E$21/100))*(esempio!$E$22*(1+'prezzi combustibile'!$F$6))) -> 38784.60309 | T46: =((esempio!$E$19*(esempio!$E$21/100))*(esempio!$E$22*(1+'prezzi combustibile'!$G$6))) -> 38807.03215 | U46: =((esempio!$E$19*(esempio!$E$21/100))*(esempio!$E$22*(1+'prezzi combustibile'!$H$6))) -> 39236.51725 | V46: =((esempio!$E$19*(esempio!$E$21/100))*(esempio!$E$22*(1+'prezzi combustibile'!$I$6))) -> 40124.65552 | W46: =((esempio!$E$19*(esempio!$E$21/100))*(esempio!$E$22*(1+'prezzi combustibile'!$J$6))) -> 40818.48451 | X46: =((esempio!$E$19*(esempio!$E$21/100))*(esempio!$E$22*(1+'prezzi combustibile'!$K$6))) -> 41585.02446 | Y46: =((esempio!$E$19*(esempio!$E$21/100))*(esempio!$E$22*(1+'prezzi combustibile'!$L$6))) -> 42405.64509 | Z46: =((esempio!$E$19*(esempio!$E$21/100))*(esempio!$E$22*(1+'prezzi combustibile'!$M$6))) -> 42965.49118 | AA46: =((esempio!$E$19*(esempio!$E$21/100))*(esempio!$E$22*(1+'prezzi combustibile'!$N$6))) -> 43494.95047 | AB46: =SUM(Q46:INDEX(Q46:AA46,esempio!$E$6)) -> 404970.7988 | AD46: Product 1 | AE46: =((esempio!$E$19*(esempio!$E$25/100))*esempio!$E$26) -> 0 | AF46: =((esempio!$E$19*(esempio!$E$25/100))*(esempio!$E$26*(1+'prezzi combustibile'!$E$6))) -> 0 | AG46: =((esempio!$E$19*(esempio!$E$25/100))*(esempio!$E$26*(1+'prezzi combustibile'!$F$6))) -> 0 | AH46: =((esempio!$E$19*(esempio!$E$25/100))*(esempio!$E$26*(1+'prezzi combustibile'!$G$6))) -> 0 | AI46: =((esempio!$E$19*(esempio!$E$25/100))*(esempio!$E$26*(1+'prezzi combustibile'!$H$6))) -> 0 | AJ46: =((esempio!$E$19*(esempio!$E$25/100))*(esempio!$E$26*(1+'prezzi combustibile'!$I$6))) -> 0 | AK46: =((esempio!$E$19*(esempio!$E$25/100))*(esempio!$E$26*(1+'prezzi combustibile'!$J$6))) -> 0 | AL46: =((esempio!$E$19*(esempio!$E$25/100))*(esempio!$E$26*(1+$K$6))) -> 0 | AM46: =((esempio!$E$19*(esempio!$E$25/100))*(esempio!$E$26*(1+$L$6))) -> 0 | AN46: =((esempio!$E$19*(esempio!$E$25/100))*(esempio!$E$26*(1+$M$6))) -> 0 | AO46: =((esempio!$E$19*(esempio!$E$25/100))*(esempio!$E$26*(1+$N$6))) -> 0 | AP46: =SUM(AE46:INDEX(AE46:AO46,esempio!$E$6)) -> 0
B47: elettricità | C47: 3.6 | D47: MJ/kWh | E47: kWh/100km | F47: €/kWh | G47: =$AP$32 -> 0 | H47: =$AP$33 -> 1959670.948 | I47: =$AP$34 -> 0 | J47: =$AP$35 -> 0 | K47: =$AP$36 -> 0 | P47: Product 2 | Q47: =((esempio!$G$19*(esempio!$G$21/100))*esempio!$G$22) -> 31817.6 | R47: =((esempio!$G$19*(esempio!$G$21/100))*(esempio!$G$22*(1+'prezzi combustibile'!$E$6))) -> 30615.17006 | S47: =((esempio!$G$19*(esempio!$G$21/100))*(esempio!$G$22*(1+'prezzi combustibile'!$F$6))) -> 30176.08737 | T47: =((esempio!$G$19*(esempio!$G$21/100))*(esempio!$G$22*(1+'prezzi combustibile'!$G$6))) -> 30193.53814 | U47: =((esempio!$G$19*(esempio!$G$21/100))*(esempio!$G$22*(1+'prezzi combustibile'!$H$6))) -> 30527.696 | V47: =((esempio!$G$19*(esempio!$G$21/100))*(esempio!$G$22*(1+'prezzi combustibile'!$I$6))) -> 31218.70573 | W47: =((esempio!$G$19*(esempio!$G$21/100))*(esempio!$G$22*(1+'prezzi combustibile'!$J$6))) -> 31758.53449 | X47: =((esempio!$G$19*(esempio!$G$21/100))*(esempio!$G$22*(1+'prezzi combustibile'!$K$6))) -> 32354.9355 | Y47: =((esempio!$G$19*(esempio!$G$21/100))*(esempio!$G$22*(1+'prezzi combustibile'!$L$6))) -> 32993.4136 | Z47: =((esempio!$G$19*(esempio!$G$21/100))*(esempio!$G$22*(1+'prezzi combustibile'!$M$6))) -> 33428.99791 | AA47: =((esempio!$G$19*(esempio!$G$21/100))*(esempio!$G$22*(1+'prezzi combustibile'!$N$6))) -> 33840.93998 | AB47: =SUM(Q47:INDEX(Q47:AA47,esempio!$G$6)) -> 315084.6788 | AD47: Product 2 | AE47: =((esempio!$G$19*(esempio!$G$25/100))*esempio!$G$26) -> 200000 | AF47: =((esempio!$G$19*(esempio!$G$25/100))*(esempio!$G$26*(1+'prezzi combustibile'!$E$6))) -> 192441.7307 | AG47: =((esempio!$G$19*(esempio!$G$25/100))*(esempio!$G$26*(1+'prezzi combustibile'!$F$6))) -> 189681.7319 | AH47: =((esempio!$G$19*(esempio!$G$25/100))*(esempio!$G$26*(1+'prezzi combustibile'!$G$6))) -> 189791.4245 | AI47: =((esempio!$G$19*(esempio!$G$25/100))*(esempio!$G$26*(1+'prezzi combustibile'!$H$6))) -> 191891.8837 | AJ47: =((esempio!$G$19*(esempio!$G$25/100))*(esempio!$G$26*(1+'prezzi combustibile'!$I$6))) -> 196235.4529 | AK47: =((esempio!$G$19*(esempio!$G$25/100))*(esempio!$G$26*(1+'prezzi combustibile'!$J$6))) -> 199628.7243 | AL47: =((esempio!$G$19*(esempio!$G$25/100))*(esempio!$G$26*(1+$K$6))) -> 200000 | AM47: =((esempio!$G$19*(esempio!$G$25/100))*(esempio!$G$26*(1+$L$6))) -> 200000 | AN47: =((esempio!$G$19*(esempio!$G$25/100))*(esempio!$G$26*(1+$M$6))) -> 200000 | AO47: =((esempio!$G$19*(esempio!$G$25/100))*(esempio!$G$26*(1+$N$6))) -> 200000 | AP47: =SUM(AE47:INDEX(AE47:AO47,esempio!$E$6)) -> 1959670.948
B48: biodiesel | C48: 33 | D48: MJ/l | E48: l/100km | F48: €/l | G48: =$AP$39 -> 0 | H48: =$AP$40 -> 1959670.948 | I48: =$AP$41 -> 0 | J48: =$AP$42 -> 0 | K48: =$AP$43 -> 0 | P48: Product 3 | Q48: =((esempio!$I$19*(esempio!$I$21/100))*esempio!$I$22) -> 36000 | R48: =((esempio!$I$19*(esempio!$I$21/100))*(esempio!$I$22*(1+'prezzi combustibile'!$E$6))) -> 34639.51153 | S48: =((esempio!$I$19*(esempio!$I$21/100))*(esempio!$I$22*(1+'prezzi combustibile'!$F$6))) -> 34142.71175 | T48: =((esempio!$I$19*(esempio!$I$21/100))*(esempio!$I$22*(1+'prezzi combustibile'!$G$6))) -> 34162.45641 | U48: =((esempio!$I$19*(esempio!$I$21/100))*(esempio!$I$22*(1+'prezzi combustibile'!$H$6))) -> 34540.53907 | V48: =((esempio!$I$19*(esempio!$I$21/100))*(esempio!$I$22*(1+'prezzi combustibile'!$I$6))) -> 35322.38152 | W48: =((esempio!$I$19*(esempio!$I$21/100))*(esempio!$I$22*(1+'prezzi combustibile'!$J$6))) -> 35933.17037 | X48: =((esempio!$I$19*(esempio!$I$21/100))*(esempio!$I$22*(1+'prezzi combustibile'!$K$6))) -> 36607.96785 | Y48: =((esempio!$I$19*(esempio!$I$21/100))*(esempio!$I$22*(1+'prezzi combustibile'!$L$6))) -> 37330.37343 | Z48: =((esempio!$I$19*(esempio!$I$21/100))*(esempio!$I$22*(1+'prezzi combustibile'!$M$6))) -> 37823.21497 | AA48: =((esempio!$I$19*(esempio!$I$21/100))*(esempio!$I$22*(1+'prezzi combustibile'!$N$6))) -> 38289.30653 | AB48: =SUM(Q48:INDEX(Q48:AA48,esempio!$I$6)) -> 356502.3269 | AD48: Product 3 | AE48: =((esempio!$I$19*(esempio!$I$25/100))*esempio!$I$26) -> 0 | AF48: =((esempio!$I$19*(esempio!$I$25/100))*(esempio!$I$26*(1+'prezzi combustibile'!$E$6))) -> 0 | AG48: =((esempio!$I$19*(esempio!$I$25/100))*(esempio!$I$26*(1+'prezzi combustibile'!$F$6))) -> 0 | AH48: =((esempio!$I$19*(esempio!$I$25/100))*(esempio!$I$26*(1+'prezzi combustibile'!$G$6))) -> 0 | AI48: =((esempio!$I$19*(esempio!$I$25/100))*(esempio!$I$26*(1+'prezzi combustibile'!$H$6))) -> 0 | AJ48: =((esempio!$I$19*(esempio!$I$25/100))*(esempio!$I$26*(1+'prezzi combustibile'!$I$6))) -> 0 | AK48: =((esempio!$I$19*(esempio!$I$25/100))*(esempio!$I$26*(1+'prezzi combustibile'!$J$6))) -> 0 | AL48: =((esempio!$I$19*(esempio!$I$25/100))*(esempio!$I$26*(1+$K$6))) -> 0 | AM48: =((esempio!$I$19*(esempio!$I$25/100))*(esempio!$I$26*(1+$L$6))) -> 0 | AN48: =((esempio!$I$19*(esempio!$I$25/100))*(esempio!$I$26*(1+$M$6))) -> 0 | AO48: =((esempio!$I$19*(esempio!$I$25/100))*(esempio!$I$26*(1+$N$6))) -> 0 | AP48: =SUM(AE48:INDEX(AE48:AO48,esempio!$E$6)) -> 0
B49: LPG | C49: 24 | D49: MJ/l | E49: l/100km | F49: €/l | G49: =$AP$18 -> 0 | H49: =$AP$19 -> 1959670.948 | I49: =$AP$20 -> 0 | J49: =$AP$21 -> 0 | K49: =$AP$22 -> 0 | P49: Product 4 | Q49: =((esempio!$K$19*(esempio!$K$21/100))*esempio!$K$22) -> 0 | R49: =((esempio!$K$19*(esempio!$K$21/100))*(esempio!$K$22*(1+'prezzi combustibile'!$E$6))) -> 0 | S49: =((esempio!$K$19*(esempio!$K$21/100))*(esempio!$K$22*(1+'prezzi combustibile'!$F$6))) -> 0 | T49: =((esempio!$K$19*(esempio!$K$21/100))*(esempio!$K$22*(1+'prezzi combustibile'!$G$6))) -> 0 | U49: =((esempio!$K$19*(esempio!$K$21/100))*(esempio!$K$22*(1+'prezzi combustibile'!$H$6))) -> 0 | V49: =((esempio!$K$19*(esempio!$K$21/100))*(esempio!$K$22*(1+'prezzi combustibile'!$I$6))) -> 0 | W49: =((esempio!$K$19*(esempio!$K$21/100))*(esempio!$K$22*(1+'prezzi combustibile'!$J$6))) -> 0 | X49: =((esempio!$K$19*(esempio!$K$21/100))*(esempio!$K$22*(1+'prezzi combustibile'!$K$6))) -> 0 | Y49: =((esempio!$K$19*(esempio!$K$21/100))*(esempio!$K$22*(1+'prezzi combustibile'!$L$6))) -> 0 | Z49: =((esempio!$K$19*(esempio!$K$21/100))*(esempio!$K$22*(1+'prezzi combustibile'!$M$6))) -> 0 | AA49: =((esempio!$K$19*(esempio!$K$21/100))*(esempio!$K$22*(1+'prezzi combustibile'!$N$6))) -> 0 | AB49: =SUM(Q49:INDEX(Q49:AA49,esempio!$K$6)) -> 0 | AD49: Product 4 | AE49: =((esempio!$K$19*(esempio!$K$25/100))*esempio!$K$26) -> 0 | AF49: =((esempio!$K$19*(esempio!$K$25/100))*(esempio!$K$26*(1+'prezzi combustibile'!$E$6))) -> 0 | AG49: =((esempio!$K$19*(esempio!$K$25/100))*(esempio!$K$26*(1+'prezzi combustibile'!$F$6))) -> 0 | AH49: =((esempio!$K$19*(esempio!$K$25/100))*(esempio!$K$26*(1+'prezzi combustibile'!$G$6))) -> 0 | AI49: =((esempio!$K$19*(esempio!$K$25/100))*(esempio!$K$26*(1+'prezzi combustibile'!$H$6))) -> 0 | AJ49: =((esempio!$K$19*(esempio!$K$25/100))*(esempio!$K$26*(1+'prezzi combustibile'!$I$6))) -> 0 | AK49: =((esempio!$K$19*(esempio!$K$25/100))*(esempio!$K$26*(1+'prezzi combustibile'!$J$6))) -> 0 | AL49: =((esempio!$K$19*(esempio!$K$25/100))*(esempio!$K$26*(1+$K$6))) -> 0 | AM49: =((esempio!$K$19*(esempio!$K$25/100))*(esempio!$K$26*(1+$L$6))) -> 0 | AN49: =((esempio!$K$19*(esempio!$K$25/100))*(esempio!$K$26*(1+$M$6))) -> 0 | AO49: =((esempio!$K$19*(esempio!$K$25/100))*(esempio!$K$26*(1+$N$6))) -> 0 | AP49: =SUM(AE49:INDEX(AE49:AO49,esempio!$E$6)) -> 0
B50: etanolo | C50: 21 | D50: MJ/l | E50: l/100km | F50: €/l | G50: =$AP$25 -> 0 | H50: =$AP$26 -> 1959670.948 | I50: =$AP$27 -> 0 | J50: =$AP$28 -> 0 | K50: =$AP$29 -> 0 | P50: Product 5 | Q50: =((esempio!$M$19*(esempio!$M$21/100))*esempio!$M$22) -> 0 | R50: =((esempio!$M$19*(esempio!$M$21/100))*(esempio!$M$22*(1+'prezzi combustibile'!$E$6))) -> 0 | S50: =((esempio!$M$19*(esempio!$M$21/100))*(esempio!$M$22*(1+'prezzi combustibile'!$F$6))) -> 0 | T50: =((esempio!$M$19*(esempio!$M$21/100))*(esempio!$M$22*(1+'prezzi combustibile'!$G$6))) -> 0 | U50: =((esempio!$M$19*(esempio!$M$21/100))*(esempio!$M$22*(1+'prezzi combustibile'!$H$6))) -> 0 | V50: =((esempio!$M$19*(esempio!$M$21/100))*(esempio!$M$22*(1+'prezzi combustibile'!$I$6))) -> 0 | W50: =((esempio!$M$19*(esempio!$M$21/100))*(esempio!$M$22*(1+'prezzi combustibile'!$J$6))) -> 0 | X50: =((esempio!$M$19*(esempio!$M$21/100))*(esempio!$M$22*(1+'prezzi combustibile'!$K$6))) -> 0 | Y50: =((esempio!$M$19*(esempio!$M$21/100))*(esempio!$M$22*(1+'prezzi combustibile'!$L$6))) -> 0 | Z50: =((esempio!$M$19*(esempio!$M$21/100))*(esempio!$M$22*(1+'prezzi combustibile'!$M$6))) -> 0 | AA50: =((esempio!$M$19*(esempio!$M$21/100))*(esempio!$M$22*(1+'prezzi combustibile'!$N$6))) -> 0 | AB50: =SUM(Q50:INDEX(Q50:AA50,esempio!$M$6)) -> 0 | AD50: Product 5 | AE50: =((esempio!$M$19*(esempio!$M$25/100))*esempio!$M$26) -> 0 | AF50: =((esempio!$M$19*(esempio!$M$25/100))*(esempio!$M$26*(1+'prezzi combustibile'!$E$6))) -> 0 | AG50: =((esempio!$M$19*(esempio!$M$25/100))*(esempio!$M$26*(1+'prezzi combustibile'!$F$6))) -> 0 | AH50: =((esempio!$M$19*(esempio!$M$25/100))*(esempio!$M$26*(1+'prezzi combustibile'!$G$6))) -> 0 | AI50: =((esempio!$M$19*(esempio!$M$25/100))*(esempio!$M$26*(1+'prezzi combustibile'!$H$6))) -> 0 | AJ50: =((esempio!$M$19*(esempio!$M$25/100))*(esempio!$M$26*(1+'prezzi combustibile'!$I$6))) -> 0 | AK50: =((esempio!$M$19*(esempio!$M$25/100))*(esempio!$M$26*(1+'prezzi combustibile'!$J$6))) -> 0 | AL50: =((esempio!$M$19*(esempio!$M$25/100))*(esempio!$M$26*(1+$K$6))) -> 0 | AM50: =((esempio!$M$19*(esempio!$M$25/100))*(esempio!$M$26*(1+$L$6))) -> 0 | AN50: =((esempio!$M$19*(esempio!$M$25/100))*(esempio!$M$26*(1+$M$6))) -> 0 | AO50: =((esempio!$M$19*(esempio!$M$25/100))*(esempio!$M$26*(1+$N$6))) -> 0 | AP50: =SUM(AE50:INDEX(AE50:AO50,esempio!$E$6)) -> 0
B51: idrogeno gas | C51: 11 | D51: MJ/Nm3 | E51: Nm3/100km | F51: €/Nm3
B52: idrogeno liquido - kg/100km | C52: 120 | D52: MJ/kg | E52: kg/100km | F52: €/kg | P52: BATTERY | Q52: 2014 | R52: 2015 | S52: 2016 | T52: 2017 | U52: 2018 | V52: 2019 | W52: 2020 | X52: 2021 | Y52: 2022 | Z52: 2023 | AA52: 2024 | AB52: Cost of replacements for period | AD52: BATTERY | AE52: 2014 | AF52: 2015 | AG52: 2016 | AH52: 2017 | AI52: 2018 | AJ52: 2019 | AK52: 2020 | AL52: 2021 | AM52: 2022 | AN52: 2023 | AO52: 2024 | AP52: Cost of replacements for period
B53: idrogeno liquido - l/100km | C53: 8.6 | D53: MJ/l | E53: l/100km | F53: €/l | P53: Product 1 | Q53: 0 | R53: =IF(esempio!$E$28=1,esempio!$E$27,0) -> 0 | S53: =IF(OR(esempio!$E$28=1,$E$24=2),esempio!$E$27,0) -> 0 | T53: =IF(OR(esempio!$E$28=1,esempio!$E$28=3),esempio!$E$27,0) -> 0 | U53: =IF(OR(esempio!$E$28=1,esempio!$E$28=2,esempio!$E$28=4),esempio!$E$27,0) -> 0 | V53: =IF(OR(esempio!$E$28=1,esempio!$E$28=5),esempio!$E$27,0) -> 0 | W53: =IF(OR(esempio!$E$28=1,esempio!$E$28=2,esempio!$E$28=3,esempio!$E$28=6),esempio!$E$27,0) -> 0 | X53: =IF(OR(esempio!$E$28=1,esempio!$E$28=7),esempio!$E$27,0) -> 0 | Y53: =IF(OR(esempio!$E$28=1,esempio!$E$28=2,esempio!$E$28=4,esempio!$E$28=8),esempio!$E$27,0) -> 0 | Z53: =IF(OR(esempio!$E$28=1,esempio!$E$28=3,esempio!$E$28=9),esempio!$E$27,0) -> 0 | AA53: =IF(OR(esempio!$E$28=1,esempio!$E$28=2,esempio!$E$28=5,esempio!$E$28=10),esempio!$E$27,0) -> 0 | AB53: =SUM(Q53:INDEX(Q53:AA53,esempio!$E$6)) -> 0 | AD53: Product 1 | AE53: 0 | AF53: =IF(esempio!$E$28=1,esempio!$E$27,0) -> 0 | AG53: =IF(OR(esempio!$E$28=1,$E$24=2),esempio!$E$27,0) -> 0 | AH53: =IF(OR(esempio!$E$28=1,esempio!$E$28=3),esempio!$E$27,0) -> 0 | AI53: =IF(OR(esempio!$E$28=1,esempio!$E$28=2,esempio!$E$28=4),esempio!$E$27,0) -> 0 | AJ53: =IF(OR(esempio!$E$28=1,esempio!$E$28=5),esempio!$E$27,0) -> 0 | AK53: =IF(OR(esempio!$E$28=1,esempio!$E$28=2,esempio!$E$28=3,esempio!$E$28=6),esempio!$E$27,0) -> 0 | AL53: =IF(OR(esempio!$E$28=1,esempio!$E$28=7),esempio!$E$27,0) -> 0 | AM53: =IF(OR(esempio!$E$28=1,esempio!$E$28=2,esempio!$E$28=4,esempio!$E$28=8),esempio!$E$27,0) -> 0 | AN53: =IF(OR(esempio!$E$28=1,esempio!$E$28=3,esempio!$E$28=9),esempio!$E$27,0) -> 0 | AO53: =IF(OR(esempio!$E$28=1,esempio!$E$28=2,esempio!$E$28=5,esempio!$E$28=10),esempio!$E$27,0) -> 0 | AP53: =SUM(AE53:INDEX(AE53:AO53,esempio!$E$6)) -> 0
B54: Carburante emulsionato | C54: 32 | D54: MJ/l | E54: l/100km | F54: €/l | P54: Product 2 | Q54: 0 | R54: =IF(esempio!$G$28=1,esempio!$G$27,0) -> 0 | S54: =IF(OR(esempio!$G$28=1,$G$24=2),esempio!$G$27,0) -> 0 | T54: =IF(OR(esempio!$G$28=1,esempio!$G$28=3),esempio!$G$27,0) -> 25 | U54: =IF(OR(esempio!$G$28=1,esempio!$G$28=2,esempio!$G$28=4),esempio!$G$27,0) -> 0 | V54: =IF(OR(esempio!$G$28=1,esempio!$G$28=5),esempio!$G$27,0) -> 0 | W54: =IF(OR(esempio!$G$28=1,esempio!$G$28=2,esempio!$G$28=3,esempio!$G$28=6),esempio!$G$27,0) -> 25 | X54: =IF(OR(esempio!$G$28=1,esempio!$G$28=7),esempio!$G$27,0) -> 0 | Y54: =IF(OR(esempio!$G$28=1,esempio!$G$28=2,esempio!$G$28=4,esempio!$G$28=8),esempio!$G$27,0) -> 0 | Z54: =IF(OR(esempio!$G$28=1,esempio!$G$28=3,esempio!$G$28=9),esempio!$G$27,0) -> 25 | AA54: =IF(OR(esempio!$G$28=1,esempio!$G$28=2,esempio!$G$28=5,esempio!$G$28=10),esempio!$G$27,0) -> 0 | AB54: =SUM(Q54:INDEX(Q54:AA54,esempio!$E$6)) -> 75 | AD54: Product 2 | AE54: 0 | AF54: =IF(esempio!$G$28=1,esempio!$G$27,0) -> 0 | AG54: =IF(OR(esempio!$G$28=1,$G$24=2),esempio!$G$27,0) -> 0 | AH54: =IF(OR(esempio!$G$28=1,esempio!$G$28=3),esempio!$G$27,0) -> 25 | AI54: =IF(OR(esempio!$G$28=1,esempio!$G$28=2,esempio!$G$28=4),esempio!$G$27,0) -> 0 | AJ54: =IF(OR(esempio!$G$28=1,esempio!$G$28=5),esempio!$G$27,0) -> 0 | AK54: =IF(OR(esempio!$G$28=1,esempio!$G$28=2,esempio!$G$28=3,esempio!$G$28=6),esempio!$G$27,0) -> 25 | AL54: =IF(OR(esempio!$G$28=1,esempio!$G$28=7),esempio!$G$27,0) -> 0 | AM54: =IF(OR(esempio!$G$28=1,esempio!$G$28=2,esempio!$G$28=4,esempio!$G$28=8),esempio!$G$27,0) -> 0 | AN54: =IF(OR(esempio!$G$28=1,esempio!$G$28=3,esempio!$G$28=9),esempio!$G$27,0) -> 25 | AO54: =IF(OR(esempio!$G$28=1,esempio!$G$28=2,esempio!$G$28=5,esempio!$G$28=10),esempio!$G$27,0) -> 0 | AP54: =SUM(AE54:INDEX(AE54:AO54,esempio!$E$6)) -> 75
P55: Product 3 | Q55: 0 | R55: =IF(esempio!$I$28=1,esempio!$I$27,0) -> 0 | S55: =IF(OR(esempio!$I$28=1,$I$24=2),esempio!$I$27,0) -> 0 | T55: =IF(OR(esempio!$I$28=1,esempio!$I$28=3),esempio!$I$27,0) -> 0 | U55: =IF(OR(esempio!$I$28=1,esempio!$I$28=2,esempio!$I$28=4),esempio!$I$27,0) -> 0 | V55: =IF(OR(esempio!$I$28=1,esempio!$I$28=5),esempio!$I$27,0) -> 0 | W55: =IF(OR(esempio!$I$28=1,esempio!$I$28=2,esempio!$I$28=3,esempio!$I$28=6),esempio!$I$27,0) -> 0 | X55: =IF(OR(esempio!$I$28=1,esempio!$I$28=7),esempio!$I$27,0) -> 0 | Y55: =IF(OR(esempio!$I$28=1,esempio!$I$28=2,esempio!$I$28=4,esempio!$I$28=8),esempio!$I$27,0) -> 0 | Z55: =IF(OR(esempio!$I$28=1,esempio!$I$28=3,esempio!$I$28=9),esempio!$I$27,0) -> 0 | AA55: =IF(OR(esempio!$I$28=1,esempio!$I$28=2,esempio!$I$28=5,esempio!$I$28=10),esempio!$I$27,0) -> 0 | AB55: =SUM(Q55:INDEX(Q55:AA55,esempio!$E$6)) -> 0 | AD55: Product 3 | AE55: 0 | AF55: =IF(esempio!$I$28=1,esempio!$I$27,0) -> 0 | AG55: =IF(OR(esempio!$I$28=1,$I$24=2),esempio!$I$27,0) -> 0 | AH55: =IF(OR(esempio!$I$28=1,esempio!$I$28=3),esempio!$I$27,0) -> 0 | AI55: =IF(OR(esempio!$I$28=1,esempio!$I$28=2,esempio!$I$28=4),esempio!$I$27,0) -> 0 | AJ55: =IF(OR(esempio!$I$28=1,esempio!$I$28=5),esempio!$I$27,0) -> 0 | AK55: =IF(OR(esempio!$I$28=1,esempio!$I$28=2,esempio!$I$28=3,esempio!$I$28=6),esempio!$I$27,0) -> 0 | AL55: =IF(OR(esempio!$I$28=1,esempio!$I$28=7),esempio!$I$27,0) -> 0 | AM55: =IF(OR(esempio!$I$28=1,esempio!$I$28=2,esempio!$I$28=4,esempio!$I$28=8),esempio!$I$27,0) -> 0 | AN55: =IF(OR(esempio!$I$28=1,esempio!$I$28=3,esempio!$I$28=9),esempio!$I$27,0) -> 0 | AO55: =IF(OR(esempio!$I$28=1,esempio!$I$28=2,esempio!$I$28=5,esempio!$I$28=10),esempio!$I$27,0) -> 0 | AP55: =SUM(AE55:INDEX(AE55:AO55,esempio!$E$6)) -> 0
B56: Elenchi a tendina | P56: Product 4 | Q56: 0 | R56: =IF(esempio!$K$28=1,esempio!$K$27,0) -> 0 | S56: =IF(OR(esempio!$K$28=1,$K$24=2),esempio!$K$27,0) -> 0 | T56: =IF(OR(esempio!$K$28=1,esempio!$K$28=3),esempio!$K$27,0) -> 0 | U56: =IF(OR(esempio!$K$28=1,esempio!$K$28=2,esempio!$K$28=4),esempio!$K$27,0) -> 0 | V56: =IF(OR(esempio!$K$28=1,esempio!$K$28=5),esempio!$K$27,0) -> 0 | W56: =IF(OR(esempio!$K$28=1,esempio!$K$28=2,esempio!$K$28=3,esempio!$K$28=6),esempio!$K$27,0) -> 0 | X56: =IF(OR(esempio!$K$28=1,esempio!$K$28=7),esempio!$K$27,0) -> 0 | Y56: =IF(OR(esempio!$K$28=1,esempio!$K$28=2,esempio!$K$28=4,esempio!$K$28=8),esempio!$K$27,0) -> 0 | Z56: =IF(OR(esempio!$K$28=1,esempio!$K$28=3,esempio!$K$28=9),esempio!$K$27,0) -> 0 | AA56: =IF(OR(esempio!$K$28=1,esempio!$K$28=2,esempio!$K$28=5,esempio!$K$28=10),esempio!$K$27,0) -> 0 | AB56: =SUM(Q56:INDEX(Q56:AA56,esempio!$E$6)) -> 0 | AD56: Product 4 | AE56: 0 | AF56: =IF(esempio!$K$28=1,esempio!$K$27,0) -> 0 | AG56: =IF(OR(esempio!$K$28=1,$K$24=2),esempio!$K$27,0) -> 0 | AH56: =IF(OR(esempio!$K$28=1,esempio!$K$28=3),esempio!$K$27,0) -> 0 | AI56: =IF(OR(esempio!$K$28=1,esempio!$K$28=2,esempio!$K$28=4),esempio!$K$27,0) -> 0 | AJ56: =IF(OR(esempio!$K$28=1,esempio!$K$28=5),esempio!$K$27,0) -> 0 | AK56: =IF(OR(esempio!$K$28=1,esempio!$K$28=2,esempio!$K$28=3,esempio!$K$28=6),esempio!$K$27,0) -> 0 | AL56: =IF(OR(esempio!$K$28=1,esempio!$K$28=7),esempio!$K$27,0) -> 0 | AM56: =IF(OR(esempio!$K$28=1,esempio!$K$28=2,esempio!$K$28=4,esempio!$K$28=8),esempio!$K$27,0) -> 0 | AN56: =IF(OR(esempio!$K$28=1,esempio!$K$28=3,esempio!$K$28=9),esempio!$K$27,0) -> 0 | AO56: =IF(OR(esempio!$K$28=1,esempio!$K$28=2,esempio!$K$28=5,esempio!$K$28=10),esempio!$K$27,0) -> 0 | AP56: =SUM(AE56:INDEX(AE56:AO56,esempio!$E$6)) -> 0
B57: tipo di contratto | C57: carburante di riferimento | D57: aumento prezzo carburante | E57: sì_no | P57: Product 5 | Q57: 0 | R57: =IF(esempio!$M$28=1,esempio!$M$27,0) -> 0 | S57: =IF(OR(esempio!$M$28=1,$M$24=2),esempio!$M$27,0) -> 0 | T57: =IF(OR(esempio!$M$28=1,esempio!$M$28=3),esempio!$M$27,0) -> 0 | U57: =IF(OR(esempio!$M$28=1,esempio!$M$28=2,esempio!$M$28=4),esempio!$M$27,0) -> 0 | V57: =IF(OR(esempio!$M$28=1,esempio!$M$28=5),esempio!$M$27,0) -> 0 | W57: =IF(OR(esempio!$M$28=1,esempio!$M$28=2,esempio!$M$28=3,esempio!$M$28=6),esempio!$M$27,0) -> 0 | X57: =IF(OR(esempio!$M$28=1,esempio!$M$28=7),esempio!$M$27,0) -> 0 | Y57: =IF(OR(esempio!$M$28=1,esempio!$M$28=2,esempio!$M$28=4,esempio!$M$28=8),esempio!$M$27,0) -> 0 | Z57: =IF(OR(esempio!$M$28=1,esempio!$M$28=3,esempio!$M$28=9),esempio!$M$27,0) -> 0 | AA57: =IF(OR(esempio!$M$28=1,esempio!$M$28=2,esempio!$M$28=5,esempio!$M$28=10),esempio!$M$27,0) -> 0 | AB57: =SUM(Q57:INDEX(Q57:AA57,esempio!$E$6)) -> 0 | AD57: Product 5 | AE57: 0 | AF57: =IF(esempio!$M$28=1,esempio!$M$27,0) -> 0 | AG57: =IF(OR(esempio!$M$28=1,$M$24=2),esempio!$M$27,0) -> 0 | AH57: =IF(OR(esempio!$M$28=1,esempio!$M$28=3),esempio!$M$27,0) -> 0 | AI57: =IF(OR(esempio!$M$28=1,esempio!$M$28=2,esempio!$M$28=4),esempio!$M$27,0) -> 0 | AJ57: =IF(OR(esempio!$M$28=1,esempio!$M$28=5),esempio!$M$27,0) -> 0 | AK57: =IF(OR(esempio!$M$28=1,esempio!$M$28=2,esempio!$M$28=3,esempio!$M$28=6),esempio!$M$27,0) -> 0 | AL57: =IF(OR(esempio!$M$28=1,esempio!$M$28=7),esempio!$M$27,0) -> 0 | AM57: =IF(OR(esempio!$M$28=1,esempio!$M$28=2,esempio!$M$28=4,esempio!$M$28=8),esempio!$M$27,0) -> 0 | AN57: =IF(OR(esempio!$M$28=1,esempio!$M$28=3,esempio!$M$28=9),esempio!$M$27,0) -> 0 | AO57: =IF(OR(esempio!$M$28=1,esempio!$M$28=2,esempio!$M$28=5,esempio!$M$28=10),esempio!$M$27,0) -> 0 | AP57: =SUM(AE57:INDEX(AE57:AO57,esempio!$E$6)) -> 0
B58: acquisto | C58: Diesel | D58: scegli uno dei valori | E58: sì
B59: leasing | C59: benzina | D59: Usa i valori OECD-FAO di default | E59: no
